Workbook

Sheet Gesamtstand
B1: Sommer-Cup 2022 im Freizeittreff Herbede - Gesamtstand
A2: Pl. | B2: Spieler | C2: Verein | D2: Passnr. | E2: Kat. | F2: 2022-05-05 | G2: =F2+7 -> 2022-05-12 | H2: =G2+7 -> 2022-05-19 | I2: =H2+6 -> 2022-05-25 | J2: =I2+8 -> 2022-06-02 | K2: =J2+7 -> 2022-06-09 | L2: =K2+6 -> 2022-06-15 | M2: =L2+8 -> 2022-06-23 | N2: =M2+7 -> 2022-06-30 | O2: 2022-07-07 | P2: 2022-07-14 | Q2: 2022-07-21 | R2: 2022-07-28 | S2: 2022-08-04 | T2: 2022-08-11 | U2: 2022-08-18 | V2: 2022-08-25 | W2: 2022-09-01 | X2: Pkt. ges. | Y2: Starts | Z2: Startgeld
A3: 1 | B3: Rabe, Jonas | C3: =VLOOKUP($B3,Teilnehmer!$A$3:$E$119,2,FALSE) -> Hardenb. | D3: =VLOOKUP($B3,Teilnehmer!$A$3:$E$119,3,FALSE) -> 67860 | E3: =VLOOKUP($B3,Teilnehmer!$A$3:$E$119,4,FALSE) -> JM | F3: =SUMIF(Einzelwertung1!$A$3:$A$55,$B3,Einzelwertung1!$J$3:$J$55)+0.017 -> 25.017 | G3: =SUMIF(Einzelwertung2!$A$3:$A$55,$B3,Einzelwertung2!$J$3:$J$55)+0.016 -> 0.016 | H3: =SUMIF(Einzelwertung3!$A$3:$A$55,$B3,Einzelwertung3!$J$3:$J$55)+0.015 -> 21.015 | I3: =SUMIF(Einzelwertung4!$A$3:$A$55,$B3,Einzelwertung4!$J$3:$J$55)+0.014 -> 0.014 | J3: =SUMIF(Einzelwertung5!$A$3:$A$55,$B3,Einzelwertung5!$J$3:$J$55)+0.013 -> 25.013 | K3: =SUMIF(Einzelwertung6!$A$3:$A$55,$B3,Einzelwertung6!$J$3:$J$55)+0.012 -> 15.012 | L3: =SUMIF(Einzelwertung7!$A$3:$A$55,$B3,Einzelwertung7!$J$3:$J$55)+0.011 -> 25.011 | M3: =SUMIF(Einzelwertung8!$A$3:$A$55,$B3,Einzelwertung8!$J$3:$J$55)+0.01 -> 15.01 | N3: =SUMIF(Einzelwertung9!$A$3:$A$55,$B3,Einzelwertung9!$J$3:$J$55)+0.009 -> 25.009 | O3: =SUMIF(Einzelwertung10!$A$3:$A$55,$B3,Einzelwertung10!$J$3:$J$55)+0.008 -> 0.008 | P3: =SUMIF(Einzelwertung11!$A$3:$A$55,$B3,Einzelwertung11!$J$3:$J$55)+0.007 -> 0.007 | Q3: =SUMIF(Einzelwertung12!$A$3:$A$55,$B3,Einzelwertung12!$J$3:$J$55)+0.006 -> 25.006 | R3: =SUMIF(Einzelwertung13!$A$3:$A$55,$B3,Einzelwertung13!$J$3:$J$55)+0.005 -> 25.005 | S3: =SUMIF(Einzelwertung14!$A$3:$A$55,$B3,Einzelwertung14!$J$3:$J$55)+0.004 -> 0.004 | T3: =SUMIF(Einzelwertung15!$A$3:$A$67,$B3,Einzelwertung15!$J$3:$J$67)+0.003 -> 25.003 | U3: =SUMIF(Einzelwertung16!$A$3:$A$55,$B3,Einzelwertung16!$J$3:$J$55)+0.002 -> 21.002 | V3: =SUMIF(Einzelwertung17!$A$3:$A$55,$B3,Einzelwertung17!$J$3:$J$55)+0.001 -> 0.001 | W3: =SUMIF(Einzelwertung18!$A$3:$A$55,$B3,Einzelwertung18!$J$3:$J$55)+0 -> 0 | X3: =INT(IF(COUNTIF(F3:W3,CONCATENATE(">",1/10))<=Hilfe!$A$1,SUM(F3:W3),SUMIF(F3:W3,CONCATENATE(">=",LARGE(F3:W3,Hilfe!$A$1)),F3:W3))) -> 247 | Y3: =COUNTIF(E3:W3,">1") -> 11 | Z3: =IF(ISERROR(SEARCH(CONCATENATE(" ",E3," ")," JM JW SCHM SCHW ")),5,2.5)*Y3 -> 27.5
A4: 2 | B4: Buchholz, Ansgar | C4: =VLOOKUP($B4,Teilnehmer!$A$3:$E$119,2,FALSE) -> ASW | D4: =VLOOKUP($B4,Teilnehmer!$A$3:$E$119,3,FALSE) -> 31513 | E4: =VLOOKUP($B4,Teilnehmer!$A$3:$E$119,4,FALSE) -> SM1 | F4: =SUMIF(Einzelwertung1!$A$3:$A$55,$B4,Einzelwertung1!$J$3:$J$55)+0.017 -> 25.017 | G4: =SUMIF(Einzelwertung2!$A$3:$A$55,$B4,Einzelwertung2!$J$3:$J$55)+0.016 -> 21.016 | H4: =SUMIF(Einzelwertung3!$A$3:$A$55,$B4,Einzelwertung3!$J$3:$J$55)+0.015 -> 21.015 | I4: =SUMIF(Einzelwertung4!$A$3:$A$55,$B4,Einzelwertung4!$J$3:$J$55)+0.014 -> 25.014 | J4: =SUMIF(Einzelwertung5!$A$3:$A$55,$B4,Einzelwertung5!$J$3:$J$55)+0.013 -> 15.013 | K4: =SUMIF(Einzelwertung6!$A$3:$A$55,$B4,Einzelwertung6!$J$3:$J$55)+0.012 -> 15.012 | L4: =SUMIF(Einzelwertung7!$A$3:$A$55,$B4,Einzelwertung7!$J$3:$J$55)+0.011 -> 18.011 | M4: =SUMIF(Einzelwertung8!$A$3:$A$55,$B4,Einzelwertung8!$J$3:$J$55)+0.01 -> 25.01 | N4: =SUMIF(Einzelwertung9!$A$3:$A$55,$B4,Einzelwertung9!$J$3:$J$55)+0.009 -> 0.009 | O4: =SUMIF(Einzelwertung10!$A$3:$A$55,$B4,Einzelwertung10!$J$3:$J$55)+0.008 -> 25.008 | P4: =SUMIF(Einzelwertung11!$A$3:$A$55,$B4,Einzelwertung11!$J$3:$J$55)+0.007 -> 25.007 | Q4: =SUMIF(Einzelwertung12!$A$3:$A$55,$B4,Einzelwertung12!$J$3:$J$55)+0.006 -> 0.006 | R4: =SUMIF(Einzelwertung13!$A$3:$A$55,$B4,Einzelwertung13!$J$3:$J$55)+0.005 -> 0.005 | S4: =SUMIF(Einzelwertung14!$A$3:$A$55,$B4,Einzelwertung14!$J$3:$J$55)+0.004 -> 25.004 | T4: =SUMIF(Einzelwertung15!$A$3:$A$67,$B4,Einzelwertung15!$J$3:$J$67)+0.003 -> 0.003 | U4: =SUMIF(Einzelwertung16!$A$3:$A$55,$B4,Einzelwertung16!$J$3:$J$55)+0.002 -> 15.002 | V4: =SUMIF(Einzelwertung17!$A$3:$A$55,$B4,Einzelwertung17!$J$3:$J$55)+0.001 -> 0.001 | W4: =SUMIF(Einzelwertung18!$A$3:$A$55,$B4,Einzelwertung18!$J$3:$J$55)+0 -> 0 | X4: =INT(IF(COUNTIF(F4:W4,CONCATENATE(">",1/10))<=Hilfe!$A$1,SUM(F4:W4),SUMIF(F4:W4,CONCATENATE(">=",LARGE(F4:W4,Hilfe!$A$1)),F4:W4))) -> 240 | Y4: 12 | Z4: 60
A5: 3 | B5: Rade, Marcus | C5: =VLOOKUP($B5,Teilnehmer!$A$3:$E$119,2,FALSE) -> Osna | D5: =VLOOKUP($B5,Teilnehmer!$A$3:$E$119,3,FALSE) -> 38625 | E5: =VLOOKUP($B5,Teilnehmer!$A$3:$E$119,4,FALSE) -> SM1 | F5: =SUMIF(Einzelwertung1!$A$3:$A$55,$B5,Einzelwertung1!$J$3:$J$55)+0.017 -> 15.017 | G5: =SUMIF(Einzelwertung2!$A$3:$A$55,$B5,Einzelwertung2!$J$3:$J$55)+0.016 -> 0.016 | H5: =SUMIF(Einzelwertung3!$A$3:$A$55,$B5,Einzelwertung3!$J$3:$J$55)+0.015 -> 25.015 | I5: =SUMIF(Einzelwertung4!$A$3:$A$55,$B5,Einzelwertung4!$J$3:$J$55)+0.014 -> 21.014 | J5: =SUMIF(Einzelwertung5!$A$3:$A$55,$B5,Einzelwertung5!$J$3:$J$55)+0.013 -> 21.013 | K5: =SUMIF(Einzelwertung6!$A$3:$A$55,$B5,Einzelwertung6!$J$3:$J$55)+0.012 -> 18.012 | L5: =SUMIF(Einzelwertung7!$A$3:$A$55,$B5,Einzelwertung7!$J$3:$J$55)+0.011 -> 10.011 | M5: =SUMIF(Einzelwertung8!$A$3:$A$55,$B5,Einzelwertung8!$J$3:$J$55)+0.01 -> 25.01 | N5: =SUMIF(Einzelwertung9!$A$3:$A$55,$B5,Einzelwertung9!$J$3:$J$55)+0.009 -> 21.009 | O5: =SUMIF(Einzelwertung10!$A$3:$A$55,$B5,Einzelwertung10!$J$3:$J$55)+0.008 -> 21.008 | P5: =SUMIF(Einzelwertung11!$A$3:$A$55,$B5,Einzelwertung11!$J$3:$J$55)+0.007 -> 18.007 | Q5: =SUMIF(Einzelwertung12!$A$3:$A$55,$B5,Einzelwertung12!$J$3:$J$55)+0.006 -> 0.006 | R5: =SUMIF(Einzelwertung13!$A$3:$A$55,$B5,Einzelwertung13!$J$3:$J$55)+0.005 -> 21.005 | S5: =SUMIF(Einzelwertung14!$A$3:$A$55,$B5,Einzelwertung14!$J$3:$J$55)+0.004 -> 21.004 | T5: =SUMIF(Einzelwertung15!$A$3:$A$67,$B5,Einzelwertung15!$J$3:$J$67)+0.003 -> 0.003 | U5: =SUMIF(Einzelwertung16!$A$3:$A$55,$B5,Einzelwertung16!$J$3:$J$55)+0.002 -> 15.002 | V5: =SUMIF(Einzelwertung17!$A$3:$A$55,$B5,Einzelwertung17!$J$3:$J$55)+0.001 -> 0.001 | W5: =SUMIF(Einzelwertung18!$A$3:$A$55,$B5,Einzelwertung18!$J$3:$J$55)+0 -> 0 | X5: =INT(IF(COUNTIF(F5:W5,CONCATENATE(">",1/10))<=Hilfe!$A$1,SUM(F5:W5),SUMIF(F5:W5,CONCATENATE(">=",LARGE(F5:W5,Hilfe!$A$1)),F5:W5))) -> 227 | Y5: 13 | Z5: 65
A6: 4 | B6: Urban, Volker | C6: =VLOOKUP($B6,Teilnehmer!$A$3:$E$119,2,FALSE) -> ASW | D6: =VLOOKUP($B6,Teilnehmer!$A$3:$E$119,3,FALSE) -> 35604 | E6: =VLOOKUP($B6,Teilnehmer!$A$3:$E$119,4,FALSE) -> SM1 | F6: =SUMIF(Einzelwertung1!$A$3:$A$55,$B6,Einzelwertung1!$J$3:$J$55)+0.017 -> 21.017 | G6: =SUMIF(Einzelwertung2!$A$3:$A$55,$B6,Einzelwertung2!$J$3:$J$55)+0.016 -> 15.016 | H6: =SUMIF(Einzelwertung3!$A$3:$A$55,$B6,Einzelwertung3!$J$3:$J$55)+0.015 -> 15.015 | I6: =SUMIF(Einzelwertung4!$A$3:$A$55,$B6,Einzelwertung4!$J$3:$J$55)+0.014 -> 18.014 | J6: =SUMIF(Einzelwertung5!$A$3:$A$55,$B6,Einzelwertung5!$J$3:$J$55)+0.013 -> 18.013 | K6: =SUMIF(Einzelwertung6!$A$3:$A$55,$B6,Einzelwertung6!$J$3:$J$55)+0.012 -> 0.012 | L6: =SUMIF(Einzelwertung7!$A$3:$A$55,$B6,Einzelwertung7!$J$3:$J$55)+0.011 -> 15.011 | M6: =SUMIF(Einzelwertung8!$A$3:$A$55,$B6,Einzelwertung8!$J$3:$J$55)+0.01 -> 25.01 | N6: =SUMIF(Einzelwertung9!$A$3:$A$55,$B6,Einzelwertung9!$J$3:$J$55)+0.009 -> 0.009 | O6: =SUMIF(Einzelwertung10!$A$3:$A$55,$B6,Einzelwertung10!$J$3:$J$55)+0.008 -> 0.008 | P6: =SUMIF(Einzelwertung11!$A$3:$A$55,$B6,Einzelwertung11!$J$3:$J$55)+0.007 -> 18.007 | Q6: =SUMIF(Einzelwertung12!$A$3:$A$55,$B6,Einzelwertung12!$J$3:$J$55)+0.006 -> 0.006 | R6: =SUMIF(Einzelwertung13!$A$3:$A$55,$B6,Einzelwertung13!$J$3:$J$55)+0.005 -> 25.005 | S6: =SUMIF(Einzelwertung14!$A$3:$A$55,$B6,Einzelwertung14!$J$3:$J$55)+0.004 -> 21.004 | T6: =SUMIF(Einzelwertung15!$A$3:$A$67,$B6,Einzelwertung15!$J$3:$J$67)+0.003 -> 15.003 | U6: =SUMIF(Einzelwertung16!$A$3:$A$55,$B6,Einzelwertung16!$J$3:$J$55)+0.002 -> 25.002 | V6: =SUMIF(Einzelwertung17!$A$3:$A$55,$B6,Einzelwertung17!$J$3:$J$55)+0.001 -> 0.001 | W6: =SUMIF(Einzelwertung18!$A$3:$A$55,$B6,Einzelwertung18!$J$3:$J$55)+0 -> 0 | X6: =INT(IF(COUNTIF(F6:W6,CONCATENATE(">",1/10))<=Hilfe!$A$1,SUM(F6:W6),SUMIF(F6:W6,CONCATENATE(">=",LARGE(F6:W6,Hilfe!$A$1)),F6:W6))) -> 216 | Y6: 12 | Z6: 60
A7: 5 | B7: Lenk, Rolf | C7: =VLOOKUP($B7,Teilnehmer!$A$3:$E$119,2,FALSE) -> ASW | D7: =VLOOKUP($B7,Teilnehmer!$A$3:$E$119,3,FALSE) -> 61716 | E7: =VLOOKUP($B7,Teilnehmer!$A$3:$E$119,4,FALSE) -> SM2 | F7: =SUMIF(Einzelwertung1!$A$3:$A$55,$B7,Einzelwertung1!$J$3:$J$55)+0.017 -> 15.017 | G7: =SUMIF(Einzelwertung2!$A$3:$A$55,$B7,Einzelwertung2!$J$3:$J$55)+0.016 -> 25.016 | H7: =SUMIF(Einzelwertung3!$A$3:$A$55,$B7,Einzelwertung3!$J$3:$J$55)+0.015 -> 0.015 | I7: =SUMIF(Einzelwertung4!$A$3:$A$55,$B7,Einzelwertung4!$J$3:$J$55)+0.014 -> 21.014 | J7: =SUMIF(Einzelwertung5!$A$3:$A$55,$B7,Einzelwertung5!$J$3:$J$55)+0.013 -> 10.013 | K7: =SUMIF(Einzelwertung6!$A$3:$A$55,$B7,Einzelwertung6!$J$3:$J$55)+0.012 -> 21.012 | L7: =SUMIF(Einzelwertung7!$A$3:$A$55,$B7,Einzelwertung7!$J$3:$J$55)+0.011 -> 21.011 | M7: =SUMIF(Einzelwertung8!$A$3:$A$55,$B7,Einzelwertung8!$J$3:$J$55)+0.01 -> 10.01 | N7: =SUMIF(Einzelwertung9!$A$3:$A$55,$B7,Einzelwertung9!$J$3:$J$55)+0.009 -> 10.009 | O7: =SUMIF(Einzelwertung10!$A$3:$A$55,$B7,Einzelwertung10!$J$3:$J$55)+0.008 -> 18.008 | P7: =SUMIF(Einzelwertung11!$A$3:$A$55,$B7,Einzelwertung11!$J$3:$J$55)+0.007 -> 21.007 | Q7: =SUMIF(Einzelwertung12!$A$3:$A$55,$B7,Einzelwertung12!$J$3:$J$55)+0.006 -> 21.006 | R7: =SUMIF(Einzelwertung13!$A$3:$A$55,$B7,Einzelwertung13!$J$3:$J$55)+0.005 -> 10.005 | S7: =SUMIF(Einzelwertung14!$A$3:$A$55,$B7,Einzelwertung14!$J$3:$J$55)+0.004 -> 15.004 | T7: =SUMIF(Einzelwertung15!$A$3:$A$67,$B7,Einzelwertung15!$J$3:$J$67)+0.003 -> 15.003 | U7: =SUMIF(Einzelwertung16!$A$3:$A$55,$B7,Einzelwertung16!$J$3:$J$55)+0.002 -> 15.002 | V7: =SUMIF(Einzelwertung17!$A$3:$A$55,$B7,Einzelwertung17!$J$3:$J$55)+0.001 -> 0.001 | W7: =SUMIF(Einzelwertung18!$A$3:$A$55,$B7,Einzelwertung18!$J$3:$J$55)+0 -> 0 | X7: =INT(IF(COUNTIF(F7:W7,CONCATENATE(">",1/10))<=Hilfe!$A$1,SUM(F7:W7),SUMIF(F7:W7,CONCATENATE(">=",LARGE(F7:W7,Hilfe!$A$1)),F7:W7))) -> 208 | Y7: 15 | Z7: 75
A8: 6 | B8: Brunnenkant, Frank | C8: =VLOOKUP($B8,Teilnehmer!$A$3:$E$119,2,FALSE) -> HEV | D8: =VLOOKUP($B8,Teilnehmer!$A$3:$E$119,3,FALSE) -> 67882 | E8: =VLOOKUP($B8,Teilnehmer!$A$3:$E$119,4,FALSE) -> SM1 | F8: =SUMIF(Einzelwertung1!$A$3:$A$55,$B8,Einzelwertung1!$J$3:$J$55)+0.017 -> 21.017 | G8: =SUMIF(Einzelwertung2!$A$3:$A$55,$B8,Einzelwertung2!$J$3:$J$55)+0.016 -> 10.016 | H8: =SUMIF(Einzelwertung3!$A$3:$A$55,$B8,Einzelwertung3!$J$3:$J$55)+0.015 -> 0.015 | I8: =SUMIF(Einzelwertung4!$A$3:$A$55,$B8,Einzelwertung4!$J$3:$J$55)+0.014 -> 15.014 | J8: =SUMIF(Einzelwertung5!$A$3:$A$55,$B8,Einzelwertung5!$J$3:$J$55)+0.013 -> 15.013 | K8: =SUMIF(Einzelwertung6!$A$3:$A$55,$B8,Einzelwertung6!$J$3:$J$55)+0.012 -> 25.012 | L8: =SUMIF(Einzelwertung7!$A$3:$A$55,$B8,Einzelwertung7!$J$3:$J$55)+0.011 -> 15.011 | M8: =SUMIF(Einzelwertung8!$A$3:$A$55,$B8,Einzelwertung8!$J$3:$J$55)+0.01 -> 15.01 | N8: =SUMIF(Einzelwertung9!$A$3:$A$55,$B8,Einzelwertung9!$J$3:$J$55)+0.009 -> 15.009 | O8: =SUMIF(Einzelwertung10!$A$3:$A$55,$B8,Einzelwertung10!$J$3:$J$55)+0.008 -> 0.008 | P8: =SUMIF(Einzelwertung11!$A$3:$A$55,$B8,Einzelwertung11!$J$3:$J$55)+0.007 -> 0.007 | Q8: =SUMIF(Einzelwertung12!$A$3:$A$55,$B8,Einzelwertung12!$J$3:$J$55)+0.006 -> 0.006 | R8: =SUMIF(Einzelwertung13!$A$3:$A$55,$B8,Einzelwertung13!$J$3:$J$55)+0.005 -> 21.005 | S8: =SUMIF(Einzelwertung14!$A$3:$A$55,$B8,Einzelwertung14!$J$3:$J$55)+0.004 -> 18.004 | T8: =SUMIF(Einzelwertung15!$A$3:$A$67,$B8,Einzelwertung15!$J$3:$J$67)+0.003 -> 21.003 | U8: =SUMIF(Einzelwertung16!$A$3:$A$55,$B8,Einzelwertung16!$J$3:$J$55)+0.002 -> 15.002 | V8: =SUMIF(Einzelwertung17!$A$3:$A$55,$B8,Einzelwertung17!$J$3:$J$55)+0.001 -> 0.001 | W8: =SUMIF(Einzelwertung18!$A$3:$A$55,$B8,Einzelwertung18!$J$3:$J$55)+0 -> 0 | X8: =INT(IF(COUNTIF(F8:W8,CONCATENATE(">",1/10))<=Hilfe!$A$1,SUM(F8:W8),SUMIF(F8:W8,CONCATENATE(">=",LARGE(F8:W8,Hilfe!$A$1)),F8:W8))) -> 196 | Y8: 12 | Z8: 60
A9: 7 | B9: Kortmann, Sabine | C9: =VLOOKUP($B9,Teilnehmer!$A$3:$E$119,2,FALSE) -> Hobby | D9: =VLOOKUP($B9,Teilnehmer!$A$3:$E$119,3,FALSE) -> Hobby31 | E9: =VLOOKUP($B9,Teilnehmer!$A$3:$E$119,4,FALSE) -> SW1 | F9: =SUMIF(Einzelwertung1!$A$3:$A$55,$B9,Einzelwertung1!$J$3:$J$55)+0.017 -> 21.017 | G9: =SUMIF(Einzelwertung2!$A$3:$A$55,$B9,Einzelwertung2!$J$3:$J$55)+0.016 -> 10.016 | H9: =SUMIF(Einzelwertung3!$A$3:$A$55,$B9,Einzelwertung3!$J$3:$J$55)+0.015 -> 10.015 | I9: =SUMIF(Einzelwertung4!$A$3:$A$55,$B9,Einzelwertung4!$J$3:$J$55)+0.014 -> 15.014 | J9: =SUMIF(Einzelwertung5!$A$3:$A$55,$B9,Einzelwertung5!$J$3:$J$55)+0.013 -> 18.013 | K9: =SUMIF(Einzelwertung6!$A$3:$A$55,$B9,Einzelwertung6!$J$3:$J$55)+0.012 -> 0.012 | L9: =SUMIF(Einzelwertung7!$A$3:$A$55,$B9,Einzelwertung7!$J$3:$J$55)+0.011 -> 15.011 | M9: =SUMIF(Einzelwertung8!$A$3:$A$55,$B9,Einzelwertung8!$J$3:$J$55)+0.01 -> 15.01 | N9: =SUMIF(Einzelwertung9!$A$3:$A$55,$B9,Einzelwertung9!$J$3:$J$55)+0.009 -> 18.009 | O9: =SUMIF(Einzelwertung10!$A$3:$A$55,$B9,Einzelwertung10!$J$3:$J$55)+0.008 -> 15.008 | P9: =SUMIF(Einzelwertung11!$A$3:$A$55,$B9,Einzelwertung11!$J$3:$J$55)+0.007 -> 21.007 | Q9: =SUMIF(Einzelwertung12!$A$3:$A$55,$B9,Einzelwertung12!$J$3:$J$55)+0.006 -> 21.006 | R9: =SUMIF(Einzelwertung13!$A$3:$A$55,$B9,Einzelwertung13!$J$3:$J$55)+0.005 -> 15.005 | S9: =SUMIF(Einzelwertung14!$A$3:$A$55,$B9,Einzelwertung14!$J$3:$J$55)+0.004 -> 15.004 | T9: =SUMIF(Einzelwertung15!$A$3:$A$67,$B9,Einzelwertung15!$J$3:$J$67)+0.003 -> 21.003 | U9: =SUMIF(Einzelwertung16!$A$3:$A$55,$B9,Einzelwertung16!$J$3:$J$55)+0.002 -> 10.002 | V9: =SUMIF(Einzelwertung17!$A$3:$A$55,$B9,Einzelwertung17!$J$3:$J$55)+0.001 -> 0.001 | W9: =SUMIF(Einzelwertung18!$A$3:$A$55,$B9,Einzelwertung18!$J$3:$J$55)+0 -> 0 | X9: =INT(IF(COUNTIF(F9:W9,CONCATENATE(">",1/10))<=Hilfe!$A$1,SUM(F9:W9),SUMIF(F9:W9,CONCATENATE(">=",LARGE(F9:W9,Hilfe!$A$1)),F9:W9))) -> 195 | Y9: 15 | Z9: 75
A10: 8 | B10: Puschner, Michael | C10: =VLOOKUP($B10,Teilnehmer!$A$3:$E$119,2,FALSE) -> Hobby | D10: =VLOOKUP($B10,Teilnehmer!$A$3:$E$119,3,FALSE) -> Hobby11 | E10: =VLOOKUP($B10,Teilnehmer!$A$3:$E$119,4,FALSE) -> SM2 | F10: =SUMIF(Einzelwertung1!$A$3:$A$55,$B10,Einzelwertung1!$J$3:$J$55)+0.017 -> 15.017 | G10: =SUMIF(Einzelwertung2!$A$3:$A$55,$B10,Einzelwertung2!$J$3:$J$55)+0.016 -> 25.016 | H10: =SUMIF(Einzelwertung3!$A$3:$A$55,$B10,Einzelwertung3!$J$3:$J$55)+0.015 -> 10.015 | I10: =SUMIF(Einzelwertung4!$A$3:$A$55,$B10,Einzelwertung4!$J$3:$J$55)+0.014 -> 18.014 | J10: =SUMIF(Einzelwertung5!$A$3:$A$55,$B10,Einzelwertung5!$J$3:$J$55)+0.013 -> 10.013 | K10: =SUMIF(Einzelwertung6!$A$3:$A$55,$B10,Einzelwertung6!$J$3:$J$55)+0.012 -> 15.012 | L10: =SUMIF(Einzelwertung7!$A$3:$A$55,$B10,Einzelwertung7!$J$3:$J$55)+0.011 -> 10.011 | M10: =SUMIF(Einzelwertung8!$A$3:$A$55,$B10,Einzelwertung8!$J$3:$J$55)+0.01 -> 15.01 | N10: =SUMIF(Einzelwertung9!$A$3:$A$55,$B10,Einzelwertung9!$J$3:$J$55)+0.009 -> 15.009 | O10: =SUMIF(Einzelwertung10!$A$3:$A$55,$B10,Einzelwertung10!$J$3:$J$55)+0.008 -> 15.008 | P10: =SUMIF(Einzelwertung11!$A$3:$A$55,$B10,Einzelwertung11!$J$3:$J$55)+0.007 -> 15.007 | Q10: =SUMIF(Einzelwertung12!$A$3:$A$55,$B10,Einzelwertung12!$J$3:$J$55)+0.006 -> 15.006 | R10: =SUMIF(Einzelwertung13!$A$3:$A$55,$B10,Einzelwertung13!$J$3:$J$55)+0.005 -> 25.005 | S10: =SUMIF(Einzelwertung14!$A$3:$A$55,$B10,Einzelwertung14!$J$3:$J$55)+0.004 -> 0.004 | T10: =SUMIF(Einzelwertung15!$A$3:$A$67,$B10,Einzelwertung15!$J$3:$J$67)+0.003 -> 0.003 | U10: =SUMIF(Einzelwertung16!$A$3:$A$55,$B10,Einzelwertung16!$J$3:$J$55)+0.002 -> 15.002 | V10: =SUMIF(Einzelwertung17!$A$3:$A$55,$B10,Einzelwertung17!$J$3:$J$55)+0.001 -> 0.001 | W10: =SUMIF(Einzelwertung18!$A$3:$A$55,$B10,Einzelwertung18!$J$3:$J$55)+0 -> 0 | X10: =INT(IF(COUNTIF(F10:W10,CONCATENATE(">",1/10))<=Hilfe!$A$1,SUM(F10:W10),SUMIF(F10:W10,CONCATENATE(">=",LARGE(F10:W10,Hilfe!$A$1)),F10:W10))) -> 188 | Y10: 14 | Z10: 70
A11: 9 | B11: Kunz, Martin | C11: =VLOOKUP($B11,Teilnehmer!$A$3:$E$119,2,FALSE) -> Hobby | D11: =VLOOKUP($B11,Teilnehmer!$A$3:$E$119,3,FALSE) -> Hobby40 | E11: =VLOOKUP($B11,Teilnehmer!$A$3:$E$119,4,FALSE) -> SM1 | F11: =SUMIF(Einzelwertung1!$A$3:$A$55,$B11,Einzelwertung1!$J$3:$J$55)+0.017 -> 5.017 | G11: =SUMIF(Einzelwertung2!$A$3:$A$55,$B11,Einzelwertung2!$J$3:$J$55)+0.016 -> 21.016 | H11: =SUMIF(Einzelwertung3!$A$3:$A$55,$B11,Einzelwertung3!$J$3:$J$55)+0.015 -> 21.015 | I11: =SUMIF(Einzelwertung4!$A$3:$A$55,$B11,Einzelwertung4!$J$3:$J$55)+0.014 -> 10.014 | J11: =SUMIF(Einzelwertung5!$A$3:$A$55,$B11,Einzelwertung5!$J$3:$J$55)+0.013 -> 15.013 | K11: =SUMIF(Einzelwertung6!$A$3:$A$55,$B11,Einzelwertung6!$J$3:$J$55)+0.012 -> 21.012 | L11: =SUMIF(Einzelwertung7!$A$3:$A$55,$B11,Einzelwertung7!$J$3:$J$55)+0.011 -> 10.011 | M11: =SUMIF(Einzelwertung8!$A$3:$A$55,$B11,Einzelwertung8!$J$3:$J$55)+0.01 -> 10.01 | N11: =SUMIF(Einzelwertung9!$A$3:$A$55,$B11,Einzelwertung9!$J$3:$J$55)+0.009 -> 0.009 | O11: =SUMIF(Einzelwertung10!$A$3:$A$55,$B11,Einzelwertung10!$J$3:$J$55)+0.008 -> 18.008 | P11: =SUMIF(Einzelwertung11!$A$3:$A$55,$B11,Einzelwertung11!$J$3:$J$55)+0.007 -> 15.007 | Q11: =SUMIF(Einzelwertung12!$A$3:$A$55,$B11,Einzelwertung12!$J$3:$J$55)+0.006 -> 0.006 | R11: =SUMIF(Einzelwertung13!$A$3:$A$55,$B11,Einzelwertung13!$J$3:$J$55)+0.005 -> 15.005 | S11: =SUMIF(Einzelwertung14!$A$3:$A$55,$B11,Einzelwertung14!$J$3:$J$55)+0.004 -> 15.004 | T11: =SUMIF(Einzelwertung15!$A$3:$A$67,$B11,Einzelwertung15!$J$3:$J$67)+0.003 -> 21.003 | U11: =SUMIF(Einzelwertung16!$A$3:$A$55,$B11,Einzelwertung16!$J$3:$J$55)+0.002 -> 10.002 | V11: =SUMIF(Einzelwertung17!$A$3:$A$55,$B11,Einzelwertung17!$J$3:$J$55)+0.001 -> 0.001 | W11: =SUMIF(Einzelwertung18!$A$3:$A$55,$B11,Einzelwertung18!$J$3:$J$55)+0 -> 0 | X11: =INT(IF(COUNTIF(F11:W11,CONCATENATE(">",1/10))<=Hilfe!$A$1,SUM(F11:W11),SUMIF(F11:W11,CONCATENATE(">=",LARGE(F11:W11,Hilfe!$A$1)),F11:W11))) -> 182 | Y11: 14 | Z11: 70
A12: 10 | B12: Börgmann, Ulrich | C12: =VLOOKUP($B12,Teilnehmer!$A$3:$E$119,2,FALSE) -> Hobby | D12: =VLOOKUP($B12,Teilnehmer!$A$3:$E$119,3,FALSE) -> Hobby15 | E12: =VLOOKUP($B12,Teilnehmer!$A$3:$E$119,4,FALSE) -> SM1 | F12: =SUMIF(Einzelwertung1!$A$3:$A$55,$B12,Einzelwertung1!$J$3:$J$55)+0.017 -> 5.017 | G12: =SUMIF(Einzelwertung2!$A$3:$A$55,$B12,Einzelwertung2!$J$3:$J$55)+0.016 -> 5.016 | H12: =SUMIF(Einzelwertung3!$A$3:$A$55,$B12,Einzelwertung3!$J$3:$J$55)+0.015 -> 0.015 | I12: =SUMIF(Einzelwertung4!$A$3:$A$55,$B12,Einzelwertung4!$J$3:$J$55)+0.014 -> 10.014 | J12: =SUMIF(Einzelwertung5!$A$3:$A$55,$B12,Einzelwertung5!$J$3:$J$55)+0.013 -> 5.013 | K12: =SUMIF(Einzelwertung6!$A$3:$A$55,$B12,Einzelwertung6!$J$3:$J$55)+0.012 -> 0.012 | L12: =SUMIF(Einzelwertung7!$A$3:$A$55,$B12,Einzelwertung7!$J$3:$J$55)+0.011 -> 0.011 | M12: =SUMIF(Einzelwertung8!$A$3:$A$55,$B12,Einzelwertung8!$J$3:$J$55)+0.01 -> 0.01 | N12: =SUMIF(Einzelwertung9!$A$3:$A$55,$B12,Einzelwertung9!$J$3:$J$55)+0.009 -> 15.009 | O12: =SUMIF(Einzelwertung10!$A$3:$A$55,$B12,Einzelwertung10!$J$3:$J$55)+0.008 -> 25.008 | P12: =SUMIF(Einzelwertung11!$A$3:$A$55,$B12,Einzelwertung11!$J$3:$J$55)+0.007 -> 15.007 | Q12: =SUMIF(Einzelwertung12!$A$3:$A$55,$B12,Einzelwertung12!$J$3:$J$55)+0.006 -> 0.006 | R12: =SUMIF(Einzelwertung13!$A$3:$A$55,$B12,Einzelwertung13!$J$3:$J$55)+0.005 -> 15.005 | S12: =SUMIF(Einzelwertung14!$A$3:$A$55,$B12,Einzelwertung14!$J$3:$J$55)+0.004 -> 15.004 | T12: =SUMIF(Einzelwertung15!$A$3:$A$67,$B12,Einzelwertung15!$J$3:$J$67)+0.003 -> 10.003 | U12: =SUMIF(Einzelwertung16!$A$3:$A$55,$B12,Einzelwertung16!$J$3:$J$55)+0.002 -> 15.002 | V12: =SUMIF(Einzelwertung17!$A$3:$A$55,$B12,Einzelwertung17!$J$3:$J$55)+0.001 -> 0.001 | W12: =SUMIF(Einzelwertung18!$A$3:$A$55,$B12,Einzelwertung18!$J$3:$J$55)+0 -> 0 | X12: =INT(IF(COUNTIF(F12:W12,CONCATENATE(">",1/10))<=Hilfe!$A$1,SUM(F12:W12),SUMIF(F12:W12,CONCATENATE(">=",LARGE(F12:W12,Hilfe!$A$1)),F12:W12))) -> 135 | Y12: 11 | Z12: 55
A13: 11 | B13: Gattner, Karsten | C13: =VLOOKUP($B13,Teilnehmer!$A$3:$E$119,2,FALSE) -> ASW | D13: =VLOOKUP($B13,Teilnehmer!$A$3:$E$119,3,FALSE) -> 67881 | E13: =VLOOKUP($B13,Teilnehmer!$A$3:$E$119,4,FALSE) -> SM1 | F13: =SUMIF(Einzelwertung1!$A$3:$A$55,$B13,Einzelwertung1!$J$3:$J$55)+0.017 -> 10.017 | G13: =SUMIF(Einzelwertung2!$A$3:$A$55,$B13,Einzelwertung2!$J$3:$J$55)+0.016 -> 5.016 | H13: =SUMIF(Einzelwertung3!$A$3:$A$55,$B13,Einzelwertung3!$J$3:$J$55)+0.015 -> 0.015 | I13: =SUMIF(Einzelwertung4!$A$3:$A$55,$B13,Einzelwertung4!$J$3:$J$55)+0.014 -> 5.014 | J13: =SUMIF(Einzelwertung5!$A$3:$A$55,$B13,Einzelwertung5!$J$3:$J$55)+0.013 -> 5.013 | K13: =SUMIF(Einzelwertung6!$A$3:$A$55,$B13,Einzelwertung6!$J$3:$J$55)+0.012 -> 10.012 | L13: =SUMIF(Einzelwertung7!$A$3:$A$55,$B13,Einzelwertung7!$J$3:$J$55)+0.011 -> 10.011 | M13: =SUMIF(Einzelwertung8!$A$3:$A$55,$B13,Einzelwertung8!$J$3:$J$55)+0.01 -> 10.01 | N13: =SUMIF(Einzelwertung9!$A$3:$A$55,$B13,Einzelwertung9!$J$3:$J$55)+0.009 -> 10.009 | O13: =SUMIF(Einzelwertung10!$A$3:$A$55,$B13,Einzelwertung10!$J$3:$J$55)+0.008 -> 10.008 | P13: =SUMIF(Einzelwertung11!$A$3:$A$55,$B13,Einzelwertung11!$J$3:$J$55)+0.007 -> 0.007 | Q13: =SUMIF(Einzelwertung12!$A$3:$A$55,$B13,Einzelwertung12!$J$3:$J$55)+0.006 -> 0.006 | R13: =SUMIF(Einzelwertung13!$A$3:$A$55,$B13,Einzelwertung13!$J$3:$J$55)+0.005 -> 21.005 | S13: =SUMIF(Einzelwertung14!$A$3:$A$55,$B13,Einzelwertung14!$J$3:$J$55)+0.004 -> 10.004 | T13: =SUMIF(Einzelwertung15!$A$3:$A$67,$B13,Einzelwertung15!$J$3:$J$67)+0.003 -> 10.003 | U13: =SUMIF(Einzelwertung16!$A$3:$A$55,$B13,Einzelwertung16!$J$3:$J$55)+0.002 -> 15.002 | V13: =SUMIF(Einzelwertung17!$A$3:$A$55,$B13,Einzelwertung17!$J$3:$J$55)+0.001 -> 0.001 | W13: =SUMIF(Einzelwertung18!$A$3:$A$55,$B13,Einzelwertung18!$J$3:$J$55)+0 -> 0 | X13: =INT(IF(COUNTIF(F13:W13,CONCATENATE(">",1/10))<=Hilfe!$A$1,SUM(F13:W13),SUMIF(F13:W13,CONCATENATE(">=",LARGE(F13:W13,Hilfe!$A$1)),F13:W13))) -> 121 | Y13: 13 | Z13: 65
B14: Schmidtbauer, Günter | C14: =VLOOKUP($B14,Teilnehmer!$A$3:$E$119,2,FALSE) -> Hobby | D14: =VLOOKUP($B14,Teilnehmer!$A$3:$E$119,3,FALSE) -> Hobby4 | E14: =VLOOKUP($B14,Teilnehmer!$A$3:$E$119,4,FALSE) -> SM2 | F14: =SUMIF(Einzelwertung1!$A$3:$A$55,$B14,Einzelwertung1!$J$3:$J$55)+0.017 -> 5.017 | G14: =SUMIF(Einzelwertung2!$A$3:$A$55,$B14,Einzelwertung2!$J$3:$J$55)+0.016 -> 3.016 | H14: =SUMIF(Einzelwertung3!$A$3:$A$55,$B14,Einzelwertung3!$J$3:$J$55)+0.015 -> 10.015 | I14: =SUMIF(Einzelwertung4!$A$3:$A$55,$B14,Einzelwertung4!$J$3:$J$55)+0.014 -> 5.014 | J14: =SUMIF(Einzelwertung5!$A$3:$A$55,$B14,Einzelwertung5!$J$3:$J$55)+0.013 -> 3.013 | K14: =SUMIF(Einzelwertung6!$A$3:$A$55,$B14,Einzelwertung6!$J$3:$J$55)+0.012 -> 5.012 | L14: =SUMIF(Einzelwertung7!$A$3:$A$55,$B14,Einzelwertung7!$J$3:$J$55)+0.011 -> 5.011 | M14: =SUMIF(Einzelwertung8!$A$3:$A$55,$B14,Einzelwertung8!$J$3:$J$55)+0.01 -> 10.01 | N14: =SUMIF(Einzelwertung9!$A$3:$A$55,$B14,Einzelwertung9!$J$3:$J$55)+0.009 -> 10.009 | O14: =SUMIF(Einzelwertung10!$A$3:$A$55,$B14,Einzelwertung10!$J$3:$J$55)+0.008 -> 10.008 | P14: =SUMIF(Einzelwertung11!$A$3:$A$55,$B14,Einzelwertung11!$J$3:$J$55)+0.007 -> 10.007 | Q14: =SUMIF(Einzelwertung12!$A$3:$A$55,$B14,Einzelwertung12!$J$3:$J$55)+0.006 -> 15.006 | R14: =SUMIF(Einzelwertung13!$A$3:$A$55,$B14,Einzelwertung13!$J$3:$J$55)+0.005 -> 21.005 | S14: =SUMIF(Einzelwertung14!$A$3:$A$55,$B14,Einzelwertung14!$J$3:$J$55)+0.004 -> 10.004 | T14: =SUMIF(Einzelwertung15!$A$3:$A$67,$B14,Einzelwertung15!$J$3:$J$67)+0.003 -> 10.003 | U14: =SUMIF(Einzelwertung16!$A$3:$A$55,$B14,Einzelwertung16!$J$3:$J$55)+0.002 -> 10.002 | V14: =SUMIF(Einzelwertung17!$A$3:$A$55,$B14,Einzelwertung17!$J$3:$J$55)+0.001 -> 0.001 | W14: =SUMIF(Einzelwertung18!$A$3:$A$55,$B14,Einzelwertung18!$J$3:$J$55)+0 -> 0 | X14: =INT(IF(COUNTIF(F14:W14,CONCATENATE(">",1/10))<=Hilfe!$A$1,SUM(F14:W14),SUMIF(F14:W14,CONCATENATE(">=",LARGE(F14:W14,Hilfe!$A$1)),F14:W14))) -> 121 | Y14: 16 | Z14: 80
A15: 13 | B15: Paffrath, Ben | C15: =VLOOKUP($B15,Teilnehmer!$A$3:$E$119,2,FALSE) -> HEV | D15: =VLOOKUP($B15,Teilnehmer!$A$3:$E$119,3,FALSE) -> 66565 | E15: =VLOOKUP($B15,Teilnehmer!$A$3:$E$119,4,FALSE) -> JM | F15: =SUMIF(Einzelwertung1!$A$3:$A$55,$B15,Einzelwertung1!$J$3:$J$55)+0.017 -> 15.017 | G15: =SUMIF(Einzelwertung2!$A$3:$A$55,$B15,Einzelwertung2!$J$3:$J$55)+0.016 -> 15.016 | H15: =SUMIF(Einzelwertung3!$A$3:$A$55,$B15,Einzelwertung3!$J$3:$J$55)+0.015 -> 10.015 | I15: =SUMIF(Einzelwertung4!$A$3:$A$55,$B15,Einzelwertung4!$J$3:$J$55)+0.014 -> 0.014 | J15: =SUMIF(Einzelwertung5!$A$3:$A$55,$B15,Einzelwertung5!$J$3:$J$55)+0.013 -> 15.013 | K15: =SUMIF(Einzelwertung6!$A$3:$A$55,$B15,Einzelwertung6!$J$3:$J$55)+0.012 -> 10.012 | L15: =SUMIF(Einzelwertung7!$A$3:$A$55,$B15,Einzelwertung7!$J$3:$J$55)+0.011 -> 0.011 | M15: =SUMIF(Einzelwertung8!$A$3:$A$55,$B15,Einzelwertung8!$J$3:$J$55)+0.01 -> 10.01 | N15: =SUMIF(Einzelwertung9!$A$3:$A$55,$B15,Einzelwertung9!$J$3:$J$55)+0.009 -> 15.009 | O15: =SUMIF(Einzelwertung10!$A$3:$A$55,$B15,Einzelwertung10!$J$3:$J$55)+0.008 -> 15.008 | P15: =SUMIF(Einzelwertung11!$A$3:$A$55,$B15,Einzelwertung11!$J$3:$J$55)+0.007 -> 0.007 | Q15: =SUMIF(Einzelwertung12!$A$3:$A$55,$B15,Einzelwertung12!$J$3:$J$55)+0.006 -> 0.006 | R15: =SUMIF(Einzelwertung13!$A$3:$A$55,$B15,Einzelwertung13!$J$3:$J$55)+0.005 -> 0.005 | S15: =SUMIF(Einzelwertung14!$A$3:$A$55,$B15,Einzelwertung14!$J$3:$J$55)+0.004 -> 0.004 | T15: =SUMIF(Einzelwertung15!$A$3:$A$67,$B15,Einzelwertung15!$J$3:$J$67)+0.003 -> 0.003 | U15: =SUMIF(Einzelwertung16!$A$3:$A$55,$B15,Einzelwertung16!$J$3:$J$55)+0.002 -> 0.002 | V15: =SUMIF(Einzelwertung17!$A$3:$A$55,$B15,Einzelwertung17!$J$3:$J$55)+0.001 -> 0.001 | W15: =SUMIF(Einzelwertung18!$A$3:$A$55,$B15,Einzelwertung18!$J$3:$J$55)+0 -> 0 | X15: =INT(IF(COUNTIF(F15:W15,CONCATENATE(">",1/10))<=Hilfe!$A$1,SUM(F15:W15),SUMIF(F15:W15,CONCATENATE(">=",LARGE(F15:W15,Hilfe!$A$1)),F15:W15))) -> 105 | Y15: 8 | Z15: 20
A16: 14 | B16: Urban, Dominic | C16: =VLOOKUP($B16,Teilnehmer!$A$3:$E$119,2,FALSE) -> ASW | D16: =VLOOKUP($B16,Teilnehmer!$A$3:$E$119,3,FALSE) -> 66186 | E16: =VLOOKUP($B16,Teilnehmer!$A$3:$E$119,4,FALSE) -> JM | F16: =SUMIF(Einzelwertung1!$A$3:$A$55,$B16,Einzelwertung1!$J$3:$J$55)+0.017 -> 0.017 | G16: =SUMIF(Einzelwertung2!$A$3:$A$55,$B16,Einzelwertung2!$J$3:$J$55)+0.016 -> 18.016 | H16: =SUMIF(Einzelwertung3!$A$3:$A$55,$B16,Einzelwertung3!$J$3:$J$55)+0.015 -> 21.015 | I16: =SUMIF(Einzelwertung4!$A$3:$A$55,$B16,Einzelwertung4!$J$3:$J$55)+0.014 -> 15.014 | J16: =SUMIF(Einzelwertung5!$A$3:$A$55,$B16,Einzelwertung5!$J$3:$J$55)+0.013 -> 25.013 | K16: =SUMIF(Einzelwertung6!$A$3:$A$55,$B16,Einzelwertung6!$J$3:$J$55)+0.012 -> 0.012 | L16: =SUMIF(Einzelwertung7!$A$3:$A$55,$B16,Einzelwertung7!$J$3:$J$55)+0.011 -> 21.011 | M16: =SUMIF(Einzelwertung8!$A$3:$A$55,$B16,Einzelwertung8!$J$3:$J$55)+0.01 -> 0.01 | N16: =SUMIF(Einzelwertung9!$A$3:$A$55,$B16,Einzelwertung9!$J$3:$J$55)+0.009 -> 0.009 | O16: =SUMIF(Einzelwertung10!$A$3:$A$55,$B16,Einzelwertung10!$J$3:$J$55)+0.008 -> 0.008 | P16: =SUMIF(Einzelwertung11!$A$3:$A$55,$B16,Einzelwertung11!$J$3:$J$55)+0.007 -> 0.007 | Q16: =SUMIF(Einzelwertung12!$A$3:$A$55,$B16,Einzelwertung12!$J$3:$J$55)+0.006 -> 0.006 | R16: =SUMIF(Einzelwertung13!$A$3:$A$55,$B16,Einzelwertung13!$J$3:$J$55)+0.005 -> 0.005 | S16: =SUMIF(Einzelwertung14!$A$3:$A$55,$B16,Einzelwertung14!$J$3:$J$55)+0.004 -> 0.004 | T16: =SUMIF(Einzelwertung15!$A$3:$A$67,$B16,Einzelwertung15!$J$3:$J$67)+0.003 -> 0.003 | U16: =SUMIF(Einzelwertung16!$A$3:$A$55,$B16,Einzelwertung16!$J$3:$J$55)+0.002 -> 0.002 | V16: =SUMIF(Einzelwertung17!$A$3:$A$55,$B16,Einzelwertung17!$J$3:$J$55)+0.001 -> 0.001 | W16: =SUMIF(Einzelwertung18!$A$3:$A$55,$B16,Einzelwertung18!$J$3:$J$55)+0 -> 0 | X16: =INT(IF(COUNTIF(F16:W16,CONCATENATE(">",1/10))<=Hilfe!$A$1,SUM(F16:W16),SUMIF(F16:W16,CONCATENATE(">=",LARGE(F16:W16,Hilfe!$A$1)),F16:W16))) -> 100 | Y16: 5 | Z16: 12.5
A17: 15 | B17: Börgmann, Brigitte | C17: =VLOOKUP($B17,Teilnehmer!$A$3:$E$119,2,FALSE) -> Hobby | D17: =VLOOKUP($B17,Teilnehmer!$A$3:$E$119,3,FALSE) -> Hobby6 | E17: =VLOOKUP($B17,Teilnehmer!$A$3:$E$119,4,FALSE) -> SW1 | F17: =SUMIF(Einzelwertung1!$A$3:$A$55,$B17,Einzelwertung1!$J$3:$J$55)+0.017 -> 5.017 | G17: =SUMIF(Einzelwertung2!$A$3:$A$55,$B17,Einzelwertung2!$J$3:$J$55)+0.016 -> 15.016 | H17: =SUMIF(Einzelwertung3!$A$3:$A$55,$B17,Einzelwertung3!$J$3:$J$55)+0.015 -> 0.015 | I17: =SUMIF(Einzelwertung4!$A$3:$A$55,$B17,Einzelwertung4!$J$3:$J$55)+0.014 -> 5.014 | J17: =SUMIF(Einzelwertung5!$A$3:$A$55,$B17,Einzelwertung5!$J$3:$J$55)+0.013 -> 15.013 | K17: =SUMIF(Einzelwertung6!$A$3:$A$55,$B17,Einzelwertung6!$J$3:$J$55)+0.012 -> 0.012 | L17: =SUMIF(Einzelwertung7!$A$3:$A$55,$B17,Einzelwertung7!$J$3:$J$55)+0.011 -> 0.011 | M17: =SUMIF(Einzelwertung8!$A$3:$A$55,$B17,Einzelwertung8!$J$3:$J$55)+0.01 -> 0.01 | N17: =SUMIF(Einzelwertung9!$A$3:$A$55,$B17,Einzelwertung9!$J$3:$J$55)+0.009 -> 5.009 | O17: =SUMIF(Einzelwertung10!$A$3:$A$55,$B17,Einzelwertung10!$J$3:$J$55)+0.008 -> 10.008 | P17: =SUMIF(Einzelwertung11!$A$3:$A$55,$B17,Einzelwertung11!$J$3:$J$55)+0.007 -> 5.007 | Q17: =SUMIF(Einzelwertung12!$A$3:$A$55,$B17,Einzelwertung12!$J$3:$J$55)+0.006 -> 0.006 | R17: =SUMIF(Einzelwertung13!$A$3:$A$55,$B17,Einzelwertung13!$J$3:$J$55)+0.005 -> 10.005 | S17: =SUMIF(Einzelwertung14!$A$3:$A$55,$B17,Einzelwertung14!$J$3:$J$55)+0.004 -> 10.004 | T17: =SUMIF(Einzelwertung15!$A$3:$A$67,$B17,Einzelwertung15!$J$3:$J$67)+0.003 -> 10.003 | U17: =SUMIF(Einzelwertung16!$A$3:$A$55,$B17,Einzelwertung16!$J$3:$J$55)+0.002 -> 0.002 | V17: =SUMIF(Einzelwertung17!$A$3:$A$55,$B17,Einzelwertung17!$J$3:$J$55)+0.001 -> 0.001 | W17: =SUMIF(Einzelwertung18!$A$3:$A$55,$B17,Einzelwertung18!$J$3:$J$55)+0 -> 0 | X17: =INT(IF(COUNTIF(F17:W17,CONCATENATE(">",1/10))<=Hilfe!$A$1,SUM(F17:W17),SUMIF(F17:W17,CONCATENATE(">=",LARGE(F17:W17,Hilfe!$A$1)),F17:W17))) -> 90 | Y17: 10 | Z17: 50
A18: 16 | B18: Dreischer, Burkhard | C18: =VLOOKUP($B18,Teilnehmer!$A$3:$E$119,2,FALSE) -> Oly | D18: =VLOOKUP($B18,Teilnehmer!$A$3:$E$119,3,FALSE) -> 23778 | E18: =VLOOKUP($B18,Teilnehmer!$A$3:$E$119,4,FALSE) -> SM2 | F18: =SUMIF(Einzelwertung1!$A$3:$A$55,$B18,Einzelwertung1!$J$3:$J$55)+0.017 -> 0.017 | G18: =SUMIF(Einzelwertung2!$A$3:$A$55,$B18,Einzelwertung2!$J$3:$J$55)+0.016 -> 0.016 | H18: =SUMIF(Einzelwertung3!$A$3:$A$55,$B18,Einzelwertung3!$J$3:$J$55)+0.015 -> 0.015 | I18: =SUMIF(Einzelwertung4!$A$3:$A$55,$B18,Einzelwertung4!$J$3:$J$55)+0.014 -> 0.014 | J18: =SUMIF(Einzelwertung5!$A$3:$A$55,$B18,Einzelwertung5!$J$3:$J$55)+0.013 -> 5.013 | K18: =SUMIF(Einzelwertung6!$A$3:$A$55,$B18,Einzelwertung6!$J$3:$J$55)+0.012 -> 0.012 | L18: =SUMIF(Einzelwertung7!$A$3:$A$55,$B18,Einzelwertung7!$J$3:$J$55)+0.011 -> 5.011 | M18: =SUMIF(Einzelwertung8!$A$3:$A$55,$B18,Einzelwertung8!$J$3:$J$55)+0.01 -> 0.01 | N18: =SUMIF(Einzelwertung9!$A$3:$A$55,$B18,Einzelwertung9!$J$3:$J$55)+0.009 -> 0.009 | O18: =SUMIF(Einzelwertung10!$A$3:$A$55,$B18,Einzelwertung10!$J$3:$J$55)+0.008 -> 0.008 | P18: =SUMIF(Einzelwertung11!$A$3:$A$55,$B18,Einzelwertung11!$J$3:$J$55)+0.007 -> 10.007 | Q18: =SUMIF(Einzelwertung12!$A$3:$A$55,$B18,Einzelwertung12!$J$3:$J$55)+0.006 -> 15.006 | R18: =SUMIF(Einzelwertung13!$A$3:$A$55,$B18,Einzelwertung13!$J$3:$J$55)+0.005 -> 10.005 | S18: =SUMIF(Einzelwertung14!$A$3:$A$55,$B18,Einzelwertung14!$J$3:$J$55)+0.004 -> 15.004 | T18: =SUMIF(Einzelwertung15!$A$3:$A$67,$B18,Einzelwertung15!$J$3:$J$67)+0.003 -> 15.003 | U18: =SUMIF(Einzelwertung16!$A$3:$A$55,$B18,Einzelwertung16!$J$3:$J$55)+0.002 -> 10.002 | V18: =SUMIF(Einzelwertung17!$A$3:$A$55,$B18,Einzelwertung17!$J$3:$J$55)+0.001 -> 0.001 | W18: =SUMIF(Einzelwertung18!$A$3:$A$55,$B18,Einzelwertung18!$J$3:$J$55)+0 -> 0 | X18: =INT(IF(COUNTIF(F18:W18,CONCATENATE(">",1/10))<=Hilfe!$A$1,SUM(F18:W18),SUMIF(F18:W18,CONCATENATE(">=",LARGE(F18:W18,Hilfe!$A$1)),F18:W18))) -> 85 | Y18: 8 | Z18: 40
A19: 17 | B19: Paffrath, Siegfried | C19: =VLOOKUP($B19,Teilnehmer!$A$3:$E$119,2,FALSE) -> HEV | D19: =VLOOKUP($B19,Teilnehmer!$A$3:$E$119,3,FALSE) -> 33511 | E19: =VLOOKUP($B19,Teilnehmer!$A$3:$E$119,4,FALSE) -> SM2 | F19: =SUMIF(Einzelwertung1!$A$3:$A$55,$B19,Einzelwertung1!$J$3:$J$55)+0.017 -> 10.017 | G19: =SUMIF(Einzelwertung2!$A$3:$A$55,$B19,Einzelwertung2!$J$3:$J$55)+0.016 -> 10.016 | H19: =SUMIF(Einzelwertung3!$A$3:$A$55,$B19,Einzelwertung3!$J$3:$J$55)+0.015 -> 21.015 | I19: =SUMIF(Einzelwertung4!$A$3:$A$55,$B19,Einzelwertung4!$J$3:$J$55)+0.014 -> 0.014 | J19: =SUMIF(Einzelwertung5!$A$3:$A$55,$B19,Einzelwertung5!$J$3:$J$55)+0.013 -> 15.013 | K19: =SUMIF(Einzelwertung6!$A$3:$A$55,$B19,Einzelwertung6!$J$3:$J$55)+0.012 -> 15.012 | L19: =SUMIF(Einzelwertung7!$A$3:$A$55,$B19,Einzelwertung7!$J$3:$J$55)+0.011 -> 0.011 | M19: =SUMIF(Einzelwertung8!$A$3:$A$55,$B19,Einzelwertung8!$J$3:$J$55)+0.01 -> 0.01 | N19: =SUMIF(Einzelwertung9!$A$3:$A$55,$B19,Einzelwertung9!$J$3:$J$55)+0.009 -> 0.009 | O19: =SUMIF(Einzelwertung10!$A$3:$A$55,$B19,Einzelwertung10!$J$3:$J$55)+0.008 -> 0.008 | P19: =SUMIF(Einzelwertung11!$A$3:$A$55,$B19,Einzelwertung11!$J$3:$J$55)+0.007 -> 0.007 | Q19: =SUMIF(Einzelwertung12!$A$3:$A$55,$B19,Einzelwertung12!$J$3:$J$55)+0.006 -> 0.006 | R19: =SUMIF(Einzelwertung13!$A$3:$A$55,$B19,Einzelwertung13!$J$3:$J$55)+0.005 -> 0.005 | S19: =SUMIF(Einzelwertung14!$A$3:$A$55,$B19,Einzelwertung14!$J$3:$J$55)+0.004 -> 0.004 | T19: =SUMIF(Einzelwertung15!$A$3:$A$67,$B19,Einzelwertung15!$J$3:$J$67)+0.003 -> 0.003 | U19: =SUMIF(Einzelwertung16!$A$3:$A$55,$B19,Einzelwertung16!$J$3:$J$55)+0.002 -> 0.002 | V19: =SUMIF(Einzelwertung17!$A$3:$A$55,$B19,Einzelwertung17!$J$3:$J$55)+0.001 -> 0.001 | W19: =SUMIF(Einzelwertung18!$A$3:$A$55,$B19,Einzelwertung18!$J$3:$J$55)+0 -> 0 | X19: =INT(IF(COUNTIF(F19:W19,CONCATENATE(">",1/10))<=Hilfe!$A$1,SUM(F19:W19),SUMIF(F19:W19,CONCATENATE(">=",LARGE(F19:W19,Hilfe!$A$1)),F19:W19))) -> 71 | Y19: 5 | Z19: 25
A20: 18 | B20: Kersch, Uwe | C20: =VLOOKUP($B20,Teilnehmer!$A$3:$E$119,2,FALSE) -> Hobby | D20: =VLOOKUP($B20,Teilnehmer!$A$3:$E$119,3,FALSE) -> Hobby33 | E20: =VLOOKUP($B20,Teilnehmer!$A$3:$E$119,4,FALSE) -> SM2 | F20: =SUMIF(Einzelwertung1!$A$3:$A$55,$B20,Einzelwertung1!$J$3:$J$55)+0.017 -> 5.017 | G20: =SUMIF(Einzelwertung2!$A$3:$A$55,$B20,Einzelwertung2!$J$3:$J$55)+0.016 -> 15.016 | H20: =SUMIF(Einzelwertung3!$A$3:$A$55,$B20,Einzelwertung3!$J$3:$J$55)+0.015 -> 0.015 | I20: =SUMIF(Einzelwertung4!$A$3:$A$55,$B20,Einzelwertung4!$J$3:$J$55)+0.014 -> 5.014 | J20: =SUMIF(Einzelwertung5!$A$3:$A$55,$B20,Einzelwertung5!$J$3:$J$55)+0.013 -> 5.013 | K20: =SUMIF(Einzelwertung6!$A$3:$A$55,$B20,Einzelwertung6!$J$3:$J$55)+0.012 -> 0.012 | L20: =SUMIF(Einzelwertung7!$A$3:$A$55,$B20,Einzelwertung7!$J$3:$J$55)+0.011 -> 0.011 | M20: =SUMIF(Einzelwertung8!$A$3:$A$55,$B20,Einzelwertung8!$J$3:$J$55)+0.01 -> 0.01 | N20: =SUMIF(Einzelwertung9!$A$3:$A$55,$B20,Einzelwertung9!$J$3:$J$55)+0.009 -> 0.009 | O20: =SUMIF(Einzelwertung10!$A$3:$A$55,$B20,Einzelwertung10!$J$3:$J$55)+0.008 -> 0.008 | P20: =SUMIF(Einzelwertung11!$A$3:$A$55,$B20,Einzelwertung11!$J$3:$J$55)+0.007 -> 10.007 | Q20: =SUMIF(Einzelwertung12!$A$3:$A$55,$B20,Einzelwertung12!$J$3:$J$55)+0.006 -> 15.006 | R20: =SUMIF(Einzelwertung13!$A$3:$A$55,$B20,Einzelwertung13!$J$3:$J$55)+0.005 -> 0.005 | S20: =SUMIF(Einzelwertung14!$A$3:$A$55,$B20,Einzelwertung14!$J$3:$J$55)+0.004 -> 10.004 | T20: =SUMIF(Einzelwertung15!$A$3:$A$67,$B20,Einzelwertung15!$J$3:$J$67)+0.003 -> 0.003 | U20: =SUMIF(Einzelwertung16!$A$3:$A$55,$B20,Einzelwertung16!$J$3:$J$55)+0.002 -> 5.002 | V20: =SUMIF(Einzelwertung17!$A$3:$A$55,$B20,Einzelwertung17!$J$3:$J$55)+0.001 -> 0.001 | W20: =SUMIF(Einzelwertung18!$A$3:$A$55,$B20,Einzelwertung18!$J$3:$J$55)+0 -> 0 | X20: =INT(IF(COUNTIF(F20:W20,CONCATENATE(">",1/10))<=Hilfe!$A$1,SUM(F20:W20),SUMIF(F20:W20,CONCATENATE(">=",LARGE(F20:W20,Hilfe!$A$1)),F20:W20))) -> 70 | Y20: 8 | Z20: 40
A21: 19 | B21: Urban, Angela | C21: =VLOOKUP($B21,Teilnehmer!$A$3:$E$119,2,FALSE) -> ASW | D21: =VLOOKUP($B21,Teilnehmer!$A$3:$E$119,3,FALSE) -> 35605 | E21: =VLOOKUP($B21,Teilnehmer!$A$3:$E$119,4,FALSE) -> SW1 | F21: =SUMIF(Einzelwertung1!$A$3:$A$55,$B21,Einzelwertung1!$J$3:$J$55)+0.017 -> 0.017 | G21: =SUMIF(Einzelwertung2!$A$3:$A$55,$B21,Einzelwertung2!$J$3:$J$55)+0.016 -> 5.016 | H21: =SUMIF(Einzelwertung3!$A$3:$A$55,$B21,Einzelwertung3!$J$3:$J$55)+0.015 -> 10.015 | I21: =SUMIF(Einzelwertung4!$A$3:$A$55,$B21,Einzelwertung4!$J$3:$J$55)+0.014 -> 5.014 | J21: =SUMIF(Einzelwertung5!$A$3:$A$55,$B21,Einzelwertung5!$J$3:$J$55)+0.013 -> 0.013 | K21: =SUMIF(Einzelwertung6!$A$3:$A$55,$B21,Einzelwertung6!$J$3:$J$55)+0.012 -> 0.012 | L21: =SUMIF(Einzelwertung7!$A$3:$A$55,$B21,Einzelwertung7!$J$3:$J$55)+0.011 -> 0.011 | M21: =SUMIF(Einzelwertung8!$A$3:$A$55,$B21,Einzelwertung8!$J$3:$J$55)+0.01 -> 10.01 | N21: =SUMIF(Einzelwertung9!$A$3:$A$55,$B21,Einzelwertung9!$J$3:$J$55)+0.009 -> 0.009 | O21: =SUMIF(Einzelwertung10!$A$3:$A$55,$B21,Einzelwertung10!$J$3:$J$55)+0.008 -> 0.008 | P21: =SUMIF(Einzelwertung11!$A$3:$A$55,$B21,Einzelwertung11!$J$3:$J$55)+0.007 -> 10.007 | Q21: =SUMIF(Einzelwertung12!$A$3:$A$55,$B21,Einzelwertung12!$J$3:$J$55)+0.006 -> 0.006 | R21: =SUMIF(Einzelwertung13!$A$3:$A$55,$B21,Einzelwertung13!$J$3:$J$55)+0.005 -> 5.005 | S21: =SUMIF(Einzelwertung14!$A$3:$A$55,$B21,Einzelwertung14!$J$3:$J$55)+0.004 -> 5.004 | T21: =SUMIF(Einzelwertung15!$A$3:$A$67,$B21,Einzelwertung15!$J$3:$J$67)+0.003 -> 0.003 | U21: =SUMIF(Einzelwertung16!$A$3:$A$55,$B21,Einzelwertung16!$J$3:$J$55)+0.002 -> 0.002 | V21: =SUMIF(Einzelwertung17!$A$3:$A$55,$B21,Einzelwertung17!$J$3:$J$55)+0.001 -> 0.001 | W21: =SUMIF(Einzelwertung18!$A$3:$A$55,$B21,Einzelwertung18!$J$3:$J$55)+0 -> 0 | X21: =INT(IF(COUNTIF(F21:W21,CONCATENATE(">",1/10))<=Hilfe!$A$1,SUM(F21:W21),SUMIF(F21:W21,CONCATENATE(">=",LARGE(F21:W21,Hilfe!$A$1)),F21:W21))) -> 50 | Y21: 7 | Z21: 35
A22: 20 | B22: Greiffendorf, Hellmut | C22: =VLOOKUP($B22,Teilnehmer!$A$3:$E$119,2,FALSE) -> ASW | D22: =VLOOKUP($B22,Teilnehmer!$A$3:$E$119,3,FALSE) -> 3800 | E22: =VLOOKUP($B22,Teilnehmer!$A$3:$E$119,4,FALSE) -> SM2 | F22: =SUMIF(Einzelwertung1!$A$3:$A$55,$B22,Einzelwertung1!$J$3:$J$55)+0.017 -> 25.017 | G22: =SUMIF(Einzelwertung2!$A$3:$A$55,$B22,Einzelwertung2!$J$3:$J$55)+0.016 -> 5.016 | H22: =SUMIF(Einzelwertung3!$A$3:$A$55,$B22,Einzelwertung3!$J$3:$J$55)+0.015 -> 0.015 | I22: =SUMIF(Einzelwertung4!$A$3:$A$55,$B22,Einzelwertung4!$J$3:$J$55)+0.014 -> 15.014 | J22: =SUMIF(Einzelwertung5!$A$3:$A$55,$B22,Einzelwertung5!$J$3:$J$55)+0.013 -> 0.013 | K22: =SUMIF(Einzelwertung6!$A$3:$A$55,$B22,Einzelwertung6!$J$3:$J$55)+0.012 -> 0.012 | L22: =SUMIF(Einzelwertung7!$A$3:$A$55,$B22,Einzelwertung7!$J$3:$J$55)+0.011 -> 0.011 | M22: =SUMIF(Einzelwertung8!$A$3:$A$55,$B22,Einzelwertung8!$J$3:$J$55)+0.01 -> 0.01 | N22: =SUMIF(Einzelwertung9!$A$3:$A$55,$B22,Einzelwertung9!$J$3:$J$55)+0.009 -> 0.009 | O22: =SUMIF(Einzelwertung10!$A$3:$A$55,$B22,Einzelwertung10!$J$3:$J$55)+0.008 -> 0.008 | P22: =SUMIF(Einzelwertung11!$A$3:$A$55,$B22,Einzelwertung11!$J$3:$J$55)+0.007 -> 0.007 | Q22: =SUMIF(Einzelwertung12!$A$3:$A$55,$B22,Einzelwertung12!$J$3:$J$55)+0.006 -> 0.006 | R22: =SUMIF(Einzelwertung13!$A$3:$A$55,$B22,Einzelwertung13!$J$3:$J$55)+0.005 -> 0.005 | S22: =SUMIF(Einzelwertung14!$A$3:$A$55,$B22,Einzelwertung14!$J$3:$J$55)+0.004 -> 0.004 | T22: =SUMIF(Einzelwertung15!$A$3:$A$67,$B22,Einzelwertung15!$J$3:$J$67)+0.003 -> 0.003 | U22: =SUMIF(Einzelwertung16!$A$3:$A$55,$B22,Einzelwertung16!$J$3:$J$55)+0.002 -> 0.002 | V22: =SUMIF(Einzelwertung17!$A$3:$A$55,$B22,Einzelwertung17!$J$3:$J$55)+0.001 -> 0.001 | W22: =SUMIF(Einzelwertung18!$A$3:$A$55,$B22,Einzelwertung18!$J$3:$J$55)+0 -> 0 | X22: =INT(IF(COUNTIF(F22:W22,CONCATENATE(">",1/10))<=Hilfe!$A$1,SUM(F22:W22),SUMIF(F22:W22,CONCATENATE(">=",LARGE(F22:W22,Hilfe!$A$1)),F22:W22))) -> 45 | Y22: 3 | Z22: 15
A23: 21 | B23: Wilke, Andreas | C23: =VLOOKUP($B23,Teilnehmer!$A$3:$E$119,2,FALSE) -> Hobby | D23: =VLOOKUP($B23,Teilnehmer!$A$3:$E$119,3,FALSE) -> Hobby39 | E23: =VLOOKUP($B23,Teilnehmer!$A$3:$E$119,4,FALSE) -> SM1 | F23: =SUMIF(Einzelwertung1!$A$3:$A$55,$B23,Einzelwertung1!$J$3:$J$55)+0.017 -> 0.017 | G23: =SUMIF(Einzelwertung2!$A$3:$A$55,$B23,Einzelwertung2!$J$3:$J$55)+0.016 -> 0.016 | H23: =SUMIF(Einzelwertung3!$A$3:$A$55,$B23,Einzelwertung3!$J$3:$J$55)+0.015 -> 0.015 | I23: =SUMIF(Einzelwertung4!$A$3:$A$55,$B23,Einzelwertung4!$J$3:$J$55)+0.014 -> 0.014 | J23: =SUMIF(Einzelwertung5!$A$3:$A$55,$B23,Einzelwertung5!$J$3:$J$55)+0.013 -> 0.013 | K23: =SUMIF(Einzelwertung6!$A$3:$A$55,$B23,Einzelwertung6!$J$3:$J$55)+0.012 -> 0.012 | L23: =SUMIF(Einzelwertung7!$A$3:$A$55,$B23,Einzelwertung7!$J$3:$J$55)+0.011 -> 0.011 | M23: =SUMIF(Einzelwertung8!$A$3:$A$55,$B23,Einzelwertung8!$J$3:$J$55)+0.01 -> 0.01 | N23: =SUMIF(Einzelwertung9!$A$3:$A$55,$B23,Einzelwertung9!$J$3:$J$55)+0.009 -> 0.009 | O23: =SUMIF(Einzelwertung10!$A$3:$A$55,$B23,Einzelwertung10!$J$3:$J$55)+0.008 -> 0.008 | P23: =SUMIF(Einzelwertung11!$A$3:$A$55,$B23,Einzelwertung11!$J$3:$J$55)+0.007 -> 0.007 | Q23: =SUMIF(Einzelwertung12!$A$3:$A$55,$B23,Einzelwertung12!$J$3:$J$55)+0.006 -> 0.006 | R23: =SUMIF(Einzelwertung13!$A$3:$A$55,$B23,Einzelwertung13!$J$3:$J$55)+0.005 -> 0.005 | S23: =SUMIF(Einzelwertung14!$A$3:$A$55,$B23,Einzelwertung14!$J$3:$J$55)+0.004 -> 0.004 | T23: =SUMIF(Einzelwertung15!$A$3:$A$67,$B23,Einzelwertung15!$J$3:$J$67)+0.003 -> 0.003 | U23: =SUMIF(Einzelwertung16!$A$3:$A$55,$B23,Einzelwertung16!$J$3:$J$55)+0.002 -> 25.002 | V23: =SUMIF(Einzelwertung17!$A$3:$A$55,$B23,Einzelwertung17!$J$3:$J$55)+0.001 -> 0.001 | W23: =SUMIF(Einzelwertung18!$A$3:$A$55,$B23,Einzelwertung18!$J$3:$J$55)+0 -> 0 | X23: =INT(IF(COUNTIF(F23:W23,CONCATENATE(">",1/10))<=Hilfe!$A$1,SUM(F23:W23),SUMIF(F23:W23,CONCATENATE(">=",LARGE(F23:W23,Hilfe!$A$1)),F23:W23))) -> 25 | Y23: 1 | Z23: 5
B24: Kortmann, Uwe | C24: =VLOOKUP($B24,Teilnehmer!$A$3:$E$119,2,FALSE) -> Hobby | D24: =VLOOKUP($B24,Teilnehmer!$A$3:$E$119,3,FALSE) -> Hobby32 | E24: =VLOOKUP($B24,Teilnehmer!$A$3:$E$119,4,FALSE) -> SM1 | F24: =SUMIF(Einzelwertung1!$A$3:$A$55,$B24,Einzelwertung1!$J$3:$J$55)+0.017 -> 15.017 | G24: =SUMIF(Einzelwertung2!$A$3:$A$55,$B24,Einzelwertung2!$J$3:$J$55)+0.016 -> 5.016 | H24: =SUMIF(Einzelwertung3!$A$3:$A$55,$B24,Einzelwertung3!$J$3:$J$55)+0.015 -> 0.015 | I24: =SUMIF(Einzelwertung4!$A$3:$A$55,$B24,Einzelwertung4!$J$3:$J$55)+0.014 -> 0.014 | J24: =SUMIF(Einzelwertung5!$A$3:$A$55,$B24,Einzelwertung5!$J$3:$J$55)+0.013 -> 0.013 | K24: =SUMIF(Einzelwertung6!$A$3:$A$55,$B24,Einzelwertung6!$J$3:$J$55)+0.012 -> 0.012 | L24: =SUMIF(Einzelwertung7!$A$3:$A$55,$B24,Einzelwertung7!$J$3:$J$55)+0.011 -> 0.011 | M24: =SUMIF(Einzelwertung8!$A$3:$A$55,$B24,Einzelwertung8!$J$3:$J$55)+0.01 -> 0.01 | N24: =SUMIF(Einzelwertung9!$A$3:$A$55,$B24,Einzelwertung9!$J$3:$J$55)+0.009 -> 0.009 | O24: =SUMIF(Einzelwertung10!$A$3:$A$55,$B24,Einzelwertung10!$J$3:$J$55)+0.008 -> 0.008 | P24: =SUMIF(Einzelwertung11!$A$3:$A$55,$B24,Einzelwertung11!$J$3:$J$55)+0.007 -> 0.007 | Q24: =SUMIF(Einzelwertung12!$A$3:$A$55,$B24,Einzelwertung12!$J$3:$J$55)+0.006 -> 0.006 | R24: =SUMIF(Einzelwertung13!$A$3:$A$55,$B24,Einzelwertung13!$J$3:$J$55)+0.005 -> 0.005 | S24: =SUMIF(Einzelwertung14!$A$3:$A$55,$B24,Einzelwertung14!$J$3:$J$55)+0.004 -> 0.004 | T24: =SUMIF(Einzelwertung15!$A$3:$A$67,$B24,Einzelwertung15!$J$3:$J$67)+0.003 -> 0.003 | U24: =SUMIF(Einzelwertung16!$A$3:$A$55,$B24,Einzelwertung16!$J$3:$J$55)+0.002 -> 5.002 | V24: =SUMIF(Einzelwertung17!$A$3:$A$55,$B24,Einzelwertung17!$J$3:$J$55)+0.001 -> 0.001 | W24: =SUMIF(Einzelwertung18!$A$3:$A$55,$B24,Einzelwertung18!$J$3:$J$55)+0 -> 0 | X24: =INT(IF(COUNTIF(F24:W24,CONCATENATE(">",1/10))<=Hilfe!$A$1,SUM(F24:W24),SUMIF(F24:W24,CONCATENATE(">=",LARGE(F24:W24,Hilfe!$A$1)),F24:W24))) -> 25 | Y24: 3 | Z24: 15
A25: 23 | B25: Arens, Ingo | C25: =VLOOKUP($B25,Teilnehmer!$A$3:$E$119,2,FALSE) -> Osna | D25: =VLOOKUP($B25,Teilnehmer!$A$3:$E$119,3,FALSE) -> 27450 | E25: =VLOOKUP($B25,Teilnehmer!$A$3:$E$119,4,FALSE) -> SM1 | F25: =SUMIF(Einzelwertung1!$A$3:$A$55,$B25,Einzelwertung1!$J$3:$J$55)+0.017 -> 0.017 | G25: =SUMIF(Einzelwertung2!$A$3:$A$55,$B25,Einzelwertung2!$J$3:$J$55)+0.016 -> 0.016 | H25: =SUMIF(Einzelwertung3!$A$3:$A$55,$B25,Einzelwertung3!$J$3:$J$55)+0.015 -> 0.015 | I25: =SUMIF(Einzelwertung4!$A$3:$A$55,$B25,Einzelwertung4!$J$3:$J$55)+0.014 -> 15.014 | J25: =SUMIF(Einzelwertung5!$A$3:$A$55,$B25,Einzelwertung5!$J$3:$J$55)+0.013 -> 0.013 | K25: =SUMIF(Einzelwertung6!$A$3:$A$55,$B25,Einzelwertung6!$J$3:$J$55)+0.012 -> 0.012 | L25: =SUMIF(Einzelwertung7!$A$3:$A$55,$B25,Einzelwertung7!$J$3:$J$55)+0.011 -> 0.011 | M25: =SUMIF(Einzelwertung8!$A$3:$A$55,$B25,Einzelwertung8!$J$3:$J$55)+0.01 -> 0.01 | N25: =SUMIF(Einzelwertung9!$A$3:$A$55,$B25,Einzelwertung9!$J$3:$J$55)+0.009 -> 0.009 | O25: =SUMIF(Einzelwertung10!$A$3:$A$55,$B25,Einzelwertung10!$J$3:$J$55)+0.008 -> 0.008 | P25: =SUMIF(Einzelwertung11!$A$3:$A$55,$B25,Einzelwertung11!$J$3:$J$55)+0.007 -> 0.007 | Q25: =SUMIF(Einzelwertung12!$A$3:$A$55,$B25,Einzelwertung12!$J$3:$J$55)+0.006 -> 0.006 | R25: =SUMIF(Einzelwertung13!$A$3:$A$55,$B25,Einzelwertung13!$J$3:$J$55)+0.005 -> 0.005 | S25: =SUMIF(Einzelwertung14!$A$3:$A$55,$B25,Einzelwertung14!$J$3:$J$55)+0.004 -> 0.004 | T25: =SUMIF(Einzelwertung15!$A$3:$A$67,$B25,Einzelwertung15!$J$3:$J$67)+0.003 -> 0.003 | U25: =SUMIF(Einzelwertung16!$A$3:$A$55,$B25,Einzelwertung16!$J$3:$J$55)+0.002 -> 0.002 | V25: =SUMIF(Einzelwertung17!$A$3:$A$55,$B25,Einzelwertung17!$J$3:$J$55)+0.001 -> 0.001 | W25: =SUMIF(Einzelwertung18!$A$3:$A$55,$B25,Einzelwertung18!$J$3:$J$55)+0 -> 0 | X25: =INT(IF(COUNTIF(F25:W25,CONCATENATE(">",1/10))<=Hilfe!$A$1,SUM(F25:W25),SUMIF(F25:W25,CONCATENATE(">=",LARGE(F25:W25,Hilfe!$A$1)),F25:W25))) -> 15 | Y25: 1 | Z25: 5
B26: Puschner, Silke | C26: =VLOOKUP($B26,Teilnehmer!$A$3:$E$119,2,FALSE) -> Hobby | D26: =VLOOKUP($B26,Teilnehmer!$A$3:$E$119,3,FALSE) -> Hobby19 | E26: =VLOOKUP($B26,Teilnehmer!$A$3:$E$119,4,FALSE) -> SW2 | F26: =SUMIF(Einzelwertung1!$A$3:$A$55,$B26,Einzelwertung1!$J$3:$J$55)+0.017 -> 0.017 | G26: =SUMIF(Einzelwertung2!$A$3:$A$55,$B26,Einzelwertung2!$J$3:$J$55)+0.016 -> 0.016 | H26: =SUMIF(Einzelwertung3!$A$3:$A$55,$B26,Einzelwertung3!$J$3:$J$55)+0.015 -> 5.015 | I26: =SUMIF(Einzelwertung4!$A$3:$A$55,$B26,Einzelwertung4!$J$3:$J$55)+0.014 -> 5.014 | J26: =SUMIF(Einzelwertung5!$A$3:$A$55,$B26,Einzelwertung5!$J$3:$J$55)+0.013 -> 0.013 | K26: =SUMIF(Einzelwertung6!$A$3:$A$55,$B26,Einzelwertung6!$J$3:$J$55)+0.012 -> 0.012 | L26: =SUMIF(Einzelwertung7!$A$3:$A$55,$B26,Einzelwertung7!$J$3:$J$55)+0.011 -> 0.011 | M26: =SUMIF(Einzelwertung8!$A$3:$A$55,$B26,Einzelwertung8!$J$3:$J$55)+0.01 -> 0.01 | N26: =SUMIF(Einzelwertung9!$A$3:$A$55,$B26,Einzelwertung9!$J$3:$J$55)+0.009 -> 0.009 | O26: =SUMIF(Einzelwertung10!$A$3:$A$55,$B26,Einzelwertung10!$J$3:$J$55)+0.008 -> 0.008 | P26: =SUMIF(Einzelwertung11!$A$3:$A$55,$B26,Einzelwertung11!$J$3:$J$55)+0.007 -> 0.007 | Q26: =SUMIF(Einzelwertung12!$A$3:$A$55,$B26,Einzelwertung12!$J$3:$J$55)+0.006 -> 0.006 | R26: =SUMIF(Einzelwertung13!$A$3:$A$55,$B26,Einzelwertung13!$J$3:$J$55)+0.005 -> 0.005 | S26: =SUMIF(Einzelwertung14!$A$3:$A$55,$B26,Einzelwertung14!$J$3:$J$55)+0.004 -> 0.004 | T26: =SUMIF(Einzelwertung15!$A$3:$A$67,$B26,Einzelwertung15!$J$3:$J$67)+0.003 -> 0.003 | U26: =SUMIF(Einzelwertung16!$A$3:$A$55,$B26,Einzelwertung16!$J$3:$J$55)+0.002 -> 5.002 | V26: =SUMIF(Einzelwertung17!$A$3:$A$55,$B26,Einzelwertung17!$J$3:$J$55)+0.001 -> 0.001 | W26: =SUMIF(Einzelwertung18!$A$3:$A$55,$B26,Einzelwertung18!$J$3:$J$55)+0 -> 0 | X26: =INT(IF(COUNTIF(F26:W26,CONCATENATE(">",1/10))<=Hilfe!$A$1,SUM(F26:W26),SUMIF(F26:W26,CONCATENATE(">=",LARGE(F26:W26,Hilfe!$A$1)),F26:W26))) -> 15 | Y26: 3 | Z26: 15
A27: 25 | B27: Tabor, Peter | C27: =VLOOKUP($B27,Teilnehmer!$A$3:$E$119,2,FALSE) -> ASW | D27: =VLOOKUP($B27,Teilnehmer!$A$3:$E$119,3,FALSE) -> 65804 | E27: =VLOOKUP($B27,Teilnehmer!$A$3:$E$119,4,FALSE) -> SM2 | F27: =SUMIF(Einzelwertung1!$A$3:$A$55,$B27,Einzelwertung1!$J$3:$J$55)+0.017 -> 0.017 | G27: =SUMIF(Einzelwertung2!$A$3:$A$55,$B27,Einzelwertung2!$J$3:$J$55)+0.016 -> 0.016 | H27: =SUMIF(Einzelwertung3!$A$3:$A$55,$B27,Einzelwertung3!$J$3:$J$55)+0.015 -> 0.015 | I27: =SUMIF(Einzelwertung4!$A$3:$A$55,$B27,Einzelwertung4!$J$3:$J$55)+0.014 -> 0.014 | J27: =SUMIF(Einzelwertung5!$A$3:$A$55,$B27,Einzelwertung5!$J$3:$J$55)+0.013 -> 0.013 | K27: =SUMIF(Einzelwertung6!$A$3:$A$55,$B27,Einzelwertung6!$J$3:$J$55)+0.012 -> 0.012 | L27: =SUMIF(Einzelwertung7!$A$3:$A$55,$B27,Einzelwertung7!$J$3:$J$55)+0.011 -> 0.011 | M27: =SUMIF(Einzelwertung8!$A$3:$A$55,$B27,Einzelwertung8!$J$3:$J$55)+0.01 -> 0.01 | N27: =SUMIF(Einzelwertung9!$A$3:$A$55,$B27,Einzelwertung9!$J$3:$J$55)+0.009 -> 0.009 | O27: =SUMIF(Einzelwertung10!$A$3:$A$55,$B27,Einzelwertung10!$J$3:$J$55)+0.008 -> 0.008 | P27: =SUMIF(Einzelwertung11!$A$3:$A$55,$B27,Einzelwertung11!$J$3:$J$55)+0.007 -> 5.007 | Q27: =SUMIF(Einzelwertung12!$A$3:$A$55,$B27,Einzelwertung12!$J$3:$J$55)+0.006 -> 0.006 | R27: =SUMIF(Einzelwertung13!$A$3:$A$55,$B27,Einzelwertung13!$J$3:$J$55)+0.005 -> 0.005 | S27: =SUMIF(Einzelwertung14!$A$3:$A$55,$B27,Einzelwertung14!$J$3:$J$55)+0.004 -> 0.004 | T27: =SUMIF(Einzelwertung15!$A$3:$A$67,$B27,Einzelwertung15!$J$3:$J$67)+0.003 -> 0.003 | U27: =SUMIF(Einzelwertung16!$A$3:$A$55,$B27,Einzelwertung16!$J$3:$J$55)+0.002 -> 0.002 | V27: =SUMIF(Einzelwertung17!$A$3:$A$55,$B27,Einzelwertung17!$J$3:$J$55)+0.001 -> 0.001 | W27: =SUMIF(Einzelwertung18!$A$3:$A$55,$B27,Einzelwertung18!$J$3:$J$55)+0 -> 0 | X27: =INT(IF(COUNTIF(F27:W27,CONCATENATE(">",1/10))<=Hilfe!$A$1,SUM(F27:W27),SUMIF(F27:W27,CONCATENATE(">=",LARGE(F27:W27,Hilfe!$A$1)),F27:W27))) -> 5 | Y27: 1 | Z27: 5
A28: 26 | B28: Hettrich, Willi | C28: =VLOOKUP($B28,Teilnehmer!$A$3:$E$119,2,FALSE) -> CAS | D28: =VLOOKUP($B28,Teilnehmer!$A$3:$E$119,3,FALSE) -> 35236 | E28: =VLOOKUP($B28,Teilnehmer!$A$3:$E$119,4,FALSE) -> SM2 | F28: =SUMIF(Einzelwertung1!$A$3:$A$55,$B28,Einzelwertung1!$J$3:$J$55)+0.017 -> 0.017 | G28: =SUMIF(Einzelwertung2!$A$3:$A$55,$B28,Einzelwertung2!$J$3:$J$55)+0.016 -> 0.016 | H28: =SUMIF(Einzelwertung3!$A$3:$A$55,$B28,Einzelwertung3!$J$3:$J$55)+0.015 -> 0.015 | I28: =SUMIF(Einzelwertung4!$A$3:$A$55,$B28,Einzelwertung4!$J$3:$J$55)+0.014 -> 0.014 | J28: =SUMIF(Einzelwertung5!$A$3:$A$55,$B28,Einzelwertung5!$J$3:$J$55)+0.013 -> 0.013 | K28: =SUMIF(Einzelwertung6!$A$3:$A$55,$B28,Einzelwertung6!$J$3:$J$55)+0.012 -> 0.012 | L28: =SUMIF(Einzelwertung7!$A$3:$A$55,$B28,Einzelwertung7!$J$3:$J$55)+0.011 -> 0.011 | M28: =SUMIF(Einzelwertung8!$A$3:$A$55,$B28,Einzelwertung8!$J$3:$J$55)+0.01 -> 0.01 | N28: =SUMIF(Einzelwertung9!$A$3:$A$55,$B28,Einzelwertung9!$J$3:$J$55)+0.009 -> 0.009 | O28: =SUMIF(Einzelwertung10!$A$3:$A$55,$B28,Einzelwertung10!$J$3:$J$55)+0.008 -> 0.008 | P28: =SUMIF(Einzelwertung11!$A$3:$A$55,$B28,Einzelwertung11!$J$3:$J$55)+0.007 -> 0.007 | Q28: =SUMIF(Einzelwertung12!$A$3:$A$55,$B28,Einzelwertung12!$J$3:$J$55)+0.006 -> 0.006 | R28: =SUMIF(Einzelwertung13!$A$3:$A$55,$B28,Einzelwertung13!$J$3:$J$55)+0.005 -> 0.005 | S28: =SUMIF(Einzelwertung14!$A$3:$A$55,$B28,Einzelwertung14!$J$3:$J$55)+0.004 -> 0.004 | T28: =SUMIF(Einzelwertung15!$A$3:$A$67,$B28,Einzelwertung15!$J$3:$J$67)+0.003 -> 0.003 | U28: =SUMIF(Einzelwertung16!$A$3:$A$55,$B28,Einzelwertung16!$J$3:$J$55)+0.002 -> 0.002 | V28: =SUMIF(Einzelwertung17!$A$3:$A$55,$B28,Einzelwertung17!$J$3:$J$55)+0.001 -> 0.001 | W28: =SUMIF(Einzelwertung18!$A$3:$A$55,$B28,Einzelwertung18!$J$3:$J$55)+0 -> 0 | X28: =INT(IF(COUNTIF(F28:W28,CONCATENATE(">",1/10))<=Hilfe!$A$1,SUM(F28:W28),SUMIF(F28:W28,CONCATENATE(">=",LARGE(F28:W28,Hilfe!$A$1)),F28:W28))) -> 0 | Y28: 0 | Z28: 0
B29: Hickert, Peter | C29: =VLOOKUP($B29,Teilnehmer!$A$3:$E$119,2,FALSE) -> ASW | D29: =VLOOKUP($B29,Teilnehmer!$A$3:$E$119,3,FALSE) -> 46250 | E29: =VLOOKUP($B29,Teilnehmer!$A$3:$E$119,4,FALSE) -> SM2 | F29: =SUMIF(Einzelwertung1!$A$3:$A$55,$B29,Einzelwertung1!$J$3:$J$55)+0.017 -> 0.017 | G29: =SUMIF(Einzelwertung2!$A$3:$A$55,$B29,Einzelwertung2!$J$3:$J$55)+0.016 -> 0.016 | H29: =SUMIF(Einzelwertung3!$A$3:$A$55,$B29,Einzelwertung3!$J$3:$J$55)+0.015 -> 0.015 | I29: =SUMIF(Einzelwertung4!$A$3:$A$55,$B29,Einzelwertung4!$J$3:$J$55)+0.014 -> 0.014 | J29: =SUMIF(Einzelwertung5!$A$3:$A$55,$B29,Einzelwertung5!$J$3:$J$55)+0.013 -> 0.013 | K29: =SUMIF(Einzelwertung6!$A$3:$A$55,$B29,Einzelwertung6!$J$3:$J$55)+0.012 -> 0.012 | L29: =SUMIF(Einzelwertung7!$A$3:$A$55,$B29,Einzelwertung7!$J$3:$J$55)+0.011 -> 0.011 | M29: =SUMIF(Einzelwertung8!$A$3:$A$55,$B29,Einzelwertung8!$J$3:$J$55)+0.01 -> 0.01 | N29: =SUMIF(Einzelwertung9!$A$3:$A$55,$B29,Einzelwertung9!$J$3:$J$55)+0.009 -> 0.009 | O29: =SUMIF(Einzelwertung10!$A$3:$A$55,$B29,Einzelwertung10!$J$3:$J$55)+0.008 -> 0.008 | P29: =SUMIF(Einzelwertung11!$A$3:$A$55,$B29,Einzelwertung11!$J$3:$J$55)+0.007 -> 0.007 | Q29: =SUMIF(Einzelwertung12!$A$3:$A$55,$B29,Einzelwertung12!$J$3:$J$55)+0.006 -> 0.006 | R29: =SUMIF(Einzelwertung13!$A$3:$A$55,$B29,Einzelwertung13!$J$3:$J$55)+0.005 -> 0.005 | S29: =SUMIF(Einzelwertung14!$A$3:$A$55,$B29,Einzelwertung14!$J$3:$J$55)+0.004 -> 0.004 | T29: =SUMIF(Einzelwertung15!$A$3:$A$67,$B29,Einzelwertung15!$J$3:$J$67)+0.003 -> 0.003 | U29: =SUMIF(Einzelwertung16!$A$3:$A$55,$B29,Einzelwertung16!$J$3:$J$55)+0.002 -> 0.002 | V29: =SUMIF(Einzelwertung17!$A$3:$A$55,$B29,Einzelwertung17!$J$3:$J$55)+0.001 -> 0.001 | W29: =SUMIF(Einzelwertung18!$A$3:$A$55,$B29,Einzelwertung18!$J$3:$J$55)+0 -> 0 | X29: =INT(IF(COUNTIF(F29:W29,CONCATENATE(">",1/10))<=Hilfe!$A$1,SUM(F29:W29),SUMIF(F29:W29,CONCATENATE(">=",LARGE(F29:W29,Hilfe!$A$1)),F29:W29))) -> 0 | Y29: 0 | Z29: 0
B30: Hoffmann, Thomas | C30: =VLOOKUP($B30,Teilnehmer!$A$3:$E$119,2,FALSE) -> Hobby | D30: =VLOOKUP($B30,Teilnehmer!$A$3:$E$119,3,FALSE) -> Hobby29 | E30: =VLOOKUP($B30,Teilnehmer!$A$3:$E$119,4,FALSE) -> SM2 | F30: =SUMIF(Einzelwertung1!$A$3:$A$55,$B30,Einzelwertung1!$J$3:$J$55)+0.017 -> 0.017 | G30: =SUMIF(Einzelwertung2!$A$3:$A$55,$B30,Einzelwertung2!$J$3:$J$55)+0.016 -> 0.016 | H30: =SUMIF(Einzelwertung3!$A$3:$A$55,$B30,Einzelwertung3!$J$3:$J$55)+0.015 -> 0.015 | I30: =SUMIF(Einzelwertung4!$A$3:$A$55,$B30,Einzelwertung4!$J$3:$J$55)+0.014 -> 0.014 | J30: =SUMIF(Einzelwertung5!$A$3:$A$55,$B30,Einzelwertung5!$J$3:$J$55)+0.013 -> 0.013 | K30: =SUMIF(Einzelwertung6!$A$3:$A$55,$B30,Einzelwertung6!$J$3:$J$55)+0.012 -> 0.012 | L30: =SUMIF(Einzelwertung7!$A$3:$A$55,$B30,Einzelwertung7!$J$3:$J$55)+0.011 -> 0.011 | M30: =SUMIF(Einzelwertung8!$A$3:$A$55,$B30,Einzelwertung8!$J$3:$J$55)+0.01 -> 0.01 | N30: =SUMIF(Einzelwertung9!$A$3:$A$55,$B30,Einzelwertung9!$J$3:$J$55)+0.009 -> 0.009 | O30: =SUMIF(Einzelwertung10!$A$3:$A$55,$B30,Einzelwertung10!$J$3:$J$55)+0.008 -> 0.008 | P30: =SUMIF(Einzelwertung11!$A$3:$A$55,$B30,Einzelwertung11!$J$3:$J$55)+0.007 -> 0.007 | Q30: =SUMIF(Einzelwertung12!$A$3:$A$55,$B30,Einzelwertung12!$J$3:$J$55)+0.006 -> 0.006 | R30: =SUMIF(Einzelwertung13!$A$3:$A$55,$B30,Einzelwertung13!$J$3:$J$55)+0.005 -> 0.005 | S30: =SUMIF(Einzelwertung14!$A$3:$A$55,$B30,Einzelwertung14!$J$3:$J$55)+0.004 -> 0.004 | T30: =SUMIF(Einzelwertung15!$A$3:$A$67,$B30,Einzelwertung15!$J$3:$J$67)+0.003 -> 0.003 | U30: =SUMIF(Einzelwertung16!$A$3:$A$55,$B30,Einzelwertung16!$J$3:$J$55)+0.002 -> 0.002 | V30: =SUMIF(Einzelwertung17!$A$3:$A$55,$B30,Einzelwertung17!$J$3:$J$55)+0.001 -> 0.001 | W30: =SUMIF(Einzelwertung18!$A$3:$A$55,$B30,Einzelwertung18!$J$3:$J$55)+0 -> 0 | X30: =INT(IF(COUNTIF(F30:W30,CONCATENATE(">",1/10))<=Hilfe!$A$1,SUM(F30:W30),SUMIF(F30:W30,CONCATENATE(">=",LARGE(F30:W30,Hilfe!$A$1)),F30:W30))) -> 0 | Y30: 0 | Z30: 0
B31: Kalhöfer, Anna | C31: =VLOOKUP($B31,Teilnehmer!$A$3:$E$119,2,FALSE) -> ASW | D31: =VLOOKUP($B31,Teilnehmer!$A$3:$E$119,3,FALSE) -> 4222 | E31: =VLOOKUP($B31,Teilnehmer!$A$3:$E$119,4,FALSE) -> SW2 | F31: =SUMIF(Einzelwertung1!$A$3:$A$55,$B31,Einzelwertung1!$J$3:$J$55)+0.017 -> 0.017 | G31: =SUMIF(Einzelwertung2!$A$3:$A$55,$B31,Einzelwertung2!$J$3:$J$55)+0.016 -> 0.016 | H31: =SUMIF(Einzelwertung3!$A$3:$A$55,$B31,Einzelwertung3!$J$3:$J$55)+0.015 -> 0.015 | I31: =SUMIF(Einzelwertung4!$A$3:$A$55,$B31,Einzelwertung4!$J$3:$J$55)+0.014 -> 0.014 | J31: =SUMIF(Einzelwertung5!$A$3:$A$55,$B31,Einzelwertung5!$J$3:$J$55)+0.013 -> 0.013 | K31: =SUMIF(Einzelwertung6!$A$3:$A$55,$B31,Einzelwertung6!$J$3:$J$55)+0.012 -> 0.012 | L31: =SUMIF(Einzelwertung7!$A$3:$A$55,$B31,Einzelwertung7!$J$3:$J$55)+0.011 -> 0.011 | M31: =SUMIF(Einzelwertung8!$A$3:$A$55,$B31,Einzelwertung8!$J$3:$J$55)+0.01 -> 0.01 | N31: =SUMIF(Einzelwertung9!$A$3:$A$55,$B31,Einzelwertung9!$J$3:$J$55)+0.009 -> 0.009 | O31: =SUMIF(Einzelwertung10!$A$3:$A$55,$B31,Einzelwertung10!$J$3:$J$55)+0.008 -> 0.008 | P31: =SUMIF(Einzelwertung11!$A$3:$A$55,$B31,Einzelwertung11!$J$3:$J$55)+0.007 -> 0.007 | Q31: =SUMIF(Einzelwertung12!$A$3:$A$55,$B31,Einzelwertung12!$J$3:$J$55)+0.006 -> 0.006 | R31: =SUMIF(Einzelwertung13!$A$3:$A$55,$B31,Einzelwertung13!$J$3:$J$55)+0.005 -> 0.005 | S31: =SUMIF(Einzelwertung14!$A$3:$A$55,$B31,Einzelwertung14!$J$3:$J$55)+0.004 -> 0.004 | T31: =SUMIF(Einzelwertung15!$A$3:$A$67,$B31,Einzelwertung15!$J$3:$J$67)+0.003 -> 0.003 | U31: =SUMIF(Einzelwertung16!$A$3:$A$55,$B31,Einzelwertung16!$J$3:$J$55)+0.002 -> 0.002 | V31: =SUMIF(Einzelwertung17!$A$3:$A$55,$B31,Einzelwertung17!$J$3:$J$55)+0.001 -> 0.001 | W31: =SUMIF(Einzelwertung18!$A$3:$A$55,$B31,Einzelwertung18!$J$3:$J$55)+0 -> 0 | X31: =INT(IF(COUNTIF(F31:W31,CONCATENATE(">",1/10))<=Hilfe!$A$1,SUM(F31:W31),SUMIF(F31:W31,CONCATENATE(">=",LARGE(F31:W31,Hilfe!$A$1)),F31:W31))) -> 0 | Y31: 0 | Z31: 0
B32: Lehmann, Niclas | C32: =VLOOKUP($B32,Teilnehmer!$A$3:$E$119,2,FALSE) -> Oly | D32: =VLOOKUP($B32,Teilnehmer!$A$3:$E$119,3,FALSE) -> 67372 | E32: =VLOOKUP($B32,Teilnehmer!$A$3:$E$119,4,FALSE) -> H | F32: =SUMIF(Einzelwertung1!$A$3:$A$55,$B32,Einzelwertung1!$J$3:$J$55)+0.017 -> 0.017 | G32: =SUMIF(Einzelwertung2!$A$3:$A$55,$B32,Einzelwertung2!$J$3:$J$55)+0.016 -> 0.016 | H32: =SUMIF(Einzelwertung3!$A$3:$A$55,$B32,Einzelwertung3!$J$3:$J$55)+0.015 -> 0.015 | I32: =SUMIF(Einzelwertung4!$A$3:$A$55,$B32,Einzelwertung4!$J$3:$J$55)+0.014 -> 0.014 | J32: =SUMIF(Einzelwertung5!$A$3:$A$55,$B32,Einzelwertung5!$J$3:$J$55)+0.013 -> 0.013 | K32: =SUMIF(Einzelwertung6!$A$3:$A$55,$B32,Einzelwertung6!$J$3:$J$55)+0.012 -> 0.012 | L32: =SUMIF(Einzelwertung7!$A$3:$A$55,$B32,Einzelwertung7!$J$3:$J$55)+0.011 -> 0.011 | M32: =SUMIF(Einzelwertung8!$A$3:$A$55,$B32,Einzelwertung8!$J$3:$J$55)+0.01 -> 0.01 | N32: =SUMIF(Einzelwertung9!$A$3:$A$55,$B32,Einzelwertung9!$J$3:$J$55)+0.009 -> 0.009 | O32: =SUMIF(Einzelwertung10!$A$3:$A$55,$B32,Einzelwertung10!$J$3:$J$55)+0.008 -> 0.008 | P32: =SUMIF(Einzelwertung11!$A$3:$A$55,$B32,Einzelwertung11!$J$3:$J$55)+0.007 -> 0.007 | Q32: =SUMIF(Einzelwertung12!$A$3:$A$55,$B32,Einzelwertung12!$J$3:$J$55)+0.006 -> 0.006 | R32: =SUMIF(Einzelwertung13!$A$3:$A$55,$B32,Einzelwertung13!$J$3:$J$55)+0.005 -> 0.005 | S32: =SUMIF(Einzelwertung14!$A$3:$A$55,$B32,Einzelwertung14!$J$3:$J$55)+0.004 -> 0.004 | T32: =SUMIF(Einzelwertung15!$A$3:$A$67,$B32,Einzelwertung15!$J$3:$J$67)+0.003 -> 0.003 | U32: =SUMIF(Einzelwertung16!$A$3:$A$55,$B32,Einzelwertung16!$J$3:$J$55)+0.002 -> 0.002 | V32: =SUMIF(Einzelwertung17!$A$3:$A$55,$B32,Einzelwertung17!$J$3:$J$55)+0.001 -> 0.001 | W32: =SUMIF(Einzelwertung18!$A$3:$A$55,$B32,Einzelwertung18!$J$3:$J$55)+0 -> 0 | X32: =INT(IF(COUNTIF(F32:W32,CONCATENATE(">",1/10))<=Hilfe!$A$1,SUM(F32:W32),SUMIF(F32:W32,CONCATENATE(">=",LARGE(F32:W32,Hilfe!$A$1)),F32:W32))) -> 0 | Y32: 0 | Z32: 0
B33: Lieber, Nicole | C33: =VLOOKUP($B33,Teilnehmer!$A$3:$E$119,2,FALSE) -> Hobby | D33: =VLOOKUP($B33,Teilnehmer!$A$3:$E$119,3,FALSE) -> Hobby7 | E33: =VLOOKUP($B33,Teilnehmer!$A$3:$E$119,4,FALSE) -> D | F33: =SUMIF(Einzelwertung1!$A$3:$A$55,$B33,Einzelwertung1!$J$3:$J$55)+0.017 -> 0.017 | G33: =SUMIF(Einzelwertung2!$A$3:$A$55,$B33,Einzelwertung2!$J$3:$J$55)+0.016 -> 0.016 | H33: =SUMIF(Einzelwertung3!$A$3:$A$55,$B33,Einzelwertung3!$J$3:$J$55)+0.015 -> 0.015 | I33: =SUMIF(Einzelwertung4!$A$3:$A$55,$B33,Einzelwertung4!$J$3:$J$55)+0.014 -> 0.014 | J33: =SUMIF(Einzelwertung5!$A$3:$A$55,$B33,Einzelwertung5!$J$3:$J$55)+0.013 -> 0.013 | K33: =SUMIF(Einzelwertung6!$A$3:$A$55,$B33,Einzelwertung6!$J$3:$J$55)+0.012 -> 0.012 | L33: =SUMIF(Einzelwertung7!$A$3:$A$55,$B33,Einzelwertung7!$J$3:$J$55)+0.011 -> 0.011 | M33: =SUMIF(Einzelwertung8!$A$3:$A$55,$B33,Einzelwertung8!$J$3:$J$55)+0.01 -> 0.01 | N33: =SUMIF(Einzelwertung9!$A$3:$A$55,$B33,Einzelwertung9!$J$3:$J$55)+0.009 -> 0.009 | O33: =SUMIF(Einzelwertung10!$A$3:$A$55,$B33,Einzelwertung10!$J$3:$J$55)+0.008 -> 0.008 | P33: =SUMIF(Einzelwertung11!$A$3:$A$55,$B33,Einzelwertung11!$J$3:$J$55)+0.007 -> 0.007 | Q33: =SUMIF(Einzelwertung12!$A$3:$A$55,$B33,Einzelwertung12!$J$3:$J$55)+0.006 -> 0.006 | R33: =SUMIF(Einzelwertung13!$A$3:$A$55,$B33,Einzelwertung13!$J$3:$J$55)+0.005 -> 0.005 | S33: =SUMIF(Einzelwertung14!$A$3:$A$55,$B33,Einzelwertung14!$J$3:$J$55)+0.004 -> 0.004 | T33: =SUMIF(Einzelwertung15!$A$3:$A$67,$B33,Einzelwertung15!$J$3:$J$67)+0.003 -> 0.003 | U33: =SUMIF(Einzelwertung16!$A$3:$A$55,$B33,Einzelwertung16!$J$3:$J$55)+0.002 -> 0.002 | V33: =SUMIF(Einzelwertung17!$A$3:$A$55,$B33,Einzelwertung17!$J$3:$J$55)+0.001 -> 0.001 | W33: =SUMIF(Einzelwertung18!$A$3:$A$55,$B33,Einzelwertung18!$J$3:$J$55)+0 -> 0 | X33: =INT(IF(COUNTIF(F33:W33,CONCATENATE(">",1/10))<=Hilfe!$A$1,SUM(F33:W33),SUMIF(F33:W33,CONCATENATE(">=",LARGE(F33:W33,Hilfe!$A$1)),F33:W33))) -> 0 | Y33: 0 | Z33: 0
B34: Scharpe, Sabine | C34: =VLOOKUP($B34,Teilnehmer!$A$3:$E$119,2,FALSE) -> Ennep. | D34: =VLOOKUP($B34,Teilnehmer!$A$3:$E$119,3,FALSE) -> 67147 | E34: =VLOOKUP($B34,Teilnehmer!$A$3:$E$119,4,FALSE) -> SW1 | F34: =SUMIF(Einzelwertung1!$A$3:$A$55,$B34,Einzelwertung1!$J$3:$J$55)+0.017 -> 0.017 | G34: =SUMIF(Einzelwertung2!$A$3:$A$55,$B34,Einzelwertung2!$J$3:$J$55)+0.016 -> 0.016 | H34: =SUMIF(Einzelwertung3!$A$3:$A$55,$B34,Einzelwertung3!$J$3:$J$55)+0.015 -> 0.015 | I34: =SUMIF(Einzelwertung4!$A$3:$A$55,$B34,Einzelwertung4!$J$3:$J$55)+0.014 -> 0.014 | J34: =SUMIF(Einzelwertung5!$A$3:$A$55,$B34,Einzelwertung5!$J$3:$J$55)+0.013 -> 0.013 | K34: =SUMIF(Einzelwertung6!$A$3:$A$55,$B34,Einzelwertung6!$J$3:$J$55)+0.012 -> 0.012 | L34: =SUMIF(Einzelwertung7!$A$3:$A$55,$B34,Einzelwertung7!$J$3:$J$55)+0.011 -> 0.011 | M34: =SUMIF(Einzelwertung8!$A$3:$A$55,$B34,Einzelwertung8!$J$3:$J$55)+0.01 -> 0.01 | N34: =SUMIF(Einzelwertung9!$A$3:$A$55,$B34,Einzelwertung9!$J$3:$J$55)+0.009 -> 0.009 | O34: =SUMIF(Einzelwertung10!$A$3:$A$55,$B34,Einzelwertung10!$J$3:$J$55)+0.008 -> 0.008 | P34: =SUMIF(Einzelwertung11!$A$3:$A$55,$B34,Einzelwertung11!$J$3:$J$55)+0.007 -> 0.007 | Q34: =SUMIF(Einzelwertung12!$A$3:$A$55,$B34,Einzelwertung12!$J$3:$J$55)+0.006 -> 0.006 | R34: =SUMIF(Einzelwertung13!$A$3:$A$55,$B34,Einzelwertung13!$J$3:$J$55)+0.005 -> 0.005 | S34: =SUMIF(Einzelwertung14!$A$3:$A$55,$B34,Einzelwertung14!$J$3:$J$55)+0.004 -> 0.004 | T34: =SUMIF(Einzelwertung15!$A$3:$A$67,$B34,Einzelwertung15!$J$3:$J$67)+0.003 -> 0.003 | U34: =SUMIF(Einzelwertung16!$A$3:$A$55,$B34,Einzelwertung16!$J$3:$J$55)+0.002 -> 0.002 | V34: =SUMIF(Einzelwertung17!$A$3:$A$55,$B34,Einzelwertung17!$J$3:$J$55)+0.001 -> 0.001 | W34: =SUMIF(Einzelwertung18!$A$3:$A$55,$B34,Einzelwertung18!$J$3:$J$55)+0 -> 0 | X34: =INT(IF(COUNTIF(F34:W34,CONCATENATE(">",1/10))<=Hilfe!$A$1,SUM(F34:W34),SUMIF(F34:W34,CONCATENATE(">=",LARGE(F34:W34,Hilfe!$A$1)),F34:W34))) -> 0 | Y34: 0 | Z34: 0
B35: Schmidt, Barbara | C35: =VLOOKUP($B35,Teilnehmer!$A$3:$E$119,2,FALSE) -> Hobby | D35: =VLOOKUP($B35,Teilnehmer!$A$3:$E$119,3,FALSE) -> Hobby41 | E35: =VLOOKUP($B35,Teilnehmer!$A$3:$E$119,4,FALSE) -> SW2 | F35: =SUMIF(Einzelwertung1!$A$3:$A$55,$B35,Einzelwertung1!$J$3:$J$55)+0.017 -> 0.017 | G35: =SUMIF(Einzelwertung2!$A$3:$A$55,$B35,Einzelwertung2!$J$3:$J$55)+0.016 -> 0.016 | H35: =SUMIF(Einzelwertung3!$A$3:$A$55,$B35,Einzelwertung3!$J$3:$J$55)+0.015 -> 0.015 | I35: =SUMIF(Einzelwertung4!$A$3:$A$55,$B35,Einzelwertung4!$J$3:$J$55)+0.014 -> 0.014 | J35: =SUMIF(Einzelwertung5!$A$3:$A$55,$B35,Einzelwertung5!$J$3:$J$55)+0.013 -> 0.013 | K35: =SUMIF(Einzelwertung6!$A$3:$A$55,$B35,Einzelwertung6!$J$3:$J$55)+0.012 -> 0.012 | L35: =SUMIF(Einzelwertung7!$A$3:$A$55,$B35,Einzelwertung7!$J$3:$J$55)+0.011 -> 0.011 | M35: =SUMIF(Einzelwertung8!$A$3:$A$55,$B35,Einzelwertung8!$J$3:$J$55)+0.01 -> 0.01 | N35: =SUMIF(Einzelwertung9!$A$3:$A$55,$B35,Einzelwertung9!$J$3:$J$55)+0.009 -> 0.009 | O35: =SUMIF(Einzelwertung10!$A$3:$A$55,$B35,Einzelwertung10!$J$3:$J$55)+0.008 -> 0.008 | P35: =SUMIF(Einzelwertung11!$A$3:$A$55,$B35,Einzelwertung11!$J$3:$J$55)+0.007 -> 0.007 | Q35: =SUMIF(Einzelwertung12!$A$3:$A$55,$B35,Einzelwertung12!$J$3:$J$55)+0.006 -> 0.006 | R35: =SUMIF(Einzelwertung13!$A$3:$A$55,$B35,Einzelwertung13!$J$3:$J$55)+0.005 -> 0.005 | S35: =SUMIF(Einzelwertung14!$A$3:$A$55,$B35,Einzelwertung14!$J$3:$J$55)+0.004 -> 0.004 | T35: =SUMIF(Einzelwertung15!$A$3:$A$67,$B35,Einzelwertung15!$J$3:$J$67)+0.003 -> 0.003 | U35: =SUMIF(Einzelwertung16!$A$3:$A$55,$B35,Einzelwertung16!$J$3:$J$55)+0.002 -> 0.002 | V35: =SUMIF(Einzelwertung17!$A$3:$A$55,$B35,Einzelwertung17!$J$3:$J$55)+0.001 -> 0.001 | W35: =SUMIF(Einzelwertung18!$A$3:$A$55,$B35,Einzelwertung18!$J$3:$J$55)+0 -> 0 | X35: =INT(IF(COUNTIF(F35:W35,CONCATENATE(">",1/10))<=Hilfe!$A$1,SUM(F35:W35),SUMIF(F35:W35,CONCATENATE(">=",LARGE(F35:W35,Hilfe!$A$1)),F35:W35))) -> 0 | Y35: 0 | Z35: 0
B36: Schmitt, Jürgen | C36: =VLOOKUP($B36,Teilnehmer!$A$3:$E$119,2,FALSE) -> ASW | D36: =VLOOKUP($B36,Teilnehmer!$A$3:$E$119,3,FALSE) -> 44955 | E36: =VLOOKUP($B36,Teilnehmer!$A$3:$E$119,4,FALSE) -> SM1 | F36: =SUMIF(Einzelwertung1!$A$3:$A$55,$B36,Einzelwertung1!$J$3:$J$55)+0.017 -> 0.017 | G36: =SUMIF(Einzelwertung2!$A$3:$A$55,$B36,Einzelwertung2!$J$3:$J$55)+0.016 -> 0.016 | H36: =SUMIF(Einzelwertung3!$A$3:$A$55,$B36,Einzelwertung3!$J$3:$J$55)+0.015 -> 0.015 | I36: =SUMIF(Einzelwertung4!$A$3:$A$55,$B36,Einzelwertung4!$J$3:$J$55)+0.014 -> 0.014 | J36: =SUMIF(Einzelwertung5!$A$3:$A$55,$B36,Einzelwertung5!$J$3:$J$55)+0.013 -> 0.013 | K36: =SUMIF(Einzelwertung6!$A$3:$A$55,$B36,Einzelwertung6!$J$3:$J$55)+0.012 -> 0.012 | L36: =SUMIF(Einzelwertung7!$A$3:$A$55,$B36,Einzelwertung7!$J$3:$J$55)+0.011 -> 0.011 | M36: =SUMIF(Einzelwertung8!$A$3:$A$55,$B36,Einzelwertung8!$J$3:$J$55)+0.01 -> 0.01 | N36: =SUMIF(Einzelwertung9!$A$3:$A$55,$B36,Einzelwertung9!$J$3:$J$55)+0.009 -> 0.009 | O36: =SUMIF(Einzelwertung10!$A$3:$A$55,$B36,Einzelwertung10!$J$3:$J$55)+0.008 -> 0.008 | P36: =SUMIF(Einzelwertung11!$A$3:$A$55,$B36,Einzelwertung11!$J$3:$J$55)+0.007 -> 0.007 | Q36: =SUMIF(Einzelwertung12!$A$3:$A$55,$B36,Einzelwertung12!$J$3:$J$55)+0.006 -> 0.006 | R36: =SUMIF(Einzelwertung13!$A$3:$A$55,$B36,Einzelwertung13!$J$3:$J$55)+0.005 -> 0.005 | S36: =SUMIF(Einzelwertung14!$A$3:$A$55,$B36,Einzelwertung14!$J$3:$J$55)+0.004 -> 0.004 | T36: =SUMIF(Einzelwertung15!$A$3:$A$67,$B36,Einzelwertung15!$J$3:$J$67)+0.003 -> 0.003 | U36: =SUMIF(Einzelwertung16!$A$3:$A$55,$B36,Einzelwertung16!$J$3:$J$55)+0.002 -> 0.002 | V36: =SUMIF(Einzelwertung17!$A$3:$A$55,$B36,Einzelwertung17!$J$3:$J$55)+0.001 -> 0.001 | W36: =SUMIF(Einzelwertung18!$A$3:$A$55,$B36,Einzelwertung18!$J$3:$J$55)+0 -> 0 | X36: =INT(IF(COUNTIF(F36:W36,CONCATENATE(">",1/10))<=Hilfe!$A$1,SUM(F36:W36),SUMIF(F36:W36,CONCATENATE(">=",LARGE(F36:W36,Hilfe!$A$1)),F36:W36))) -> 0 | Y36: 0 | Z36: 0
B37: Wickel-Paffrath, Melanie | C37: =VLOOKUP($B37,Teilnehmer!$A$3:$E$119,2,FALSE) -> HEV | D37: =VLOOKUP($B37,Teilnehmer!$A$3:$E$119,3,FALSE) -> 33510 | E37: =VLOOKUP($B37,Teilnehmer!$A$3:$E$119,4,FALSE) -> D | F37: =SUMIF(Einzelwertung1!$A$3:$A$55,$B37,Einzelwertung1!$J$3:$J$55)+0.017 -> 0.017 | G37: =SUMIF(Einzelwertung2!$A$3:$A$55,$B37,Einzelwertung2!$J$3:$J$55)+0.016 -> 0.016 | H37: =SUMIF(Einzelwertung3!$A$3:$A$55,$B37,Einzelwertung3!$J$3:$J$55)+0.015 -> 0.015 | I37: =SUMIF(Einzelwertung4!$A$3:$A$55,$B37,Einzelwertung4!$J$3:$J$55)+0.014 -> 0.014 | J37: =SUMIF(Einzelwertung5!$A$3:$A$55,$B37,Einzelwertung5!$J$3:$J$55)+0.013 -> 0.013 | K37: =SUMIF(Einzelwertung6!$A$3:$A$55,$B37,Einzelwertung6!$J$3:$J$55)+0.012 -> 0.012 | L37: =SUMIF(Einzelwertung7!$A$3:$A$55,$B37,Einzelwertung7!$J$3:$J$55)+0.011 -> 0.011 | M37: =SUMIF(Einzelwertung8!$A$3:$A$55,$B37,Einzelwertung8!$J$3:$J$55)+0.01 -> 0.01 | N37: =SUMIF(Einzelwertung9!$A$3:$A$55,$B37,Einzelwertung9!$J$3:$J$55)+0.009 -> 0.009 | O37: =SUMIF(Einzelwertung10!$A$3:$A$55,$B37,Einzelwertung10!$J$3:$J$55)+0.008 -> 0.008 | P37: =SUMIF(Einzelwertung11!$A$3:$A$55,$B37,Einzelwertung11!$J$3:$J$55)+0.007 -> 0.007 | Q37: =SUMIF(Einzelwertung12!$A$3:$A$55,$B37,Einzelwertung12!$J$3:$J$55)+0.006 -> 0.006 | R37: =SUMIF(Einzelwertung13!$A$3:$A$55,$B37,Einzelwertung13!$J$3:$J$55)+0.005 -> 0.005 | S37: =SUMIF(Einzelwertung14!$A$3:$A$55,$B37,Einzelwertung14!$J$3:$J$55)+0.004 -> 0.004 | T37: =SUMIF(Einzelwertung15!$A$3:$A$67,$B37,Einzelwertung15!$J$3:$J$67)+0.003 -> 0.003 | U37: =SUMIF(Einzelwertung16!$A$3:$A$55,$B37,Einzelwertung16!$J$3:$J$55)+0.002 -> 0.002 | V37: =SUMIF(Einzelwertung17!$A$3:$A$55,$B37,Einzelwertung17!$J$3:$J$55)+0.001 -> 0.001 | W37: =SUMIF(Einzelwertung18!$A$3:$A$55,$B37,Einzelwertung18!$J$3:$J$55)+0 -> 0 | X37: =INT(IF(COUNTIF(F37:W37,CONCATENATE(">",1/10))<=Hilfe!$A$1,SUM(F37:W37),SUMIF(F37:W37,CONCATENATE(">=",LARGE(F37:W37,Hilfe!$A$1)),F37:W37))) -> 0 | Y37: 0 | Z37: 0
B38: Wolf, Arnold | C38: =VLOOKUP($B38,Teilnehmer!$A$3:$E$119,2,FALSE) -> LIP | D38: =VLOOKUP($B38,Teilnehmer!$A$3:$E$119,3,FALSE) -> 66409 | E38: =VLOOKUP($B38,Teilnehmer!$A$3:$E$119,4,FALSE) -> SM2 | F38: =SUMIF(Einzelwertung1!$A$3:$A$55,$B38,Einzelwertung1!$J$3:$J$55)+0.017 -> 0.017 | G38: =SUMIF(Einzelwertung2!$A$3:$A$55,$B38,Einzelwertung2!$J$3:$J$55)+0.016 -> 0.016 | H38: =SUMIF(Einzelwertung3!$A$3:$A$55,$B38,Einzelwertung3!$J$3:$J$55)+0.015 -> 0.015 | I38: =SUMIF(Einzelwertung4!$A$3:$A$55,$B38,Einzelwertung4!$J$3:$J$55)+0.014 -> 0.014 | J38: =SUMIF(Einzelwertung5!$A$3:$A$55,$B38,Einzelwertung5!$J$3:$J$55)+0.013 -> 0.013 | K38: =SUMIF(Einzelwertung6!$A$3:$A$55,$B38,Einzelwertung6!$J$3:$J$55)+0.012 -> 0.012 | L38: =SUMIF(Einzelwertung7!$A$3:$A$55,$B38,Einzelwertung7!$J$3:$J$55)+0.011 -> 0.011 | M38: =SUMIF(Einzelwertung8!$A$3:$A$55,$B38,Einzelwertung8!$J$3:$J$55)+0.01 -> 0.01 | N38: =SUMIF(Einzelwertung9!$A$3:$A$55,$B38,Einzelwertung9!$J$3:$J$55)+0.009 -> 0.009 | O38: =SUMIF(Einzelwertung10!$A$3:$A$55,$B38,Einzelwertung10!$J$3:$J$55)+0.008 -> 0.008 | P38: =SUMIF(Einzelwertung11!$A$3:$A$55,$B38,Einzelwertung11!$J$3:$J$55)+0.007 -> 0.007 | Q38: =SUMIF(Einzelwertung12!$A$3:$A$55,$B38,Einzelwertung12!$J$3:$J$55)+0.006 -> 0.006 | R38: =SUMIF(Einzelwertung13!$A$3:$A$55,$B38,Einzelwertung13!$J$3:$J$55)+0.005 -> 0.005 | S38: =SUMIF(Einzelwertung14!$A$3:$A$55,$B38,Einzelwertung14!$J$3:$J$55)+0.004 -> 0.004 | T38: =SUMIF(Einzelwertung15!$A$3:$A$67,$B38,Einzelwertung15!$J$3:$J$67)+0.003 -> 0.003 | U38: =SUMIF(Einzelwertung16!$A$3:$A$55,$B38,Einzelwertung16!$J$3:$J$55)+0.002 -> 0.002 | V38: =SUMIF(Einzelwertung17!$A$3:$A$55,$B38,Einzelwertung17!$J$3:$J$55)+0.001 -> 0.001 | W38: =SUMIF(Einzelwertung18!$A$3:$A$55,$B38,Einzelwertung18!$J$3:$J$55)+0 -> 0 | X38: =INT(IF(COUNTIF(F38:W38,CONCATENATE(">",1/10))<=Hilfe!$A$1,SUM(F38:W38),SUMIF(F38:W38,CONCATENATE(">=",LARGE(F38:W38,Hilfe!$A$1)),F38:W38))) -> 0 | Y38: 0 | Z38: 0
B39: Wruck, Wolfgang | C39: =VLOOKUP($B39,Teilnehmer!$A$3:$E$119,2,FALSE) -> LIP | D39: =VLOOKUP($B39,Teilnehmer!$A$3:$E$119,3,FALSE) -> 66408 | E39: =VLOOKUP($B39,Teilnehmer!$A$3:$E$119,4,FALSE) -> SM1 | F39: =SUMIF(Einzelwertung1!$A$3:$A$55,$B39,Einzelwertung1!$J$3:$J$55)+0.017 -> 0.017 | G39: =SUMIF(Einzelwertung2!$A$3:$A$55,$B39,Einzelwertung2!$J$3:$J$55)+0.016 -> 0.016 | H39: =SUMIF(Einzelwertung3!$A$3:$A$55,$B39,Einzelwertung3!$J$3:$J$55)+0.015 -> 0.015 | I39: =SUMIF(Einzelwertung4!$A$3:$A$55,$B39,Einzelwertung4!$J$3:$J$55)+0.014 -> 0.014 | J39: =SUMIF(Einzelwertung5!$A$3:$A$55,$B39,Einzelwertung5!$J$3:$J$55)+0.013 -> 0.013 | K39: =SUMIF(Einzelwertung6!$A$3:$A$55,$B39,Einzelwertung6!$J$3:$J$55)+0.012 -> 0.012 | L39: =SUMIF(Einzelwertung7!$A$3:$A$55,$B39,Einzelwertung7!$J$3:$J$55)+0.011 -> 0.011 | M39: =SUMIF(Einzelwertung8!$A$3:$A$55,$B39,Einzelwertung8!$J$3:$J$55)+0.01 -> 0.01 | N39: =SUMIF(Einzelwertung9!$A$3:$A$55,$B39,Einzelwertung9!$J$3:$J$55)+0.009 -> 0.009 | O39: =SUMIF(Einzelwertung10!$A$3:$A$55,$B39,Einzelwertung10!$J$3:$J$55)+0.008 -> 0.008 | P39: =SUMIF(Einzelwertung11!$A$3:$A$55,$B39,Einzelwertung11!$J$3:$J$55)+0.007 -> 0.007 | Q39: =SUMIF(Einzelwertung12!$A$3:$A$55,$B39,Einzelwertung12!$J$3:$J$55)+0.006 -> 0.006 | R39: =SUMIF(Einzelwertung13!$A$3:$A$55,$B39,Einzelwertung13!$J$3:$J$55)+0.005 -> 0.005 | S39: =SUMIF(Einzelwertung14!$A$3:$A$55,$B39,Einzelwertung14!$J$3:$J$55)+0.004 -> 0.004 | T39: =SUMIF(Einzelwertung15!$A$3:$A$67,$B39,Einzelwertung15!$J$3:$J$67)+0.003 -> 0.003 | U39: =SUMIF(Einzelwertung16!$A$3:$A$55,$B39,Einzelwertung16!$J$3:$J$55)+0.002 -> 0.002 | V39: =SUMIF(Einzelwertung17!$A$3:$A$55,$B39,Einzelwertung17!$J$3:$J$55)+0.001 -> 0.001 | W39: =SUMIF(Einzelwertung18!$A$3:$A$55,$B39,Einzelwertung18!$J$3:$J$55)+0 -> 0 | X39: =INT(IF(COUNTIF(F39:W39,CONCATENATE(">",1/10))<=Hilfe!$A$1,SUM(F39:W39),SUMIF(F39:W39,CONCATENATE(">=",LARGE(F39:W39,Hilfe!$A$1)),F39:W39))) -> 0 | Y39: 0 | Z39: 0
B41: Teilnehmer pro Spieltag und im Mittel | F41: =COUNTIF(F3:F39,">0.1") -> 18 | G41: 18 | H41: 13 | I41: 18 | J41: 18 | K41: 11 | L41: 13 | M41: 13 | N41: 11 | O41: 11 | P41: 14 | Q41: 7 | R41: 14 | S41: 14 | T41: 11 | U41: 17 | V41: 0 | W41: 0 | X41: =IF(SUM(F41:W41)>0,SUM(F41:W41)/COUNTIF(F41:W41,">0"),0) -> 13.8125 | Y41: =SUM(Y3:Y39) -> 221 | Z41: =SUM(Z3:Z39) -> 1045

Sheet Bahnenstatistik
A1: 7. Sommer-Cup - Freizeittreff Herbede
A2: Bahnenstatistik
B4: 1 | C4: 2 | D4: 3 | E4: 4 | F4: 5 | G4: 6 | H4: 7 | I4: Schnitt | J4: As-Quote
A5: Pyramiden | B5: =COUNTIF(Bahnenergebnisse!$K$2:$K$250,B$4) -> 145 | C5: =COUNTIF(Bahnenergebnisse!$K$2:$K$250,C$4) -> 56 | D5: =COUNTIF(Bahnenergebnisse!$K$2:$K$250,D$4) -> 18 | E5: =COUNTIF(Bahnenergebnisse!$K$2:$K$250,E$4) -> 1 | F5: =COUNTIF(Bahnenergebnisse!$K$2:$K$250,F$4) -> 1 | G5: =COUNTIF(Bahnenergebnisse!$K$2:$K$250,G$4) -> 0 | H5: =COUNTIF(Bahnenergebnisse!$K$2:$K$250,H$4) -> 0 | I5: =SUMPRODUCT(B5:H5,B$4:H$4)/SUM(B5:H5) -> 1.447963801 | J5: =B5/SUM(B5:H5) -> 0.6561085973
A6: Rohrhügel | B6: =COUNTIF(Bahnenergebnisse!$L$2:$L$250,B$4) -> 91 | C6: =COUNTIF(Bahnenergebnisse!$L$2:$L$250,C$4) -> 64 | D6: =COUNTIF(Bahnenergebnisse!$L$2:$L$250,D$4) -> 23 | E6: =COUNTIF(Bahnenergebnisse!$L$2:$L$250,E$4) -> 17 | F6: =COUNTIF(Bahnenergebnisse!$L$2:$L$250,F$4) -> 11 | G6: =COUNTIF(Bahnenergebnisse!$L$2:$L$250,G$4) -> 8 | H6: =COUNTIF(Bahnenergebnisse!$L$2:$L$250,H$4) -> 7 | I6: =SUMPRODUCT(B6:H6,B$4:H$4)/SUM(B6:H6) -> 2.298642534 | J6: =B6/SUM(B6:H6) -> 0.4117647059
A7: Winkel | B7: =COUNTIF(Bahnenergebnisse!$M$2:$M$250,B$4) -> 130 | C7: =COUNTIF(Bahnenergebnisse!$M$2:$M$250,C$4) -> 89 | D7: =COUNTIF(Bahnenergebnisse!$M$2:$M$250,D$4) -> 2 | E7: =COUNTIF(Bahnenergebnisse!$M$2:$M$250,E$4) -> 0 | F7: =COUNTIF(Bahnenergebnisse!$M$2:$M$250,F$4) -> 0 | G7: =COUNTIF(Bahnenergebnisse!$M$2:$M$250,G$4) -> 0 | H7: =COUNTIF(Bahnenergebnisse!$M$2:$M$250,H$4) -> 0 | I7: 1.42081448 | J7: 0.5882352941
A8: Doppelwelle | B8: =COUNTIF(Bahnenergebnisse!$N$2:$N$250,B$4) -> 79 | C8: =COUNTIF(Bahnenergebnisse!$N$2:$N$250,C$4) -> 140 | D8: =COUNTIF(Bahnenergebnisse!$N$2:$N$250,D$4) -> 2 | E8: =COUNTIF(Bahnenergebnisse!$N$2:$N$250,E$4) -> 0 | F8: =COUNTIF(Bahnenergebnisse!$N$2:$N$250,F$4) -> 0 | G8: =COUNTIF(Bahnenergebnisse!$N$2:$N$250,G$4) -> 0 | H8: =COUNTIF(Bahnenergebnisse!$N$2:$N$250,H$4) -> 0 | I8: 1.65158371 | J8: 0.3574660633
A9: Schleife | B9: =COUNTIF(Bahnenergebnisse!$O$2:$O$250,B$4) -> 147 | C9: =COUNTIF(Bahnenergebnisse!$O$2:$O$250,C$4) -> 59 | D9: =COUNTIF(Bahnenergebnisse!$O$2:$O$250,D$4) -> 9 | E9: =COUNTIF(Bahnenergebnisse!$O$2:$O$250,E$4) -> 3 | F9: =COUNTIF(Bahnenergebnisse!$O$2:$O$250,F$4) -> 1 | G9: =COUNTIF(Bahnenergebnisse!$O$2:$O$250,G$4) -> 2 | H9: =COUNTIF(Bahnenergebnisse!$O$2:$O$250,H$4) -> 0 | I9: 1.452488688 | J9: 0.665158371
A10: Labyrinth | B10: =COUNTIF(Bahnenergebnisse!$P$2:$P$250,B$4) -> 163 | C10: =COUNTIF(Bahnenergebnisse!$P$2:$P$250,C$4) -> 41 | D10: =COUNTIF(Bahnenergebnisse!$P$2:$P$250,D$4) -> 9 | E10: =COUNTIF(Bahnenergebnisse!$P$2:$P$250,E$4) -> 6 | F10: =COUNTIF(Bahnenergebnisse!$P$2:$P$250,F$4) -> 2 | G10: =COUNTIF(Bahnenergebnisse!$P$2:$P$250,G$4) -> 0 | H10: =COUNTIF(Bahnenergebnisse!$P$2:$P$250,H$4) -> 0 | I10: 1.384615385 | J10: 0.7375565611
A11: Mittelhügel | B11: =COUNTIF(Bahnenergebnisse!$Q$2:$Q$250,B$4) -> 148 | C11: =COUNTIF(Bahnenergebnisse!$Q$2:$Q$250,C$4) -> 44 | D11: =COUNTIF(Bahnenergebnisse!$Q$2:$Q$250,D$4) -> 14 | E11: =COUNTIF(Bahnenergebnisse!$Q$2:$Q$250,E$4) -> 5 | F11: =COUNTIF(Bahnenergebnisse!$Q$2:$Q$250,F$4) -> 3 | G11: =COUNTIF(Bahnenergebnisse!$Q$2:$Q$250,G$4) -> 3 | H11: =COUNTIF(Bahnenergebnisse!$Q$2:$Q$250,H$4) -> 4 | I11: 1.624434389 | J11: 0.6696832579
A12: Netz | B12: =COUNTIF(Bahnenergebnisse!$R$2:$R$250,B$4) -> 147 | C12: =COUNTIF(Bahnenergebnisse!$R$2:$R$250,C$4) -> 46 | D12: =COUNTIF(Bahnenergebnisse!$R$2:$R$250,D$4) -> 12 | E12: =COUNTIF(Bahnenergebnisse!$R$2:$R$250,E$4) -> 6 | F12: =COUNTIF(Bahnenergebnisse!$R$2:$R$250,F$4) -> 5 | G12: =COUNTIF(Bahnenergebnisse!$R$2:$R$250,G$4) -> 2 | H12: =COUNTIF(Bahnenergebnisse!$R$2:$R$250,H$4) -> 3 | I12: 1.615384615 | J12: 0.665158371
A13: Brücke | B13: =COUNTIF(Bahnenergebnisse!$S$2:$S$250,B$4) -> 77 | C13: =COUNTIF(Bahnenergebnisse!$S$2:$S$250,C$4) -> 142 | D13: =COUNTIF(Bahnenergebnisse!$S$2:$S$250,D$4) -> 2 | E13: =COUNTIF(Bahnenergebnisse!$S$2:$S$250,E$4) -> 0 | F13: =COUNTIF(Bahnenergebnisse!$S$2:$S$250,F$4) -> 0 | G13: =COUNTIF(Bahnenergebnisse!$S$2:$S$250,G$4) -> 0 | H13: =COUNTIF(Bahnenergebnisse!$S$2:$S$250,H$4) -> 0 | I13: 1.660633484 | J13: 0.3484162896
A14: Radkappen | B14: =COUNTIF(Bahnenergebnisse!$T$2:$T$250,B$4) -> 95 | C14: =COUNTIF(Bahnenergebnisse!$T$2:$T$250,C$4) -> 120 | D14: =COUNTIF(Bahnenergebnisse!$T$2:$T$250,D$4) -> 6 | E14: =COUNTIF(Bahnenergebnisse!$T$2:$T$250,E$4) -> 0 | F14: =COUNTIF(Bahnenergebnisse!$T$2:$T$250,F$4) -> 0 | G14: =COUNTIF(Bahnenergebnisse!$T$2:$T$250,G$4) -> 0 | H14: =COUNTIF(Bahnenergebnisse!$T$2:$T$250,H$4) -> 0 | I14: 1.597285068 | J14: 0.4298642534
A15: Vulkan | B15: =COUNTIF(Bahnenergebnisse!$U$2:$U$250,B$4) -> 175 | C15: =COUNTIF(Bahnenergebnisse!$U$2:$U$250,C$4) -> 37 | D15: =COUNTIF(Bahnenergebnisse!$U$2:$U$250,D$4) -> 7 | E15: =COUNTIF(Bahnenergebnisse!$U$2:$U$250,E$4) -> 2 | F15: =COUNTIF(Bahnenergebnisse!$U$2:$U$250,F$4) -> 0 | G15: =COUNTIF(Bahnenergebnisse!$U$2:$U$250,G$4) -> 0 | H15: =COUNTIF(Bahnenergebnisse!$U$2:$U$250,H$4) -> 0 | I15: 1.257918552 | J15: 0.7918552036
A16: Niere | B16: =COUNTIF(Bahnenergebnisse!$V$2:$V$250,B$4) -> 128 | C16: =COUNTIF(Bahnenergebnisse!$V$2:$V$250,C$4) -> 60 | D16: =COUNTIF(Bahnenergebnisse!$V$2:$V$250,D$4) -> 22 | E16: =COUNTIF(Bahnenergebnisse!$V$2:$V$250,E$4) -> 5 | F16: =COUNTIF(Bahnenergebnisse!$V$2:$V$250,F$4) -> 3 | G16: =COUNTIF(Bahnenergebnisse!$V$2:$V$250,G$4) -> 3 | H16: =COUNTIF(Bahnenergebnisse!$V$2:$V$250,H$4) -> 0 | I16: 1.660633484 | J16: 0.5791855204
A17: Fenster | B17: =COUNTIF(Bahnenergebnisse!$W$2:$W$250,B$4) -> 74 | C17: =COUNTIF(Bahnenergebnisse!$W$2:$W$250,C$4) -> 87 | D17: =COUNTIF(Bahnenergebnisse!$W$2:$W$250,D$4) -> 36 | E17: =COUNTIF(Bahnenergebnisse!$W$2:$W$250,E$4) -> 15 | F17: =COUNTIF(Bahnenergebnisse!$W$2:$W$250,F$4) -> 8 | G17: =COUNTIF(Bahnenergebnisse!$W$2:$W$250,G$4) -> 1 | H17: =COUNTIF(Bahnenergebnisse!$W$2:$W$250,H$4) -> 0 | I17: 2.090497738 | J17: 0.334841629
A18: Banane | B18: =COUNTIF(Bahnenergebnisse!$X$2:$X$250,B$4) -> 134 | C18: =COUNTIF(Bahnenergebnisse!$X$2:$X$250,C$4) -> 43 | D18: =COUNTIF(Bahnenergebnisse!$X$2:$X$250,D$4) -> 28 | E18: =COUNTIF(Bahnenergebnisse!$X$2:$X$250,E$4) -> 7 | F18: =COUNTIF(Bahnenergebnisse!$X$2:$X$250,F$4) -> 4 | G18: =COUNTIF(Bahnenergebnisse!$X$2:$X$250,G$4) -> 1 | H18: =COUNTIF(Bahnenergebnisse!$X$2:$X$250,H$4) -> 4 | I18: 1.746606335 | J18: 0.6063348416
A19: Salto | B19: =COUNTIF(Bahnenergebnisse!$Y$2:$Y$250,B$4) -> 9 | C19: =COUNTIF(Bahnenergebnisse!$Y$2:$Y$250,C$4) -> 182 | D19: =COUNTIF(Bahnenergebnisse!$Y$2:$Y$250,D$4) -> 21 | E19: =COUNTIF(Bahnenergebnisse!$Y$2:$Y$250,E$4) -> 5 | F19: =COUNTIF(Bahnenergebnisse!$Y$2:$Y$250,F$4) -> 3 | G19: =COUNTIF(Bahnenergebnisse!$Y$2:$Y$250,G$4) -> 1 | H19: =COUNTIF(Bahnenergebnisse!$Y$2:$Y$250,H$4) -> 0 | I19: 2.158371041 | J19: 0.0407239819
A20: Töter | B20: =COUNTIF(Bahnenergebnisse!$Z$2:$Z$250,B$4) -> 82 | C20: =COUNTIF(Bahnenergebnisse!$Z$2:$Z$250,C$4) -> 88 | D20: =COUNTIF(Bahnenergebnisse!$Z$2:$Z$250,D$4) -> 25 | E20: =COUNTIF(Bahnenergebnisse!$Z$2:$Z$250,E$4) -> 9 | F20: =COUNTIF(Bahnenergebnisse!$Z$2:$Z$250,F$4) -> 7 | G20: =COUNTIF(Bahnenergebnisse!$Z$2:$Z$250,G$4) -> 2 | H20: =COUNTIF(Bahnenergebnisse!$Z$2:$Z$250,H$4) -> 8 | I20: 2.135746606 | J20: 0.371040724
A21: Passagen | B21: =COUNTIF(Bahnenergebnisse!$AA$2:$AA$250,B$4) -> 92 | C21: =COUNTIF(Bahnenergebnisse!$AA$2:$AA$250,C$4) -> 103 | D21: =COUNTIF(Bahnenergebnisse!$AA$2:$AA$250,D$4) -> 19 | E21: =COUNTIF(Bahnenergebnisse!$AA$2:$AA$250,E$4) -> 6 | F21: =COUNTIF(Bahnenergebnisse!$AA$2:$AA$250,F$4) -> 0 | G21: =COUNTIF(Bahnenergebnisse!$AA$2:$AA$250,G$4) -> 0 | H21: =COUNTIF(Bahnenergebnisse!$AA$2:$AA$250,H$4) -> 1 | I21: 1.746606335 | J21: 0.4162895928
A22: Blitz | B22: =COUNTIF(Bahnenergebnisse!$AB$2:$AB$250,B$4) -> 68 | C22: =COUNTIF(Bahnenergebnisse!$AB$2:$AB$250,C$4) -> 100 | D22: =COUNTIF(Bahnenergebnisse!$AB$2:$AB$250,D$4) -> 41 | E22: =COUNTIF(Bahnenergebnisse!$AB$2:$AB$250,E$4) -> 6 | F22: =COUNTIF(Bahnenergebnisse!$AB$2:$AB$250,F$4) -> 4 | G22: =COUNTIF(Bahnenergebnisse!$AB$2:$AB$250,G$4) -> 0 | H22: =COUNTIF(Bahnenergebnisse!$AB$2:$AB$250,H$4) -> 2 | I22: 2.031674208 | J22: 0.3076923077
B24: 1 | C24: 2 | D24: 3 | E24: 4 | F24: 5 | G24: 6 | H24: 7 | I24: Schnitt | J24: As-Quote
A25: Bahn 1 | B25: =COUNTIF(Bahnenergebnisse!$AD$2:$AD$250,B$24) -> 40 | C25: =COUNTIF(Bahnenergebnisse!$AD$2:$AD$250,C$24) -> 152 | D25: =COUNTIF(Bahnenergebnisse!$AD$2:$AD$250,D$24) -> 10 | E25: =COUNTIF(Bahnenergebnisse!$AD$2:$AD$250,E$24) -> 1 | F25: =COUNTIF(Bahnenergebnisse!$AD$2:$AD$250,F$24) -> 0 | G25: =COUNTIF(Bahnenergebnisse!$AD$2:$AD$250,G$24) -> 0 | H25: =COUNTIF(Bahnenergebnisse!$AD$2:$AD$250,H$24) -> 0 | I25: =SUMPRODUCT(B25:H25,B$24:H$24)/SUM(B25:H25) -> 1.862068966 | J25: =B25/SUM(B25:H25) -> 0.197044335
A26: Bahn 2 | B26: =COUNTIF(Bahnenergebnisse!$AE$2:$AE$250,B$24) -> 36 | C26: =COUNTIF(Bahnenergebnisse!$AE$2:$AE$250,C$24) -> 124 | D26: =COUNTIF(Bahnenergebnisse!$AE$2:$AE$250,D$24) -> 37 | E26: =COUNTIF(Bahnenergebnisse!$AE$2:$AE$250,E$24) -> 5 | F26: =COUNTIF(Bahnenergebnisse!$AE$2:$AE$250,F$24) -> 1 | G26: =COUNTIF(Bahnenergebnisse!$AE$2:$AE$250,G$24) -> 0 | H26: =COUNTIF(Bahnenergebnisse!$AE$2:$AE$250,H$24) -> 0 | I26: =SUMPRODUCT(B26:H26,B$24:H$24)/SUM(B26:H26) -> 2.068965517 | J26: 0.1773399015
A27: Bahn 3 | B27: =COUNTIF(Bahnenergebnisse!$AF$2:$AF$250,B$24) -> 43 | C27: =COUNTIF(Bahnenergebnisse!$AF$2:$AF$250,C$24) -> 129 | D27: =COUNTIF(Bahnenergebnisse!$AF$2:$AF$250,D$24) -> 26 | E27: =COUNTIF(Bahnenergebnisse!$AF$2:$AF$250,E$24) -> 4 | F27: =COUNTIF(Bahnenergebnisse!$AF$2:$AF$250,F$24) -> 1 | G27: =COUNTIF(Bahnenergebnisse!$AF$2:$AF$250,G$24) -> 0 | H27: =COUNTIF(Bahnenergebnisse!$AF$2:$AF$250,H$24) -> 0 | I27: 1.97044335 | J27: 0.2118226601
A28: Bahn 4 | B28: =COUNTIF(Bahnenergebnisse!$AG$2:$AG$250,B$24) -> 21 | C28: =COUNTIF(Bahnenergebnisse!$AG$2:$AG$250,C$24) -> 85 | D28: =COUNTIF(Bahnenergebnisse!$AG$2:$AG$250,D$24) -> 50 | E28: =COUNTIF(Bahnenergebnisse!$AG$2:$AG$250,E$24) -> 19 | F28: =COUNTIF(Bahnenergebnisse!$AG$2:$AG$250,F$24) -> 10 | G28: =COUNTIF(Bahnenergebnisse!$AG$2:$AG$250,G$24) -> 9 | H28: =COUNTIF(Bahnenergebnisse!$AG$2:$AG$250,H$24) -> 9 | I28: 2.876847291 | J28: 0.1034482759
A29: Bahn 5 | B29: =COUNTIF(Bahnenergebnisse!$AH$2:$AH$250,B$24) -> 73 | C29: =COUNTIF(Bahnenergebnisse!$AH$2:$AH$250,C$24) -> 107 | D29: =COUNTIF(Bahnenergebnisse!$AH$2:$AH$250,D$24) -> 16 | E29: =COUNTIF(Bahnenergebnisse!$AH$2:$AH$250,E$24) -> 3 | F29: =COUNTIF(Bahnenergebnisse!$AH$2:$AH$250,F$24) -> 3 | G29: =COUNTIF(Bahnenergebnisse!$AH$2:$AH$250,G$24) -> 0 | H29: =COUNTIF(Bahnenergebnisse!$AH$2:$AH$250,H$24) -> 1 | I29: 1.81773399 | J29: 0.3596059113
A30: Bahn 6 | B30: =COUNTIF(Bahnenergebnisse!$AI$2:$AI$250,B$24) -> 16 | C30: =COUNTIF(Bahnenergebnisse!$AI$2:$AI$250,C$24) -> 154 | D30: =COUNTIF(Bahnenergebnisse!$AI$2:$AI$250,D$24) -> 27 | E30: =COUNTIF(Bahnenergebnisse!$AI$2:$AI$250,E$24) -> 3 | F30: =COUNTIF(Bahnenergebnisse!$AI$2:$AI$250,F$24) -> 1 | G30: =COUNTIF(Bahnenergebnisse!$AI$2:$AI$250,G$24) -> 2 | H30: =COUNTIF(Bahnenergebnisse!$AI$2:$AI$250,H$24) -> 0 | I30: 2.137931034 | J30: 0.07881773399
A31: Bahn 7 | B31: =COUNTIF(Bahnenergebnisse!$AJ$2:$AJ$250,B$24) -> 106 | C31: =COUNTIF(Bahnenergebnisse!$AJ$2:$AJ$250,C$24) -> 63 | D31: =COUNTIF(Bahnenergebnisse!$AJ$2:$AJ$250,D$24) -> 25 | E31: =COUNTIF(Bahnenergebnisse!$AJ$2:$AJ$250,E$24) -> 7 | F31: =COUNTIF(Bahnenergebnisse!$AJ$2:$AJ$250,F$24) -> 1 | G31: =COUNTIF(Bahnenergebnisse!$AJ$2:$AJ$250,G$24) -> 0 | H31: =COUNTIF(Bahnenergebnisse!$AJ$2:$AJ$250,H$24) -> 1 | I31: 1.709359606 | J31: 0.5221674877
A32: Bahn 8 | B32: =COUNTIF(Bahnenergebnisse!$AK$2:$AK$250,B$24) -> 36 | C32: =COUNTIF(Bahnenergebnisse!$AK$2:$AK$250,C$24) -> 135 | D32: =COUNTIF(Bahnenergebnisse!$AK$2:$AK$250,D$24) -> 25 | E32: =COUNTIF(Bahnenergebnisse!$AK$2:$AK$250,E$24) -> 7 | F32: =COUNTIF(Bahnenergebnisse!$AK$2:$AK$250,F$24) -> 0 | G32: =COUNTIF(Bahnenergebnisse!$AK$2:$AK$250,G$24) -> 0 | H32: =COUNTIF(Bahnenergebnisse!$AK$2:$AK$250,H$24) -> 0 | I32: 2.014778325 | J32: 0.1773399015
A33: Bahn 9 | B33: =COUNTIF(Bahnenergebnisse!$AL$2:$AL$250,B$24) -> 22 | C33: =COUNTIF(Bahnenergebnisse!$AL$2:$AL$250,C$24) -> 116 | D33: =COUNTIF(Bahnenergebnisse!$AL$2:$AL$250,D$24) -> 40 | E33: =COUNTIF(Bahnenergebnisse!$AL$2:$AL$250,E$24) -> 17 | F33: =COUNTIF(Bahnenergebnisse!$AL$2:$AL$250,F$24) -> 3 | G33: =COUNTIF(Bahnenergebnisse!$AL$2:$AL$250,G$24) -> 3 | H33: =COUNTIF(Bahnenergebnisse!$AL$2:$AL$250,H$24) -> 2 | I33: 2.408866995 | J33: 0.1083743842
A34: Bahn 10 | B34: =COUNTIF(Bahnenergebnisse!$AM$2:$AM$250,B$24) -> 33 | C34: =COUNTIF(Bahnenergebnisse!$AM$2:$AM$250,C$24) -> 156 | D34: =COUNTIF(Bahnenergebnisse!$AM$2:$AM$250,D$24) -> 13 | E34: =COUNTIF(Bahnenergebnisse!$AM$2:$AM$250,E$24) -> 1 | F34: =COUNTIF(Bahnenergebnisse!$AM$2:$AM$250,F$24) -> 0 | G34: =COUNTIF(Bahnenergebnisse!$AM$2:$AM$250,G$24) -> 0 | H34: =COUNTIF(Bahnenergebnisse!$AM$2:$AM$250,H$24) -> 0 | I34: 1.911330049 | J34: 0.1625615764
A35: Bahn 11 | B35: =COUNTIF(Bahnenergebnisse!$AN$2:$AN$250,B$24) -> 179 | C35: =COUNTIF(Bahnenergebnisse!$AN$2:$AN$250,C$24) -> 22 | D35: =COUNTIF(Bahnenergebnisse!$AN$2:$AN$250,D$24) -> 2 | E35: =COUNTIF(Bahnenergebnisse!$AN$2:$AN$250,E$24) -> 0 | F35: =COUNTIF(Bahnenergebnisse!$AN$2:$AN$250,F$24) -> 0 | G35: =COUNTIF(Bahnenergebnisse!$AN$2:$AN$250,G$24) -> 0 | H35: =COUNTIF(Bahnenergebnisse!$AN$2:$AN$250,H$24) -> 0 | I35: 1.128078818 | J35: 0.881773399
A36: Bahn 12 | B36: =COUNTIF(Bahnenergebnisse!$AO$2:$AO$250,B$24) -> 86 | C36: =COUNTIF(Bahnenergebnisse!$AO$2:$AO$250,C$24) -> 92 | D36: =COUNTIF(Bahnenergebnisse!$AO$2:$AO$250,D$24) -> 24 | E36: =COUNTIF(Bahnenergebnisse!$AO$2:$AO$250,E$24) -> 1 | F36: =COUNTIF(Bahnenergebnisse!$AO$2:$AO$250,F$24) -> 0 | G36: =COUNTIF(Bahnenergebnisse!$AO$2:$AO$250,G$24) -> 0 | H36: =COUNTIF(Bahnenergebnisse!$AO$2:$AO$250,H$24) -> 0 | I36: 1.704433498 | J36: 0.4236453202
A37: Bahn 13 | B37: =COUNTIF(Bahnenergebnisse!$AP$2:$AP$250,B$24) -> 28 | C37: =COUNTIF(Bahnenergebnisse!$AP$2:$AP$250,C$24) -> 161 | D37: =COUNTIF(Bahnenergebnisse!$AP$2:$AP$250,D$24) -> 13 | E37: =COUNTIF(Bahnenergebnisse!$AP$2:$AP$250,E$24) -> 1 | F37: =COUNTIF(Bahnenergebnisse!$AP$2:$AP$250,F$24) -> 0 | G37: =COUNTIF(Bahnenergebnisse!$AP$2:$AP$250,G$24) -> 0 | H37: =COUNTIF(Bahnenergebnisse!$AP$2:$AP$250,H$24) -> 0 | I37: 1.935960591 | J37: 0.1379310345
A38: Bahn 14 | B38: =COUNTIF(Bahnenergebnisse!$AQ$2:$AQ$250,B$24) -> 40 | C38: =COUNTIF(Bahnenergebnisse!$AQ$2:$AQ$250,C$24) -> 145 | D38: =COUNTIF(Bahnenergebnisse!$AQ$2:$AQ$250,D$24) -> 12 | E38: =COUNTIF(Bahnenergebnisse!$AQ$2:$AQ$250,E$24) -> 4 | F38: =COUNTIF(Bahnenergebnisse!$AQ$2:$AQ$250,F$24) -> 1 | G38: =COUNTIF(Bahnenergebnisse!$AQ$2:$AQ$250,G$24) -> 0 | H38: =COUNTIF(Bahnenergebnisse!$AQ$2:$AQ$250,H$24) -> 1 | I38: 1.9408867 | J38: 0.197044335
A39: Bahn 15 | B39: =COUNTIF(Bahnenergebnisse!$AR$2:$AR$250,B$24) -> 7 | C39: =COUNTIF(Bahnenergebnisse!$AR$2:$AR$250,C$24) -> 128 | D39: =COUNTIF(Bahnenergebnisse!$AR$2:$AR$250,D$24) -> 43 | E39: =COUNTIF(Bahnenergebnisse!$AR$2:$AR$250,E$24) -> 13 | F39: =COUNTIF(Bahnenergebnisse!$AR$2:$AR$250,F$24) -> 5 | G39: =COUNTIF(Bahnenergebnisse!$AR$2:$AR$250,G$24) -> 6 | H39: =COUNTIF(Bahnenergebnisse!$AR$2:$AR$250,H$24) -> 1 | I39: 2.522167488 | J39: 0.03448275862
A40: Bahn 16 | B40: =COUNTIF(Bahnenergebnisse!$AS$2:$AS$250,B$24) -> 11 | C40: =COUNTIF(Bahnenergebnisse!$AS$2:$AS$250,C$24) -> 142 | D40: =COUNTIF(Bahnenergebnisse!$AS$2:$AS$250,D$24) -> 33 | E40: =COUNTIF(Bahnenergebnisse!$AS$2:$AS$250,E$24) -> 9 | F40: =COUNTIF(Bahnenergebnisse!$AS$2:$AS$250,F$24) -> 5 | G40: =COUNTIF(Bahnenergebnisse!$AS$2:$AS$250,G$24) -> 1 | H40: =COUNTIF(Bahnenergebnisse!$AS$2:$AS$250,H$24) -> 2 | I40: 2.339901478 | J40: 0.05418719212
A41: Bahn 17 | B41: =COUNTIF(Bahnenergebnisse!$AT$2:$AT$250,B$24) -> 29 | C41: =COUNTIF(Bahnenergebnisse!$AT$2:$AT$250,C$24) -> 139 | D41: =COUNTIF(Bahnenergebnisse!$AT$2:$AT$250,D$24) -> 26 | E41: =COUNTIF(Bahnenergebnisse!$AT$2:$AT$250,E$24) -> 8 | F41: =COUNTIF(Bahnenergebnisse!$AT$2:$AT$250,F$24) -> 1 | G41: =COUNTIF(Bahnenergebnisse!$AT$2:$AT$250,G$24) -> 0 | H41: =COUNTIF(Bahnenergebnisse!$AT$2:$AT$250,H$24) -> 0 | I41: 2.078817734 | J41: 0.1428571429
A42: Bahn 18 | B42: =COUNTIF(Bahnenergebnisse!$AU$2:$AU$250,B$24) -> 122 | C42: =COUNTIF(Bahnenergebnisse!$AU$2:$AU$250,C$24) -> 49 | D42: =COUNTIF(Bahnenergebnisse!$AU$2:$AU$250,D$24) -> 15 | E42: =COUNTIF(Bahnenergebnisse!$AU$2:$AU$250,E$24) -> 11 | F42: =COUNTIF(Bahnenergebnisse!$AU$2:$AU$250,F$24) -> 2 | G42: =COUNTIF(Bahnenergebnisse!$AU$2:$AU$250,G$24) -> 2 | H42: =COUNTIF(Bahnenergebnisse!$AU$2:$AU$250,H$24) -> 2 | I42: 1.699507389 | J42: 0.6009852217

Sheet Verlosungen
A1: Sommer-Cup 2022 im Freizeittreff Herbede - verloste Preise
A2: =CONCATENATE(,COUNTIF(D4:D46,1)," Ballpreise",", ",COUNTIF(D4:D46,2)," andere Preise") -> 13 Ballpreise, 30 andere Preise
A3: Teilnehmer | B3: Gewinn | C3: Spieltag | D3: Ball?
A4: Urban, Volker | B4: 1 Flasche Merlot | C4: 1 | D4: 2
A5: Rade, Marcus | B5: 1 Ballsauger mit Ball | C5: 1 | D5: 1
A6: Kortmann, Sabine | B6: 1 Getränke-Set "Malibu" | C6: 1 | D6: 2
A7: Börgmann, Brigitte | B7: 1 Mini-Garten | C7: 2 | D7: 2
A8: Brunnenkant, Frank | B8: 1 Wetterstation | C8: 2 | D8: 2
A9: Kunz, Martin | B9: 1 Schinken | C9: 2 | D9: 2
A10: Buchholz, Ansgar | B10: 1 Verzehrgutschein | C10: 3 | D10: 2
A11: Rade, Marcus | B11: 1 Ballsauger mit Ball | C11: 3 | D11: 1
A12: Urban, Volker | B12: 1 Flasche Dornfelder Sekt | C12: 3 | D12: 2
A13: Urban, Volker | B13: 1 Flasche Wein | C13: 4 | D13: 2
A14: Urban, Dominic | B14: 1 Dose Weingummi | C14: 4 | D14: 2
A15: Kortmann, Sabine | B15: 1 Solar-Gartenleuchte | C15: 4 | D15: 2
A16: Paffrath, Ben | B16: 1 Großpackung Toffifee | C16: 5 | D16: 2
A17: Rabe, Jonas | B17: 1 Ball Cobi 2018 | C17: 5 | D17: 1
A18: Schmidtbauer, Günter | B18: 1 Flasche Merlot | C18: 5 | D18: 2
A19: Kunz, Martin | B19: 1 Flasche Merlot | C19: 6 | D19: 2
A20: Buchholz, Ansgar | B20: 1 Minigolfball | C20: 6 | D20: 2
A21: Kortmann, Sabine | B21: 1 Minigolfball DJM 2014 | C21: 7 | D21: 1
A22: Puschner, Michael | B22: 2 Peanuts-Tassen | C22: 7 | D22: 2
A23: Urban, Volker | B23: 1 Sitzkissen | C23: 7 | D23: 2
A24: Kunz, Martin | B24: 1 Dose Haribo Color-Rado | C24: 8 | D24: 2
A25: Gattner, Karsten | B25: 1 Minigolfball 3D 846 | C25: 8 | D25: 1
A26: Schmidtbauer, Günter | B26: 1 Verzehrgutschein | C26: 8 | D26: 2
A27: Rabe, Jonas | B27: 1 Minigolfball | C27: 9 | D27: 1
A28: Kortmann, Sabine | B28: 1 Dose Haribo Fresh&Fruity | C28: 9 | D28: 2
A29: Börgmann, Brigitte | B29: 1 Minigolfball Maier spec | C29: 10 | D29: 1
A30: Börgmann, Ulrich | B30: 1 Brita Wasserkocher | C30: 10 | D30: 2
A31: Dreischer, Burkhard | B31: 1 Minigolfball | C31: 11 | D31: 1
A32: Kunz, Martin | B32: 1 Flasche Rotwein | C32: 11 | D32: 2
A33: Puschner, Michael | B33: 1 Cutterset | C33: 11 | D33: 2
A34: Schmidtbauer, Günter | B34: 1 Minigolfball | C34: 12 | D34: 1
A35: Börgmann, Ulrich | B35: 1 Minigolfball migo Grenchen 92 | C35: 13 | D35: 1
A36: Kunz, Martin | B36: 1 Verzehrgutschein | C36: 13 | D36: 2
A37: Dreischer, Burkhard | B37: 1 Partymix Cocktails | C37: 13 | D37: 2
A38: Kunz, Martin | B38: 1 Minigolfball A22 | C38: 14 | D38: 1
A39: Börgmann, Ulrich | B39: 1 Flasche Merlot | C39: 14 | D39: 2
A40: Urban, Volker | B40: 1 Dose Haribo Color-Rado | C40: 14 | D40: 2
A41: Schmidtbauer, Günter | B41: 1 Minigolfball MGC RW Wanne-Eickel 2001 | C41: 15 | D41: 1
A42: Urban, Volker | B42: 1 Flasche Vanillelikör | C42: 15 | D42: 2
A43: Brunnenkant, Frank | B43: 1 Verzehrgutschein | C43: 15 | D43: 2
A44: Kersch, Uwe | B44: 1 Minigolfball | C44: 16 | D44: 1
A45: Wilke, Andreas | B45: 1 Dose Haribo Color-Rado | C45: 16 | D45: 2
A46: Puschner, Michael | B46: 1 Flasche Vanillelikör | C46: 16 | D46: 2

Sheet Einzelwertung1
A1: =CONCATENATE("7. Sommer-Cup - Freizeittreff Herbede - ",TEXT(Gesamtstand!$F$2,"TT.MM.JJ")) -> 7. Sommer-Cup - Freizeittreff Herbede - 05.05.22
A2: Spieler | B2: Runde 1 | C2: Runde 2 | D2: Gesamt | E2: bessere? | F2: Pl. R1 | G2: Pl. R2 | H2: Pl. Ges. | I2: gewertet | J2: Punkte
A3: Buchholz, Ansgar | B3: 24 | C3: 30 | D3: =IF(B3>0,C3+B3,"") -> 54 | E3: TRUE | F3: =IF(B3>0,COUNTIF(B$3:B$55,"<"&B3)+1,"") -> 2 | G3: =IF(C3>0,COUNTIF(C$3:C$55,"<"&C3)+1,"") -> 2 | H3: =IF(AND(B3>0,C3>0),COUNTIF(D$3:D$55,"<"&D3)+1,"") -> 1 | I3: =IF(B3>0,IF(E3,MIN(F3:H3),SUM(F3:H3)-MAX(F3:H3)-MIN(F3:H3)),"") -> 1 | J3: =IF(B3>0,VLOOKUP(I3,Punkteschema!$A$2:$B$101,2,FALSE),"") -> 25
A4: Rabe, Jonas | B4: 23 | C4: 33 | D4: 56 | E4: TRUE | F4: 1 | G4: 6 | H4: 2 | I4: =IF(B4>0,IF(E4,MIN(F4:H4),SUM(F4:H4)-MAX(F4:H4)-MIN(F4:H4)),"") -> 1 | J4: =IF(B4>0,VLOOKUP(I4,Punkteschema!$A$2:$B$101,2,FALSE),"") -> 25
A5: Greiffendorf, Hellmut | B5: 32 | C5: 28 | D5: 60 | E5: TRUE | F5: 11 | G5: 1 | H5: 4 | I5: 1 | J5: =IF(B5>0,VLOOKUP(I5,Punkteschema!$A$2:$B$101,2,FALSE),"") -> 25
A6: Brunnenkant, Frank | B6: 27 | C6: 30 | D6: 57 | E6: TRUE | F6: 6 | G6: 2 | H6: 3 | I6: 2 | J6: =IF(B6>0,VLOOKUP(I6,Punkteschema!$A$2:$B$101,2,FALSE),"") -> 21
A7: Urban, Volker | B7: 30 | C7: 30 | D7: 60 | E7: TRUE | F7: 10 | G7: 2 | H7: 4 | I7: 2 | J7: =IF(B7>0,VLOOKUP(I7,Punkteschema!$A$2:$B$101,2,FALSE),"") -> 21
A8: Kortmann, Sabine | B8: 24 | C8: 42 | D8: 66 | E8: TRUE | F8: 2 | G8: 15 | H8: 10 | I8: 2 | J8: =IF(B8>0,VLOOKUP(I8,Punkteschema!$A$2:$B$101,2,FALSE),"") -> 21
A9: Rade, Marcus | B9: 27 | C9: 33 | D9: 60 | E9: TRUE | F9: 6 | G9: 6 | H9: 4 | I9: 4 | J9: =IF(B9>0,VLOOKUP(I9,Punkteschema!$A$2:$B$101,2,FALSE),"") -> 15
A10: Paffrath, Ben | B10: 28 | C10: 32 | D10: 60 | E10: TRUE | F10: 8 | G10: 5 | H10: 4 | I10: 4 | J10: =IF(B10>0,VLOOKUP(I10,Punkteschema!$A$2:$B$101,2,FALSE),"") -> 15
A11: Puschner, Michael | B11: 26 | C11: 36 | D11: 62 | E11: TRUE | F11: 4 | G11: 10 | H11: 8 | I11: 4 | J11: =IF(B11>0,VLOOKUP(I11,Punkteschema!$A$2:$B$101,2,FALSE),"") -> 15
A12: Lenk, Rolf | B12: 26 | C12: 36 | D12: 62 | E12: TRUE | F12: 4 | G12: 10 | H12: 8 | I12: 4 | J12: =IF(B12>0,VLOOKUP(I12,Punkteschema!$A$2:$B$101,2,FALSE),"") -> 15
A13: Kortmann, Uwe | B13: 36 | C13: 33 | D13: 69 | E13: TRUE | F13: 14 | G13: 6 | H13: 11 | I13: 6 | J13: =IF(B13>0,VLOOKUP(I13,Punkteschema!$A$2:$B$101,2,FALSE),"") -> 15
A14: Paffrath, Siegfried | B14: 29 | C14: 40 | D14: 69 | E14: TRUE | F14: 9 | G14: 13 | H14: 11 | I14: 9 | J14: =IF(B14>0,VLOOKUP(I14,Punkteschema!$A$2:$B$101,2,FALSE),"") -> 10
A15: Gattner, Karsten | B15: 39 | C15: 35 | D15: 74 | E15: TRUE | F15: 17 | G15: 9 | H15: 14 | I15: 9 | J15: =IF(B15>0,VLOOKUP(I15,Punkteschema!$A$2:$B$101,2,FALSE),"") -> 10
A16: Kunz, Martin | B16: 33 | C16: 40 | D16: 73 | E16: TRUE | F16: 12 | G16: 13 | H16: 13 | I16: 12 | J16: =IF(B16>0,VLOOKUP(I16,Punkteschema!$A$2:$B$101,2,FALSE),"") -> 5
A17: Börgmann, Ulrich | B17: 39 | C17: 37 | D17: 76 | E17: TRUE | F17: 17 | G17: 12 | H17: 15 | I17: 12 | J17: =IF(B17>0,VLOOKUP(I17,Punkteschema!$A$2:$B$101,2,FALSE),"") -> 5
A18: Schmidtbauer, Günter | B18: 35 | C18: 45 | D18: 80 | E18: TRUE | F18: 13 | G18: 18 | H18: 17 | I18: 13 | J18: =IF(B18>0,VLOOKUP(I18,Punkteschema!$A$2:$B$101,2,FALSE),"") -> 5
A19: Börgmann, Brigitte | B19: 36 | C19: 42 | D19: 78 | E19: TRUE | F19: 14 | G19: 15 | H19: 16 | I19: 14 | J19: =IF(B19>0,VLOOKUP(I19,Punkteschema!$A$2:$B$101,2,FALSE),"") -> 5
A20: Kersch, Uwe | B20: 38 | C20: 42 | D20: 80 | E20: TRUE | F20: 16 | G20: 15 | H20: 17 | I20: 15 | J20: =IF(B20>0,VLOOKUP(I20,Punkteschema!$A$2:$B$101,2,FALSE),"") -> 5
D21: =IF(B21>0,C21+B21,"") ->  | E21: TRUE | F21: =IF(B21>0,COUNTIF(B$3:B$55,"<"&B21)+1,"") ->  | H21: =IF(AND(B21>0,C21>0),COUNTIF(D$3:D$55,"<"&D21)+1,"") ->  | J21: =IF(B21>0,VLOOKUP(I21,Punkteschema!$A$2:$B$101,2,FALSE),"") -> 
E22: TRUE | J22: =IF(B22>0,VLOOKUP(I22,Punkteschema!$A$2:$B$101,2,FALSE),"") -> 
E23: TRUE | J23: =IF(B23>0,VLOOKUP(I23,Punkteschema!$A$2:$B$101,2,FALSE),"") -> 
E24: TRUE | J24: =IF(B24>0,VLOOKUP(I24,Punkteschema!$A$2:$B$101,2,FALSE),"") -> 
E25: TRUE | J25: =IF(B25>0,VLOOKUP(I25,Punkteschema!$A$2:$B$101,2,FALSE),"") -> 
E26: TRUE | J26: =IF(B26>0,VLOOKUP(I26,Punkteschema!$A$2:$B$101,2,FALSE),"") -> 
E27: TRUE | J27: =IF(B27>0,VLOOKUP(I27,Punkteschema!$A$2:$B$101,2,FALSE),"") -> 
E28: TRUE | J28: =IF(B28>0,VLOOKUP(I28,Punkteschema!$A$2:$B$101,2,FALSE),"") -> 
E29: TRUE | J29: =IF(B29>0,VLOOKUP(I29,Punkteschema!$A$2:$B$101,2,FALSE),"") -> 
E30: TRUE | J30: =IF(B30>0,VLOOKUP(I30,Punkteschema!$A$2:$B$101,2,FALSE),"") -> 
E31: TRUE | J31: =IF(B31>0,VLOOKUP(I31,Punkteschema!$A$2:$B$101,2,FALSE),"") -> 
E32: TRUE | J32: =IF(B32>0,VLOOKUP(I32,Punkteschema!$A$2:$B$101,2,FALSE),"") -> 
E33: TRUE | J33: =IF(B33>0,VLOOKUP(I33,Punkteschema!$A$2:$B$101,2,FALSE),"") -> 
E34: TRUE | J34: =IF(B34>0,VLOOKUP(I34,Punkteschema!$A$2:$B$101,2,FALSE),"") -> 
E35: TRUE | J35: =IF(B35>0,VLOOKUP(I35,Punkteschema!$A$2:$B$101,2,FALSE),"") -> 
E36: TRUE | J36: =IF(B36>0,VLOOKUP(I36,Punkteschema!$A$2:$B$101,2,FALSE),"") -> 
E37: TRUE | J37: =IF(B37>0,VLOOKUP(I37,Punkteschema!$A$2:$B$101,2,FALSE),"") -> 
E38: TRUE | J38: =IF(B38>0,VLOOKUP(I38,Punkteschema!$A$2:$B$101,2,FALSE),"") -> 
E39: TRUE | J39: =IF(B39>0,VLOOKUP(I39,Punkteschema!$A$2:$B$101,2,FALSE),"") -> 
E40: TRUE | J40: =IF(B40>0,VLOOKUP(I40,Punkteschema!$A$2:$B$101,2,FALSE),"") -> 
E41: TRUE | J41: =IF(B41>0,VLOOKUP(I41,Punkteschema!$A$2:$B$101,2,FALSE),"") -> 
E42: TRUE | J42: =IF(B42>0,VLOOKUP(I42,Punkteschema!$A$2:$B$101,2,FALSE),"") -> 
E43: TRUE | J43: =IF(B43>0,VLOOKUP(I43,Punkteschema!$A$2:$B$101,2,FALSE),"") -> 
E44: TRUE | J44: =IF(B44>0,VLOOKUP(I44,Punkteschema!$A$2:$B$101,2,FALSE),"") -> 
E45: TRUE | J45: =IF(B45>0,VLOOKUP(I45,Punkteschema!$A$2:$B$101,2,FALSE),"") -> 
E46: TRUE | J46: =IF(B46>0,VLOOKUP(I46,Punkteschema!$A$2:$B$101,2,FALSE),"") -> 
E47: TRUE | J47: =IF(B47>0,VLOOKUP(I47,Punkteschema!$A$2:$B$101,2,FALSE),"") -> 
E48: TRUE | J48: =IF(B48>0,VLOOKUP(I48,Punkteschema!$A$2:$B$101,2,FALSE),"") -> 
E49: TRUE | J49: =IF(B49>0,VLOOKUP(I49,Punkteschema!$A$2:$B$101,2,FALSE),"") -> 
E50: TRUE | J50: =IF(B50>0,VLOOKUP(I50,Punkteschema!$A$2:$B$101,2,FALSE),"") -> 
E51: TRUE | J51: =IF(B51>0,VLOOKUP(I51,Punkteschema!$A$2:$B$101,2,FALSE),"") -> 
E52: TRUE | J52: =IF(B52>0,VLOOKUP(I52,Punkteschema!$A$2:$B$101,2,FALSE),"") -> 
E53: TRUE | F53: =IF(B53>0,COUNTIF(B$3:B$55,"<"&B53)+1,"") ->  | H53: =IF(AND(B53>0,C53>0),COUNTIF(D$3:D$55,"<"&D53)+1,"") ->  | J53: =IF(B53>0,VLOOKUP(I53,Punkteschema!$A$2:$B$101,2,FALSE),"") -> 
E54: TRUE | H54: =IF(AND(B54>0,C54>0),COUNTIF(D$3:D$55,"<"&D54)+1,"") ->  | J54: =IF(B54>0,VLOOKUP(I54,Punkteschema!$A$2:$B$101,2,FALSE),"") -> 
E55: TRUE | H55: =IF(AND(B55>0,C55>0),COUNTIF(D$3:D$55,"<"&D55)+1,"") ->  | J55: =IF(B55>0,VLOOKUP(I55,Punkteschema!$A$2:$B$101,2,FALSE),"") -> 
A57: OS: Paffrath, Siegfried (HEV) | E57: Runde 1: | F57: E | G57: <- E/B
A58: S: Urban, Volker (ASW) | E58: Runde 2: | F58: B | G58: <- E/B
A59: S: Buchholz, Ansgar (ASW)
A61: Verloste Preise:
A62: Urban, Volker | B62: 1 Flasche Merlot
A63: Rade, Marcus | B63: 1 Ballsauger mit Ball
A64: Kortmann, Sabine | B64: 1 Getränke-Set "Malibu"

Sheet Einzelwertung2
A1: =CONCATENATE("7. Sommer-Cup - Freizeittreff Herbede - ",TEXT(Gesamtstand!$G$2,"TT.MM.JJ")) -> 7. Sommer-Cup - Freizeittreff Herbede - 12.05.22
A2: Spieler | B2: Runde 1 | C2: Runde 2 | D2: Gesamt | E2: bessere? | F2: Pl. R1 | G2: Pl. R2 | H2: Pl. Ges. | I2: gewertet | J2: Punkte
A3: Lenk, Rolf | B3: 23 | C3: 34 | D3: =IF(B3>0,C3+B3,"") -> 57 | E3: TRUE | F3: =IF(B3>0,COUNTIF(B$3:B$55,"<"&B3)+1,"") -> 1 | G3: =IF(C3>0,COUNTIF(C$3:C$55,"<"&C3)+1,"") -> 4 | H3: =IF(AND(B3>0,C3>0),COUNTIF(D$3:D$55,"<"&D3)+1,"") -> 2 | I3: =IF(B3>0,IF(E3,MIN(F3:H3),SUM(F3:H3)-MAX(F3:H3)-MIN(F3:H3)),"") -> 1 | J3: =IF(B3>0,VLOOKUP(I3,Punkteschema!$A$2:$B$101,2,FALSE),"") -> 25
A4: Puschner, Michael | B4: 33 | C4: 29 | D4: 62 | E4: TRUE | F4: 11 | G4: 1 | H4: 4 | I4: 1 | J4: =IF(B4>0,VLOOKUP(I4,Punkteschema!$A$2:$B$101,2,FALSE),"") -> 25
A5: Buchholz, Ansgar | B5: 25 | C5: 30 | D5: 55 | E5: FALSE | F5: 3 | G5: 2 | H5: 1 | I5: 2 | J5: =IF(B5>0,VLOOKUP(I5,Punkteschema!$A$2:$B$101,2,FALSE),"") -> 21
A6: Kunz, Martin | B6: 24 | C6: 41 | D6: 65 | E6: TRUE | F6: 2 | G6: 15 | H6: 6 | I6: 2 | J6: =IF(B6>0,VLOOKUP(I6,Punkteschema!$A$2:$B$101,2,FALSE),"") -> 21
A7: Urban, Dominic | B7: 27 | C7: 33 | D7: 60 | E7: TRUE | F7: 4 | G7: 3 | H7: 3 | I7: 3 | J7: =IF(B7>0,VLOOKUP(I7,Punkteschema!$A$2:$B$101,2,FALSE),"") -> 18
A8: Kersch, Uwe | B8: 28 | C8: 36 | D8: 64 | E8: TRUE | F8: 5 | G8: 7 | H8: 5 | I8: 5 | J8: =IF(B8>0,VLOOKUP(I8,Punkteschema!$A$2:$B$101,2,FALSE),"") -> 15
A9: Börgmann, Brigitte | B9: 35 | C9: 35 | D9: 70 | E9: TRUE | F9: 13 | G9: 5 | H9: 12 | I9: 5 | J9: =IF(B9>0,VLOOKUP(I9,Punkteschema!$A$2:$B$101,2,FALSE),"") -> 15
A10: Paffrath, Ben | B10: 29 | C10: 36 | D10: 65 | E10: TRUE | F10: 7 | G10: 7 | H10: 6 | I10: 6 | J10: =IF(B10>0,VLOOKUP(I10,Punkteschema!$A$2:$B$101,2,FALSE),"") -> 15
A11: Urban, Volker | B11: 30 | C11: 35 | D11: 65 | E11: FALSE | F11: 8 | G11: 5 | H11: 6 | I11: 6 | J11: =IF(B11>0,VLOOKUP(I11,Punkteschema!$A$2:$B$101,2,FALSE),"") -> 15
A12: Paffrath, Siegfried | B12: 35 | C12: 36 | D12: 71 | E12: TRUE | F12: 13 | G12: 7 | H12: 13 | I12: 7 | J12: =IF(B12>0,VLOOKUP(I12,Punkteschema!$A$2:$B$101,2,FALSE),"") -> 10
A13: Brunnenkant, Frank | B13: 30 | C13: 37 | D13: 67 | E13: FALSE | F13: 8 | G13: 11 | H13: 9 | I13: 9 | J13: =IF(B13>0,VLOOKUP(I13,Punkteschema!$A$2:$B$101,2,FALSE),"") -> 10
A14: Kortmann, Sabine | B14: 32 | C14: 36 | D14: 68 | E14: FALSE | F14: 10 | G14: 7 | H14: 10 | I14: 10 | J14: =IF(B14>0,VLOOKUP(I14,Punkteschema!$A$2:$B$101,2,FALSE),"") -> 10
A15: Greiffendorf, Hellmut | B15: 28 | C15: 41 | D15: 69 | E15: FALSE | F15: 5 | G15: 15 | H15: 11 | I15: 11 | J15: =IF(B15>0,VLOOKUP(I15,Punkteschema!$A$2:$B$101,2,FALSE),"") -> 5
A16: Urban, Angela | B16: 40 | C16: 37 | D16: 77 | E16: TRUE | F16: 17 | G16: 11 | H16: 16 | I16: 11 | J16: =IF(B16>0,VLOOKUP(I16,Punkteschema!$A$2:$B$101,2,FALSE),"") -> 5
A17: Börgmann, Ulrich | B17: 34 | C17: 39 | D17: 73 | E17: TRUE | F17: 12 | G17: 13 | H17: 14 | I17: 12 | J17: =IF(B17>0,VLOOKUP(I17,Punkteschema!$A$2:$B$101,2,FALSE),"") -> 5
A18: Gattner, Karsten | B18: 36 | C18: 39 | D18: 75 | E18: TRUE | F18: 16 | G18: 13 | H18: 15 | I18: 13 | J18: =IF(B18>0,VLOOKUP(I18,Punkteschema!$A$2:$B$101,2,FALSE),"") -> 5
A19: Kortmann, Uwe | B19: 35 | C19: 46 | D19: 81 | E19: TRUE | F19: 13 | G19: 18 | H19: 17 | I19: 13 | J19: =IF(B19>0,VLOOKUP(I19,Punkteschema!$A$2:$B$101,2,FALSE),"") -> 5
A20: Schmidtbauer, Günter | B20: 54 | C20: 44 | D20: 98 | E20: TRUE | F20: 18 | G20: 17 | H20: 18 | I20: 17 | J20: =IF(B20>0,VLOOKUP(I20,Punkteschema!$A$2:$B$101,2,FALSE),"") -> 3
E21: TRUE | J21: =IF(B21>0,VLOOKUP(I21,Punkteschema!$A$2:$B$101,2,FALSE),"") -> 
E22: TRUE | J22: =IF(B22>0,VLOOKUP(I22,Punkteschema!$A$2:$B$101,2,FALSE),"") -> 
E23: TRUE | J23: =IF(B23>0,VLOOKUP(I23,Punkteschema!$A$2:$B$101,2,FALSE),"") -> 
E24: TRUE | J24: =IF(B24>0,VLOOKUP(I24,Punkteschema!$A$2:$B$101,2,FALSE),"") -> 
E25: TRUE | J25: =IF(B25>0,VLOOKUP(I25,Punkteschema!$A$2:$B$101,2,FALSE),"") -> 
E26: TRUE | J26: =IF(B26>0,VLOOKUP(I26,Punkteschema!$A$2:$B$101,2,FALSE),"") -> 
E27: TRUE | J27: =IF(B27>0,VLOOKUP(I27,Punkteschema!$A$2:$B$101,2,FALSE),"") -> 
E28: TRUE | J28: =IF(B28>0,VLOOKUP(I28,Punkteschema!$A$2:$B$101,2,FALSE),"") -> 
E29: TRUE | J29: =IF(B29>0,VLOOKUP(I29,Punkteschema!$A$2:$B$101,2,FALSE),"") -> 
E30: TRUE | J30: =IF(B30>0,VLOOKUP(I30,Punkteschema!$A$2:$B$101,2,FALSE),"") -> 
E31: TRUE | J31: =IF(B31>0,VLOOKUP(I31,Punkteschema!$A$2:$B$101,2,FALSE),"") -> 
E32: TRUE | J32: =IF(B32>0,VLOOKUP(I32,Punkteschema!$A$2:$B$101,2,FALSE),"") -> 
E33: TRUE | J33: =IF(B33>0,VLOOKUP(I33,Punkteschema!$A$2:$B$101,2,FALSE),"") -> 
E34: TRUE | J34: =IF(B34>0,VLOOKUP(I34,Punkteschema!$A$2:$B$101,2,FALSE),"") -> 
D35: =IF(B35>0,C35+B35,"") ->  | E35: TRUE | F35: =IF(B35>0,COUNTIF(B$3:B$55,"<"&B35)+1,"") ->  | G35: =IF(C35>0,COUNTIF(C$3:C$55,"<"&C35)+1,"") ->  | H35: =IF(AND(B35>0,C35>0),COUNTIF(D$3:D$55,"<"&D35)+1,"") ->  | I35: =IF(B35>0,IF(E35,MIN(F35:H35),SUM(F35:H35)-MAX(F35:H35)-MIN(F35:H35)),"") ->  | J35: =IF(B35>0,VLOOKUP(I35,Punkteschema!$A$2:$B$101,2,FALSE),"") -> 
E36: TRUE | J36: =IF(B36>0,VLOOKUP(I36,Punkteschema!$A$2:$B$101,2,FALSE),"") -> 
E37: TRUE | J37: =IF(B37>0,VLOOKUP(I37,Punkteschema!$A$2:$B$101,2,FALSE),"") -> 
E38: TRUE | J38: =IF(B38>0,VLOOKUP(I38,Punkteschema!$A$2:$B$101,2,FALSE),"") -> 
E39: TRUE | J39: =IF(B39>0,VLOOKUP(I39,Punkteschema!$A$2:$B$101,2,FALSE),"") -> 
E40: TRUE | J40: =IF(B40>0,VLOOKUP(I40,Punkteschema!$A$2:$B$101,2,FALSE),"") -> 
E41: TRUE | J41: =IF(B41>0,VLOOKUP(I41,Punkteschema!$A$2:$B$101,2,FALSE),"") -> 
E42: TRUE | J42: =IF(B42>0,VLOOKUP(I42,Punkteschema!$A$2:$B$101,2,FALSE),"") -> 
E43: TRUE | J43: =IF(B43>0,VLOOKUP(I43,Punkteschema!$A$2:$B$101,2,FALSE),"") -> 
E44: TRUE | J44: =IF(B44>0,VLOOKUP(I44,Punkteschema!$A$2:$B$101,2,FALSE),"") -> 
E45: TRUE | J45: =IF(B45>0,VLOOKUP(I45,Punkteschema!$A$2:$B$101,2,FALSE),"") -> 
E46: TRUE | J46: =IF(B46>0,VLOOKUP(I46,Punkteschema!$A$2:$B$101,2,FALSE),"") -> 
E47: TRUE | J47: =IF(B47>0,VLOOKUP(I47,Punkteschema!$A$2:$B$101,2,FALSE),"") -> 
E48: TRUE | J48: =IF(B48>0,VLOOKUP(I48,Punkteschema!$A$2:$B$101,2,FALSE),"") -> 
E49: TRUE | J49: =IF(B49>0,VLOOKUP(I49,Punkteschema!$A$2:$B$101,2,FALSE),"") -> 
E50: TRUE | J50: =IF(B50>0,VLOOKUP(I50,Punkteschema!$A$2:$B$101,2,FALSE),"") -> 
E51: TRUE | J51: =IF(B51>0,VLOOKUP(I51,Punkteschema!$A$2:$B$101,2,FALSE),"") -> 
E52: TRUE | J52: =IF(B52>0,VLOOKUP(I52,Punkteschema!$A$2:$B$101,2,FALSE),"") -> 
E53: TRUE | J53: =IF(B53>0,VLOOKUP(I53,Punkteschema!$A$2:$B$101,2,FALSE),"") -> 
E54: TRUE | J54: =IF(B54>0,VLOOKUP(I54,Punkteschema!$A$2:$B$101,2,FALSE),"") -> 
E55: TRUE | J55: =IF(B55>0,VLOOKUP(I55,Punkteschema!$A$2:$B$101,2,FALSE),"") -> 
A57: OS: Paffrath, Siegfried (HEV) | E57: Runde 1: | F57: E | G57: <- E/B
A58: S: Urban, Dominic (ASW) | E58: Runde 2: | F58: B | G58: <- E/B
A59: S: Buchholz, Ansgar (ASW)
A61: Verloste Preise:
A62: Börgmann, Brigitte | B62: 1 Mini-Garten
A63: Brunnenkant, Frank | B63: 1 Wetterstation
A64: Kunz, Martin | B64: 1 Schinken

Sheet Einzelwertung3
A1: =CONCATENATE("7. Sommer-Cup - Freizeittreff Herbede - ",TEXT(Gesamtstand!$H$2,"TT.MM.JJ")) -> 7. Sommer-Cup - Freizeittreff Herbede - 19.05.22
A2: Spieler | B2: Runde 1 | C2: Runde 2 | D2: Gesamt | E2: bessere? | F2: Pl. R1 | G2: Pl. R2 | H2: Pl. Ges. | I2: gewertet | J2: Punkte
A3: Rade, Marcus | B3: 23 | C3: 33 | D3: =IF(B3>0,C3+B3,"") -> 56 | E3: TRUE | F3: =IF(B3>0,COUNTIF(B$3:B$55,"<"&B3)+1,"") -> 1 | G3: =IF(C3>0,COUNTIF(C$3:C$55,"<"&C3)+1,"") -> 2 | H3: =IF(AND(B3>0,C3>0),COUNTIF(D$3:D$55,"<"&D3)+1,"") -> 1 | I3: =IF(B3>0,IF(E3,MIN(F3:H3),SUM(F3:H3)-MAX(F3:H3)-MIN(F3:H3)),"") -> 1 | J3: =IF(B3>0,VLOOKUP(I3,Punkteschema!$A$2:$B$101,2,FALSE),"") -> 25
A4: Kunz, Martin | B4: 26 | C4: 34 | D4: 60 | E4: TRUE | F4: 3 | G4: 4 | H4: 2 | I4: 2 | J4: =IF(B4>0,VLOOKUP(I4,Punkteschema!$A$2:$B$101,2,FALSE),"") -> 21
A5: Urban, Dominic | B5: 26 | C5: 34 | D5: 60 | E5: TRUE | F5: 3 | G5: 4 | H5: 2 | I5: 2 | J5: =IF(B5>0,VLOOKUP(I5,Punkteschema!$A$2:$B$101,2,FALSE),"") -> 21
A6: Rabe, Jonas | B6: 26 | C6: 34 | D6: 60 | E6: TRUE | F6: 3 | G6: 4 | H6: 2 | I6: 2 | J6: =IF(B6>0,VLOOKUP(I6,Punkteschema!$A$2:$B$101,2,FALSE),"") -> 21
A7: Buchholz, Ansgar | B7: 30 | C7: 30 | D7: 60 | E7: FALSE | F7: 7 | G7: 1 | H7: 2 | I7: 2 | J7: =IF(B7>0,VLOOKUP(I7,Punkteschema!$A$2:$B$101,2,FALSE),"") -> 21
A8: Paffrath, Siegfried | B8: 24 | C8: 40 | D8: 64 | E8: TRUE | F8: 2 | G8: 11 | H8: 7 | I8: 2 | J8: =IF(B8>0,VLOOKUP(I8,Punkteschema!$A$2:$B$101,2,FALSE),"") -> 21
A9: Urban, Volker | B9: 27 | C9: 35 | D9: 62 | E9: FALSE | F9: 6 | G9: 7 | H9: 6 | I9: 6 | J9: =IF(B9>0,VLOOKUP(I9,Punkteschema!$A$2:$B$101,2,FALSE),"") -> 15
A10: Puschner, Michael | B10: 37 | C10: 33 | D10: 70 | E10: FALSE | F10: 11 | G10: 2 | H10: 8 | I10: 8 | J10: =IF(B10>0,VLOOKUP(I10,Punkteschema!$A$2:$B$101,2,FALSE),"") -> 10
A11: Kortmann, Sabine | B11: 33 | C11: 39 | D11: 72 | E11: TRUE | F11: 8 | G11: 10 | H11: 9 | I11: 8 | J11: =IF(B11>0,VLOOKUP(I11,Punkteschema!$A$2:$B$101,2,FALSE),"") -> 10
A12: Paffrath, Ben | B12: 35 | C12: 37 | D12: 72 | E12: TRUE | F12: 10 | G12: 8 | H12: 9 | I12: 8 | J12: =IF(B12>0,VLOOKUP(I12,Punkteschema!$A$2:$B$101,2,FALSE),"") -> 10
A13: Urban, Angela | B13: 37 | C13: 37 | D13: 74 | E13: TRUE | F13: 11 | G13: 8 | H13: 11 | I13: 8 | J13: =IF(B13>0,VLOOKUP(I13,Punkteschema!$A$2:$B$101,2,FALSE),"") -> 10
A14: Schmidtbauer, Günter | B14: 34 | C14: 44 | D14: 78 | E14: TRUE | F14: 9 | G14: 13 | H14: 12 | I14: 9 | J14: =IF(B14>0,VLOOKUP(I14,Punkteschema!$A$2:$B$101,2,FALSE),"") -> 10
A15: Puschner, Silke | B15: 44 | C15: 43 | D15: 87 | E15: TRUE | F15: 13 | G15: 12 | H15: 13 | I15: 12 | J15: =IF(B15>0,VLOOKUP(I15,Punkteschema!$A$2:$B$101,2,FALSE),"") -> 5
D16: =IF(B16>0,C16+B16,"") ->  | E16: TRUE | F16: =IF(B16>0,COUNTIF(B$3:B$55,"<"&B16)+1,"") ->  | H16: =IF(AND(B16>0,C16>0),COUNTIF(D$3:D$55,"<"&D16)+1,"") ->  | I16: =IF(B16>0,IF(E16,MIN(F16:H16),SUM(F16:H16)-MAX(F16:H16)-MIN(F16:H16)),"") ->  | J16: =IF(B16>0,VLOOKUP(I16,Punkteschema!$A$2:$B$101,2,FALSE),"") -> 
E17: TRUE | J17: =IF(B17>0,VLOOKUP(I17,Punkteschema!$A$2:$B$101,2,FALSE),"") -> 
E18: TRUE | J18: =IF(B18>0,VLOOKUP(I18,Punkteschema!$A$2:$B$101,2,FALSE),"") -> 
E19: TRUE | F19: =IF(B19>0,COUNTIF(B$3:B$55,"<"&B19)+1,"") ->  | J19: =IF(B19>0,VLOOKUP(I19,Punkteschema!$A$2:$B$101,2,FALSE),"") -> 
E20: TRUE | J20: =IF(B20>0,VLOOKUP(I20,Punkteschema!$A$2:$B$101,2,FALSE),"") -> 
E21: TRUE | J21: =IF(B21>0,VLOOKUP(I21,Punkteschema!$A$2:$B$101,2,FALSE),"") -> 
E22: TRUE | J22: =IF(B22>0,VLOOKUP(I22,Punkteschema!$A$2:$B$101,2,FALSE),"") -> 
E23: TRUE | J23: =IF(B23>0,VLOOKUP(I23,Punkteschema!$A$2:$B$101,2,FALSE),"") -> 
E24: TRUE | J24: =IF(B24>0,VLOOKUP(I24,Punkteschema!$A$2:$B$101,2,FALSE),"") -> 
E25: TRUE | J25: =IF(B25>0,VLOOKUP(I25,Punkteschema!$A$2:$B$101,2,FALSE),"") -> 
E26: TRUE | J26: =IF(B26>0,VLOOKUP(I26,Punkteschema!$A$2:$B$101,2,FALSE),"") -> 
E27: TRUE | J27: =IF(B27>0,VLOOKUP(I27,Punkteschema!$A$2:$B$101,2,FALSE),"") -> 
E28: TRUE | J28: =IF(B28>0,VLOOKUP(I28,Punkteschema!$A$2:$B$101,2,FALSE),"") -> 
E29: TRUE | J29: =IF(B29>0,VLOOKUP(I29,Punkteschema!$A$2:$B$101,2,FALSE),"") -> 
E30: TRUE | J30: =IF(B30>0,VLOOKUP(I30,Punkteschema!$A$2:$B$101,2,FALSE),"") -> 
E31: TRUE | J31: =IF(B31>0,VLOOKUP(I31,Punkteschema!$A$2:$B$101,2,FALSE),"") -> 
E32: TRUE | J32: =IF(B32>0,VLOOKUP(I32,Punkteschema!$A$2:$B$101,2,FALSE),"") -> 
E33: TRUE | J33: =IF(B33>0,VLOOKUP(I33,Punkteschema!$A$2:$B$101,2,FALSE),"") -> 
E34: TRUE | J34: =IF(B34>0,VLOOKUP(I34,Punkteschema!$A$2:$B$101,2,FALSE),"") -> 
E35: TRUE | J35: =IF(B35>0,VLOOKUP(I35,Punkteschema!$A$2:$B$101,2,FALSE),"") -> 
E36: TRUE | J36: =IF(B36>0,VLOOKUP(I36,Punkteschema!$A$2:$B$101,2,FALSE),"") -> 
E37: TRUE | J37: =IF(B37>0,VLOOKUP(I37,Punkteschema!$A$2:$B$101,2,FALSE),"") -> 
E38: TRUE | J38: =IF(B38>0,VLOOKUP(I38,Punkteschema!$A$2:$B$101,2,FALSE),"") -> 
E39: TRUE | J39: =IF(B39>0,VLOOKUP(I39,Punkteschema!$A$2:$B$101,2,FALSE),"") -> 
E40: TRUE | J40: =IF(B40>0,VLOOKUP(I40,Punkteschema!$A$2:$B$101,2,FALSE),"") -> 
E41: TRUE | J41: =IF(B41>0,VLOOKUP(I41,Punkteschema!$A$2:$B$101,2,FALSE),"") -> 
E42: TRUE | J42: =IF(B42>0,VLOOKUP(I42,Punkteschema!$A$2:$B$101,2,FALSE),"") -> 
E43: TRUE | J43: =IF(B43>0,VLOOKUP(I43,Punkteschema!$A$2:$B$101,2,FALSE),"") -> 
E44: TRUE | J44: =IF(B44>0,VLOOKUP(I44,Punkteschema!$A$2:$B$101,2,FALSE),"") -> 
E45: TRUE | J45: =IF(B45>0,VLOOKUP(I45,Punkteschema!$A$2:$B$101,2,FALSE),"") -> 
E46: TRUE | J46: =IF(B46>0,VLOOKUP(I46,Punkteschema!$A$2:$B$101,2,FALSE),"") -> 
E47: TRUE | J47: =IF(B47>0,VLOOKUP(I47,Punkteschema!$A$2:$B$101,2,FALSE),"") -> 
E48: TRUE | J48: =IF(B48>0,VLOOKUP(I48,Punkteschema!$A$2:$B$101,2,FALSE),"") -> 
E49: TRUE | J49: =IF(B49>0,VLOOKUP(I49,Punkteschema!$A$2:$B$101,2,FALSE),"") -> 
E50: TRUE | J50: =IF(B50>0,VLOOKUP(I50,Punkteschema!$A$2:$B$101,2,FALSE),"") -> 
E51: TRUE | J51: =IF(B51>0,VLOOKUP(I51,Punkteschema!$A$2:$B$101,2,FALSE),"") -> 
E52: TRUE | J52: =IF(B52>0,VLOOKUP(I52,Punkteschema!$A$2:$B$101,2,FALSE),"") -> 
E53: TRUE | F53: =IF(B53>0,COUNTIF(B$3:B$55,"<"&B53)+1,"") ->  | H53: =IF(AND(B53>0,C53>0),COUNTIF(D$3:D$55,"<"&D53)+1,"") ->  | J53: =IF(B53>0,VLOOKUP(I53,Punkteschema!$A$2:$B$101,2,FALSE),"") -> 
E54: TRUE | H54: =IF(AND(B54>0,C54>0),COUNTIF(D$3:D$55,"<"&D54)+1,"") ->  | J54: =IF(B54>0,VLOOKUP(I54,Punkteschema!$A$2:$B$101,2,FALSE),"") -> 
E55: TRUE | H55: =IF(AND(B55>0,C55>0),COUNTIF(D$3:D$55,"<"&D55)+1,"") ->  | J55: =IF(B55>0,VLOOKUP(I55,Punkteschema!$A$2:$B$101,2,FALSE),"") -> 
A57: OS: Paffrath, Siegfried (HEV) | E57: Runde 1: | F57: E | G57: <- E/B
A58: S: Urban, Volker (ASW) | E58: Runde 2: | F58: B | G58: <- E/B
A59: S: Puschner, Michael (HOB)
A61: Verloste Preise:
A62: Buchholz, Ansgar | B62: 1 Verzehrgutschein
A63: Rade, Marcus | B63: 1 Ballsauger mit Ball
A64: Urban, Volker | B64: 1 Flasche Dornfelder Sekt

Sheet Einzelwertung4
A1: =CONCATENATE("7. Sommer-Cup - Freizeittreff Herbede - ",TEXT(Gesamtstand!$I$2,"TT.MM.JJ")) -> 7. Sommer-Cup - Freizeittreff Herbede - 25.05.22
A2: Spieler | B2: Runde 1 | C2: Runde 2 | D2: Gesamt | E2: bessere? | F2: Pl. R1 | G2: Pl. R2 | H2: Pl. Ges. | I2: gewertet | J2: Punkte
A3: Buchholz, Ansgar | B3: 22 | C3: 29 | D3: =IF(B3>0,C3+B3,"") -> 51 | E3: FALSE | F3: =IF(B3>0,COUNTIF(B$3:B$55,"<"&B3)+1,"") -> 1 | G3: =IF(C3>0,COUNTIF(C$3:C$55,"<"&C3)+1,"") -> 1 | H3: =IF(AND(B3>0,C3>0),COUNTIF(D$3:D$55,"<"&D3)+1,"") -> 1 | I3: =IF(B3>0,IF(E3,MIN(F3:H3),SUM(F3:H3)-MAX(F3:H3)-MIN(F3:H3)),"") -> 1 | J3: =IF(B3>0,VLOOKUP(I3,Punkteschema!$A$2:$B$101,2,FALSE),"") -> 25
A4: Rade, Marcus | B4: 25 | C4: 30 | D4: 55 | E4: TRUE | F4: 3 | G4: 2 | H4: 2 | I4: 2 | J4: =IF(B4>0,VLOOKUP(I4,Punkteschema!$A$2:$B$101,2,FALSE),"") -> 21
A5: Lenk, Rolf | B5: 24 | C5: 36 | D5: 60 | E5: TRUE | F5: 2 | G5: 10 | H5: 3 | I5: 2 | J5: =IF(B5>0,VLOOKUP(I5,Punkteschema!$A$2:$B$101,2,FALSE),"") -> 21
A6: Puschner, Michael | B6: 25 | C6: 35 | D6: 60 | E6: FALSE | F6: 3 | G6: 5 | H6: 3 | I6: 3 | J6: =IF(B6>0,VLOOKUP(I6,Punkteschema!$A$2:$B$101,2,FALSE),"") -> 18
A7: Urban, Volker | B7: 27 | C7: 33 | D7: 60 | E7: FALSE | F7: 5 | G7: 3 | H7: 3 | I7: 3 | J7: =IF(B7>0,VLOOKUP(I7,Punkteschema!$A$2:$B$101,2,FALSE),"") -> 18
A8: Brunnenkant, Frank | B8: 28 | C8: 34 | D8: 62 | E8: TRUE | F8: 6 | G8: 4 | H8: 6 | I8: 4 | J8: =IF(B8>0,VLOOKUP(I8,Punkteschema!$A$2:$B$101,2,FALSE),"") -> 15
A9: Kortmann, Sabine | B9: 28 | C9: 35 | D9: 63 | E9: TRUE | F9: 6 | G9: 5 | H9: 7 | I9: 5 | J9: =IF(B9>0,VLOOKUP(I9,Punkteschema!$A$2:$B$101,2,FALSE),"") -> 15
A10: Arens, Ingo | B10: 28 | C10: 35 | D10: 63 | E10: TRUE | F10: 6 | G10: 5 | H10: 7 | I10: 5 | J10: =IF(B10>0,VLOOKUP(I10,Punkteschema!$A$2:$B$101,2,FALSE),"") -> 15
A11: Urban, Dominic | B11: 28 | C11: 35 | D11: 63 | E11: TRUE | F11: 6 | G11: 5 | H11: 7 | I11: 5 | J11: =IF(B11>0,VLOOKUP(I11,Punkteschema!$A$2:$B$101,2,FALSE),"") -> 15
A12: Greiffendorf, Hellmut | B12: 29 | C12: 35 | D12: 64 | E12: TRUE | F12: 10 | G12: 5 | H12: 10 | I12: 5 | J12: =IF(B12>0,VLOOKUP(I12,Punkteschema!$A$2:$B$101,2,FALSE),"") -> 15
A13: Kunz, Martin | B13: 32 | C13: 36 | D13: 68 | E13: TRUE | F13: 12 | G13: 10 | H13: 11 | I13: 10 | J13: =IF(B13>0,VLOOKUP(I13,Punkteschema!$A$2:$B$101,2,FALSE),"") -> 10
A14: Börgmann, Ulrich | B14: 29 | C14: 47 | D14: 76 | E14: TRUE | F14: 10 | G14: 17 | H14: 13 | I14: 10 | J14: =IF(B14>0,VLOOKUP(I14,Punkteschema!$A$2:$B$101,2,FALSE),"") -> 10
A15: Urban, Angela | B15: 36 | C15: 39 | D15: 75 | E15: TRUE | F15: 15 | G15: 12 | H15: 12 | I15: 12 | J15: =IF(B15>0,VLOOKUP(I15,Punkteschema!$A$2:$B$101,2,FALSE),"") -> 5
A16: Börgmann, Brigitte | B16: 40 | C16: 39 | D16: 79 | E16: TRUE | F16: 17 | G16: 12 | H16: 15 | I16: 12 | J16: =IF(B16>0,VLOOKUP(I16,Punkteschema!$A$2:$B$101,2,FALSE),"") -> 5
A17: Kersch, Uwe | B17: 34 | C17: 46 | D17: 80 | E17: TRUE | F17: 13 | G17: 16 | H17: 16 | I17: 13 | J17: =IF(B17>0,VLOOKUP(I17,Punkteschema!$A$2:$B$101,2,FALSE),"") -> 5
A18: Puschner, Silke | B18: 34 | C18: 57 | D18: 91 | E18: TRUE | F18: 13 | G18: 18 | H18: 18 | I18: 13 | J18: =IF(B18>0,VLOOKUP(I18,Punkteschema!$A$2:$B$101,2,FALSE),"") -> 5
A19: Schmidtbauer, Günter | B19: 36 | C19: 42 | D19: 78 | E19: TRUE | F19: 15 | G19: 14 | H19: 14 | I19: 14 | J19: =IF(B19>0,VLOOKUP(I19,Punkteschema!$A$2:$B$101,2,FALSE),"") -> 5
A20: Gattner, Karsten | B20: 41 | C20: 44 | D20: 85 | E20: TRUE | F20: 18 | G20: 15 | H20: 17 | I20: 15 | J20: =IF(B20>0,VLOOKUP(I20,Punkteschema!$A$2:$B$101,2,FALSE),"") -> 5
D21: =IF(B21>0,C21+B21,"") ->  | E21: TRUE | F21: =IF(B21>0,COUNTIF(B$3:B$55,"<"&B21)+1,"") ->  | H21: =IF(AND(B21>0,C21>0),COUNTIF(D$3:D$55,"<"&D21)+1,"") ->  | I21: =IF(B21>0,IF(E21,MIN(F21:H21),SUM(F21:H21)-MAX(F21:H21)-MIN(F21:H21)),"") ->  | J21: =IF(B21>0,VLOOKUP(I21,Punkteschema!$A$2:$B$101,2,FALSE),"") -> 
E22: TRUE | J22: =IF(B22>0,VLOOKUP(I22,Punkteschema!$A$2:$B$101,2,FALSE),"") -> 
E23: TRUE | J23: =IF(B23>0,VLOOKUP(I23,Punkteschema!$A$2:$B$101,2,FALSE),"") -> 
E24: TRUE | J24: =IF(B24>0,VLOOKUP(I24,Punkteschema!$A$2:$B$101,2,FALSE),"") -> 
E25: TRUE | J25: =IF(B25>0,VLOOKUP(I25,Punkteschema!$A$2:$B$101,2,FALSE),"") -> 
E26: TRUE | J26: =IF(B26>0,VLOOKUP(I26,Punkteschema!$A$2:$B$101,2,FALSE),"") -> 
E27: TRUE | J27: =IF(B27>0,VLOOKUP(I27,Punkteschema!$A$2:$B$101,2,FALSE),"") -> 
E28: TRUE | J28: =IF(B28>0,VLOOKUP(I28,Punkteschema!$A$2:$B$101,2,FALSE),"") -> 
E29: TRUE | J29: =IF(B29>0,VLOOKUP(I29,Punkteschema!$A$2:$B$101,2,FALSE),"") -> 
E30: TRUE | J30: =IF(B30>0,VLOOKUP(I30,Punkteschema!$A$2:$B$101,2,FALSE),"") -> 
E31: TRUE | J31: =IF(B31>0,VLOOKUP(I31,Punkteschema!$A$2:$B$101,2,FALSE),"") -> 
E32: TRUE | J32: =IF(B32>0,VLOOKUP(I32,Punkteschema!$A$2:$B$101,2,FALSE),"") -> 
E33: TRUE | J33: =IF(B33>0,VLOOKUP(I33,Punkteschema!$A$2:$B$101,2,FALSE),"") -> 
E34: TRUE | J34: =IF(B34>0,VLOOKUP(I34,Punkteschema!$A$2:$B$101,2,FALSE),"") -> 
E35: TRUE | J35: =IF(B35>0,VLOOKUP(I35,Punkteschema!$A$2:$B$101,2,FALSE),"") -> 
E36: TRUE | J36: =IF(B36>0,VLOOKUP(I36,Punkteschema!$A$2:$B$101,2,FALSE),"") -> 
E37: TRUE | J37: =IF(B37>0,VLOOKUP(I37,Punkteschema!$A$2:$B$101,2,FALSE),"") -> 
E38: TRUE | J38: =IF(B38>0,VLOOKUP(I38,Punkteschema!$A$2:$B$101,2,FALSE),"") -> 
E39: TRUE | J39: =IF(B39>0,VLOOKUP(I39,Punkteschema!$A$2:$B$101,2,FALSE),"") -> 
E40: TRUE | J40: =IF(B40>0,VLOOKUP(I40,Punkteschema!$A$2:$B$101,2,FALSE),"") -> 
E41: TRUE | J41: =IF(B41>0,VLOOKUP(I41,Punkteschema!$A$2:$B$101,2,FALSE),"") -> 
E42: TRUE | J42: =IF(B42>0,VLOOKUP(I42,Punkteschema!$A$2:$B$101,2,FALSE),"") -> 
E43: TRUE | J43: =IF(B43>0,VLOOKUP(I43,Punkteschema!$A$2:$B$101,2,FALSE),"") -> 
E44: TRUE | J44: =IF(B44>0,VLOOKUP(I44,Punkteschema!$A$2:$B$101,2,FALSE),"") -> 
E45: TRUE | J45: =IF(B45>0,VLOOKUP(I45,Punkteschema!$A$2:$B$101,2,FALSE),"") -> 
E46: TRUE | J46: =IF(B46>0,VLOOKUP(I46,Punkteschema!$A$2:$B$101,2,FALSE),"") -> 
E47: TRUE | J47: =IF(B47>0,VLOOKUP(I47,Punkteschema!$A$2:$B$101,2,FALSE),"") -> 
E48: TRUE | J48: =IF(B48>0,VLOOKUP(I48,Punkteschema!$A$2:$B$101,2,FALSE),"") -> 
E49: TRUE | J49: =IF(B49>0,VLOOKUP(I49,Punkteschema!$A$2:$B$101,2,FALSE),"") -> 
E50: TRUE | J50: =IF(B50>0,VLOOKUP(I50,Punkteschema!$A$2:$B$101,2,FALSE),"") -> 
E51: TRUE | J51: =IF(B51>0,VLOOKUP(I51,Punkteschema!$A$2:$B$101,2,FALSE),"") -> 
E52: TRUE | J52: =IF(B52>0,VLOOKUP(I52,Punkteschema!$A$2:$B$101,2,FALSE),"") -> 
E53: TRUE | F53: =IF(B53>0,COUNTIF(B$3:B$55,"<"&B53)+1,"") ->  | H53: =IF(AND(B53>0,C53>0),COUNTIF(D$3:D$55,"<"&D53)+1,"") ->  | J53: =IF(B53>0,VLOOKUP(I53,Punkteschema!$A$2:$B$101,2,FALSE),"") -> 
E54: TRUE | H54: =IF(AND(B54>0,C54>0),COUNTIF(D$3:D$55,"<"&D54)+1,"") ->  | J54: =IF(B54>0,VLOOKUP(I54,Punkteschema!$A$2:$B$101,2,FALSE),"") -> 
E55: TRUE | H55: =IF(AND(B55>0,C55>0),COUNTIF(D$3:D$55,"<"&D55)+1,"") ->  | J55: =IF(B55>0,VLOOKUP(I55,Punkteschema!$A$2:$B$101,2,FALSE),"") -> 
A57: OS: Urban, Volker (ASW) | E57: Runde 1: | F57: E | G57: <- E/B
A58: S: Buchholz, Ansgar (ASW) | E58: Runde 2: | F58: B | G58: <- E/B
A59: S: Puschner, Michael (HOB)
A61: Verloste Preise:
A62: Urban, Volker | B62: 1 Flasche Wein
A63: Urban, Dominic | B63: 1 Dose Weingummi
A64: Kortmann, Sabine | B64: 1 Solar-Gartenleuchte

Sheet Einzelwertung5
A1: =CONCATENATE("7. Sommer-Cup - Freizeittreff Herbede - ",TEXT(Gesamtstand!$J$2,"TT.MM.JJ")) -> 7. Sommer-Cup - Freizeittreff Herbede - 02.06.22
A2: Spieler | B2: Runde 1 | C2: Runde 2 | D2: Gesamt | E2: bessere? | F2: Pl. R1 | G2: Pl. R2 | H2: Pl. Ges. | I2: gewertet | J2: Punkte
A3: Urban, Dominic | B3: 21 | C3: 35 | D3: =IF(B3>0,C3+B3,"") -> 56 | E3: TRUE | F3: =IF(B3>0,COUNTIF(B$3:B$55,"<"&B3)+1,"") -> 1 | G3: =IF(C3>0,COUNTIF(C$3:C$55,"<"&C3)+1,"") -> 8 | H3: =IF(AND(B3>0,C3>0),COUNTIF(D$3:D$55,"<"&D3)+1,"") -> 1 | I3: =IF(B3>0,IF(E3,MIN(F3:H3),SUM(F3:H3)-MAX(F3:H3)-MIN(F3:H3)),"") -> 1 | J3: =IF(B3>0,VLOOKUP(I3,Punkteschema!$A$2:$B$101,2,FALSE),"") -> 25
A4: Rabe, Jonas | B4: 23 | C4: 33 | D4: 56 | E4: TRUE | F4: 2 | G4: 4 | H4: 1 | I4: 1 | J4: =IF(B4>0,VLOOKUP(I4,Punkteschema!$A$2:$B$101,2,FALSE),"") -> 25
A5: Rade, Marcus | B5: 31 | C5: 32 | D5: 63 | E5: TRUE | F5: 10 | G5: 2 | H5: 4 | I5: 2 | J5: =IF(B5>0,VLOOKUP(I5,Punkteschema!$A$2:$B$101,2,FALSE),"") -> 21
A6: Urban, Volker | B6: 30 | C6: 31 | D6: 61 | E6: FALSE | F6: 7 | G6: 1 | H6: 3 | I6: 3 | J6: =IF(B6>0,VLOOKUP(I6,Punkteschema!$A$2:$B$101,2,FALSE),"") -> 18
A7: Kortmann, Sabine | B7: 26 | C7: 39 | D7: 65 | E7: TRUE | F7: 3 | G7: 15 | H7: 9 | I7: 3 | J7: =IF(B7>0,VLOOKUP(I7,Punkteschema!$A$2:$B$101,2,FALSE),"") -> 18
A8: Paffrath, Siegfried | B8: 28 | C8: 35 | D8: 63 | E8: TRUE | F8: 4 | G8: 8 | H8: 4 | I8: 4 | J8: =IF(B8>0,VLOOKUP(I8,Punkteschema!$A$2:$B$101,2,FALSE),"") -> 15
A9: Kunz, Martin | B9: 28 | C9: 36 | D9: 64 | E9: TRUE | F9: 4 | G9: 10 | H9: 6 | I9: 4 | J9: =IF(B9>0,VLOOKUP(I9,Punkteschema!$A$2:$B$101,2,FALSE),"") -> 15
A10: Paffrath, Ben | B10: 30 | C10: 34 | D10: 64 | E10: TRUE | F10: 7 | G10: 6 | H10: 6 | I10: 6 | J10: =IF(B10>0,VLOOKUP(I10,Punkteschema!$A$2:$B$101,2,FALSE),"") -> 15
A11: Buchholz, Ansgar | B11: 31 | C11: 33 | D11: 64 | E11: FALSE | F11: 10 | G11: 4 | H11: 6 | I11: 6 | J11: =IF(B11>0,VLOOKUP(I11,Punkteschema!$A$2:$B$101,2,FALSE),"") -> 15
A12: Brunnenkant, Frank | B12: 29 | C12: 38 | D12: 67 | E12: TRUE | F12: 6 | G12: 12 | H12: 10 | I12: 6 | J12: =IF(B12>0,VLOOKUP(I12,Punkteschema!$A$2:$B$101,2,FALSE),"") -> 15
A13: Börgmann, Brigitte | B13: 38 | C13: 34 | D13: 72 | E13: TRUE | F13: 16 | G13: 6 | H13: 13 | I13: 6 | J13: =IF(B13>0,VLOOKUP(I13,Punkteschema!$A$2:$B$101,2,FALSE),"") -> 15
A14: Lenk, Rolf | B14: 30 | C14: 38 | D14: 68 | E14: TRUE | F14: 7 | G14: 12 | H14: 12 | I14: 7 | J14: =IF(B14>0,VLOOKUP(I14,Punkteschema!$A$2:$B$101,2,FALSE),"") -> 10
A15: Puschner, Michael | B15: 35 | C15: 32 | D15: 67 | E15: FALSE | F15: 13 | G15: 2 | H15: 10 | I15: 10 | J15: =IF(B15>0,VLOOKUP(I15,Punkteschema!$A$2:$B$101,2,FALSE),"") -> 10
A16: Kersch, Uwe | B16: 39 | C16: 37 | D16: 76 | E16: TRUE | F16: 17 | G16: 11 | H16: 16 | I16: 11 | J16: =IF(B16>0,VLOOKUP(I16,Punkteschema!$A$2:$B$101,2,FALSE),"") -> 5
A17: Börgmann, Ulrich | B17: 35 | C17: 38 | D17: 73 | E17: TRUE | F17: 13 | G17: 12 | H17: 14 | I17: 12 | J17: =IF(B17>0,VLOOKUP(I17,Punkteschema!$A$2:$B$101,2,FALSE),"") -> 5
A18: Gattner, Karsten | B18: 32 | C18: 42 | D18: 74 | E18: TRUE | F18: 12 | G18: 16 | H18: 15 | I18: 12 | J18: =IF(B18>0,VLOOKUP(I18,Punkteschema!$A$2:$B$101,2,FALSE),"") -> 5
A19: Dreischer, Burkhard | B19: 37 | C19: 44 | D19: 81 | E19: TRUE | F19: 15 | G19: 17 | H19: 17 | I19: 15 | J19: =IF(B19>0,VLOOKUP(I19,Punkteschema!$A$2:$B$101,2,FALSE),"") -> 5
A20: Schmidtbauer, Günter | B20: 43 | C20: 47 | D20: 90 | E20: TRUE | F20: 18 | G20: 18 | H20: 18 | I20: 18 | J20: =IF(B20>0,VLOOKUP(I20,Punkteschema!$A$2:$B$101,2,FALSE),"") -> 3
E21: TRUE | J21: =IF(B21>0,VLOOKUP(I21,Punkteschema!$A$2:$B$101,2,FALSE),"") -> 
E22: TRUE | J22: =IF(B22>0,VLOOKUP(I22,Punkteschema!$A$2:$B$101,2,FALSE),"") -> 
E23: TRUE | J23: =IF(B23>0,VLOOKUP(I23,Punkteschema!$A$2:$B$101,2,FALSE),"") -> 
E24: TRUE | J24: =IF(B24>0,VLOOKUP(I24,Punkteschema!$A$2:$B$101,2,FALSE),"") -> 
E25: TRUE | J25: =IF(B25>0,VLOOKUP(I25,Punkteschema!$A$2:$B$101,2,FALSE),"") -> 
E26: TRUE | J26: =IF(B26>0,VLOOKUP(I26,Punkteschema!$A$2:$B$101,2,FALSE),"") -> 
E27: TRUE | J27: =IF(B27>0,VLOOKUP(I27,Punkteschema!$A$2:$B$101,2,FALSE),"") -> 
E28: TRUE | J28: =IF(B28>0,VLOOKUP(I28,Punkteschema!$A$2:$B$101,2,FALSE),"") -> 
E29: TRUE | J29: =IF(B29>0,VLOOKUP(I29,Punkteschema!$A$2:$B$101,2,FALSE),"") -> 
E30: TRUE | J30: =IF(B30>0,VLOOKUP(I30,Punkteschema!$A$2:$B$101,2,FALSE),"") -> 
E31: TRUE | J31: =IF(B31>0,VLOOKUP(I31,Punkteschema!$A$2:$B$101,2,FALSE),"") -> 
E32: TRUE | J32: =IF(B32>0,VLOOKUP(I32,Punkteschema!$A$2:$B$101,2,FALSE),"") -> 
E33: TRUE | J33: =IF(B33>0,VLOOKUP(I33,Punkteschema!$A$2:$B$101,2,FALSE),"") -> 
E34: TRUE | J34: =IF(B34>0,VLOOKUP(I34,Punkteschema!$A$2:$B$101,2,FALSE),"") -> 
D35: =IF(B35>0,C35+B35,"") ->  | E35: TRUE | F35: =IF(B35>0,COUNTIF(B$3:B$55,"<"&B35)+1,"") ->  | G35: =IF(C35>0,COUNTIF(C$3:C$55,"<"&C35)+1,"") ->  | H35: =IF(AND(B35>0,C35>0),COUNTIF(D$3:D$55,"<"&D35)+1,"") ->  | I35: =IF(B35>0,IF(E35,MIN(F35:H35),SUM(F35:H35)-MAX(F35:H35)-MIN(F35:H35)),"") ->  | J35: =IF(B35>0,VLOOKUP(I35,Punkteschema!$A$2:$B$101,2,FALSE),"") -> 
E36: TRUE | J36: =IF(B36>0,VLOOKUP(I36,Punkteschema!$A$2:$B$101,2,FALSE),"") -> 
E37: TRUE | J37: =IF(B37>0,VLOOKUP(I37,Punkteschema!$A$2:$B$101,2,FALSE),"") -> 
E38: TRUE | J38: =IF(B38>0,VLOOKUP(I38,Punkteschema!$A$2:$B$101,2,FALSE),"") -> 
E39: TRUE | J39: =IF(B39>0,VLOOKUP(I39,Punkteschema!$A$2:$B$101,2,FALSE),"") -> 
E40: TRUE | J40: =IF(B40>0,VLOOKUP(I40,Punkteschema!$A$2:$B$101,2,FALSE),"") -> 
E41: TRUE | J41: =IF(B41>0,VLOOKUP(I41,Punkteschema!$A$2:$B$101,2,FALSE),"") -> 
E42: TRUE | J42: =IF(B42>0,VLOOKUP(I42,Punkteschema!$A$2:$B$101,2,FALSE),"") -> 
E43: TRUE | J43: =IF(B43>0,VLOOKUP(I43,Punkteschema!$A$2:$B$101,2,FALSE),"") -> 
E44: TRUE | J44: =IF(B44>0,VLOOKUP(I44,Punkteschema!$A$2:$B$101,2,FALSE),"") -> 
E45: TRUE | J45: =IF(B45>0,VLOOKUP(I45,Punkteschema!$A$2:$B$101,2,FALSE),"") -> 
E46: TRUE | J46: =IF(B46>0,VLOOKUP(I46,Punkteschema!$A$2:$B$101,2,FALSE),"") -> 
E47: TRUE | J47: =IF(B47>0,VLOOKUP(I47,Punkteschema!$A$2:$B$101,2,FALSE),"") -> 
E48: TRUE | J48: =IF(B48>0,VLOOKUP(I48,Punkteschema!$A$2:$B$101,2,FALSE),"") -> 
E49: TRUE | J49: =IF(B49>0,VLOOKUP(I49,Punkteschema!$A$2:$B$101,2,FALSE),"") -> 
E50: TRUE | J50: =IF(B50>0,VLOOKUP(I50,Punkteschema!$A$2:$B$101,2,FALSE),"") -> 
E51: TRUE | J51: =IF(B51>0,VLOOKUP(I51,Punkteschema!$A$2:$B$101,2,FALSE),"") -> 
E52: TRUE | J52: =IF(B52>0,VLOOKUP(I52,Punkteschema!$A$2:$B$101,2,FALSE),"") -> 
E53: TRUE | J53: =IF(B53>0,VLOOKUP(I53,Punkteschema!$A$2:$B$101,2,FALSE),"") -> 
E54: TRUE | J54: =IF(B54>0,VLOOKUP(I54,Punkteschema!$A$2:$B$101,2,FALSE),"") -> 
E55: TRUE | J55: =IF(B55>0,VLOOKUP(I55,Punkteschema!$A$2:$B$101,2,FALSE),"") -> 
A57: OS: Paffrath, Siegfried (HEV) | E57: Runde 1: | F57: E | G57: <- E/B
A58: S: Urban, Volker (ASW) | E58: Runde 2: | F58: B | G58: <- E/B
A59: S: Puschner, Michael (HOB)
A61: Verloste Preise:
A62: Paffrath, Ben | B62: 1 Großpackung Toffifee
A63: Rabe, Jonas | B63: 1 Ball Cobi 2018
A64: Schmidtbauer, Günter | B64: 1 Flasche Merlot

Sheet Einzelwertung6
A1: =CONCATENATE("7. Sommer-Cup - Freizeittreff Herbede - ",TEXT(Gesamtstand!$K$2,"TT.MM.JJ")) -> 7. Sommer-Cup - Freizeittreff Herbede - 09.06.22
A2: Spieler | B2: Runde 1 | C2: Runde 2 | D2: Gesamt | E2: bessere? | F2: Pl. R1 | G2: Pl. R2 | H2: Pl. Ges. | I2: gewertet | J2: Punkte
A3: Brunnenkant, Frank | B3: 24 | C3: 33 | D3: =IF(B3>0,C3+B3,"") -> 57 | E3: TRUE | F3: =IF(B3>0,COUNTIF(B$3:B$55,"<"&B3)+1,"") -> 1 | G3: =IF(C3>0,COUNTIF(C$3:C$55,"<"&C3)+1,"") -> 3 | H3: =IF(AND(B3>0,C3>0),COUNTIF(D$3:D$55,"<"&D3)+1,"") -> 1 | I3: =IF(B3>0,IF(E3,MIN(F3:H3),SUM(F3:H3)-MAX(F3:H3)-MIN(F3:H3)),"") -> 1 | J3: =IF(B3>0,VLOOKUP(I3,Punkteschema!$A$2:$B$101,2,FALSE),"") -> 25
A4: Kunz, Martin | B4: 28 | C4: 31 | D4: 59 | E4: TRUE | F4: 4 | G4: 2 | H4: 2 | I4: 2 | J4: =IF(B4>0,VLOOKUP(I4,Punkteschema!$A$2:$B$101,2,FALSE),"") -> 21
A5: Lenk, Rolf | B5: 27 | C5: 33 | D5: 60 | E5: TRUE | F5: 2 | G5: 3 | H5: 3 | I5: 2 | J5: =IF(B5>0,VLOOKUP(I5,Punkteschema!$A$2:$B$101,2,FALSE),"") -> 21
A6: Rade, Marcus | B6: 27 | C6: 33 | D6: 60 | E6: FALSE | F6: 2 | G6: 3 | H6: 3 | I6: 3 | J6: =IF(B6>0,VLOOKUP(I6,Punkteschema!$A$2:$B$101,2,FALSE),"") -> 18
A7: Buchholz, Ansgar | B7: 33 | C7: 30 | D7: 63 | E7: FALSE | F7: 8 | G7: 1 | H7: 5 | I7: 5 | J7: =IF(B7>0,VLOOKUP(I7,Punkteschema!$A$2:$B$101,2,FALSE),"") -> 15
A8: Paffrath, Siegfried | B8: 31 | C8: 41 | D8: 72 | E8: TRUE | F8: 5 | G8: 10 | H8: 9 | I8: 5 | J8: =IF(B8>0,VLOOKUP(I8,Punkteschema!$A$2:$B$101,2,FALSE),"") -> 15
A9: Puschner, Michael | B9: 32 | C9: 34 | D9: 66 | E9: FALSE | F9: 6 | G9: 6 | H9: 6 | I9: 6 | J9: =IF(B9>0,VLOOKUP(I9,Punkteschema!$A$2:$B$101,2,FALSE),"") -> 15
A10: Rabe, Jonas | B10: 32 | C10: 34 | D10: 66 | E10: TRUE | F10: 6 | G10: 6 | H10: 6 | I10: 6 | J10: =IF(B10>0,VLOOKUP(I10,Punkteschema!$A$2:$B$101,2,FALSE),"") -> 15
A11: Paffrath, Ben | B11: 35 | C11: 36 | D11: 71 | E11: TRUE | F11: 9 | G11: 8 | H11: 8 | I11: 8 | J11: =IF(B11>0,VLOOKUP(I11,Punkteschema!$A$2:$B$101,2,FALSE),"") -> 10
A12: Gattner, Karsten | B12: 36 | C12: 37 | D12: 73 | E12: TRUE | F12: 10 | G12: 9 | H12: 10 | I12: 9 | J12: =IF(B12>0,VLOOKUP(I12,Punkteschema!$A$2:$B$101,2,FALSE),"") -> 10
A13: Schmidtbauer, Günter | B13: 45 | C13: 48 | D13: 93 | E13: TRUE | F13: 11 | G13: 11 | H13: 11 | I13: 11 | J13: =IF(B13>0,VLOOKUP(I13,Punkteschema!$A$2:$B$101,2,FALSE),"") -> 5
D14: =IF(B14>0,C14+B14,"") ->  | E14: TRUE | F14: =IF(B14>0,COUNTIF(B$3:B$55,"<"&B14)+1,"") ->  | H14: =IF(AND(B14>0,C14>0),COUNTIF(D$3:D$55,"<"&D14)+1,"") ->  | I14: =IF(B14>0,IF(E14,MIN(F14:H14),SUM(F14:H14)-MAX(F14:H14)-MIN(F14:H14)),"") ->  | J14: =IF(B14>0,VLOOKUP(I14,Punkteschema!$A$2:$B$101,2,FALSE),"") -> 
E15: TRUE | J15: =IF(B15>0,VLOOKUP(I15,Punkteschema!$A$2:$B$101,2,FALSE),"") -> 
E16: TRUE | J16: =IF(B16>0,VLOOKUP(I16,Punkteschema!$A$2:$B$101,2,FALSE),"") -> 
E17: TRUE | J17: =IF(B17>0,VLOOKUP(I17,Punkteschema!$A$2:$B$101,2,FALSE),"") -> 
E18: TRUE | J18: =IF(B18>0,VLOOKUP(I18,Punkteschema!$A$2:$B$101,2,FALSE),"") -> 
E19: TRUE | F19: =IF(B19>0,COUNTIF(B$3:B$55,"<"&B19)+1,"") ->  | J19: =IF(B19>0,VLOOKUP(I19,Punkteschema!$A$2:$B$101,2,FALSE),"") -> 
E20: TRUE | J20: =IF(B20>0,VLOOKUP(I20,Punkteschema!$A$2:$B$101,2,FALSE),"") -> 
E21: TRUE | J21: =IF(B21>0,VLOOKUP(I21,Punkteschema!$A$2:$B$101,2,FALSE),"") -> 
E22: TRUE | J22: =IF(B22>0,VLOOKUP(I22,Punkteschema!$A$2:$B$101,2,FALSE),"") -> 
E23: TRUE | J23: =IF(B23>0,VLOOKUP(I23,Punkteschema!$A$2:$B$101,2,FALSE),"") -> 
E24: TRUE | J24: =IF(B24>0,VLOOKUP(I24,Punkteschema!$A$2:$B$101,2,FALSE),"") -> 
E25: TRUE | J25: =IF(B25>0,VLOOKUP(I25,Punkteschema!$A$2:$B$101,2,FALSE),"") -> 
E26: TRUE | J26: =IF(B26>0,VLOOKUP(I26,Punkteschema!$A$2:$B$101,2,FALSE),"") -> 
E27: TRUE | J27: =IF(B27>0,VLOOKUP(I27,Punkteschema!$A$2:$B$101,2,FALSE),"") -> 
E28: TRUE | J28: =IF(B28>0,VLOOKUP(I28,Punkteschema!$A$2:$B$101,2,FALSE),"") -> 
E29: TRUE | J29: =IF(B29>0,VLOOKUP(I29,Punkteschema!$A$2:$B$101,2,FALSE),"") -> 
E30: TRUE | J30: =IF(B30>0,VLOOKUP(I30,Punkteschema!$A$2:$B$101,2,FALSE),"") -> 
E31: TRUE | J31: =IF(B31>0,VLOOKUP(I31,Punkteschema!$A$2:$B$101,2,FALSE),"") -> 
E32: TRUE | J32: =IF(B32>0,VLOOKUP(I32,Punkteschema!$A$2:$B$101,2,FALSE),"") -> 
E33: TRUE | J33: =IF(B33>0,VLOOKUP(I33,Punkteschema!$A$2:$B$101,2,FALSE),"") -> 
E34: TRUE | J34: =IF(B34>0,VLOOKUP(I34,Punkteschema!$A$2:$B$101,2,FALSE),"") -> 
E35: TRUE | J35: =IF(B35>0,VLOOKUP(I35,Punkteschema!$A$2:$B$101,2,FALSE),"") -> 
E36: TRUE | J36: =IF(B36>0,VLOOKUP(I36,Punkteschema!$A$2:$B$101,2,FALSE),"") -> 
E37: TRUE | J37: =IF(B37>0,VLOOKUP(I37,Punkteschema!$A$2:$B$101,2,FALSE),"") -> 
E38: TRUE | J38: =IF(B38>0,VLOOKUP(I38,Punkteschema!$A$2:$B$101,2,FALSE),"") -> 
E39: TRUE | J39: =IF(B39>0,VLOOKUP(I39,Punkteschema!$A$2:$B$101,2,FALSE),"") -> 
E40: TRUE | J40: =IF(B40>0,VLOOKUP(I40,Punkteschema!$A$2:$B$101,2,FALSE),"") -> 
E41: TRUE | J41: =IF(B41>0,VLOOKUP(I41,Punkteschema!$A$2:$B$101,2,FALSE),"") -> 
E42: TRUE | J42: =IF(B42>0,VLOOKUP(I42,Punkteschema!$A$2:$B$101,2,FALSE),"") -> 
E43: TRUE | J43: =IF(B43>0,VLOOKUP(I43,Punkteschema!$A$2:$B$101,2,FALSE),"") -> 
E44: TRUE | J44: =IF(B44>0,VLOOKUP(I44,Punkteschema!$A$2:$B$101,2,FALSE),"") -> 
E45: TRUE | J45: =IF(B45>0,VLOOKUP(I45,Punkteschema!$A$2:$B$101,2,FALSE),"") -> 
E46: TRUE | J46: =IF(B46>0,VLOOKUP(I46,Punkteschema!$A$2:$B$101,2,FALSE),"") -> 
E47: TRUE | J47: =IF(B47>0,VLOOKUP(I47,Punkteschema!$A$2:$B$101,2,FALSE),"") -> 
E48: TRUE | J48: =IF(B48>0,VLOOKUP(I48,Punkteschema!$A$2:$B$101,2,FALSE),"") -> 
E49: TRUE | J49: =IF(B49>0,VLOOKUP(I49,Punkteschema!$A$2:$B$101,2,FALSE),"") -> 
E50: TRUE | J50: =IF(B50>0,VLOOKUP(I50,Punkteschema!$A$2:$B$101,2,FALSE),"") -> 
E51: TRUE | J51: =IF(B51>0,VLOOKUP(I51,Punkteschema!$A$2:$B$101,2,FALSE),"") -> 
E52: TRUE | J52: =IF(B52>0,VLOOKUP(I52,Punkteschema!$A$2:$B$101,2,FALSE),"") -> 
E53: TRUE | F53: =IF(B53>0,COUNTIF(B$3:B$55,"<"&B53)+1,"") ->  | H53: =IF(AND(B53>0,C53>0),COUNTIF(D$3:D$55,"<"&D53)+1,"") ->  | J53: =IF(B53>0,VLOOKUP(I53,Punkteschema!$A$2:$B$101,2,FALSE),"") -> 
E54: TRUE | H54: =IF(AND(B54>0,C54>0),COUNTIF(D$3:D$55,"<"&D54)+1,"") ->  | J54: =IF(B54>0,VLOOKUP(I54,Punkteschema!$A$2:$B$101,2,FALSE),"") -> 
E55: TRUE | H55: =IF(AND(B55>0,C55>0),COUNTIF(D$3:D$55,"<"&D55)+1,"") ->  | J55: =IF(B55>0,VLOOKUP(I55,Punkteschema!$A$2:$B$101,2,FALSE),"") -> 
A57: OS: Buchholz, Ansgar (ASW) | E57: Runde 1: | F57: E | G57: <- E/B
A58: S: Puschner, Michael (HOB) | E58: Runde 2: | F58: B | G58: <- E/B
A59: S: Paffrath, Sigi (HEV)
A61: Verloste Preise:
A62: Kunz, Martin | B62: 1 Flasche Merlot
A63: Buchholz, Ansgar | B63: 1 Minigolfball

Sheet Einzelwertung7
A1: =CONCATENATE("7. Sommer-Cup - Freizeittreff Herbede - ",TEXT(Gesamtstand!$L$2,"TT.MM.JJ")) -> 7. Sommer-Cup - Freizeittreff Herbede - 15.06.22
A2: Spieler | B2: Runde 1 | C2: Runde 2 | D2: Gesamt | E2: bessere? | F2: Pl. R1 | G2: Pl. R2 | H2: Pl. Ges. | I2: gewertet | J2: Punkte
A3: Rabe, Jonas | B3: 23 | C3: 31 | D3: =IF(B3>0,C3+B3,"") -> 54 | E3: TRUE | F3: =IF(B3>0,COUNTIF(B$3:B$55,"<"&B3)+1,"") -> 1 | G3: =IF(C3>0,COUNTIF(C$3:C$55,"<"&C3)+1,"") -> 1 | H3: =IF(AND(B3>0,C3>0),COUNTIF(D$3:D$55,"<"&D3)+1,"") -> 1 | I3: =IF(B3>0,IF(E3,MIN(F3:H3),SUM(F3:H3)-MAX(F3:H3)-MIN(F3:H3)),"") -> 1 | J3: =IF(B3>0,VLOOKUP(I3,Punkteschema!$A$2:$B$101,2,FALSE),"") -> 25
A4: Lenk, Rolf | B4: 26 | C4: 32 | D4: 58 | E4: TRUE | F4: 4 | G4: 3 | H4: 2 | I4: 2 | J4: =IF(B4>0,VLOOKUP(I4,Punkteschema!$A$2:$B$101,2,FALSE),"") -> 21
A5: Urban, Dominic | B5: 24 | C5: 35 | D5: 59 | E5: TRUE | F5: 2 | G5: 8 | H5: 3 | I5: 2 | J5: =IF(B5>0,VLOOKUP(I5,Punkteschema!$A$2:$B$101,2,FALSE),"") -> 21
A6: Buchholz, Ansgar | B6: 27 | C6: 32 | D6: 59 | E6: FALSE | F6: 5 | G6: 3 | H6: 3 | I6: 3 | J6: =IF(B6>0,VLOOKUP(I6,Punkteschema!$A$2:$B$101,2,FALSE),"") -> 18
A7: Brunnenkant, Frank | B7: 27 | C7: 33 | D7: 60 | E7: TRUE | F7: 5 | G7: 5 | H7: 5 | I7: 5 | J7: =IF(B7>0,VLOOKUP(I7,Punkteschema!$A$2:$B$101,2,FALSE),"") -> 15
A8: Urban, Volker | B8: 28 | C8: 33 | D8: 61 | E8: TRUE | F8: 7 | G8: 5 | H8: 6 | I8: 5 | J8: =IF(B8>0,VLOOKUP(I8,Punkteschema!$A$2:$B$101,2,FALSE),"") -> 15
A9: Kortmann, Sabine | B9: 34 | C9: 33 | D9: 67 | E9: TRUE | F9: 10 | G9: 5 | H9: 9 | I9: 5 | J9: =IF(B9>0,VLOOKUP(I9,Punkteschema!$A$2:$B$101,2,FALSE),"") -> 15
A10: Rade, Marcus | B10: 25 | C10: 37 | D10: 62 | E10: FALSE | F10: 3 | G10: 10 | H10: 7 | I10: 7 | J10: =IF(B10>0,VLOOKUP(I10,Punkteschema!$A$2:$B$101,2,FALSE),"") -> 10
A11: Puschner, Michael | B11: 31 | C11: 31 | D11: 62 | E11: FALSE | F11: 9 | G11: 1 | H11: 7 | I11: 7 | J11: =IF(B11>0,VLOOKUP(I11,Punkteschema!$A$2:$B$101,2,FALSE),"") -> 10
A12: Gattner, Karsten | B12: 35 | C12: 35 | D12: 70 | E12: TRUE | F12: 11 | G12: 8 | H12: 11 | I12: 8 | J12: =IF(B12>0,VLOOKUP(I12,Punkteschema!$A$2:$B$101,2,FALSE),"") -> 10
A13: Kunz, Martin | B13: 29 | C13: 39 | D13: 68 | E13: FALSE | F13: 8 | G13: 11 | H13: 10 | I13: 10 | J13: =IF(B13>0,VLOOKUP(I13,Punkteschema!$A$2:$B$101,2,FALSE),"") -> 10
A14: Schmidtbauer, Günter | B14: 39 | C14: 48 | D14: 87 | E14: TRUE | F14: 12 | G14: 13 | H14: 12 | I14: 12 | J14: =IF(B14>0,VLOOKUP(I14,Punkteschema!$A$2:$B$101,2,FALSE),"") -> 5
A15: Dreischer, Burkhard | B15: 46 | C15: 42 | D15: 88 | E15: TRUE | F15: 13 | G15: 12 | H15: 13 | I15: 12 | J15: =IF(B15>0,VLOOKUP(I15,Punkteschema!$A$2:$B$101,2,FALSE),"") -> 5
D16: =IF(B16>0,C16+B16,"") ->  | E16: TRUE | F16: =IF(B16>0,COUNTIF(B$3:B$55,"<"&B16)+1,"") ->  | H16: =IF(AND(B16>0,C16>0),COUNTIF(D$3:D$55,"<"&D16)+1,"") ->  | I16: =IF(B16>0,IF(E16,MIN(F16:H16),SUM(F16:H16)-MAX(F16:H16)-MIN(F16:H16)),"") ->  | J16: =IF(B16>0,VLOOKUP(I16,Punkteschema!$A$2:$B$101,2,FALSE),"") -> 
E17: TRUE | J17: =IF(B17>0,VLOOKUP(I17,Punkteschema!$A$2:$B$101,2,FALSE),"") -> 
E18: TRUE | J18: =IF(B18>0,VLOOKUP(I18,Punkteschema!$A$2:$B$101,2,FALSE),"") -> 
E19: TRUE | F19: =IF(B19>0,COUNTIF(B$3:B$55,"<"&B19)+1,"") ->  | J19: =IF(B19>0,VLOOKUP(I19,Punkteschema!$A$2:$B$101,2,FALSE),"") -> 
E20: TRUE | J20: =IF(B20>0,VLOOKUP(I20,Punkteschema!$A$2:$B$101,2,FALSE),"") -> 
E21: TRUE | J21: =IF(B21>0,VLOOKUP(I21,Punkteschema!$A$2:$B$101,2,FALSE),"") -> 
E22: TRUE | J22: =IF(B22>0,VLOOKUP(I22,Punkteschema!$A$2:$B$101,2,FALSE),"") -> 
E23: TRUE | J23: =IF(B23>0,VLOOKUP(I23,Punkteschema!$A$2:$B$101,2,FALSE),"") -> 
E24: TRUE | J24: =IF(B24>0,VLOOKUP(I24,Punkteschema!$A$2:$B$101,2,FALSE),"") -> 
E25: TRUE | J25: =IF(B25>0,VLOOKUP(I25,Punkteschema!$A$2:$B$101,2,FALSE),"") -> 
E26: TRUE | J26: =IF(B26>0,VLOOKUP(I26,Punkteschema!$A$2:$B$101,2,FALSE),"") -> 
E27: TRUE | J27: =IF(B27>0,VLOOKUP(I27,Punkteschema!$A$2:$B$101,2,FALSE),"") -> 
E28: TRUE | J28: =IF(B28>0,VLOOKUP(I28,Punkteschema!$A$2:$B$101,2,FALSE),"") -> 
E29: TRUE | J29: =IF(B29>0,VLOOKUP(I29,Punkteschema!$A$2:$B$101,2,FALSE),"") -> 
E30: TRUE | J30: =IF(B30>0,VLOOKUP(I30,Punkteschema!$A$2:$B$101,2,FALSE),"") -> 
E31: TRUE | J31: =IF(B31>0,VLOOKUP(I31,Punkteschema!$A$2:$B$101,2,FALSE),"") -> 
E32: TRUE | J32: =IF(B32>0,VLOOKUP(I32,Punkteschema!$A$2:$B$101,2,FALSE),"") -> 
E33: TRUE | J33: =IF(B33>0,VLOOKUP(I33,Punkteschema!$A$2:$B$101,2,FALSE),"") -> 
E34: TRUE | J34: =IF(B34>0,VLOOKUP(I34,Punkteschema!$A$2:$B$101,2,FALSE),"") -> 
E35: TRUE | J35: =IF(B35>0,VLOOKUP(I35,Punkteschema!$A$2:$B$101,2,FALSE),"") -> 
E36: TRUE | J36: =IF(B36>0,VLOOKUP(I36,Punkteschema!$A$2:$B$101,2,FALSE),"") -> 
E37: TRUE | J37: =IF(B37>0,VLOOKUP(I37,Punkteschema!$A$2:$B$101,2,FALSE),"") -> 
E38: TRUE | J38: =IF(B38>0,VLOOKUP(I38,Punkteschema!$A$2:$B$101,2,FALSE),"") -> 
E39: TRUE | J39: =IF(B39>0,VLOOKUP(I39,Punkteschema!$A$2:$B$101,2,FALSE),"") -> 
E40: TRUE | J40: =IF(B40>0,VLOOKUP(I40,Punkteschema!$A$2:$B$101,2,FALSE),"") -> 
E41: TRUE | J41: =IF(B41>0,VLOOKUP(I41,Punkteschema!$A$2:$B$101,2,FALSE),"") -> 
E42: TRUE | J42: =IF(B42>0,VLOOKUP(I42,Punkteschema!$A$2:$B$101,2,FALSE),"") -> 
E43: TRUE | J43: =IF(B43>0,VLOOKUP(I43,Punkteschema!$A$2:$B$101,2,FALSE),"") -> 
E44: TRUE | J44: =IF(B44>0,VLOOKUP(I44,Punkteschema!$A$2:$B$101,2,FALSE),"") -> 
E45: TRUE | J45: =IF(B45>0,VLOOKUP(I45,Punkteschema!$A$2:$B$101,2,FALSE),"") -> 
E46: TRUE | J46: =IF(B46>0,VLOOKUP(I46,Punkteschema!$A$2:$B$101,2,FALSE),"") -> 
E47: TRUE | J47: =IF(B47>0,VLOOKUP(I47,Punkteschema!$A$2:$B$101,2,FALSE),"") -> 
E48: TRUE | J48: =IF(B48>0,VLOOKUP(I48,Punkteschema!$A$2:$B$101,2,FALSE),"") -> 
E49: TRUE | J49: =IF(B49>0,VLOOKUP(I49,Punkteschema!$A$2:$B$101,2,FALSE),"") -> 
E50: TRUE | J50: =IF(B50>0,VLOOKUP(I50,Punkteschema!$A$2:$B$101,2,FALSE),"") -> 
E51: TRUE | J51: =IF(B51>0,VLOOKUP(I51,Punkteschema!$A$2:$B$101,2,FALSE),"") -> 
E52: TRUE | J52: =IF(B52>0,VLOOKUP(I52,Punkteschema!$A$2:$B$101,2,FALSE),"") -> 
E53: TRUE | F53: =IF(B53>0,COUNTIF(B$3:B$55,"<"&B53)+1,"") ->  | H53: =IF(AND(B53>0,C53>0),COUNTIF(D$3:D$55,"<"&D53)+1,"") ->  | J53: =IF(B53>0,VLOOKUP(I53,Punkteschema!$A$2:$B$101,2,FALSE),"") -> 
E54: TRUE | H54: =IF(AND(B54>0,C54>0),COUNTIF(D$3:D$55,"<"&D54)+1,"") ->  | J54: =IF(B54>0,VLOOKUP(I54,Punkteschema!$A$2:$B$101,2,FALSE),"") -> 
E55: TRUE | H55: =IF(AND(B55>0,C55>0),COUNTIF(D$3:D$55,"<"&D55)+1,"") ->  | J55: =IF(B55>0,VLOOKUP(I55,Punkteschema!$A$2:$B$101,2,FALSE),"") -> 
A57: OS: Urban, Volker (ASW) | E57: Runde 1: | F57: E | G57: <- E/B
A58: S: Puschner, Michael (HOB) | E58: Runde 2: | F58: B | G58: <- E/B
A59: S: Buchholz, Ansgar (ASW)
A61: Verloste Preise:
A62: Kortmann, Sabine | B62: 1 Minigolfball DJM 2014
A63: Puschner, Michael | B63: 2 Peanuts-Tassen
A64: Urban, Volker | B64: 1 Sitzkissen

Sheet Einzelwertung8
A1: =CONCATENATE("7. Sommer-Cup - Freizeittreff Herbede - ",TEXT(Gesamtstand!$M$2,"TT.MM.JJ")) -> 7. Sommer-Cup - Freizeittreff Herbede - 23.06.22
A2: Spieler | B2: Runde 1 | C2: Runde 2 | D2: Gesamt | E2: bessere? | F2: Pl. R1 | G2: Pl. R2 | H2: Pl. Ges. | I2: gewertet | J2: Punkte
A3: Buchholz, Ansgar | B3: 24 | C3: 28 | D3: =IF(B3>0,C3+B3,"") -> 52 | E3: FALSE | F3: =IF(B3>0,COUNTIF(B$3:B$55,"<"&B3)+1,"") -> 1 | G3: =IF(C3>0,COUNTIF(C$3:C$55,"<"&C3)+1,"") -> 1 | H3: =IF(AND(B3>0,C3>0),COUNTIF(D$3:D$55,"<"&D3)+1,"") -> 1 | I3: =IF(B3>0,IF(E3,MIN(F3:H3),SUM(F3:H3)-MAX(F3:H3)-MIN(F3:H3)),"") -> 1 | J3: =IF(B3>0,VLOOKUP(I3,Punkteschema!$A$2:$B$101,2,FALSE),"") -> 25
A4: Rade, Marcus | B4: 24 | C4: 31 | D4: 55 | E4: TRUE | F4: 1 | G4: 2 | H4: 2 | I4: 1 | J4: =IF(B4>0,VLOOKUP(I4,Punkteschema!$A$2:$B$101,2,FALSE),"") -> 25
A5: Urban, Volker | B5: 24 | C5: 35 | D5: 59 | E5: TRUE | F5: 1 | G5: 4 | H5: 3 | I5: 1 | J5: =IF(B5>0,VLOOKUP(I5,Punkteschema!$A$2:$B$101,2,FALSE),"") -> 25
A6: Rabe, Jonas | B6: 29 | C6: 34 | D6: 63 | E6: FALSE | F6: 5 | G6: 3 | H6: 4 | I6: 4 | J6: =IF(B6>0,VLOOKUP(I6,Punkteschema!$A$2:$B$101,2,FALSE),"") -> 15
A7: Brunnenkant, Frank | B7: 29 | C7: 35 | D7: 64 | E7: TRUE | F7: 5 | G7: 4 | H7: 5 | I7: 4 | J7: =IF(B7>0,VLOOKUP(I7,Punkteschema!$A$2:$B$101,2,FALSE),"") -> 15
A8: Kortmann, Sabine | B8: 28 | C8: 37 | D8: 65 | E8: TRUE | F8: 4 | G8: 7 | H8: 6 | I8: 4 | J8: =IF(B8>0,VLOOKUP(I8,Punkteschema!$A$2:$B$101,2,FALSE),"") -> 15
A9: Puschner, Michael | B9: 34 | C9: 35 | D9: 69 | E9: TRUE | F9: 12 | G9: 4 | H9: 7 | I9: 4 | J9: =IF(B9>0,VLOOKUP(I9,Punkteschema!$A$2:$B$101,2,FALSE),"") -> 15
A10: Lenk, Rolf | B10: 30 | C10: 39 | D10: 69 | E10: FALSE | F10: 7 | G10: 10 | H10: 7 | I10: 7 | J10: =IF(B10>0,VLOOKUP(I10,Punkteschema!$A$2:$B$101,2,FALSE),"") -> 10
A11: Paffrath, Ben | B11: 33 | C11: 38 | D11: 71 | E11: TRUE | F11: 8 | G11: 8 | H11: 9 | I11: 8 | J11: =IF(B11>0,VLOOKUP(I11,Punkteschema!$A$2:$B$101,2,FALSE),"") -> 10
A12: Schmidtbauer, Günter | B12: 33 | C12: 38 | D12: 71 | E12: TRUE | F12: 8 | G12: 8 | H12: 9 | I12: 8 | J12: =IF(B12>0,VLOOKUP(I12,Punkteschema!$A$2:$B$101,2,FALSE),"") -> 10
A13: Gattner, Karsten | B13: 33 | C13: 42 | D13: 75 | E13: TRUE | F13: 8 | G13: 12 | H13: 11 | I13: 8 | J13: =IF(B13>0,VLOOKUP(I13,Punkteschema!$A$2:$B$101,2,FALSE),"") -> 10
A14: Kunz, Martin | B14: 33 | C14: 43 | D14: 76 | E14: TRUE | F14: 8 | G14: 13 | H14: 12 | I14: 8 | J14: =IF(B14>0,VLOOKUP(I14,Punkteschema!$A$2:$B$101,2,FALSE),"") -> 10
A15: Urban, Angela | B15: 37 | C15: 39 | D15: 76 | E15: TRUE | F15: 13 | G15: 10 | H15: 12 | I15: 10 | J15: =IF(B15>0,VLOOKUP(I15,Punkteschema!$A$2:$B$101,2,FALSE),"") -> 10
D16: =IF(B16>0,C16+B16,"") ->  | E16: TRUE | F16: =IF(B16>0,COUNTIF(B$3:B$55,"<"&B16)+1,"") ->  | H16: =IF(AND(B16>0,C16>0),COUNTIF(D$3:D$55,"<"&D16)+1,"") ->  | I16: =IF(B16>0,IF(E16,MIN(F16:H16),SUM(F16:H16)-MAX(F16:H16)-MIN(F16:H16)),"") ->  | J16: =IF(B16>0,VLOOKUP(I16,Punkteschema!$A$2:$B$101,2,FALSE),"") -> 
E17: TRUE | J17: =IF(B17>0,VLOOKUP(I17,Punkteschema!$A$2:$B$101,2,FALSE),"") -> 
E18: TRUE | J18: =IF(B18>0,VLOOKUP(I18,Punkteschema!$A$2:$B$101,2,FALSE),"") -> 
E19: TRUE | F19: =IF(B19>0,COUNTIF(B$3:B$55,"<"&B19)+1,"") ->  | J19: =IF(B19>0,VLOOKUP(I19,Punkteschema!$A$2:$B$101,2,FALSE),"") -> 
E20: TRUE | J20: =IF(B20>0,VLOOKUP(I20,Punkteschema!$A$2:$B$101,2,FALSE),"") -> 
E21: TRUE | J21: =IF(B21>0,VLOOKUP(I21,Punkteschema!$A$2:$B$101,2,FALSE),"") -> 
E22: TRUE | J22: =IF(B22>0,VLOOKUP(I22,Punkteschema!$A$2:$B$101,2,FALSE),"") -> 
E23: TRUE | J23: =IF(B23>0,VLOOKUP(I23,Punkteschema!$A$2:$B$101,2,FALSE),"") -> 
E24: TRUE | J24: =IF(B24>0,VLOOKUP(I24,Punkteschema!$A$2:$B$101,2,FALSE),"") -> 
E25: TRUE | J25: =IF(B25>0,VLOOKUP(I25,Punkteschema!$A$2:$B$101,2,FALSE),"") -> 
E26: TRUE | J26: =IF(B26>0,VLOOKUP(I26,Punkteschema!$A$2:$B$101,2,FALSE),"") -> 
E27: TRUE | J27: =IF(B27>0,VLOOKUP(I27,Punkteschema!$A$2:$B$101,2,FALSE),"") -> 
E28: TRUE | J28: =IF(B28>0,VLOOKUP(I28,Punkteschema!$A$2:$B$101,2,FALSE),"") -> 
E29: TRUE | J29: =IF(B29>0,VLOOKUP(I29,Punkteschema!$A$2:$B$101,2,FALSE),"") -> 
E30: TRUE | J30: =IF(B30>0,VLOOKUP(I30,Punkteschema!$A$2:$B$101,2,FALSE),"") -> 
E31: TRUE | J31: =IF(B31>0,VLOOKUP(I31,Punkteschema!$A$2:$B$101,2,FALSE),"") -> 
E32: TRUE | J32: =IF(B32>0,VLOOKUP(I32,Punkteschema!$A$2:$B$101,2,FALSE),"") -> 
E33: TRUE | J33: =IF(B33>0,VLOOKUP(I33,Punkteschema!$A$2:$B$101,2,FALSE),"") -> 
E34: TRUE | J34: =IF(B34>0,VLOOKUP(I34,Punkteschema!$A$2:$B$101,2,FALSE),"") -> 
E35: TRUE | J35: =IF(B35>0,VLOOKUP(I35,Punkteschema!$A$2:$B$101,2,FALSE),"") -> 
E36: TRUE | J36: =IF(B36>0,VLOOKUP(I36,Punkteschema!$A$2:$B$101,2,FALSE),"") -> 
E37: TRUE | J37: =IF(B37>0,VLOOKUP(I37,Punkteschema!$A$2:$B$101,2,FALSE),"") -> 
E38: TRUE | J38: =IF(B38>0,VLOOKUP(I38,Punkteschema!$A$2:$B$101,2,FALSE),"") -> 
E39: TRUE | J39: =IF(B39>0,VLOOKUP(I39,Punkteschema!$A$2:$B$101,2,FALSE),"") -> 
E40: TRUE | J40: =IF(B40>0,VLOOKUP(I40,Punkteschema!$A$2:$B$101,2,FALSE),"") -> 
E41: TRUE | J41: =IF(B41>0,VLOOKUP(I41,Punkteschema!$A$2:$B$101,2,FALSE),"") -> 
E42: TRUE | J42: =IF(B42>0,VLOOKUP(I42,Punkteschema!$A$2:$B$101,2,FALSE),"") -> 
E43: TRUE | J43: =IF(B43>0,VLOOKUP(I43,Punkteschema!$A$2:$B$101,2,FALSE),"") -> 
E44: TRUE | J44: =IF(B44>0,VLOOKUP(I44,Punkteschema!$A$2:$B$101,2,FALSE),"") -> 
E45: TRUE | J45: =IF(B45>0,VLOOKUP(I45,Punkteschema!$A$2:$B$101,2,FALSE),"") -> 
E46: TRUE | J46: =IF(B46>0,VLOOKUP(I46,Punkteschema!$A$2:$B$101,2,FALSE),"") -> 
E47: TRUE | J47: =IF(B47>0,VLOOKUP(I47,Punkteschema!$A$2:$B$101,2,FALSE),"") -> 
E48: TRUE | J48: =IF(B48>0,VLOOKUP(I48,Punkteschema!$A$2:$B$101,2,FALSE),"") -> 
E49: TRUE | J49: =IF(B49>0,VLOOKUP(I49,Punkteschema!$A$2:$B$101,2,FALSE),"") -> 
E50: TRUE | J50: =IF(B50>0,VLOOKUP(I50,Punkteschema!$A$2:$B$101,2,FALSE),"") -> 
E51: TRUE | J51: =IF(B51>0,VLOOKUP(I51,Punkteschema!$A$2:$B$101,2,FALSE),"") -> 
E52: TRUE | J52: =IF(B52>0,VLOOKUP(I52,Punkteschema!$A$2:$B$101,2,FALSE),"") -> 
E53: TRUE | F53: =IF(B53>0,COUNTIF(B$3:B$55,"<"&B53)+1,"") ->  | H53: =IF(AND(B53>0,C53>0),COUNTIF(D$3:D$55,"<"&D53)+1,"") ->  | J53: =IF(B53>0,VLOOKUP(I53,Punkteschema!$A$2:$B$101,2,FALSE),"") -> 
E54: TRUE | H54: =IF(AND(B54>0,C54>0),COUNTIF(D$3:D$55,"<"&D54)+1,"") ->  | J54: =IF(B54>0,VLOOKUP(I54,Punkteschema!$A$2:$B$101,2,FALSE),"") -> 
E55: TRUE | H55: =IF(AND(B55>0,C55>0),COUNTIF(D$3:D$55,"<"&D55)+1,"") ->  | J55: =IF(B55>0,VLOOKUP(I55,Punkteschema!$A$2:$B$101,2,FALSE),"") -> 
A57: OS: Buchholz, Ansgar (ASW) | E57: Runde 1: | F57: E | G57: <- E/B
A58: S: Puschner, Michael (HOB) | E58: Runde 2: | F58: B | G58: <- E/B
A59: S: Urban, Volker (ASW)
A61: Verloste Preise:
A62: Kunz, Martin | B62: 1 Dose Haribo Color-Rado
A63: Gattner, Karsten | B63: 1 Minigolfball 3D 846
A64: Schmidtbauer, Günter | B64: 1 Verzehrgutschein

Sheet Einzelwertung9
A1: =CONCATENATE("7. Sommer-Cup - Freizeittreff Herbede - ",TEXT(Gesamtstand!$N$2,"TT.MM.JJ")) -> 7. Sommer-Cup - Freizeittreff Herbede - 30.06.22
A2: Spieler | B2: Runde 1 | C2: Runde 2 | D2: Gesamt | E2: bessere? | F2: Pl. R1 | G2: Pl. R2 | H2: Pl. Ges. | I2: gewertet | J2: Punkte
A3: Rabe, Jonas | B3: 21 | D3: =IF(B3>0,C3+B3,"") -> 21 | E3: TRUE | F3: =IF(B3>0,COUNTIF(B$3:B$55,"<"&B3)+1,"") -> 1 | G3: =IF(C3>0,COUNTIF(C$3:C$55,"<"&C3)+1,"") ->  | H3: =IF(AND(B3>0,C3>0),COUNTIF(D$3:D$55,"<"&D3)+1,"") ->  | I3: =IF(B3>0,IF(E3,MIN(F3:H3),SUM(F3:H3)-MAX(F3:H3)-MIN(F3:H3)),"") -> 1 | J3: =IF(B3>0,VLOOKUP(I3,Punkteschema!$A$2:$B$101,2,FALSE),"") -> 25
A4: Rade, Marcus | B4: 25 | D4: 25 | E4: TRUE | F4: 2 | I4: 2 | J4: =IF(B4>0,VLOOKUP(I4,Punkteschema!$A$2:$B$101,2,FALSE),"") -> 21
A5: Kortmann, Sabine | B5: 26 | D5: 26 | E5: TRUE | F5: 3 | I5: 3 | J5: =IF(B5>0,VLOOKUP(I5,Punkteschema!$A$2:$B$101,2,FALSE),"") -> 18
A6: Börgmann, Ulrich | B6: 28 | D6: 28 | E6: TRUE | F6: 4 | I6: 4 | J6: =IF(B6>0,VLOOKUP(I6,Punkteschema!$A$2:$B$101,2,FALSE),"") -> 15
A7: Puschner, Michael | B7: 29 | D7: 29 | E7: TRUE | F7: 5 | I7: 5 | J7: =IF(B7>0,VLOOKUP(I7,Punkteschema!$A$2:$B$101,2,FALSE),"") -> 15
A8: Paffrath, Ben | B8: 31 | D8: 31 | E8: TRUE | F8: 6 | I8: 6 | J8: =IF(B8>0,VLOOKUP(I8,Punkteschema!$A$2:$B$101,2,FALSE),"") -> 15
A9: Brunnenkant, Frank | B9: 31 | D9: 31 | E9: TRUE | F9: 6 | I9: 6 | J9: =IF(B9>0,VLOOKUP(I9,Punkteschema!$A$2:$B$101,2,FALSE),"") -> 15
A10: Gattner, Karsten | B10: 36 | D10: 36 | E10: TRUE | F10: 8 | I10: 8 | J10: =IF(B10>0,VLOOKUP(I10,Punkteschema!$A$2:$B$101,2,FALSE),"") -> 10
A11: Schmidtbauer, Günter | B11: 37 | D11: 37 | E11: TRUE | F11: 9 | I11: 9 | J11: =IF(B11>0,VLOOKUP(I11,Punkteschema!$A$2:$B$101,2,FALSE),"") -> 10
A12: Lenk, Rolf | B12: 37 | D12: 37 | E12: TRUE | F12: 9 | I12: 9 | J12: =IF(B12>0,VLOOKUP(I12,Punkteschema!$A$2:$B$101,2,FALSE),"") -> 10
A13: Börgmann, Brigitte | B13: 41 | D13: 41 | E13: TRUE | F13: 11 | I13: 11 | J13: =IF(B13>0,VLOOKUP(I13,Punkteschema!$A$2:$B$101,2,FALSE),"") -> 5
D14: =IF(B14>0,C14+B14,"") ->  | E14: TRUE | F14: =IF(B14>0,COUNTIF(B$3:B$55,"<"&B14)+1,"") ->  | H14: =IF(AND(B14>0,C14>0),COUNTIF(D$3:D$55,"<"&D14)+1,"") ->  | I14: =IF(B14>0,IF(E14,MIN(F14:H14),SUM(F14:H14)-MAX(F14:H14)-MIN(F14:H14)),"") ->  | J14: =IF(B14>0,VLOOKUP(I14,Punkteschema!$A$2:$B$101,2,FALSE),"") -> 
E15: TRUE | J15: =IF(B15>0,VLOOKUP(I15,Punkteschema!$A$2:$B$101,2,FALSE),"") -> 
E16: TRUE | J16: =IF(B16>0,VLOOKUP(I16,Punkteschema!$A$2:$B$101,2,FALSE),"") -> 
E17: TRUE | J17: =IF(B17>0,VLOOKUP(I17,Punkteschema!$A$2:$B$101,2,FALSE),"") -> 
E18: TRUE | J18: =IF(B18>0,VLOOKUP(I18,Punkteschema!$A$2:$B$101,2,FALSE),"") -> 
E19: TRUE | F19: =IF(B19>0,COUNTIF(B$3:B$55,"<"&B19)+1,"") ->  | J19: =IF(B19>0,VLOOKUP(I19,Punkteschema!$A$2:$B$101,2,FALSE),"") -> 
E20: TRUE | J20: =IF(B20>0,VLOOKUP(I20,Punkteschema!$A$2:$B$101,2,FALSE),"") -> 
E21: TRUE | J21: =IF(B21>0,VLOOKUP(I21,Punkteschema!$A$2:$B$101,2,FALSE),"") -> 
E22: TRUE | J22: =IF(B22>0,VLOOKUP(I22,Punkteschema!$A$2:$B$101,2,FALSE),"") -> 
E23: TRUE | J23: =IF(B23>0,VLOOKUP(I23,Punkteschema!$A$2:$B$101,2,FALSE),"") -> 
E24: TRUE | J24: =IF(B24>0,VLOOKUP(I24,Punkteschema!$A$2:$B$101,2,FALSE),"") -> 
E25: TRUE | J25: =IF(B25>0,VLOOKUP(I25,Punkteschema!$A$2:$B$101,2,FALSE),"") -> 
E26: TRUE | J26: =IF(B26>0,VLOOKUP(I26,Punkteschema!$A$2:$B$101,2,FALSE),"") -> 
E27: TRUE | J27: =IF(B27>0,VLOOKUP(I27,Punkteschema!$A$2:$B$101,2,FALSE),"") -> 
E28: TRUE | J28: =IF(B28>0,VLOOKUP(I28,Punkteschema!$A$2:$B$101,2,FALSE),"") -> 
E29: TRUE | J29: =IF(B29>0,VLOOKUP(I29,Punkteschema!$A$2:$B$101,2,FALSE),"") -> 
E30: TRUE | J30: =IF(B30>0,VLOOKUP(I30,Punkteschema!$A$2:$B$101,2,FALSE),"") -> 
E31: TRUE | J31: =IF(B31>0,VLOOKUP(I31,Punkteschema!$A$2:$B$101,2,FALSE),"") -> 
E32: TRUE | J32: =IF(B32>0,VLOOKUP(I32,Punkteschema!$A$2:$B$101,2,FALSE),"") -> 
E33: TRUE | J33: =IF(B33>0,VLOOKUP(I33,Punkteschema!$A$2:$B$101,2,FALSE),"") -> 
E34: TRUE | J34: =IF(B34>0,VLOOKUP(I34,Punkteschema!$A$2:$B$101,2,FALSE),"") -> 
E35: TRUE | J35: =IF(B35>0,VLOOKUP(I35,Punkteschema!$A$2:$B$101,2,FALSE),"") -> 
E36: TRUE | J36: =IF(B36>0,VLOOKUP(I36,Punkteschema!$A$2:$B$101,2,FALSE),"") -> 
E37: TRUE | J37: =IF(B37>0,VLOOKUP(I37,Punkteschema!$A$2:$B$101,2,FALSE),"") -> 
E38: TRUE | J38: =IF(B38>0,VLOOKUP(I38,Punkteschema!$A$2:$B$101,2,FALSE),"") -> 
E39: TRUE | J39: =IF(B39>0,VLOOKUP(I39,Punkteschema!$A$2:$B$101,2,FALSE),"") -> 
E40: TRUE | J40: =IF(B40>0,VLOOKUP(I40,Punkteschema!$A$2:$B$101,2,FALSE),"") -> 
E41: TRUE | J41: =IF(B41>0,VLOOKUP(I41,Punkteschema!$A$2:$B$101,2,FALSE),"") -> 
E42: TRUE | J42: =IF(B42>0,VLOOKUP(I42,Punkteschema!$A$2:$B$101,2,FALSE),"") -> 
E43: TRUE | J43: =IF(B43>0,VLOOKUP(I43,Punkteschema!$A$2:$B$101,2,FALSE),"") -> 
E44: TRUE | J44: =IF(B44>0,VLOOKUP(I44,Punkteschema!$A$2:$B$101,2,FALSE),"") -> 
E45: TRUE | J45: =IF(B45>0,VLOOKUP(I45,Punkteschema!$A$2:$B$101,2,FALSE),"") -> 
E46: TRUE | J46: =IF(B46>0,VLOOKUP(I46,Punkteschema!$A$2:$B$101,2,FALSE),"") -> 
E47: TRUE | J47: =IF(B47>0,VLOOKUP(I47,Punkteschema!$A$2:$B$101,2,FALSE),"") -> 
E48: TRUE | J48: =IF(B48>0,VLOOKUP(I48,Punkteschema!$A$2:$B$101,2,FALSE),"") -> 
E49: TRUE | J49: =IF(B49>0,VLOOKUP(I49,Punkteschema!$A$2:$B$101,2,FALSE),"") -> 
E50: TRUE | J50: =IF(B50>0,VLOOKUP(I50,Punkteschema!$A$2:$B$101,2,FALSE),"") -> 
E51: TRUE | J51: =IF(B51>0,VLOOKUP(I51,Punkteschema!$A$2:$B$101,2,FALSE),"") -> 
E52: TRUE | J52: =IF(B52>0,VLOOKUP(I52,Punkteschema!$A$2:$B$101,2,FALSE),"") -> 
E53: TRUE | F53: =IF(B53>0,COUNTIF(B$3:B$55,"<"&B53)+1,"") ->  | H53: =IF(AND(B53>0,C53>0),COUNTIF(D$3:D$55,"<"&D53)+1,"") ->  | J53: =IF(B53>0,VLOOKUP(I53,Punkteschema!$A$2:$B$101,2,FALSE),"") -> 
E54: TRUE | H54: =IF(AND(B54>0,C54>0),COUNTIF(D$3:D$55,"<"&D54)+1,"") ->  | J54: =IF(B54>0,VLOOKUP(I54,Punkteschema!$A$2:$B$101,2,FALSE),"") -> 
E55: TRUE | H55: =IF(AND(B55>0,C55>0),COUNTIF(D$3:D$55,"<"&D55)+1,"") ->  | J55: =IF(B55>0,VLOOKUP(I55,Punkteschema!$A$2:$B$101,2,FALSE),"") -> 
A57: OS: Rade, Marcus (OSN) | E57: Runde 1: | F57: E | G57: <- E/B
A58: S: Paffrath, Ben (Hev) | E58: Runde 2: | F58: B | G58: <- E/B
A59: S: Puschner, Michael (HOB)
A61: Verloste Preise:
A62: Rabe, Jonas | B62: 1 Minigolfball
A63: Kortmann, Sabine | B63: 1 Dose Haribo Fresh&Fruity
A65: Wegen eines heranziehenden Gewitters wurde die Betonrunde unterbrochen und später abgebrochen.

Sheet Einzelwertung10
A1: =CONCATENATE("7. Sommer-Cup - Freizeittreff Herbede - ",TEXT(Gesamtstand!$O$2,"TT.MM.JJ")) -> 7. Sommer-Cup - Freizeittreff Herbede - 07.07.22
A2: Spieler | B2: Runde 1 | C2: Runde 2 | D2: Gesamt | E2: bessere? | F2: Pl. R1 | G2: Pl. R2 | H2: Pl. Ges. | I2: gewertet | J2: Punkte
A3: Buchholz, Ansgar | B3: 22 | C3: 31 | D3: =IF(B3>0,C3+B3,"") -> 53 | E3: FALSE | F3: =IF(B3>0,COUNTIF(B$3:B$55,"<"&B3)+1,"") -> 1 | G3: =IF(C3>0,COUNTIF(C$3:C$55,"<"&C3)+1,"") -> 1 | H3: =IF(AND(B3>0,C3>0),COUNTIF(D$3:D$55,"<"&D3)+1,"") -> 1 | I3: =IF(B3>0,IF(E3,MIN(F3:H3),SUM(F3:H3)-MAX(F3:H3)-MIN(F3:H3)),"") -> 1 | J3: =IF(B3>0,VLOOKUP(I3,Punkteschema!$A$2:$B$101,2,FALSE),"") -> 25
A4: Börgmann, Ulrich | B4: 32 | C4: 31 | D4: 63 | E4: TRUE | F4: 7 | G4: 1 | H4: 5 | I4: 1 | J4: =IF(B4>0,VLOOKUP(I4,Punkteschema!$A$2:$B$101,2,FALSE),"") -> 25
A5: Rade, Marcus | B5: 25 | C5: 33 | D5: 58 | E5: FALSE | F5: 2 | G5: 4 | H5: 2 | I5: 2 | J5: =IF(B5>0,VLOOKUP(I5,Punkteschema!$A$2:$B$101,2,FALSE),"") -> 21
A6: Lenk, Rolf | B6: 30 | C6: 31 | D6: 61 | E6: FALSE | F6: 5 | G6: 1 | H6: 3 | I6: 3 | J6: =IF(B6>0,VLOOKUP(I6,Punkteschema!$A$2:$B$101,2,FALSE),"") -> 18
A7: Kunz, Martin | B7: 28 | C7: 35 | D7: 63 | E7: TRUE | F7: 3 | G7: 8 | H7: 5 | I7: 3 | J7: =IF(B7>0,VLOOKUP(I7,Punkteschema!$A$2:$B$101,2,FALSE),"") -> 18
A8: Puschner, Michael | B8: 28 | C8: 34 | D8: 62 | E8: FALSE | F8: 3 | G8: 5 | H8: 4 | I8: 4 | J8: =IF(B8>0,VLOOKUP(I8,Punkteschema!$A$2:$B$101,2,FALSE),"") -> 15
A9: Kortmann, Sabine | B9: 31 | C9: 34 | D9: 65 | E9: TRUE | F9: 6 | G9: 5 | H9: 7 | I9: 5 | J9: =IF(B9>0,VLOOKUP(I9,Punkteschema!$A$2:$B$101,2,FALSE),"") -> 15
A10: Paffrath, Ben | B10: 33 | C10: 34 | D10: 67 | E10: TRUE | F10: 8 | G10: 5 | H10: 8 | I10: 5 | J10: =IF(B10>0,VLOOKUP(I10,Punkteschema!$A$2:$B$101,2,FALSE),"") -> 15
A11: Schmidtbauer, Günter | B11: 35 | C11: 39 | D11: 74 | E11: TRUE | F11: 9 | G11: 9 | H11: 9 | I11: 9 | J11: =IF(B11>0,VLOOKUP(I11,Punkteschema!$A$2:$B$101,2,FALSE),"") -> 10
A12: Börgmann, Brigitte | B12: 35 | C12: 42 | D12: 77 | E12: TRUE | F12: 9 | G12: 11 | H12: 10 | I12: 9 | J12: =IF(B12>0,VLOOKUP(I12,Punkteschema!$A$2:$B$101,2,FALSE),"") -> 10
A13: Gattner, Karsten | B13: 38 | C13: 41 | D13: 79 | E13: TRUE | F13: 11 | G13: 10 | H13: 11 | I13: 10 | J13: =IF(B13>0,VLOOKUP(I13,Punkteschema!$A$2:$B$101,2,FALSE),"") -> 10
D14: =IF(B14>0,C14+B14,"") ->  | E14: TRUE | F14: =IF(B14>0,COUNTIF(B$3:B$55,"<"&B14)+1,"") ->  | H14: =IF(AND(B14>0,C14>0),COUNTIF(D$3:D$55,"<"&D14)+1,"") ->  | I14: =IF(B14>0,IF(E14,MIN(F14:H14),SUM(F14:H14)-MAX(F14:H14)-MIN(F14:H14)),"") ->  | J14: =IF(B14>0,VLOOKUP(I14,Punkteschema!$A$2:$B$101,2,FALSE),"") -> 
E15: TRUE | J15: =IF(B15>0,VLOOKUP(I15,Punkteschema!$A$2:$B$101,2,FALSE),"") -> 
E16: TRUE | J16: =IF(B16>0,VLOOKUP(I16,Punkteschema!$A$2:$B$101,2,FALSE),"") -> 
E17: TRUE | J17: =IF(B17>0,VLOOKUP(I17,Punkteschema!$A$2:$B$101,2,FALSE),"") -> 
E18: TRUE | J18: =IF(B18>0,VLOOKUP(I18,Punkteschema!$A$2:$B$101,2,FALSE),"") -> 
E19: TRUE | F19: =IF(B19>0,COUNTIF(B$3:B$55,"<"&B19)+1,"") ->  | J19: =IF(B19>0,VLOOKUP(I19,Punkteschema!$A$2:$B$101,2,FALSE),"") -> 
E20: TRUE | J20: =IF(B20>0,VLOOKUP(I20,Punkteschema!$A$2:$B$101,2,FALSE),"") -> 
E21: TRUE | J21: =IF(B21>0,VLOOKUP(I21,Punkteschema!$A$2:$B$101,2,FALSE),"") -> 
E22: TRUE | J22: =IF(B22>0,VLOOKUP(I22,Punkteschema!$A$2:$B$101,2,FALSE),"") -> 
E23: TRUE | J23: =IF(B23>0,VLOOKUP(I23,Punkteschema!$A$2:$B$101,2,FALSE),"") -> 
E24: TRUE | J24: =IF(B24>0,VLOOKUP(I24,Punkteschema!$A$2:$B$101,2,FALSE),"") -> 
E25: TRUE | J25: =IF(B25>0,VLOOKUP(I25,Punkteschema!$A$2:$B$101,2,FALSE),"") -> 
E26: TRUE | J26: =IF(B26>0,VLOOKUP(I26,Punkteschema!$A$2:$B$101,2,FALSE),"") -> 
E27: TRUE | J27: =IF(B27>0,VLOOKUP(I27,Punkteschema!$A$2:$B$101,2,FALSE),"") -> 
E28: TRUE | J28: =IF(B28>0,VLOOKUP(I28,Punkteschema!$A$2:$B$101,2,FALSE),"") -> 
E29: TRUE | J29: =IF(B29>0,VLOOKUP(I29,Punkteschema!$A$2:$B$101,2,FALSE),"") -> 
E30: TRUE | J30: =IF(B30>0,VLOOKUP(I30,Punkteschema!$A$2:$B$101,2,FALSE),"") -> 
E31: TRUE | J31: =IF(B31>0,VLOOKUP(I31,Punkteschema!$A$2:$B$101,2,FALSE),"") -> 
E32: TRUE | J32: =IF(B32>0,VLOOKUP(I32,Punkteschema!$A$2:$B$101,2,FALSE),"") -> 
E33: TRUE | J33: =IF(B33>0,VLOOKUP(I33,Punkteschema!$A$2:$B$101,2,FALSE),"") -> 
E34: TRUE | J34: =IF(B34>0,VLOOKUP(I34,Punkteschema!$A$2:$B$101,2,FALSE),"") -> 
E35: TRUE | J35: =IF(B35>0,VLOOKUP(I35,Punkteschema!$A$2:$B$101,2,FALSE),"") -> 
E36: TRUE | J36: =IF(B36>0,VLOOKUP(I36,Punkteschema!$A$2:$B$101,2,FALSE),"") -> 
E37: TRUE | J37: =IF(B37>0,VLOOKUP(I37,Punkteschema!$A$2:$B$101,2,FALSE),"") -> 
E38: TRUE | J38: =IF(B38>0,VLOOKUP(I38,Punkteschema!$A$2:$B$101,2,FALSE),"") -> 
E39: TRUE | J39: =IF(B39>0,VLOOKUP(I39,Punkteschema!$A$2:$B$101,2,FALSE),"") -> 
E40: TRUE | J40: =IF(B40>0,VLOOKUP(I40,Punkteschema!$A$2:$B$101,2,FALSE),"") -> 
E41: TRUE | J41: =IF(B41>0,VLOOKUP(I41,Punkteschema!$A$2:$B$101,2,FALSE),"") -> 
E42: TRUE | J42: =IF(B42>0,VLOOKUP(I42,Punkteschema!$A$2:$B$101,2,FALSE),"") -> 
E43: TRUE | J43: =IF(B43>0,VLOOKUP(I43,Punkteschema!$A$2:$B$101,2,FALSE),"") -> 
E44: TRUE | J44: =IF(B44>0,VLOOKUP(I44,Punkteschema!$A$2:$B$101,2,FALSE),"") -> 
E45: TRUE | J45: =IF(B45>0,VLOOKUP(I45,Punkteschema!$A$2:$B$101,2,FALSE),"") -> 
E46: TRUE | J46: =IF(B46>0,VLOOKUP(I46,Punkteschema!$A$2:$B$101,2,FALSE),"") -> 
E47: TRUE | J47: =IF(B47>0,VLOOKUP(I47,Punkteschema!$A$2:$B$101,2,FALSE),"") -> 
E48: TRUE | J48: =IF(B48>0,VLOOKUP(I48,Punkteschema!$A$2:$B$101,2,FALSE),"") -> 
E49: TRUE | J49: =IF(B49>0,VLOOKUP(I49,Punkteschema!$A$2:$B$101,2,FALSE),"") -> 
E50: TRUE | J50: =IF(B50>0,VLOOKUP(I50,Punkteschema!$A$2:$B$101,2,FALSE),"") -> 
E51: TRUE | J51: =IF(B51>0,VLOOKUP(I51,Punkteschema!$A$2:$B$101,2,FALSE),"") -> 
E52: TRUE | J52: =IF(B52>0,VLOOKUP(I52,Punkteschema!$A$2:$B$101,2,FALSE),"") -> 
E53: TRUE | F53: =IF(B53>0,COUNTIF(B$3:B$55,"<"&B53)+1,"") ->  | H53: =IF(AND(B53>0,C53>0),COUNTIF(D$3:D$55,"<"&D53)+1,"") ->  | J53: =IF(B53>0,VLOOKUP(I53,Punkteschema!$A$2:$B$101,2,FALSE),"") -> 
E54: TRUE | H54: =IF(AND(B54>0,C54>0),COUNTIF(D$3:D$55,"<"&D54)+1,"") ->  | J54: =IF(B54>0,VLOOKUP(I54,Punkteschema!$A$2:$B$101,2,FALSE),"") -> 
E55: TRUE | H55: =IF(AND(B55>0,C55>0),COUNTIF(D$3:D$55,"<"&D55)+1,"") ->  | J55: =IF(B55>0,VLOOKUP(I55,Punkteschema!$A$2:$B$101,2,FALSE),"") -> 
A57: OS: Buchholz, Ansgar (ASW) | E57: Runde 1: | F57: E | G57: <- E/B
A58: S: Paffrath, Ben (Hev) | E58: Runde 2: | F58: B | G58: <- E/B
A59: S: Puschner, Michael (HOB)
A61: Verloste Preise:
A62: Börgmann, Brigitte | B62: 1 Minigolfball Maier spec
A63: Börgmann, Ulrich | B63: 1 Brita Wasserkocher

Sheet Einzelwertung11
A1: =CONCATENATE("7. Sommer-Cup - Freizeittreff Herbede - ",TEXT(Gesamtstand!$P$2,"TT.MM.JJ")) -> 7. Sommer-Cup - Freizeittreff Herbede - 14.07.22
A2: Spieler | B2: Runde 1 | C2: Runde 2 | D2: Gesamt | E2: bessere? | F2: Pl. R1 | G2: Pl. R2 | H2: Pl. Ges. | I2: gewertet | J2: Punkte
A3: Buchholz, Ansgar | B3: 24 | C3: 27 | D3: =IF(B3>0,C3+B3,"") -> 51 | E3: FALSE | F3: =IF(B3>0,COUNTIF(B$3:B$55,"<"&B3)+1,"") -> 1 | G3: =IF(C3>0,COUNTIF(C$3:C$55,"<"&C3)+1,"") -> 1 | H3: =IF(AND(B3>0,C3>0),COUNTIF(D$3:D$55,"<"&D3)+1,"") -> 1 | I3: =IF(B3>0,IF(E3,MIN(F3:H3),SUM(F3:H3)-MAX(F3:H3)-MIN(F3:H3)),"") -> 1 | J3: =IF(B3>0,VLOOKUP(I3,Punkteschema!$A$2:$B$101,2,FALSE),"") -> 25
A4: Lenk, Rolf | B4: 24 | C4: 30 | D4: 54 | E4: FALSE | F4: 1 | G4: 2 | H4: 2 | I4: 2 | J4: =IF(B4>0,VLOOKUP(I4,Punkteschema!$A$2:$B$101,2,FALSE),"") -> 21
A5: Kortmann, Sabine | B5: 30 | C5: 30 | D5: 60 | E5: TRUE | F5: 7 | G5: 2 | H5: 4 | I5: 2 | J5: =IF(B5>0,VLOOKUP(I5,Punkteschema!$A$2:$B$101,2,FALSE),"") -> 21
A6: Rade, Marcus | B6: 26 | C6: 30 | D6: 56 | E6: FALSE | F6: 4 | G6: 2 | H6: 3 | I6: 3 | J6: =IF(B6>0,VLOOKUP(I6,Punkteschema!$A$2:$B$101,2,FALSE),"") -> 18
A7: Urban, Volker | B7: 25 | C7: 35 | D7: 60 | E7: TRUE | F7: 3 | G7: 7 | H7: 4 | I7: 3 | J7: =IF(B7>0,VLOOKUP(I7,Punkteschema!$A$2:$B$101,2,FALSE),"") -> 18
A8: Kunz, Martin | B8: 28 | C8: 32 | D8: 60 | E8: TRUE | F8: 6 | G8: 5 | H8: 4 | I8: 4 | J8: =IF(B8>0,VLOOKUP(I8,Punkteschema!$A$2:$B$101,2,FALSE),"") -> 15
A9: Puschner, Michael | B9: 30 | C9: 32 | D9: 62 | E9: TRUE | F9: 7 | G9: 5 | H9: 7 | I9: 5 | J9: =IF(B9>0,VLOOKUP(I9,Punkteschema!$A$2:$B$101,2,FALSE),"") -> 15
A10: Börgmann, Ulrich | B10: 27 | C10: 39 | D10: 66 | E10: TRUE | F10: 5 | G10: 10 | H10: 8 | I10: 5 | J10: =IF(B10>0,VLOOKUP(I10,Punkteschema!$A$2:$B$101,2,FALSE),"") -> 15
A11: Dreischer, Burkhard | B11: 35 | C11: 37 | D11: 72 | E11: TRUE | F11: 10 | G11: 8 | H11: 9 | I11: 8 | J11: =IF(B11>0,VLOOKUP(I11,Punkteschema!$A$2:$B$101,2,FALSE),"") -> 10
A12: Schmidtbauer, Günter | B12: 43 | C12: 37 | D12: 80 | E12: TRUE | F12: 13 | G12: 8 | H12: 11 | I12: 8 | J12: =IF(B12>0,VLOOKUP(I12,Punkteschema!$A$2:$B$101,2,FALSE),"") -> 10
A13: Urban, Angela | B13: 32 | C13: 41 | D13: 73 | E13: TRUE | F13: 9 | G13: 13 | H13: 10 | I13: 9 | J13: =IF(B13>0,VLOOKUP(I13,Punkteschema!$A$2:$B$101,2,FALSE),"") -> 10
A14: Kersch, Uwe | B14: 35 | C14: 50 | D14: 85 | E14: TRUE | F14: 10 | G14: 14 | H14: 13 | I14: 10 | J14: =IF(B14>0,VLOOKUP(I14,Punkteschema!$A$2:$B$101,2,FALSE),"") -> 10
A15: Tabor, Peter | B15: 42 | C15: 40 | D15: 82 | E15: TRUE | F15: 12 | G15: 11 | H15: 12 | I15: 11 | J15: =IF(B15>0,VLOOKUP(I15,Punkteschema!$A$2:$B$101,2,FALSE),"") -> 5
A16: Börgmann, Brigitte | B16: 46 | C16: 40 | D16: 86 | E16: TRUE | F16: 14 | G16: 11 | H16: 14 | I16: 11 | J16: =IF(B16>0,VLOOKUP(I16,Punkteschema!$A$2:$B$101,2,FALSE),"") -> 5
D17: =IF(B17>0,C17+B17,"") ->  | E17: TRUE | F17: =IF(B17>0,COUNTIF(B$3:B$55,"<"&B17)+1,"") ->  | H17: =IF(AND(B17>0,C17>0),COUNTIF(D$3:D$55,"<"&D17)+1,"") ->  | I17: =IF(B17>0,IF(E17,MIN(F17:H17),SUM(F17:H17)-MAX(F17:H17)-MIN(F17:H17)),"") ->  | J17: =IF(B17>0,VLOOKUP(I17,Punkteschema!$A$2:$B$101,2,FALSE),"") -> 
E18: TRUE | J18: =IF(B18>0,VLOOKUP(I18,Punkteschema!$A$2:$B$101,2,FALSE),"") -> 
E19: TRUE | F19: =IF(B19>0,COUNTIF(B$3:B$55,"<"&B19)+1,"") ->  | J19: =IF(B19>0,VLOOKUP(I19,Punkteschema!$A$2:$B$101,2,FALSE),"") -> 
E20: TRUE | J20: =IF(B20>0,VLOOKUP(I20,Punkteschema!$A$2:$B$101,2,FALSE),"") -> 
E21: TRUE | J21: =IF(B21>0,VLOOKUP(I21,Punkteschema!$A$2:$B$101,2,FALSE),"") -> 
E22: TRUE | J22: =IF(B22>0,VLOOKUP(I22,Punkteschema!$A$2:$B$101,2,FALSE),"") -> 
E23: TRUE | J23: =IF(B23>0,VLOOKUP(I23,Punkteschema!$A$2:$B$101,2,FALSE),"") -> 
E24: TRUE | J24: =IF(B24>0,VLOOKUP(I24,Punkteschema!$A$2:$B$101,2,FALSE),"") -> 
E25: TRUE | J25: =IF(B25>0,VLOOKUP(I25,Punkteschema!$A$2:$B$101,2,FALSE),"") -> 
E26: TRUE | J26: =IF(B26>0,VLOOKUP(I26,Punkteschema!$A$2:$B$101,2,FALSE),"") -> 
E27: TRUE | J27: =IF(B27>0,VLOOKUP(I27,Punkteschema!$A$2:$B$101,2,FALSE),"") -> 
E28: TRUE | J28: =IF(B28>0,VLOOKUP(I28,Punkteschema!$A$2:$B$101,2,FALSE),"") -> 
E29: TRUE | J29: =IF(B29>0,VLOOKUP(I29,Punkteschema!$A$2:$B$101,2,FALSE),"") -> 
E30: TRUE | J30: =IF(B30>0,VLOOKUP(I30,Punkteschema!$A$2:$B$101,2,FALSE),"") -> 
E31: TRUE | J31: =IF(B31>0,VLOOKUP(I31,Punkteschema!$A$2:$B$101,2,FALSE),"") -> 
E32: TRUE | J32: =IF(B32>0,VLOOKUP(I32,Punkteschema!$A$2:$B$101,2,FALSE),"") -> 
E33: TRUE | J33: =IF(B33>0,VLOOKUP(I33,Punkteschema!$A$2:$B$101,2,FALSE),"") -> 
E34: TRUE | J34: =IF(B34>0,VLOOKUP(I34,Punkteschema!$A$2:$B$101,2,FALSE),"") -> 
E35: TRUE | J35: =IF(B35>0,VLOOKUP(I35,Punkteschema!$A$2:$B$101,2,FALSE),"") -> 
E36: TRUE | J36: =IF(B36>0,VLOOKUP(I36,Punkteschema!$A$2:$B$101,2,FALSE),"") -> 
E37: TRUE | J37: =IF(B37>0,VLOOKUP(I37,Punkteschema!$A$2:$B$101,2,FALSE),"") -> 
E38: TRUE | J38: =IF(B38>0,VLOOKUP(I38,Punkteschema!$A$2:$B$101,2,FALSE),"") -> 
E39: TRUE | J39: =IF(B39>0,VLOOKUP(I39,Punkteschema!$A$2:$B$101,2,FALSE),"") -> 
E40: TRUE | J40: =IF(B40>0,VLOOKUP(I40,Punkteschema!$A$2:$B$101,2,FALSE),"") -> 
E41: TRUE | J41: =IF(B41>0,VLOOKUP(I41,Punkteschema!$A$2:$B$101,2,FALSE),"") -> 
E42: TRUE | J42: =IF(B42>0,VLOOKUP(I42,Punkteschema!$A$2:$B$101,2,FALSE),"") -> 
E43: TRUE | J43: =IF(B43>0,VLOOKUP(I43,Punkteschema!$A$2:$B$101,2,FALSE),"") -> 
E44: TRUE | J44: =IF(B44>0,VLOOKUP(I44,Punkteschema!$A$2:$B$101,2,FALSE),"") -> 
E45: TRUE | J45: =IF(B45>0,VLOOKUP(I45,Punkteschema!$A$2:$B$101,2,FALSE),"") -> 
E46: TRUE | J46: =IF(B46>0,VLOOKUP(I46,Punkteschema!$A$2:$B$101,2,FALSE),"") -> 
E47: TRUE | J47: =IF(B47>0,VLOOKUP(I47,Punkteschema!$A$2:$B$101,2,FALSE),"") -> 
E48: TRUE | J48: =IF(B48>0,VLOOKUP(I48,Punkteschema!$A$2:$B$101,2,FALSE),"") -> 
E49: TRUE | J49: =IF(B49>0,VLOOKUP(I49,Punkteschema!$A$2:$B$101,2,FALSE),"") -> 
E50: TRUE | J50: =IF(B50>0,VLOOKUP(I50,Punkteschema!$A$2:$B$101,2,FALSE),"") -> 
E51: TRUE | J51: =IF(B51>0,VLOOKUP(I51,Punkteschema!$A$2:$B$101,2,FALSE),"") -> 
E52: TRUE | J52: =IF(B52>0,VLOOKUP(I52,Punkteschema!$A$2:$B$101,2,FALSE),"") -> 
E53: TRUE | F53: =IF(B53>0,COUNTIF(B$3:B$55,"<"&B53)+1,"") ->  | H53: =IF(AND(B53>0,C53>0),COUNTIF(D$3:D$55,"<"&D53)+1,"") ->  | J53: =IF(B53>0,VLOOKUP(I53,Punkteschema!$A$2:$B$101,2,FALSE),"") -> 
E54: TRUE | H54: =IF(AND(B54>0,C54>0),COUNTIF(D$3:D$55,"<"&D54)+1,"") ->  | J54: =IF(B54>0,VLOOKUP(I54,Punkteschema!$A$2:$B$101,2,FALSE),"") -> 
E55: TRUE | H55: =IF(AND(B55>0,C55>0),COUNTIF(D$3:D$55,"<"&D55)+1,"") ->  | J55: =IF(B55>0,VLOOKUP(I55,Punkteschema!$A$2:$B$101,2,FALSE),"") -> 
A57: OS: Urban, Volker (ASW) | E57: Runde 1: | F57: E | G57: <- E/B
A58: S: Puschner, Michael (HOB) | E58: Runde 2: | F58: B | G58: <- E/B
A59: S: Buchholz, Ansgar (ASW)
A61: Verloste Preise:
A62: Dreischer, Burkhard | B62: 1 Minigolfball
A63: Kunz, Martin | B63: 1 Flasche Rotwein
A64: Puschner, Michael | B64: 1 Cutterset

Sheet Einzelwertung12
A1: =CONCATENATE("7. Sommer-Cup - Freizeittreff Herbede - ",TEXT(Gesamtstand!$Q$2,"TT.MM.JJ")) -> 7. Sommer-Cup - Freizeittreff Herbede - 21.07.22
A2: Spieler | B2: Runde 1 | C2: Runde 2 | D2: Gesamt | E2: bessere? | F2: Pl. R1 | G2: Pl. R2 | H2: Pl. Ges. | I2: gewertet | J2: Punkte
A3: Rabe, Jonas | B3: 27 | D3: =IF(B3>0,C3+B3,"") -> 27 | E3: TRUE | F3: =IF(B3>0,COUNTIF(B$3:B$55,"<"&B3)+1,"") -> 1 | H3: =IF(AND(B3>0,C3>0),COUNTIF(D$3:D$55,"<"&D3)+1,"") ->  | I3: =IF(B3>0,IF(E3,MIN(F3:H3),SUM(F3:H3)-MAX(F3:H3)-MIN(F3:H3)),"") -> 1 | J3: =IF(B3>0,VLOOKUP(I3,Punkteschema!$A$2:$B$101,2,FALSE),"") -> 25
A4: Lenk, Rolf | B4: 32 | D4: 32 | E4: TRUE | F4: 2 | I4: 2 | J4: =IF(B4>0,VLOOKUP(I4,Punkteschema!$A$2:$B$101,2,FALSE),"") -> 21
A5: Kortmann, Sabine | B5: 32 | D5: 32 | E5: TRUE | F5: 2 | I5: 2 | J5: =IF(B5>0,VLOOKUP(I5,Punkteschema!$A$2:$B$101,2,FALSE),"") -> 21
A6: Puschner, Michael | B6: 34 | D6: 34 | E6: TRUE | F6: 4 | I6: 4 | J6: =IF(B6>0,VLOOKUP(I6,Punkteschema!$A$2:$B$101,2,FALSE),"") -> 15
A7: Dreischer, Burkhard | B7: 38 | D7: 38 | E7: TRUE | F7: 5 | I7: 5 | J7: =IF(B7>0,VLOOKUP(I7,Punkteschema!$A$2:$B$101,2,FALSE),"") -> 15
A8: Kersch, Uwe | B8: 43 | D8: 43 | E8: TRUE | F8: 6 | I8: 6 | J8: =IF(B8>0,VLOOKUP(I8,Punkteschema!$A$2:$B$101,2,FALSE),"") -> 15
A9: Schmidtbauer, Günter | B9: 43 | D9: 43 | E9: TRUE | F9: 6 | I9: 6 | J9: =IF(B9>0,VLOOKUP(I9,Punkteschema!$A$2:$B$101,2,FALSE),"") -> 15
D10: =IF(B10>0,C10+B10,"") ->  | E10: TRUE | F10: =IF(B10>0,COUNTIF(B$3:B$55,"<"&B10)+1,"") ->  | H10: =IF(AND(B10>0,C10>0),COUNTIF(D$3:D$55,"<"&D10)+1,"") ->  | I10: =IF(B10>0,IF(E10,MIN(F10:H10),SUM(F10:H10)-MAX(F10:H10)-MIN(F10:H10)),"") ->  | J10: =IF(B10>0,VLOOKUP(I10,Punkteschema!$A$2:$B$101,2,FALSE),"") -> 
E11: TRUE | J11: =IF(B11>0,VLOOKUP(I11,Punkteschema!$A$2:$B$101,2,FALSE),"") -> 
E12: TRUE | J12: =IF(B12>0,VLOOKUP(I12,Punkteschema!$A$2:$B$101,2,FALSE),"") -> 
E13: TRUE | J13: =IF(B13>0,VLOOKUP(I13,Punkteschema!$A$2:$B$101,2,FALSE),"") -> 
E14: TRUE | J14: =IF(B14>0,VLOOKUP(I14,Punkteschema!$A$2:$B$101,2,FALSE),"") -> 
E15: TRUE | J15: =IF(B15>0,VLOOKUP(I15,Punkteschema!$A$2:$B$101,2,FALSE),"") -> 
E16: TRUE | J16: =IF(B16>0,VLOOKUP(I16,Punkteschema!$A$2:$B$101,2,FALSE),"") -> 
E17: TRUE | J17: =IF(B17>0,VLOOKUP(I17,Punkteschema!$A$2:$B$101,2,FALSE),"") -> 
E18: TRUE | J18: =IF(B18>0,VLOOKUP(I18,Punkteschema!$A$2:$B$101,2,FALSE),"") -> 
E19: TRUE | F19: =IF(B19>0,COUNTIF(B$3:B$55,"<"&B19)+1,"") ->  | J19: =IF(B19>0,VLOOKUP(I19,Punkteschema!$A$2:$B$101,2,FALSE),"") -> 
E20: TRUE | J20: =IF(B20>0,VLOOKUP(I20,Punkteschema!$A$2:$B$101,2,FALSE),"") -> 
E21: TRUE | J21: =IF(B21>0,VLOOKUP(I21,Punkteschema!$A$2:$B$101,2,FALSE),"") -> 
E22: TRUE | J22: =IF(B22>0,VLOOKUP(I22,Punkteschema!$A$2:$B$101,2,FALSE),"") -> 
E23: TRUE | J23: =IF(B23>0,VLOOKUP(I23,Punkteschema!$A$2:$B$101,2,FALSE),"") -> 
E24: TRUE | J24: =IF(B24>0,VLOOKUP(I24,Punkteschema!$A$2:$B$101,2,FALSE),"") -> 
E25: TRUE | J25: =IF(B25>0,VLOOKUP(I25,Punkteschema!$A$2:$B$101,2,FALSE),"") -> 
E26: TRUE | J26: =IF(B26>0,VLOOKUP(I26,Punkteschema!$A$2:$B$101,2,FALSE),"") -> 
E27: TRUE | J27: =IF(B27>0,VLOOKUP(I27,Punkteschema!$A$2:$B$101,2,FALSE),"") -> 
E28: TRUE | J28: =IF(B28>0,VLOOKUP(I28,Punkteschema!$A$2:$B$101,2,FALSE),"") -> 
E29: TRUE | J29: =IF(B29>0,VLOOKUP(I29,Punkteschema!$A$2:$B$101,2,FALSE),"") -> 
E30: TRUE | J30: =IF(B30>0,VLOOKUP(I30,Punkteschema!$A$2:$B$101,2,FALSE),"") -> 
E31: TRUE | J31: =IF(B31>0,VLOOKUP(I31,Punkteschema!$A$2:$B$101,2,FALSE),"") -> 
E32: TRUE | J32: =IF(B32>0,VLOOKUP(I32,Punkteschema!$A$2:$B$101,2,FALSE),"") -> 
E33: TRUE | J33: =IF(B33>0,VLOOKUP(I33,Punkteschema!$A$2:$B$101,2,FALSE),"") -> 
E34: TRUE | J34: =IF(B34>0,VLOOKUP(I34,Punkteschema!$A$2:$B$101,2,FALSE),"") -> 
E35: TRUE | J35: =IF(B35>0,VLOOKUP(I35,Punkteschema!$A$2:$B$101,2,FALSE),"") -> 
E36: TRUE | J36: =IF(B36>0,VLOOKUP(I36,Punkteschema!$A$2:$B$101,2,FALSE),"") -> 
E37: TRUE | J37: =IF(B37>0,VLOOKUP(I37,Punkteschema!$A$2:$B$101,2,FALSE),"") -> 
E38: TRUE | J38: =IF(B38>0,VLOOKUP(I38,Punkteschema!$A$2:$B$101,2,FALSE),"") -> 
E39: TRUE | J39: =IF(B39>0,VLOOKUP(I39,Punkteschema!$A$2:$B$101,2,FALSE),"") -> 
E40: TRUE | J40: =IF(B40>0,VLOOKUP(I40,Punkteschema!$A$2:$B$101,2,FALSE),"") -> 
E41: TRUE | J41: =IF(B41>0,VLOOKUP(I41,Punkteschema!$A$2:$B$101,2,FALSE),"") -> 
E42: TRUE | J42: =IF(B42>0,VLOOKUP(I42,Punkteschema!$A$2:$B$101,2,FALSE),"") -> 
E43: TRUE | J43: =IF(B43>0,VLOOKUP(I43,Punkteschema!$A$2:$B$101,2,FALSE),"") -> 
E44: TRUE | J44: =IF(B44>0,VLOOKUP(I44,Punkteschema!$A$2:$B$101,2,FALSE),"") -> 
E45: TRUE | J45: =IF(B45>0,VLOOKUP(I45,Punkteschema!$A$2:$B$101,2,FALSE),"") -> 
E46: TRUE | J46: =IF(B46>0,VLOOKUP(I46,Punkteschema!$A$2:$B$101,2,FALSE),"") -> 
E47: TRUE | J47: =IF(B47>0,VLOOKUP(I47,Punkteschema!$A$2:$B$101,2,FALSE),"") -> 
E48: TRUE | J48: =IF(B48>0,VLOOKUP(I48,Punkteschema!$A$2:$B$101,2,FALSE),"") -> 
E49: TRUE | J49: =IF(B49>0,VLOOKUP(I49,Punkteschema!$A$2:$B$101,2,FALSE),"") -> 
E50: TRUE | J50: =IF(B50>0,VLOOKUP(I50,Punkteschema!$A$2:$B$101,2,FALSE),"") -> 
E51: TRUE | J51: =IF(B51>0,VLOOKUP(I51,Punkteschema!$A$2:$B$101,2,FALSE),"") -> 
E52: TRUE | J52: =IF(B52>0,VLOOKUP(I52,Punkteschema!$A$2:$B$101,2,FALSE),"") -> 
E53: TRUE | F53: =IF(B53>0,COUNTIF(B$3:B$55,"<"&B53)+1,"") ->  | H53: =IF(AND(B53>0,C53>0),COUNTIF(D$3:D$55,"<"&D53)+1,"") ->  | J53: =IF(B53>0,VLOOKUP(I53,Punkteschema!$A$2:$B$101,2,FALSE),"") -> 
E54: TRUE | H54: =IF(AND(B54>0,C54>0),COUNTIF(D$3:D$55,"<"&D54)+1,"") ->  | J54: =IF(B54>0,VLOOKUP(I54,Punkteschema!$A$2:$B$101,2,FALSE),"") -> 
E55: TRUE | H55: =IF(AND(B55>0,C55>0),COUNTIF(D$3:D$55,"<"&D55)+1,"") ->  | J55: =IF(B55>0,VLOOKUP(I55,Punkteschema!$A$2:$B$101,2,FALSE),"") -> 
A57: OS: Dreischer, Burkhard (OLY) | E57: Runde 1: | F57: E | G57: <- E/B
A58: S: Rabe, Jonas (HAR) | E58: Runde 2: | F58: B | G58: <- E/B
A59: S: Lenk, Rolf (ASW)
A61: Verloste Preise:
A62: Schmidtbauer, Günter | B62: 1 Minigolfball
A64: Während der Runde auf Beton musste durch Regen bedingt
A65: zunächst unter- und dann abgebrochen werden.

Sheet Einzelwertung13
A1: =CONCATENATE("7. Sommer-Cup - Freizeittreff Herbede - ",TEXT(Gesamtstand!$R$2,"TT.MM.JJ")) -> 7. Sommer-Cup - Freizeittreff Herbede - 28.07.22
A2: Spieler | B2: Runde 1 | C2: Runde 2 | D2: Gesamt | E2: bessere? | F2: Pl. R1 | G2: Pl. R2 | H2: Pl. Ges. | I2: gewertet | J2: Punkte
A3: Rabe, Jonas | B3: 26 | C3: 29 | D3: =IF(B3>0,C3+B3,"") -> 55 | E3: TRUE | F3: =IF(B3>0,COUNTIF(B$3:B$55,"<"&B3)+1,"") -> 5 | G3: =IF(C3>0,COUNTIF(C$3:C$55,"<"&C3)+1,"") -> 1 | H3: =IF(AND(B3>0,C3>0),COUNTIF(D$3:D$55,"<"&D3)+1,"") -> 1 | I3: =IF(B3>0,IF(E3,MIN(F3:H3),SUM(F3:H3)-MAX(F3:H3)-MIN(F3:H3)),"") -> 1 | J3: =IF(B3>0,VLOOKUP(I3,Punkteschema!$A$2:$B$101,2,FALSE),"") -> 25
A4: Urban, Volker | B4: 23 | C4: 33 | D4: 56 | E4: TRUE | F4: 1 | G4: 6 | H4: 2 | I4: 1 | J4: =IF(B4>0,VLOOKUP(I4,Punkteschema!$A$2:$B$101,2,FALSE),"") -> 25
A5: Puschner, Michael | B5: 23 | C5: 35 | D5: 58 | E5: TRUE | F5: 1 | G5: 8 | H5: 4 | I5: 1 | J5: =IF(B5>0,VLOOKUP(I5,Punkteschema!$A$2:$B$101,2,FALSE),"") -> 25
A6: Rade, Marcus | B6: 25 | C6: 31 | D6: 56 | E6: FALSE | F6: 3 | G6: 2 | H6: 2 | I6: 2 | J6: =IF(B6>0,VLOOKUP(I6,Punkteschema!$A$2:$B$101,2,FALSE),"") -> 21
A7: Gattner, Karsten | B7: 29 | C7: 31 | D7: 60 | E7: TRUE | F7: 8 | G7: 2 | H7: 5 | I7: 2 | J7: =IF(B7>0,VLOOKUP(I7,Punkteschema!$A$2:$B$101,2,FALSE),"") -> 21
A8: Schmidtbauer, Günter | B8: 33 | C8: 31 | D8: 64 | E8: TRUE | F8: 10 | G8: 2 | H8: 8 | I8: 2 | J8: =IF(B8>0,VLOOKUP(I8,Punkteschema!$A$2:$B$101,2,FALSE),"") -> 21
A9: Brunnenkant, Frank | B9: 34 | C9: 31 | D9: 65 | E9: TRUE | F9: 12 | G9: 2 | H9: 10 | I9: 2 | J9: =IF(B9>0,VLOOKUP(I9,Punkteschema!$A$2:$B$101,2,FALSE),"") -> 21
A10: Kortmann, Sabine | B10: 25 | C10: 37 | D10: 62 | E10: FALSE | F10: 3 | G10: 11 | H10: 6 | I10: 6 | J10: =IF(B10>0,VLOOKUP(I10,Punkteschema!$A$2:$B$101,2,FALSE),"") -> 15
A11: Kunz, Martin | B11: 31 | C11: 33 | D11: 64 | E11: TRUE | F11: 9 | G11: 6 | H11: 8 | I11: 6 | J11: =IF(B11>0,VLOOKUP(I11,Punkteschema!$A$2:$B$101,2,FALSE),"") -> 15
A12: Börgmann, Ulrich | B12: 28 | C12: 37 | D12: 65 | E12: TRUE | F12: 6 | G12: 11 | H12: 10 | I12: 6 | J12: =IF(B12>0,VLOOKUP(I12,Punkteschema!$A$2:$B$101,2,FALSE),"") -> 15
A13: Lenk, Rolf | B13: 28 | C13: 35 | D13: 63 | E13: FALSE | F13: 6 | G13: 8 | H13: 7 | I13: 7 | J13: =IF(B13>0,VLOOKUP(I13,Punkteschema!$A$2:$B$101,2,FALSE),"") -> 10
A14: Börgmann, Brigitte | B14: 38 | C14: 36 | D14: 74 | E14: TRUE | F14: 14 | G14: 10 | H14: 12 | I14: 10 | J14: =IF(B14>0,VLOOKUP(I14,Punkteschema!$A$2:$B$101,2,FALSE),"") -> 10
A15: Dreischer, Burkhard | B15: 33 | C15: 43 | D15: 76 | E15: TRUE | F15: 10 | G15: 14 | H15: 14 | I15: 10 | J15: =IF(B15>0,VLOOKUP(I15,Punkteschema!$A$2:$B$101,2,FALSE),"") -> 10
A16: Urban, Angela | B16: 36 | C16: 38 | D16: 74 | E16: TRUE | F16: 13 | G16: 13 | H16: 12 | I16: 12 | J16: =IF(B16>0,VLOOKUP(I16,Punkteschema!$A$2:$B$101,2,FALSE),"") -> 5
D17: =IF(B17>0,C17+B17,"") ->  | E17: TRUE | F17: =IF(B17>0,COUNTIF(B$3:B$55,"<"&B17)+1,"") ->  | H17: =IF(AND(B17>0,C17>0),COUNTIF(D$3:D$55,"<"&D17)+1,"") ->  | I17: =IF(B17>0,IF(E17,MIN(F17:H17),SUM(F17:H17)-MAX(F17:H17)-MIN(F17:H17)),"") ->  | J17: =IF(B17>0,VLOOKUP(I17,Punkteschema!$A$2:$B$101,2,FALSE),"") -> 
E18: TRUE | J18: =IF(B18>0,VLOOKUP(I18,Punkteschema!$A$2:$B$101,2,FALSE),"") -> 
E19: TRUE | F19: =IF(B19>0,COUNTIF(B$3:B$55,"<"&B19)+1,"") ->  | J19: =IF(B19>0,VLOOKUP(I19,Punkteschema!$A$2:$B$101,2,FALSE),"") -> 
E20: TRUE | J20: =IF(B20>0,VLOOKUP(I20,Punkteschema!$A$2:$B$101,2,FALSE),"") -> 
E21: TRUE | J21: =IF(B21>0,VLOOKUP(I21,Punkteschema!$A$2:$B$101,2,FALSE),"") -> 
E22: TRUE | J22: =IF(B22>0,VLOOKUP(I22,Punkteschema!$A$2:$B$101,2,FALSE),"") -> 
E23: TRUE | J23: =IF(B23>0,VLOOKUP(I23,Punkteschema!$A$2:$B$101,2,FALSE),"") -> 
E24: TRUE | J24: =IF(B24>0,VLOOKUP(I24,Punkteschema!$A$2:$B$101,2,FALSE),"") -> 
E25: TRUE | J25: =IF(B25>0,VLOOKUP(I25,Punkteschema!$A$2:$B$101,2,FALSE),"") -> 
E26: TRUE | J26: =IF(B26>0,VLOOKUP(I26,Punkteschema!$A$2:$B$101,2,FALSE),"") -> 
E27: TRUE | J27: =IF(B27>0,VLOOKUP(I27,Punkteschema!$A$2:$B$101,2,FALSE),"") -> 
E28: TRUE | J28: =IF(B28>0,VLOOKUP(I28,Punkteschema!$A$2:$B$101,2,FALSE),"") -> 
E29: TRUE | J29: =IF(B29>0,VLOOKUP(I29,Punkteschema!$A$2:$B$101,2,FALSE),"") -> 
E30: TRUE | J30: =IF(B30>0,VLOOKUP(I30,Punkteschema!$A$2:$B$101,2,FALSE),"") -> 
E31: TRUE | J31: =IF(B31>0,VLOOKUP(I31,Punkteschema!$A$2:$B$101,2,FALSE),"") -> 
E32: TRUE | J32: =IF(B32>0,VLOOKUP(I32,Punkteschema!$A$2:$B$101,2,FALSE),"") -> 
E33: TRUE | J33: =IF(B33>0,VLOOKUP(I33,Punkteschema!$A$2:$B$101,2,FALSE),"") -> 
E34: TRUE | J34: =IF(B34>0,VLOOKUP(I34,Punkteschema!$A$2:$B$101,2,FALSE),"") -> 
E35: TRUE | J35: =IF(B35>0,VLOOKUP(I35,Punkteschema!$A$2:$B$101,2,FALSE),"") -> 
E36: TRUE | J36: =IF(B36>0,VLOOKUP(I36,Punkteschema!$A$2:$B$101,2,FALSE),"") -> 
E37: TRUE | J37: =IF(B37>0,VLOOKUP(I37,Punkteschema!$A$2:$B$101,2,FALSE),"") -> 
E38: TRUE | J38: =IF(B38>0,VLOOKUP(I38,Punkteschema!$A$2:$B$101,2,FALSE),"") -> 
E39: TRUE | J39: =IF(B39>0,VLOOKUP(I39,Punkteschema!$A$2:$B$101,2,FALSE),"") -> 
E40: TRUE | J40: =IF(B40>0,VLOOKUP(I40,Punkteschema!$A$2:$B$101,2,FALSE),"") -> 
E41: TRUE | J41: =IF(B41>0,VLOOKUP(I41,Punkteschema!$A$2:$B$101,2,FALSE),"") -> 
E42: TRUE | J42: =IF(B42>0,VLOOKUP(I42,Punkteschema!$A$2:$B$101,2,FALSE),"") -> 
E43: TRUE | J43: =IF(B43>0,VLOOKUP(I43,Punkteschema!$A$2:$B$101,2,FALSE),"") -> 
E44: TRUE | J44: =IF(B44>0,VLOOKUP(I44,Punkteschema!$A$2:$B$101,2,FALSE),"") -> 
E45: TRUE | J45: =IF(B45>0,VLOOKUP(I45,Punkteschema!$A$2:$B$101,2,FALSE),"") -> 
E46: TRUE | J46: =IF(B46>0,VLOOKUP(I46,Punkteschema!$A$2:$B$101,2,FALSE),"") -> 
E47: TRUE | J47: =IF(B47>0,VLOOKUP(I47,Punkteschema!$A$2:$B$101,2,FALSE),"") -> 
E48: TRUE | J48: =IF(B48>0,VLOOKUP(I48,Punkteschema!$A$2:$B$101,2,FALSE),"") -> 
E49: TRUE | J49: =IF(B49>0,VLOOKUP(I49,Punkteschema!$A$2:$B$101,2,FALSE),"") -> 
E50: TRUE | J50: =IF(B50>0,VLOOKUP(I50,Punkteschema!$A$2:$B$101,2,FALSE),"") -> 
E51: TRUE | J51: =IF(B51>0,VLOOKUP(I51,Punkteschema!$A$2:$B$101,2,FALSE),"") -> 
E52: TRUE | J52: =IF(B52>0,VLOOKUP(I52,Punkteschema!$A$2:$B$101,2,FALSE),"") -> 
E53: TRUE | F53: =IF(B53>0,COUNTIF(B$3:B$55,"<"&B53)+1,"") ->  | H53: =IF(AND(B53>0,C53>0),COUNTIF(D$3:D$55,"<"&D53)+1,"") ->  | J53: =IF(B53>0,VLOOKUP(I53,Punkteschema!$A$2:$B$101,2,FALSE),"") -> 
E54: TRUE | H54: =IF(AND(B54>0,C54>0),COUNTIF(D$3:D$55,"<"&D54)+1,"") ->  | J54: =IF(B54>0,VLOOKUP(I54,Punkteschema!$A$2:$B$101,2,FALSE),"") -> 
E55: TRUE | H55: =IF(AND(B55>0,C55>0),COUNTIF(D$3:D$55,"<"&D55)+1,"") ->  | J55: =IF(B55>0,VLOOKUP(I55,Punkteschema!$A$2:$B$101,2,FALSE),"") -> 
A57: OS: Urban, Volker (ASW) | E57: Runde 1: | F57: E | G57: <- E/B
A58: S: Puschner, Michael (HOB) | E58: Runde 2: | F58: B | G58: <- E/B
A59: S: Rabe, Jonas (HAR)
A61: Verloste Preise:
A62: Börgmann, Ulrich | B62: 1 Minigolfball migo Grenchen 92
A63: Kunz, Martin | B63: 1 Verzehrgutschein
A64: Dreischer, Burkhard | B64: 1 Partymix Cocktails

Sheet Einzelwertung14
A1: =CONCATENATE("7. Sommer-Cup - Freizeittreff Herbede - ",TEXT(Gesamtstand!$S$2,"TT.MM.JJ")) -> 7. Sommer-Cup - Freizeittreff Herbede - 04.08.22
A2: Spieler | B2: Runde 1 | C2: Runde 2 | D2: Gesamt | E2: bessere? | F2: Pl. R1 | G2: Pl. R2 | H2: Pl. Ges. | I2: gewertet | J2: Punkte
A3: Buchholz, Ansgar | B3: 26 | C3: 27 | D3: =IF(B3>0,C3+B3,"") -> 53 | E3: FALSE | F3: =IF(B3>0,COUNTIF(B$3:B$55,"<"&B3)+1,"") -> 3 | G3: =IF(C3>0,COUNTIF(C$3:C$55,"<"&C3)+1,"") -> 1 | H3: =IF(AND(B3>0,C3>0),COUNTIF(D$3:D$55,"<"&D3)+1,"") -> 1 | I3: =IF(B3>0,IF(E3,MIN(F3:H3),SUM(F3:H3)-MAX(F3:H3)-MIN(F3:H3)),"") -> 1 | J3: =IF(B3>0,VLOOKUP(I3,Punkteschema!$A$2:$B$101,2,FALSE),"") -> 25
A4: Rade, Marcus | B4: 23 | C4: 31 | D4: 54 | E4: FALSE | F4: 1 | G4: 2 | H4: 2 | I4: 2 | J4: =IF(B4>0,VLOOKUP(I4,Punkteschema!$A$2:$B$101,2,FALSE),"") -> 21
A5: Urban, Volker | B5: 24 | C5: 31 | D5: 55 | E5: TRUE | F5: 2 | G5: 2 | H5: 3 | I5: 2 | J5: =IF(B5>0,VLOOKUP(I5,Punkteschema!$A$2:$B$101,2,FALSE),"") -> 21
A6: Brunnenkant, Frank | B6: 26 | C6: 36 | D6: 62 | E6: TRUE | F6: 3 | G6: 6 | H6: 4 | I6: 3 | J6: =IF(B6>0,VLOOKUP(I6,Punkteschema!$A$2:$B$101,2,FALSE),"") -> 18
A7: Börgmann, Ulrich | B7: 38 | C7: 34 | D7: 72 | E7: TRUE | F7: 13 | G7: 4 | H7: 11 | I7: 4 | J7: =IF(B7>0,VLOOKUP(I7,Punkteschema!$A$2:$B$101,2,FALSE),"") -> 15
A8: Lenk, Rolf | B8: 31 | C8: 34 | D8: 65 | E8: FALSE | F8: 7 | G8: 4 | H8: 5 | I8: 5 | J8: =IF(B8>0,VLOOKUP(I8,Punkteschema!$A$2:$B$101,2,FALSE),"") -> 15
A9: Kunz, Martin | B9: 28 | C9: 38 | D9: 66 | E9: TRUE | F9: 5 | G9: 9 | H9: 6 | I9: 5 | J9: =IF(B9>0,VLOOKUP(I9,Punkteschema!$A$2:$B$101,2,FALSE),"") -> 15
A10: Dreischer, Burkhard | B10: 29 | C10: 39 | D10: 68 | E10: TRUE | F10: 6 | G10: 11 | H10: 7 | I10: 6 | J10: =IF(B10>0,VLOOKUP(I10,Punkteschema!$A$2:$B$101,2,FALSE),"") -> 15
A11: Kortmann, Sabine | B11: 32 | C11: 36 | D11: 68 | E11: TRUE | F11: 9 | G11: 6 | H11: 7 | I11: 6 | J11: =IF(B11>0,VLOOKUP(I11,Punkteschema!$A$2:$B$101,2,FALSE),"") -> 15
A12: Kersch, Uwe | B12: 31 | C12: 40 | D12: 71 | E12: TRUE | F12: 7 | G12: 13 | H12: 10 | I12: 7 | J12: =IF(B12>0,VLOOKUP(I12,Punkteschema!$A$2:$B$101,2,FALSE),"") -> 10
A13: Börgmann, Brigitte | B13: 32 | C13: 37 | D13: 69 | E13: TRUE | F13: 9 | G13: 8 | H13: 9 | I13: 8 | J13: =IF(B13>0,VLOOKUP(I13,Punkteschema!$A$2:$B$101,2,FALSE),"") -> 10
A14: Schmidtbauer, Günter | B14: 32 | C14: 42 | D14: 74 | E14: TRUE | F14: 9 | G14: 14 | H14: 13 | I14: 9 | J14: =IF(B14>0,VLOOKUP(I14,Punkteschema!$A$2:$B$101,2,FALSE),"") -> 10
A15: Gattner, Karsten | B15: 42 | C15: 38 | D15: 80 | E15: TRUE | F15: 14 | G15: 9 | H15: 14 | I15: 9 | J15: =IF(B15>0,VLOOKUP(I15,Punkteschema!$A$2:$B$101,2,FALSE),"") -> 10
A16: Urban, Angela | B16: 34 | C16: 39 | D16: 73 | E16: TRUE | F16: 12 | G16: 11 | H16: 12 | I16: 11 | J16: =IF(B16>0,VLOOKUP(I16,Punkteschema!$A$2:$B$101,2,FALSE),"") -> 5
D17: =IF(B17>0,C17+B17,"") ->  | E17: TRUE | F17: =IF(B17>0,COUNTIF(B$3:B$55,"<"&B17)+1,"") ->  | H17: =IF(AND(B17>0,C17>0),COUNTIF(D$3:D$55,"<"&D17)+1,"") ->  | I17: =IF(B17>0,IF(E17,MIN(F17:H17),SUM(F17:H17)-MAX(F17:H17)-MIN(F17:H17)),"") ->  | J17: =IF(B17>0,VLOOKUP(I17,Punkteschema!$A$2:$B$101,2,FALSE),"") -> 
E18: TRUE | J18: =IF(B18>0,VLOOKUP(I18,Punkteschema!$A$2:$B$101,2,FALSE),"") -> 
E19: TRUE | F19: =IF(B19>0,COUNTIF(B$3:B$55,"<"&B19)+1,"") ->  | J19: =IF(B19>0,VLOOKUP(I19,Punkteschema!$A$2:$B$101,2,FALSE),"") -> 
E20: TRUE | J20: =IF(B20>0,VLOOKUP(I20,Punkteschema!$A$2:$B$101,2,FALSE),"") -> 
E21: TRUE | J21: =IF(B21>0,VLOOKUP(I21,Punkteschema!$A$2:$B$101,2,FALSE),"") -> 
E22: TRUE | J22: =IF(B22>0,VLOOKUP(I22,Punkteschema!$A$2:$B$101,2,FALSE),"") -> 
E23: TRUE | J23: =IF(B23>0,VLOOKUP(I23,Punkteschema!$A$2:$B$101,2,FALSE),"") -> 
E24: TRUE | J24: =IF(B24>0,VLOOKUP(I24,Punkteschema!$A$2:$B$101,2,FALSE),"") -> 
E25: TRUE | J25: =IF(B25>0,VLOOKUP(I25,Punkteschema!$A$2:$B$101,2,FALSE),"") -> 
E26: TRUE | J26: =IF(B26>0,VLOOKUP(I26,Punkteschema!$A$2:$B$101,2,FALSE),"") -> 
E27: TRUE | J27: =IF(B27>0,VLOOKUP(I27,Punkteschema!$A$2:$B$101,2,FALSE),"") -> 
E28: TRUE | J28: =IF(B28>0,VLOOKUP(I28,Punkteschema!$A$2:$B$101,2,FALSE),"") -> 
E29: TRUE | J29: =IF(B29>0,VLOOKUP(I29,Punkteschema!$A$2:$B$101,2,FALSE),"") -> 
E30: TRUE | J30: =IF(B30>0,VLOOKUP(I30,Punkteschema!$A$2:$B$101,2,FALSE),"") -> 
E31: TRUE | J31: =IF(B31>0,VLOOKUP(I31,Punkteschema!$A$2:$B$101,2,FALSE),"") -> 
E32: TRUE | J32: =IF(B32>0,VLOOKUP(I32,Punkteschema!$A$2:$B$101,2,FALSE),"") -> 
E33: TRUE | J33: =IF(B33>0,VLOOKUP(I33,Punkteschema!$A$2:$B$101,2,FALSE),"") -> 
E34: TRUE | J34: =IF(B34>0,VLOOKUP(I34,Punkteschema!$A$2:$B$101,2,FALSE),"") -> 
E35: TRUE | J35: =IF(B35>0,VLOOKUP(I35,Punkteschema!$A$2:$B$101,2,FALSE),"") -> 
E36: TRUE | J36: =IF(B36>0,VLOOKUP(I36,Punkteschema!$A$2:$B$101,2,FALSE),"") -> 
E37: TRUE | J37: =IF(B37>0,VLOOKUP(I37,Punkteschema!$A$2:$B$101,2,FALSE),"") -> 
E38: TRUE | J38: =IF(B38>0,VLOOKUP(I38,Punkteschema!$A$2:$B$101,2,FALSE),"") -> 
E39: TRUE | J39: =IF(B39>0,VLOOKUP(I39,Punkteschema!$A$2:$B$101,2,FALSE),"") -> 
E40: TRUE | J40: =IF(B40>0,VLOOKUP(I40,Punkteschema!$A$2:$B$101,2,FALSE),"") -> 
E41: TRUE | J41: =IF(B41>0,VLOOKUP(I41,Punkteschema!$A$2:$B$101,2,FALSE),"") -> 
E42: TRUE | J42: =IF(B42>0,VLOOKUP(I42,Punkteschema!$A$2:$B$101,2,FALSE),"") -> 
E43: TRUE | J43: =IF(B43>0,VLOOKUP(I43,Punkteschema!$A$2:$B$101,2,FALSE),"") -> 
E44: TRUE | J44: =IF(B44>0,VLOOKUP(I44,Punkteschema!$A$2:$B$101,2,FALSE),"") -> 
E45: TRUE | J45: =IF(B45>0,VLOOKUP(I45,Punkteschema!$A$2:$B$101,2,FALSE),"") -> 
E46: TRUE | J46: =IF(B46>0,VLOOKUP(I46,Punkteschema!$A$2:$B$101,2,FALSE),"") -> 
E47: TRUE | J47: =IF(B47>0,VLOOKUP(I47,Punkteschema!$A$2:$B$101,2,FALSE),"") -> 
E48: TRUE | J48: =IF(B48>0,VLOOKUP(I48,Punkteschema!$A$2:$B$101,2,FALSE),"") -> 
E49: TRUE | J49: =IF(B49>0,VLOOKUP(I49,Punkteschema!$A$2:$B$101,2,FALSE),"") -> 
E50: TRUE | J50: =IF(B50>0,VLOOKUP(I50,Punkteschema!$A$2:$B$101,2,FALSE),"") -> 
E51: TRUE | J51: =IF(B51>0,VLOOKUP(I51,Punkteschema!$A$2:$B$101,2,FALSE),"") -> 
E52: TRUE | J52: =IF(B52>0,VLOOKUP(I52,Punkteschema!$A$2:$B$101,2,FALSE),"") -> 
E53: TRUE | F53: =IF(B53>0,COUNTIF(B$3:B$55,"<"&B53)+1,"") ->  | H53: =IF(AND(B53>0,C53>0),COUNTIF(D$3:D$55,"<"&D53)+1,"") ->  | J53: =IF(B53>0,VLOOKUP(I53,Punkteschema!$A$2:$B$101,2,FALSE),"") -> 
E54: TRUE | H54: =IF(AND(B54>0,C54>0),COUNTIF(D$3:D$55,"<"&D54)+1,"") ->  | J54: =IF(B54>0,VLOOKUP(I54,Punkteschema!$A$2:$B$101,2,FALSE),"") -> 
E55: TRUE | H55: =IF(AND(B55>0,C55>0),COUNTIF(D$3:D$55,"<"&D55)+1,"") ->  | J55: =IF(B55>0,VLOOKUP(I55,Punkteschema!$A$2:$B$101,2,FALSE),"") -> 
A57: OS: Urban, Volker (ASW) | E57: Runde 1: | F57: E | G57: <- E/B
A58: S: Rade, Marcus (OSN) | E58: Runde 2: | F58: B | G58: <- E/B
A59: S: Lenk, Rolf (ASW)
A61: Verloste Preise:
A62: Kunz, Martin | B62: 1 Minigolfball A22
A63: Börgmann, Ulrich | B63: 1 Flasche Merlot
A64: Urban, Volker | B64: 1 Dose Haribo Color-Rado

Sheet Einzelwertung15
A1: =CONCATENATE("7. Sommer-Cup - Freizeittreff Herbede - ",TEXT(Gesamtstand!$T$2,"TT.MM.JJ")) -> 7. Sommer-Cup - Freizeittreff Herbede - 11.08.22
A2: Spieler | B2: Runde 1 | C2: Runde 2 | D2: Gesamt | E2: bessere? | F2: Pl. R1 | G2: Pl. R2 | H2: Pl. Ges. | I2: gewertet | J2: Punkte
A3: Rabe, Jonas | B3: 24 | C3: 34 | D3: =IF(B3>0,C3+B3,"") -> 58 | E3: FALSE | F3: =IF(B3>0,COUNTIF(B$3:B$55,"<"&B3)+1,"") -> 1 | G3: =IF(C3>0,COUNTIF(C$3:C$55,"<"&C3)+1,"") -> 4 | H3: =IF(AND(B3>0,C3>0),COUNTIF(D$3:D$55,"<"&D3)+1,"") -> 1 | I3: =IF(B3>0,IF(E3,MIN(F3:H3),SUM(F3:H3)-MAX(F3:H3)-MIN(F3:H3)),"") -> 1 | J3: =IF(B3>0,VLOOKUP(I3,Punkteschema!$A$2:$B$101,2,FALSE),"") -> 25
A4: Brunnenkant, Frank | B4: 27 | C4: 34 | D4: 61 | E4: TRUE | F4: 2 | G4: 4 | H4: 2 | I4: 2 | J4: =IF(B4>0,VLOOKUP(I4,Punkteschema!$A$2:$B$101,2,FALSE),"") -> 21
A5: Kortmann, Sabine | B5: 29 | C5: 33 | D5: 62 | E5: TRUE | F5: 3 | G5: 2 | H5: 3 | I5: 2 | J5: =IF(B5>0,VLOOKUP(I5,Punkteschema!$A$2:$B$101,2,FALSE),"") -> 21
A6: Kunz, Martin | B6: 34 | C6: 33 | D6: 67 | E6: TRUE | F6: 8 | G6: 2 | H6: 7 | I6: 2 | J6: =IF(B6>0,VLOOKUP(I6,Punkteschema!$A$2:$B$101,2,FALSE),"") -> 21
A7: Dreischer, Burkhard | B7: 31 | C7: 34 | D7: 65 | E7: TRUE | F7: 5 | G7: 4 | H7: 5 | I7: 4 | J7: =IF(B7>0,VLOOKUP(I7,Punkteschema!$A$2:$B$101,2,FALSE),"") -> 15
A8: Urban, Volker | B8: 32 | C8: 31 | D8: 63 | E8: FALSE | F8: 6 | G8: 1 | H8: 4 | I8: 4 | J8: =IF(B8>0,VLOOKUP(I8,Punkteschema!$A$2:$B$101,2,FALSE),"") -> 15
A9: Lenk, Rolf | B9: 30 | C9: 36 | D9: 66 | E9: FALSE | F9: 4 | G9: 8 | H9: 6 | I9: 6 | J9: =IF(B9>0,VLOOKUP(I9,Punkteschema!$A$2:$B$101,2,FALSE),"") -> 15
A10: Gattner, Karsten | B10: 33 | C10: 35 | D10: 68 | E10: TRUE | F10: 7 | G10: 7 | H10: 8 | I10: 7 | J10: =IF(B10>0,VLOOKUP(I10,Punkteschema!$A$2:$B$101,2,FALSE),"") -> 10
A11: Schmidtbauer, Günter | B11: 35 | C11: 36 | D11: 71 | E11: TRUE | F11: 9 | G11: 8 | H11: 9 | I11: 8 | J11: =IF(B11>0,VLOOKUP(I11,Punkteschema!$A$2:$B$101,2,FALSE),"") -> 10
A12: Börgmann, Ulrich | B12: 35 | C12: 44 | D12: 79 | E12: TRUE | F12: 9 | G12: 11 | H12: 10 | I12: 9 | J12: =IF(B12>0,VLOOKUP(I12,Punkteschema!$A$2:$B$101,2,FALSE),"") -> 10
A13: Börgmann, Brigitte | B13: 40 | C13: 40 | D13: 80 | E13: TRUE | F13: 11 | G13: 10 | H13: 11 | I13: 10 | J13: =IF(B13>0,VLOOKUP(I13,Punkteschema!$A$2:$B$101,2,FALSE),"") -> 10
D14: =IF(B14>0,C14+B14,"") ->  | E14: TRUE | F14: =IF(B14>0,COUNTIF(B$3:B$55,"<"&B14)+1,"") ->  | H14: =IF(AND(B14>0,C14>0),COUNTIF(D$3:D$55,"<"&D14)+1,"") ->  | I14: =IF(B14>0,IF(E14,MIN(F14:H14),SUM(F14:H14)-MAX(F14:H14)-MIN(F14:H14)),"") ->  | J14: =IF(B14>0,VLOOKUP(I14,Punkteschema!$A$2:$B$101,2,FALSE),"") -> 
E15: TRUE | J15: =IF(B15>0,VLOOKUP(I15,Punkteschema!$A$2:$B$101,2,FALSE),"") -> 
E16: TRUE | J16: =IF(B16>0,VLOOKUP(I16,Punkteschema!$A$2:$B$101,2,FALSE),"") -> 
E17: TRUE | J17: =IF(B17>0,VLOOKUP(I17,Punkteschema!$A$2:$B$101,2,FALSE),"") -> 
E18: TRUE | J18: =IF(B18>0,VLOOKUP(I18,Punkteschema!$A$2:$B$101,2,FALSE),"") -> 
E19: TRUE | F19: =IF(B19>0,COUNTIF(B$3:B$55,"<"&B19)+1,"") ->  | J19: =IF(B19>0,VLOOKUP(I19,Punkteschema!$A$2:$B$101,2,FALSE),"") -> 
E20: TRUE | J20: =IF(B20>0,VLOOKUP(I20,Punkteschema!$A$2:$B$101,2,FALSE),"") -> 
E21: TRUE | J21: =IF(B21>0,VLOOKUP(I21,Punkteschema!$A$2:$B$101,2,FALSE),"") -> 
E22: TRUE | J22: =IF(B22>0,VLOOKUP(I22,Punkteschema!$A$2:$B$101,2,FALSE),"") -> 
E23: TRUE | J23: =IF(B23>0,VLOOKUP(I23,Punkteschema!$A$2:$B$101,2,FALSE),"") -> 
E24: TRUE | J24: =IF(B24>0,VLOOKUP(I24,Punkteschema!$A$2:$B$101,2,FALSE),"") -> 
E25: TRUE | J25: =IF(B25>0,VLOOKUP(I25,Punkteschema!$A$2:$B$101,2,FALSE),"") -> 
E26: TRUE | J26: =IF(B26>0,VLOOKUP(I26,Punkteschema!$A$2:$B$101,2,FALSE),"") -> 
E27: TRUE | J27: =IF(B27>0,VLOOKUP(I27,Punkteschema!$A$2:$B$101,2,FALSE),"") -> 
E28: TRUE | J28: =IF(B28>0,VLOOKUP(I28,Punkteschema!$A$2:$B$101,2,FALSE),"") -> 
E29: TRUE | J29: =IF(B29>0,VLOOKUP(I29,Punkteschema!$A$2:$B$101,2,FALSE),"") -> 
E30: TRUE | J30: =IF(B30>0,VLOOKUP(I30,Punkteschema!$A$2:$B$101,2,FALSE),"") -> 
E31: TRUE | J31: =IF(B31>0,VLOOKUP(I31,Punkteschema!$A$2:$B$101,2,FALSE),"") -> 
E32: TRUE | J32: =IF(B32>0,VLOOKUP(I32,Punkteschema!$A$2:$B$101,2,FALSE),"") -> 
E33: TRUE | J33: =IF(B33>0,VLOOKUP(I33,Punkteschema!$A$2:$B$101,2,FALSE),"") -> 
E34: TRUE | J34: =IF(B34>0,VLOOKUP(I34,Punkteschema!$A$2:$B$101,2,FALSE),"") -> 
E35: TRUE | J35: =IF(B35>0,VLOOKUP(I35,Punkteschema!$A$2:$B$101,2,FALSE),"") -> 
E36: TRUE | J36: =IF(B36>0,VLOOKUP(I36,Punkteschema!$A$2:$B$101,2,FALSE),"") -> 
E37: TRUE | J37: =IF(B37>0,VLOOKUP(I37,Punkteschema!$A$2:$B$101,2,FALSE),"") -> 
E38: TRUE | J38: =IF(B38>0,VLOOKUP(I38,Punkteschema!$A$2:$B$101,2,FALSE),"") -> 
E39: TRUE | J39: =IF(B39>0,VLOOKUP(I39,Punkteschema!$A$2:$B$101,2,FALSE),"") -> 
E40: TRUE | J40: =IF(B40>0,VLOOKUP(I40,Punkteschema!$A$2:$B$101,2,FALSE),"") -> 
E41: TRUE | J41: =IF(B41>0,VLOOKUP(I41,Punkteschema!$A$2:$B$101,2,FALSE),"") -> 
E42: TRUE | J42: =IF(B42>0,VLOOKUP(I42,Punkteschema!$A$2:$B$101,2,FALSE),"") -> 
E43: TRUE | J43: =IF(B43>0,VLOOKUP(I43,Punkteschema!$A$2:$B$101,2,FALSE),"") -> 
E44: TRUE | J44: =IF(B44>0,VLOOKUP(I44,Punkteschema!$A$2:$B$101,2,FALSE),"") -> 
E45: TRUE | J45: =IF(B45>0,VLOOKUP(I45,Punkteschema!$A$2:$B$101,2,FALSE),"") -> 
E46: TRUE | J46: =IF(B46>0,VLOOKUP(I46,Punkteschema!$A$2:$B$101,2,FALSE),"") -> 
E47: TRUE | J47: =IF(B47>0,VLOOKUP(I47,Punkteschema!$A$2:$B$101,2,FALSE),"") -> 
E48: TRUE | J48: =IF(B48>0,VLOOKUP(I48,Punkteschema!$A$2:$B$101,2,FALSE),"") -> 
E49: TRUE | J49: =IF(B49>0,VLOOKUP(I49,Punkteschema!$A$2:$B$101,2,FALSE),"") -> 
E50: TRUE | J50: =IF(B50>0,VLOOKUP(I50,Punkteschema!$A$2:$B$101,2,FALSE),"") -> 
E51: TRUE | J51: =IF(B51>0,VLOOKUP(I51,Punkteschema!$A$2:$B$101,2,FALSE),"") -> 
E52: TRUE | J52: =IF(B52>0,VLOOKUP(I52,Punkteschema!$A$2:$B$101,2,FALSE),"") -> 
E53: TRUE | F53: =IF(B53>0,COUNTIF(B$3:B$55,"<"&B53)+1,"") ->  | H53: =IF(AND(B53>0,C53>0),COUNTIF(D$3:D$55,"<"&D53)+1,"") ->  | J53: =IF(B53>0,VLOOKUP(I53,Punkteschema!$A$2:$B$101,2,FALSE),"") -> 
E54: TRUE | H54: =IF(AND(B54>0,C54>0),COUNTIF(D$3:D$55,"<"&D54)+1,"") ->  | J54: =IF(B54>0,VLOOKUP(I54,Punkteschema!$A$2:$B$101,2,FALSE),"") -> 
E55: TRUE | H55: =IF(AND(B55>0,C55>0),COUNTIF(D$3:D$55,"<"&D55)+1,"") ->  | J55: =IF(B55>0,VLOOKUP(I55,Punkteschema!$A$2:$B$101,2,FALSE),"") -> 
A57: OS: Urban, Volker (ASW) | E57: Runde 1: | F57: E | G57: <- E/B
A58: S: Rabe, Jonas (HAR) | E58: Runde 2: | F58: B | G58: <- E/B
A59: S: Lenk, Rolf (ASW)
A61: Verloste Preise:
A62: Schmidtbauer, Günter | B62: 1 Minigolfball MGC RW Wanne-Eickel 2001
A63: Urban, Volker | B63: 1 Flasche Vanillelikör
A64: Brunnenkant, Frank | B64: 1 Verzehrgutschein

Sheet Einzelwertung16
A1: =CONCATENATE("7. Sommer-Cup - Freizeittreff Herbede - ",TEXT(Gesamtstand!$U$2,"TT.MM.JJ")) -> 7. Sommer-Cup - Freizeittreff Herbede - 18.08.22
A2: Spieler | B2: Runde 1 | C2: Runde 2 | D2: Gesamt | E2: bessere? | F2: Pl. R1 | G2: Pl. R2 | H2: Pl. Ges. | I2: gewertet | J2: Punkte
A3: Urban, Volker | B3: 25 | C3: 31 | D3: =IF(B3>0,C3+B3,"") -> 56 | E3: TRUE | F3: =IF(B3>0,COUNTIF(B$3:B$55,"<"&B3)+1,"") -> 2 | G3: =IF(C3>0,COUNTIF(C$3:C$55,"<"&C3)+1,"") -> 2 | H3: =IF(AND(B3>0,C3>0),COUNTIF(D$3:D$55,"<"&D3)+1,"") -> 1 | I3: =IF(B3>0,IF(E3,MIN(F3:H3),SUM(F3:H3)-MAX(F3:H3)-MIN(F3:H3)),"") -> 1 | J3: =IF(B3>0,VLOOKUP(I3,Punkteschema!$A$2:$B$101,2,FALSE),"") -> 25
A4: Wilke, Andreas | B4: 29 | C4: 28 | D4: 57 | E4: TRUE | F4: 10 | G4: 1 | H4: 2 | I4: 1 | J4: =IF(B4>0,VLOOKUP(I4,Punkteschema!$A$2:$B$101,2,FALSE),"") -> 25
A5: Rabe, Jonas | B5: 26 | C5: 31 | D5: 57 | E5: FALSE | F5: 4 | G5: 2 | H5: 2 | I5: 2 | J5: =IF(B5>0,VLOOKUP(I5,Punkteschema!$A$2:$B$101,2,FALSE),"") -> 21
A6: Buchholz, Ansgar | B6: 25 | C6: 34 | D6: 59 | E6: FALSE | F6: 2 | G6: 5 | H6: 4 | I6: 4 | J6: =IF(B6>0,VLOOKUP(I6,Punkteschema!$A$2:$B$101,2,FALSE),"") -> 15
A7: Puschner, Michael | B7: 26 | C7: 33 | D7: 59 | E7: TRUE | F7: 4 | G7: 4 | H7: 4 | I7: 4 | J7: =IF(B7>0,VLOOKUP(I7,Punkteschema!$A$2:$B$101,2,FALSE),"") -> 15
A8: Gattner, Karsten | B8: 26 | C8: 36 | D8: 62 | E8: TRUE | F8: 4 | G8: 8 | H8: 7 | I8: 4 | J8: =IF(B8>0,VLOOKUP(I8,Punkteschema!$A$2:$B$101,2,FALSE),"") -> 15
A9: Börgmann, Ulrich | B9: 26 | C9: 43 | D9: 69 | E9: TRUE | F9: 4 | G9: 16 | H9: 13 | I9: 4 | J9: =IF(B9>0,VLOOKUP(I9,Punkteschema!$A$2:$B$101,2,FALSE),"") -> 15
A10: Rade, Marcus | B10: 22 | C10: 38 | D10: 60 | E10: FALSE | F10: 1 | G10: 10 | H10: 6 | I10: 6 | J10: =IF(B10>0,VLOOKUP(I10,Punkteschema!$A$2:$B$101,2,FALSE),"") -> 15
A11: Lenk, Rolf | B11: 28 | C11: 35 | D11: 63 | E11: TRUE | F11: 9 | G11: 6 | H11: 8 | I11: 6 | J11: =IF(B11>0,VLOOKUP(I11,Punkteschema!$A$2:$B$101,2,FALSE),"") -> 15
A12: Brunnenkant, Frank | B12: 29 | C12: 35 | D12: 64 | E12: TRUE | F12: 10 | G12: 6 | H12: 9 | I12: 6 | J12: =IF(B12>0,VLOOKUP(I12,Punkteschema!$A$2:$B$101,2,FALSE),"") -> 15
A13: Kortmann, Sabine | B13: 27 | C13: 39 | D13: 66 | E13: TRUE | F13: 8 | G13: 13 | H13: 10 | I13: 8 | J13: =IF(B13>0,VLOOKUP(I13,Punkteschema!$A$2:$B$101,2,FALSE),"") -> 10
A14: Schmidtbauer, Günter | B14: 32 | C14: 36 | D14: 68 | E14: TRUE | F14: 14 | G14: 8 | H14: 11 | I14: 8 | J14: =IF(B14>0,VLOOKUP(I14,Punkteschema!$A$2:$B$101,2,FALSE),"") -> 10
A15: Kunz, Martin | B15: 30 | C15: 38 | D15: 68 | E15: TRUE | F15: 12 | G15: 10 | H15: 11 | I15: 10 | J15: =IF(B15>0,VLOOKUP(I15,Punkteschema!$A$2:$B$101,2,FALSE),"") -> 10
A16: Dreischer, Burkhard | B16: 31 | C16: 38 | D16: 69 | E16: TRUE | F16: 13 | G16: 10 | H16: 13 | I16: 10 | J16: =IF(B16>0,VLOOKUP(I16,Punkteschema!$A$2:$B$101,2,FALSE),"") -> 10
A17: Kersch, Uwe | B17: 44 | C17: 40 | D17: 84 | E17: TRUE | F17: 17 | G17: 14 | H17: 16 | I17: 14 | J17: =IF(B17>0,VLOOKUP(I17,Punkteschema!$A$2:$B$101,2,FALSE),"") -> 5
A18: Puschner, Silke | B18: 35 | C18: 50 | D18: 85 | E18: TRUE | F18: 15 | G18: 17 | H18: 17 | I18: 15 | J18: =IF(B18>0,VLOOKUP(I18,Punkteschema!$A$2:$B$101,2,FALSE),"") -> 5
A19: Kortmann, Uwe | B19: 42 | C19: 41 | D19: 83 | E19: TRUE | F19: 16 | G19: 15 | H19: 15 | I19: 15 | J19: =IF(B19>0,VLOOKUP(I19,Punkteschema!$A$2:$B$101,2,FALSE),"") -> 5
D20: =IF(B20>0,C20+B20,"") ->  | E20: TRUE | F20: =IF(B20>0,COUNTIF(B$3:B$55,"<"&B20)+1,"") ->  | H20: =IF(AND(B20>0,C20>0),COUNTIF(D$3:D$55,"<"&D20)+1,"") ->  | I20: =IF(B20>0,IF(E20,MIN(F20:H20),SUM(F20:H20)-MAX(F20:H20)-MIN(F20:H20)),"") ->  | J20: =IF(B20>0,VLOOKUP(I20,Punkteschema!$A$2:$B$101,2,FALSE),"") -> 
E21: TRUE | J21: =IF(B21>0,VLOOKUP(I21,Punkteschema!$A$2:$B$101,2,FALSE),"") -> 
E22: TRUE | J22: =IF(B22>0,VLOOKUP(I22,Punkteschema!$A$2:$B$101,2,FALSE),"") -> 
E23: TRUE | J23: =IF(B23>0,VLOOKUP(I23,Punkteschema!$A$2:$B$101,2,FALSE),"") -> 
E24: TRUE | J24: =IF(B24>0,VLOOKUP(I24,Punkteschema!$A$2:$B$101,2,FALSE),"") -> 
E25: TRUE | J25: =IF(B25>0,VLOOKUP(I25,Punkteschema!$A$2:$B$101,2,FALSE),"") -> 
E26: TRUE | J26: =IF(B26>0,VLOOKUP(I26,Punkteschema!$A$2:$B$101,2,FALSE),"") -> 
E27: TRUE | J27: =IF(B27>0,VLOOKUP(I27,Punkteschema!$A$2:$B$101,2,FALSE),"") -> 
E28: TRUE | J28: =IF(B28>0,VLOOKUP(I28,Punkteschema!$A$2:$B$101,2,FALSE),"") -> 
E29: TRUE | J29: =IF(B29>0,VLOOKUP(I29,Punkteschema!$A$2:$B$101,2,FALSE),"") -> 
E30: TRUE | J30: =IF(B30>0,VLOOKUP(I30,Punkteschema!$A$2:$B$101,2,FALSE),"") -> 
E31: TRUE | J31: =IF(B31>0,VLOOKUP(I31,Punkteschema!$A$2:$B$101,2,FALSE),"") -> 
E32: TRUE | J32: =IF(B32>0,VLOOKUP(I32,Punkteschema!$A$2:$B$101,2,FALSE),"") -> 
E33: TRUE | J33: =IF(B33>0,VLOOKUP(I33,Punkteschema!$A$2:$B$101,2,FALSE),"") -> 
E34: TRUE | J34: =IF(B34>0,VLOOKUP(I34,Punkteschema!$A$2:$B$101,2,FALSE),"") -> 
E35: TRUE | J35: =IF(B35>0,VLOOKUP(I35,Punkteschema!$A$2:$B$101,2,FALSE),"") -> 
E36: TRUE | J36: =IF(B36>0,VLOOKUP(I36,Punkteschema!$A$2:$B$101,2,FALSE),"") -> 
E37: TRUE | J37: =IF(B37>0,VLOOKUP(I37,Punkteschema!$A$2:$B$101,2,FALSE),"") -> 
E38: TRUE | J38: =IF(B38>0,VLOOKUP(I38,Punkteschema!$A$2:$B$101,2,FALSE),"") -> 
E39: TRUE | J39: =IF(B39>0,VLOOKUP(I39,Punkteschema!$A$2:$B$101,2,FALSE),"") -> 
E40: TRUE | J40: =IF(B40>0,VLOOKUP(I40,Punkteschema!$A$2:$B$101,2,FALSE),"") -> 
E41: TRUE | J41: =IF(B41>0,VLOOKUP(I41,Punkteschema!$A$2:$B$101,2,FALSE),"") -> 
E42: TRUE | J42: =IF(B42>0,VLOOKUP(I42,Punkteschema!$A$2:$B$101,2,FALSE),"") -> 
E43: TRUE | J43: =IF(B43>0,VLOOKUP(I43,Punkteschema!$A$2:$B$101,2,FALSE),"") -> 
E44: TRUE | J44: =IF(B44>0,VLOOKUP(I44,Punkteschema!$A$2:$B$101,2,FALSE),"") -> 
E45: TRUE | J45: =IF(B45>0,VLOOKUP(I45,Punkteschema!$A$2:$B$101,2,FALSE),"") -> 
E46: TRUE | J46: =IF(B46>0,VLOOKUP(I46,Punkteschema!$A$2:$B$101,2,FALSE),"") -> 
E47: TRUE | J47: =IF(B47>0,VLOOKUP(I47,Punkteschema!$A$2:$B$101,2,FALSE),"") -> 
E48: TRUE | J48: =IF(B48>0,VLOOKUP(I48,Punkteschema!$A$2:$B$101,2,FALSE),"") -> 
E49: TRUE | J49: =IF(B49>0,VLOOKUP(I49,Punkteschema!$A$2:$B$101,2,FALSE),"") -> 
E50: TRUE | J50: =IF(B50>0,VLOOKUP(I50,Punkteschema!$A$2:$B$101,2,FALSE),"") -> 
E51: TRUE | J51: =IF(B51>0,VLOOKUP(I51,Punkteschema!$A$2:$B$101,2,FALSE),"") -> 
E52: TRUE | J52: =IF(B52>0,VLOOKUP(I52,Punkteschema!$A$2:$B$101,2,FALSE),"") -> 
E53: TRUE | F53: =IF(B53>0,COUNTIF(B$3:B$55,"<"&B53)+1,"") ->  | H53: =IF(AND(B53>0,C53>0),COUNTIF(D$3:D$55,"<"&D53)+1,"") ->  | J53: =IF(B53>0,VLOOKUP(I53,Punkteschema!$A$2:$B$101,2,FALSE),"") -> 
E54: TRUE | H54: =IF(AND(B54>0,C54>0),COUNTIF(D$3:D$55,"<"&D54)+1,"") ->  | J54: =IF(B54>0,VLOOKUP(I54,Punkteschema!$A$2:$B$101,2,FALSE),"") -> 
E55: TRUE | H55: =IF(AND(B55>0,C55>0),COUNTIF(D$3:D$55,"<"&D55)+1,"") ->  | J55: =IF(B55>0,VLOOKUP(I55,Punkteschema!$A$2:$B$101,2,FALSE),"") -> 
A57: OS: Buchholz, Ansgar (ASW) | E57: Runde 1: | F57: E | G57: <- E/B
A58: S: Puschner, Michael (HOB) | E58: Runde 2: | F58: B | G58: <- E/B
A59: S: Urban, Volker (ASW)
A61: Verloste Preise:
A62: Kersch, Uwe | B62: 1 Minigolfball
A63: Wilke, Andreas | B63: 1 Dose Haribo Color-Rado
A64: Puschner, Michael | B64: 1 Flasche Vanillelikör

Sheet Bahnenergebnisse
A1: Datum | B1: Spieler | C1: R1 | D1: R2 | E1: R1 | F1: R2 | G1: L1 | H1: L2 | I1: Sys1 | J1: Sys2 | K1: E1 | L1: E2 | M1: E3 | N1: E4 | O1: E5 | P1: E6 | Q1: E7 | R1: E8 | S1: E9 | T1: E10 | U1: E11 | V1: E12 | W1: E13 | X1: E14 | Y1: E15 | Z1: E16 | AA1: E17 | AB1: E18 | AC1: E_Sum | AD1: B1 | AE1: B2 | AF1: B3 | AG1: B4 | AH1: B5 | AI1: B6 | AJ1: B7 | AK1: B8 | AL1: B9 | AM1: B10 | AN1: B11 | AO1: B12 | AP1: B13 | AQ1: B14 | AR1: B15 | AS1: B16 | AT1: B17 | AU1: B18 | AV1: B_Sum
A2: 2022-05-05 | B2: Paffrath, Siegfried | C2: =IF(ISBLANK(E2),"",MID(E2,1,1)+MID(E2,2,1)+MID(E2,3,1)+MID(E2,4,1)+MID(E2,5,1)+MID(E2,6,1)+MID(E2,7,1)+MID(E2,8,1)+MID(E2,9,1)+MID(E2,10,1)+MID(E2,11,1)+MID(E2,12,1)+MID(E2,13,1)+MID(E2,14,1)+MID(E2,15,1)+MID(E2,16,1)+MID(E2,17,1)+MID(E2,18,1)) -> 29 | D2: =IF(ISBLANK(F2),"",MID(F2,1,1)+MID(F2,2,1)+MID(F2,3,1)+MID(F2,4,1)+MID(F2,5,1)+MID(F2,6,1)+MID(F2,7,1)+MID(F2,8,1)+MID(F2,9,1)+MID(F2,10,1)+MID(F2,11,1)+MID(F2,12,1)+MID(F2,13,1)+MID(F2,14,1)+MID(F2,15,1)+MID(F2,16,1)+MID(F2,17,1)+MID(F2,18,1)) -> 40 | E2: 171111112111212122 | F2: 221311123211225722 | G2: =LEN(E2) -> 18 | H2: =LEN(F2) -> 18 | I2: E | J2: B | K2: =IF($I2=MID(K$1,1,1),IF(ISBLANK($E2),"",VALUE(MID($E2,VALUE(MID(K$1,2,LEN(K$1)-1)),1))),IF($J2=MID(K$1,1,1),IF(ISBLANK($F2),"",VALUE(MID($F2,VALUE(MID(K$1,2,LEN(K$1)-1)),1))))) -> 1 | L2: 7 | M2: 1 | N2: 1 | O2: 1 | P2: 1 | Q2: 1 | R2: 1 | S2: 2 | T2: 1 | U2: 1 | V2: 1 | W2: 2 | X2: 1 | Y2: 2 | Z2: 1 | AA2: =IF($I2=MID(AA$1,1,1),IF(ISBLANK($E2),"",VALUE(MID($E2,VALUE(MID(AA$1,2,LEN(AA$1)-1)),1))),IF($J2=MID(AA$1,1,1),IF(ISBLANK($F2),"",VALUE(MID($F2,VALUE(MID(AA$1,2,LEN(AA$1)-1)),1))))) -> 2 | AB2: 2 | AC2: =IF(SUM(K2:AB2)>0,SUM(K2:AB2),0) -> 29 | AD2: =IF($I2=MID(AD$1,1,1),IF(ISBLANK($E2),"",VALUE(MID($E2,VALUE(MID(AD$1,2,LEN(AD$1)-1)),1))),IF($J2=MID(AD$1,1,1),IF(ISBLANK($F2),"",VALUE(MID($F2,VALUE(MID(AD$1,2,LEN(AD$1)-1)),1))))) -> 2 | AE2: 2 | AF2: 1 | AG2: 3 | AH2: 1 | AI2: 1 | AJ2: 1 | AK2: 2 | AL2: 3 | AM2: 2 | AN2: 1 | AO2: 1 | AP2: 2 | AQ2: 2 | AR2: 5 | AS2: 7 | AT2: 2 | AU2: 2 | AV2: =IF(SUM(AD2:AU2)>0,SUM(AD2:AU2),0) -> 40
A3: 2022-05-05 | B3: Paffrath, Ben | C3: 28 | D3: =IF(ISBLANK(F3),"",MID(F3,1,1)+MID(F3,2,1)+MID(F3,3,1)+MID(F3,4,1)+MID(F3,5,1)+MID(F3,6,1)+MID(F3,7,1)+MID(F3,8,1)+MID(F3,9,1)+MID(F3,10,1)+MID(F3,11,1)+MID(F3,12,1)+MID(F3,13,1)+MID(F3,14,1)+MID(F3,15,1)+MID(F3,16,1)+MID(F3,17,1)+MID(F3,18,1)) -> 32 | E3: 311211111111322222 | F3: 222422122211221112 | G3: =LEN(E3) -> 18 | H3: =LEN(F3) -> 18 | I3: E | J3: B | K3: 3 | L3: 1 | M3: 1 | N3: 2 | O3: 1 | P3: 1 | Q3: 1 | R3: 1 | S3: 1 | T3: 1 | U3: 1 | V3: 1 | W3: 3 | X3: 2 | Y3: 2 | Z3: 2 | AA3: 2 | AB3: 2 | AC3: =IF(SUM(K3:AB3)>0,SUM(K3:AB3),0) -> 28 | AD3: 2 | AE3: 2 | AF3: 2 | AG3: 4 | AH3: 2 | AI3: 2 | AJ3: 1 | AK3: 2 | AL3: 2 | AM3: 2 | AN3: 1 | AO3: 1 | AP3: 2 | AQ3: 2 | AR3: 1 | AS3: 1 | AT3: 1 | AU3: 2 | AV3: =IF(SUM(AD3:AU3)>0,SUM(AD3:AU3),0) -> 32
A4: 2022-05-05 | B4: Rade, Marcus | C4: 27 | D4: =IF(ISBLANK(F4),"",MID(F4,1,1)+MID(F4,2,1)+MID(F4,3,1)+MID(F4,4,1)+MID(F4,5,1)+MID(F4,6,1)+MID(F4,7,1)+MID(F4,8,1)+MID(F4,9,1)+MID(F4,10,1)+MID(F4,11,1)+MID(F4,12,1)+MID(F4,13,1)+MID(F4,14,1)+MID(F4,15,1)+MID(F4,16,1)+MID(F4,17,1)+MID(F4,18,1)) -> 33 | E4: 122123112211121121 | F4: 111422122221212322 | G4: 18 | H4: 18 | I4: E | J4: B | K4: 1 | L4: 2 | M4: 2 | N4: 1 | O4: 2 | P4: 3 | Q4: 1 | R4: 1 | S4: 2 | T4: 2 | U4: 1 | V4: 1 | W4: 1 | X4: 2 | Y4: 1 | Z4: 1 | AA4: 2 | AB4: 1 | AC4: 27 | AD4: 1 | AE4: 1 | AF4: 1 | AG4: 4 | AH4: 2 | AI4: 2 | AJ4: 1 | AK4: 2 | AL4: 2 | AM4: 2 | AN4: 2 | AO4: 1 | AP4: 2 | AQ4: 1 | AR4: 2 | AS4: 3 | AT4: 2 | AU4: 2 | AV4: 33
A5: 2022-05-05 | B5: Urban, Volker | C5: 30 | D5: 30 | E5: 122131122211212222 | F5: 212222122211212221 | G5: 18 | H5: 18 | I5: E | J5: B | K5: 1 | L5: 2 | M5: 2 | N5: 1 | O5: 3 | P5: 1 | Q5: 1 | R5: 2 | S5: 2 | T5: 2 | U5: 1 | V5: 1 | W5: 2 | X5: 1 | Y5: 2 | Z5: 2 | AA5: 2 | AB5: 2 | AC5: 30 | AD5: 2 | AE5: 1 | AF5: 2 | AG5: 2 | AH5: 2 | AI5: 2 | AJ5: 1 | AK5: 2 | AL5: 2 | AM5: 2 | AN5: 1 | AO5: 1 | AP5: 2 | AQ5: 1 | AR5: 2 | AS5: 2 | AT5: 2 | AU5: 1 | AV5: 30
A6: 2022-05-05 | B6: Börgmann, Brigitte | C6: 36 | D6: 42 | E6: 172231212221122212 | F6: 222321224312216322 | G6: 18 | H6: 18 | I6: E | J6: B | K6: 1 | L6: 7 | M6: 2 | N6: 2 | O6: 3 | P6: 1 | Q6: 2 | R6: 1 | S6: 2 | T6: 2 | U6: 2 | V6: 1 | W6: 1 | X6: 2 | Y6: 2 | Z6: 2 | AA6: 1 | AB6: 2 | AC6: 36 | AD6: 2 | AE6: 2 | AF6: 2 | AG6: 3 | AH6: 2 | AI6: 1 | AJ6: 2 | AK6: 2 | AL6: 4 | AM6: 3 | AN6: 1 | AO6: 2 | AP6: 2 | AQ6: 1 | AR6: 6 | AS6: 3 | AT6: 2 | AU6: 2 | AV6: 42
A7: 2022-05-05 | B7: Börgmann, Ulrich | C7: 39 | D7: 37 | E7: 351111132113315223 | F7: 223222322212221223 | G7: 18 | H7: 18 | I7: E | J7: B | K7: 3 | L7: 5 | M7: 1 | N7: 1 | O7: 1 | P7: 1 | Q7: 1 | R7: 3 | S7: 2 | T7: 1 | U7: 1 | V7: 3 | W7: 3 | X7: 1 | Y7: 5 | Z7: 2 | AA7: 2 | AB7: 3 | AC7: 39 | AD7: 2 | AE7: 2 | AF7: 3 | AG7: 2 | AH7: 2 | AI7: 2 | AJ7: 3 | AK7: 2 | AL7: 2 | AM7: 2 | AN7: 1 | AO7: 2 | AP7: 2 | AQ7: 2 | AR7: 1 | AS7: 2 | AT7: 2 | AU7: 3 | AV7: 37
A8: 2022-05-05 | B8: Kortmann, Uwe | C8: 36 | D8: 33 | E8: 131211212133522222 | F8: 221322312111223221 | G8: 18 | H8: 18 | I8: E | J8: B | K8: 1 | L8: 3 | M8: 1 | N8: 2 | O8: 1 | P8: 1 | Q8: 2 | R8: 1 | S8: 2 | T8: 1 | U8: 3 | V8: 3 | W8: 5 | X8: 2 | Y8: 2 | Z8: 2 | AA8: 2 | AB8: 2 | AC8: 36 | AD8: 2 | AE8: 2 | AF8: 1 | AG8: 3 | AH8: 2 | AI8: 2 | AJ8: 3 | AK8: 1 | AL8: 2 | AM8: 1 | AN8: 1 | AO8: 1 | AP8: 2 | AQ8: 2 | AR8: 3 | AS8: 2 | AT8: 2 | AU8: 1 | AV8: 33
A9: 2022-05-05 | B9: Kortmann, Sabine | C9: 24 | D9: 42 | E9: 111121112111232111 | F9: 242312227212222231 | G9: 18 | H9: 18 | I9: E | J9: B | K9: 1 | L9: 1 | M9: 1 | N9: 1 | O9: 2 | P9: 1 | Q9: 1 | R9: 1 | S9: 2 | T9: 1 | U9: 1 | V9: 1 | W9: 2 | X9: 3 | Y9: 2 | Z9: 1 | AA9: 1 | AB9: 1 | AC9: 24 | AD9: 2 | AE9: 4 | AF9: 2 | AG9: 3 | AH9: 1 | AI9: 2 | AJ9: 2 | AK9: 2 | AL9: 7 | AM9: 2 | AN9: 1 | AO9: 2 | AP9: 2 | AQ9: 2 | AR9: 2 | AS9: 2 | AT9: 3 | AU9: 1 | AV9: 42
A10: 2022-05-05 | B10: Kunz, Martin | C10: 33 | D10: 40 | E10: 112122142114232112 | F10: 213612123213222223 | G10: 18 | H10: 18 | I10: E | J10: B | K10: 1 | L10: 1 | M10: 2 | N10: 1 | O10: 2 | P10: 2 | Q10: 1 | R10: 4 | S10: 2 | T10: 1 | U10: 1 | V10: 4 | W10: 2 | X10: 3 | Y10: 2 | Z10: 1 | AA10: 1 | AB10: 2 | AC10: 33 | AD10: 2 | AE10: 1 | AF10: 3 | AG10: 6 | AH10: 1 | AI10: 2 | AJ10: 1 | AK10: 2 | AL10: 3 | AM10: 2 | AN10: 1 | AO10: 3 | AP10: 2 | AQ10: 2 | AR10: 2 | AS10: 2 | AT10: 2 | AU10: 3 | AV10: 40
A11: 2022-05-05 | B11: Rabe, Jonas | C11: 23 | D11: 33 | E11: 211211111211112211 | F11: 122212141212214221 | G11: 18 | H11: 18 | I11: E | J11: B | K11: 2 | L11: 1 | M11: 1 | N11: 2 | O11: 1 | P11: 1 | Q11: 1 | R11: 1 | S11: 1 | T11: 2 | U11: 1 | V11: 1 | W11: 1 | X11: 1 | Y11: 2 | Z11: 2 | AA11: 1 | AB11: 1 | AC11: 23 | AD11: 1 | AE11: 2 | AF11: 2 | AG11: 2 | AH11: 1 | AI11: 2 | AJ11: 1 | AK11: 4 | AL11: 1 | AM11: 2 | AN11: 1 | AO11: 2 | AP11: 2 | AQ11: 1 | AR11: 4 | AS11: 2 | AT11: 2 | AU11: 1 | AV11: 33
A12: 2022-05-05 | B12: Puschner, Michael | C12: 26 | D12: 36 | E12: 121111312221212111 | F12: 132222122211223521 | G12: 18 | H12: 18 | I12: E | J12: B | K12: 1 | L12: 2 | M12: 1 | N12: 1 | O12: 1 | P12: 1 | Q12: 3 | R12: 1 | S12: 2 | T12: 2 | U12: 2 | V12: 1 | W12: 2 | X12: 1 | Y12: 2 | Z12: 1 | AA12: 1 | AB12: 1 | AC12: 26 | AD12: 1 | AE12: 3 | AF12: 2 | AG12: 2 | AH12: 2 | AI12: 2 | AJ12: 1 | AK12: 2 | AL12: 2 | AM12: 2 | AN12: 1 | AO12: 1 | AP12: 2 | AQ12: 2 | AR12: 3 | AS12: 5 | AT12: 2 | AU12: 1 | AV12: 36
A13: 2022-05-05 | B13: Schmidtbauer, Günter | C13: 35 | D13: 45 | E13: 561211122211212122 | F13: 433121346112243221 | G13: 18 | H13: 18 | I13: E | J13: B | K13: 5 | L13: 6 | M13: 1 | N13: 2 | O13: 1 | P13: 1 | Q13: 1 | R13: 2 | S13: 2 | T13: 2 | U13: 1 | V13: 1 | W13: 2 | X13: 1 | Y13: 2 | Z13: 1 | AA13: 2 | AB13: 2 | AC13: 35 | AD13: 4 | AE13: 3 | AF13: 3 | AG13: 1 | AH13: 2 | AI13: 1 | AJ13: 3 | AK13: 4 | AL13: 6 | AM13: 1 | AN13: 1 | AO13: 2 | AP13: 2 | AQ13: 4 | AR13: 3 | AS13: 2 | AT13: 2 | AU13: 1 | AV13: 45
A14: 2022-05-05 | B14: Buchholz, Ansgar | C14: 24 | D14: 30 | E14: 111111122111121123 | F14: 222113212211222211 | G14: 18 | H14: 18 | I14: E | J14: B | K14: 1 | L14: 1 | M14: 1 | N14: 1 | O14: 1 | P14: 1 | Q14: 1 | R14: 2 | S14: 2 | T14: 1 | U14: 1 | V14: 1 | W14: 1 | X14: 2 | Y14: 1 | Z14: 1 | AA14: 2 | AB14: 3 | AC14: 24 | AD14: 2 | AE14: 2 | AF14: 2 | AG14: 1 | AH14: 1 | AI14: 3 | AJ14: 2 | AK14: 1 | AL14: 2 | AM14: 2 | AN14: 1 | AO14: 1 | AP14: 2 | AQ14: 2 | AR14: 2 | AS14: 2 | AT14: 1 | AU14: 1 | AV14: 30
A15: 2022-05-05 | B15: Gattner, Karsten | C15: 39 | D15: 35 | E15: 152312521212312312 | F15: 112331232112212521 | G15: 18 | H15: 18 | I15: E | J15: B | K15: 1 | L15: 5 | M15: 2 | N15: 3 | O15: 1 | P15: 2 | Q15: 5 | R15: 2 | S15: 1 | T15: 2 | U15: 1 | V15: 2 | W15: 3 | X15: 1 | Y15: 2 | Z15: 3 | AA15: 1 | AB15: 2 | AC15: 39 | AD15: 1 | AE15: 1 | AF15: 2 | AG15: 3 | AH15: 3 | AI15: 1 | AJ15: 2 | AK15: 3 | AL15: =IF($I15=MID(AL$1,1,1),IF(ISBLANK($E15),"",VALUE(MID($E15,VALUE(MID(AL$1,2,LEN(AL$1)-1)),1))),IF($J15=MID(AL$1,1,1),IF(ISBLANK($F15),"",VALUE(MID($F15,VALUE(MID(AL$1,2,LEN(AL$1)-1)),1))))) -> 2 | AM15: 1 | AN15: 1 | AO15: 2 | AP15: 2 | AQ15: 1 | AR15: 2 | AS15: 5 | AT15: 2 | AU15: 1 | AV15: 35
A16: 2022-05-05 | B16: Lenk, Rolf | C16: 26 | D16: 36 | E16: 211111111211412122 | F16: 212512122212213241 | G16: 18 | H16: 18 | I16: E | J16: B | K16: 2 | L16: 1 | M16: 1 | N16: 1 | O16: 1 | P16: 1 | Q16: 1 | R16: 1 | S16: 1 | T16: 2 | U16: 1 | V16: 1 | W16: 4 | X16: 1 | Y16: 2 | Z16: 1 | AA16: 2 | AB16: 2 | AC16: 26 | AD16: =IF($I16=MID(AD$1,1,1),IF(ISBLANK($E16),"",VALUE(MID($E16,VALUE(MID(AD$1,2,LEN(AD$1)-1)),1))),IF($J16=MID(AD$1,1,1),IF(ISBLANK($F16),"",VALUE(MID($F16,VALUE(MID(AD$1,2,LEN(AD$1)-1)),1))))) -> 2 | AE16: 1 | AF16: 2 | AG16: 5 | AH16: 1 | AI16: 2 | AJ16: 1 | AK16: 2 | AL16: 2 | AM16: 2 | AN16: 1 | AO16: 2 | AP16: 2 | AQ16: 1 | AR16: 3 | AS16: 2 | AT16: 4 | AU16: 1 | AV16: 36
A17: 2022-05-05 | B17: Greiffendorf, Hellmut | C17: =IF(ISBLANK(E17),"",MID(E17,1,1)+MID(E17,2,1)+MID(E17,3,1)+MID(E17,4,1)+MID(E17,5,1)+MID(E17,6,1)+MID(E17,7,1)+MID(E17,8,1)+MID(E17,9,1)+MID(E17,10,1)+MID(E17,11,1)+MID(E17,12,1)+MID(E17,13,1)+MID(E17,14,1)+MID(E17,15,1)+MID(E17,16,1)+MID(E17,17,1)+MID(E17,18,1)) -> 32 | D17: =IF(ISBLANK(F17),"",MID(F17,1,1)+MID(F17,2,1)+MID(F17,3,1)+MID(F17,4,1)+MID(F17,5,1)+MID(F17,6,1)+MID(F17,7,1)+MID(F17,8,1)+MID(F17,9,1)+MID(F17,10,1)+MID(F17,11,1)+MID(F17,12,1)+MID(F17,13,1)+MID(F17,14,1)+MID(F17,15,1)+MID(F17,16,1)+MID(F17,17,1)+MID(F17,18,1)) -> 28 | E17: 152211112121412221 | F17: 221212112211213211 | G17: =LEN(E17) -> 18 | H17: =LEN(F17) -> 18 | I17: E | J17: B | K17: 1 | L17: 5 | M17: 2 | N17: 2 | O17: 1 | P17: 1 | Q17: 1 | R17: 1 | S17: 2 | T17: 1 | U17: 2 | V17: 1 | W17: 4 | X17: 1 | Y17: 2 | Z17: =IF($I17=MID(Z$1,1,1),IF(ISBLANK($E17),"",VALUE(MID($E17,VALUE(MID(Z$1,2,LEN(Z$1)-1)),1))),IF($J17=MID(Z$1,1,1),IF(ISBLANK($F17),"",VALUE(MID($F17,VALUE(MID(Z$1,2,LEN(Z$1)-1)),1))))) -> 2 | AA17: 2 | AB17: 1 | AC17: 32 | AD17: 2 | AE17: 2 | AF17: 1 | AG17: 2 | AH17: 1 | AI17: 2 | AJ17: 1 | AK17: 1 | AL17: 2 | AM17: 2 | AN17: 1 | AO17: 1 | AP17: 2 | AQ17: 1 | AR17: 3 | AS17: 2 | AT17: 1 | AU17: 1 | AV17: 28
A18: 2022-05-05 | B18: Kersch, Uwe | C18: 38 | D18: 42 | E18: 271231122221232212 | F18: 122322323211324234 | G18: 18 | H18: 18 | I18: E | J18: B | K18: =IF($I18=MID(K$1,1,1),IF(ISBLANK($E18),"",VALUE(MID($E18,VALUE(MID(K$1,2,LEN(K$1)-1)),1))),IF($J18=MID(K$1,1,1),IF(ISBLANK($F18),"",VALUE(MID($F18,VALUE(MID(K$1,2,LEN(K$1)-1)),1))))) -> 2 | L18: 7 | M18: 1 | N18: 2 | O18: 3 | P18: 1 | Q18: 1 | R18: 2 | S18: 2 | T18: 2 | U18: 2 | V18: 1 | W18: 2 | X18: 3 | Y18: 2 | Z18: 2 | AA18: 1 | AB18: 2 | AC18: 38 | AD18: 1 | AE18: 2 | AF18: 2 | AG18: 3 | AH18: 2 | AI18: 2 | AJ18: 3 | AK18: 2 | AL18: 3 | AM18: 2 | AN18: 1 | AO18: 1 | AP18: 3 | AQ18: 2 | AR18: 4 | AS18: 2 | AT18: 3 | AU18: 4 | AV18: 42
A19: 2022-05-05 | B19: Brunnenkant, Frank | C19: 27 | D19: 30 | E19: 111111112123222122 | F19: 122222131211222121 | G19: 18 | H19: 18 | I19: E | J19: B | K19: 1 | L19: 1 | M19: 1 | N19: 1 | O19: 1 | P19: 1 | Q19: 1 | R19: 1 | S19: 2 | T19: 1 | U19: 2 | V19: 3 | W19: 2 | X19: 2 | Y19: 2 | Z19: 1 | AA19: 2 | AB19: 2 | AC19: 27 | AD19: 1 | AE19: 2 | AF19: 2 | AG19: 2 | AH19: 2 | AI19: 2 | AJ19: 1 | AK19: 3 | AL19: 1 | AM19: 2 | AN19: 1 | AO19: 1 | AP19: 2 | AQ19: 2 | AR19: 2 | AS19: 1 | AT19: 2 | AU19: 1 | AV19: 30
A20: 2022-05-12 | B20: Kunz, Martin | C20: 24 | D20: 41 | E20: 211211122111112211 | F20: 233222235212222222 | G20: 18 | H20: 18 | I20: E | J20: B | K20: 2 | L20: 1 | M20: 1 | N20: 2 | O20: 1 | P20: 1 | Q20: 1 | R20: 2 | S20: 2 | T20: 1 | U20: 1 | V20: 1 | W20: 1 | X20: 1 | Y20: 2 | Z20: 2 | AA20: 1 | AB20: 1 | AC20: 24 | AD20: 2 | AE20: 3 | AF20: 3 | AG20: 2 | AH20: 2 | AI20: 2 | AJ20: 2 | AK20: 3 | AL20: 5 | AM20: 2 | AN20: 1 | AO20: 2 | AP20: 2 | AQ20: 2 | AR20: 2 | AS20: 2 | AT20: 2 | AU20: 2 | AV20: 41
A21: 2022-05-12 | B21: Urban, Dominic | C21: 27 | D21: 33 | E21: 121212111121132122 | F21: 221322122111222421 | G21: 18 | H21: 18 | I21: E | J21: B | K21: 1 | L21: 2 | M21: 1 | N21: 2 | O21: 1 | P21: 2 | Q21: 1 | R21: 1 | S21: 1 | T21: 1 | U21: 2 | V21: 1 | W21: 1 | X21: 3 | Y21: 2 | Z21: 1 | AA21: 2 | AB21: 2 | AC21: 27 | AD21: 2 | AE21: 2 | AF21: 1 | AG21: 3 | AH21: 2 | AI21: 2 | AJ21: 1 | AK21: 2 | AL21: 2 | AM21: 1 | AN21: 1 | AO21: 1 | AP21: 2 | AQ21: 2 | AR21: 2 | AS21: 4 | AT21: 2 | AU21: 1 | AV21: 33
A22: 2022-05-12 | B22: Urban, Angela | C22: 40 | D22: 37 | E22: 132215312131233223 | F22: 222312322211242321 | G22: 18 | H22: 18 | I22: E | J22: B | K22: 1 | L22: 3 | M22: 2 | N22: 2 | O22: 1 | P22: 5 | Q22: 3 | R22: 1 | S22: 2 | T22: 1 | U22: 3 | V22: 1 | W22: 2 | X22: 3 | Y22: 3 | Z22: 2 | AA22: 2 | AB22: 3 | AC22: 40 | AD22: 2 | AE22: 2 | AF22: 2 | AG22: 3 | AH22: 1 | AI22: 2 | AJ22: 3 | AK22: 2 | AL22: 2 | AM22: 2 | AN22: 1 | AO22: 1 | AP22: 2 | AQ22: 4 | AR22: 2 | AS22: 3 | AT22: 2 | AU22: 1 | AV22: 37
A23: 2022-05-12 | B23: Urban, Volker | C23: 30 | D23: 35 | E23: 411222112212112221 | F23: 122212122212223323 | G23: 18 | H23: 18 | I23: E | J23: B | K23: 4 | L23: 1 | M23: 1 | N23: 2 | O23: 2 | P23: 2 | Q23: 1 | R23: 1 | S23: 2 | T23: 2 | U23: 1 | V23: 2 | W23: 1 | X23: 1 | Y23: 2 | Z23: 2 | AA23: 2 | AB23: 1 | AC23: 30 | AD23: 1 | AE23: 2 | AF23: 2 | AG23: 2 | AH23: 1 | AI23: 2 | AJ23: 1 | AK23: 2 | AL23: 2 | AM23: 2 | AN23: 1 | AO23: 2 | AP23: 2 | AQ23: 2 | AR23: 3 | AS23: 3 | AT23: 2 | AU23: 3 | AV23: 35
A24: 2022-05-12 | B24: Kortmann, Sabine | C24: 32 | D24: 36 | E24: 121221212212242311 | F24: 223322212211223321 | G24: 18 | H24: 18 | I24: E | J24: B | K24: 1 | L24: 2 | M24: 1 | N24: 2 | O24: 2 | P24: 1 | Q24: 2 | R24: 1 | S24: 2 | T24: 2 | U24: 1 | V24: 2 | W24: 2 | X24: 4 | Y24: 2 | Z24: 3 | AA24: 1 | AB24: 1 | AC24: 32 | AD24: 2 | AE24: 2 | AF24: 3 | AG24: 3 | AH24: 2 | AI24: 2 | AJ24: 2 | AK24: 1 | AL24: 2 | AM24: 2 | AN24: 1 | AO24: 1 | AP24: 2 | AQ24: 2 | AR24: 3 | AS24: 3 | AT24: 2 | AU24: 1 | AV24: 36
A25: 2022-05-12 | B25: Börgmann, Ulrich | C25: 34 | D25: 39 | E25: 111211312112525122 | F25: 313522122113125221 | G25: 18 | H25: 18 | I25: E | J25: B | K25: 1 | L25: 1 | M25: 1 | N25: 2 | O25: 1 | P25: 1 | Q25: 3 | R25: 1 | S25: 2 | T25: 1 | U25: 1 | V25: 2 | W25: 5 | X25: 2 | Y25: 5 | Z25: 1 | AA25: 2 | AB25: 2 | AC25: 34 | AD25: 3 | AE25: 1 | AF25: 3 | AG25: 5 | AH25: 2 | AI25: 2 | AJ25: 1 | AK25: 2 | AL25: 2 | AM25: 1 | AN25: 1 | AO25: 3 | AP25: 1 | AQ25: 2 | AR25: 5 | AS25: 2 | AT25: 2 | AU25: 1 | AV25: 39
A26: 2022-05-12 | B26: Börgmann, Brigitte | C26: 35 | D26: 35 | E26: 222221222112152321 | F26: 222322312112232221 | G26: 18 | H26: 18 | I26: E | J26: B | K26: 2 | L26: 2 | M26: 2 | N26: 2 | O26: 2 | P26: 1 | Q26: 2 | R26: 2 | S26: 2 | T26: 1 | U26: 1 | V26: 2 | W26: 1 | X26: 5 | Y26: 2 | Z26: 3 | AA26: 2 | AB26: 1 | AC26: 35 | AD26: 2 | AE26: 2 | AF26: 2 | AG26: 3 | AH26: 2 | AI26: 2 | AJ26: 3 | AK26: 1 | AL26: 2 | AM26: 1 | AN26: 1 | AO26: 2 | AP26: 2 | AQ26: 3 | AR26: 2 | AS26: 2 | AT26: 2 | AU26: 1 | AV26: 35
A27: 2022-05-12 | B27: Brunnenkant, Frank | C27: 30 | D27: 37 | E27: 132221211222122121 | F27: 112413122112323323 | G27: 18 | H27: 18 | I27: E | J27: B | K27: 1 | L27: 3 | M27: 2 | N27: 2 | O27: 2 | P27: 1 | Q27: 2 | R27: 1 | S27: 1 | T27: 2 | U27: 2 | V27: 2 | W27: 1 | X27: 2 | Y27: 2 | Z27: 1 | AA27: 2 | AB27: 1 | AC27: 30 | AD27: 1 | AE27: 1 | AF27: 2 | AG27: 4 | AH27: 1 | AI27: 3 | AJ27: 1 | AK27: 2 | AL27: 2 | AM27: 1 | AN27: 1 | AO27: 2 | AP27: 3 | AQ27: 2 | AR27: 3 | AS27: 3 | AT27: 2 | AU27: 3 | AV27: 37
A28: 2022-05-12 | B28: Puschner, Michael | C28: 33 | D28: 29 | E28: 222221142221112123 | F28: 231222111211212221 | G28: 18 | H28: 18 | I28: E | J28: B | K28: 2 | L28: 2 | M28: 2 | N28: 2 | O28: 2 | P28: 1 | Q28: 1 | R28: 4 | S28: 2 | T28: 2 | U28: 2 | V28: 1 | W28: 1 | X28: 1 | Y28: 2 | Z28: 1 | AA28: 2 | AB28: 3 | AC28: 33 | AD28: 2 | AE28: 3 | AF28: 1 | AG28: 2 | AH28: 2 | AI28: 2 | AJ28: 1 | AK28: 1 | AL28: 1 | AM28: 2 | AN28: 1 | AO28: 1 | AP28: 2 | AQ28: 1 | AR28: 2 | AS28: 2 | AT28: 2 | AU28: 1 | AV28: 29
A29: 2022-05-12 | B29: Lenk, Rolf | C29: 23 | D29: 34 | E29: 111211111121112113 | F29: 222212222212222141 | G29: 18 | H29: 18 | I29: E | J29: B | K29: 1 | L29: 1 | M29: 1 | N29: 2 | O29: 1 | P29: 1 | Q29: 1 | R29: 1 | S29: 1 | T29: 1 | U29: 2 | V29: 1 | W29: 1 | X29: 1 | Y29: 2 | Z29: 1 | AA29: 1 | AB29: 3 | AC29: 23 | AD29: 2 | AE29: 2 | AF29: 2 | AG29: 2 | AH29: 1 | AI29: 2 | AJ29: 2 | AK29: 2 | AL29: =IF($I29=MID(AL$1,1,1),IF(ISBLANK($E29),"",VALUE(MID($E29,VALUE(MID(AL$1,2,LEN(AL$1)-1)),1))),IF($J29=MID(AL$1,1,1),IF(ISBLANK($F29),"",VALUE(MID($F29,VALUE(MID(AL$1,2,LEN(AL$1)-1)),1))))) -> 2 | AM29: 2 | AN29: 1 | AO29: 2 | AP29: 2 | AQ29: 2 | AR29: 2 | AS29: 1 | AT29: 4 | AU29: 1 | AV29: 34
A30: 2022-05-12 | B30: Kortmann, Uwe | C30: 35 | D30: 46 | E30: 221111112123322712 | F30: 233712223321222324 | G30: 18 | H30: 18 | I30: E | J30: B | K30: 2 | L30: 2 | M30: 1 | N30: 1 | O30: 1 | P30: 1 | Q30: 1 | R30: 1 | S30: 2 | T30: 1 | U30: 2 | V30: 3 | W30: 3 | X30: 2 | Y30: 2 | Z30: 7 | AA30: 1 | AB30: 2 | AC30: 35 | AD30: =IF($I30=MID(AD$1,1,1),IF(ISBLANK($E30),"",VALUE(MID($E30,VALUE(MID(AD$1,2,LEN(AD$1)-1)),1))),IF($J30=MID(AD$1,1,1),IF(ISBLANK($F30),"",VALUE(MID($F30,VALUE(MID(AD$1,2,LEN(AD$1)-1)),1))))) -> 2 | AE30: 3 | AF30: 3 | AG30: 7 | AH30: 1 | AI30: 2 | AJ30: 2 | AK30: 2 | AL30: 3 | AM30: 3 | AN30: 2 | AO30: 1 | AP30: 2 | AQ30: 2 | AR30: 2 | AS30: 3 | AT30: 2 | AU30: 4 | AV30: 46
A31: 2022-05-12 | B31: Paffrath, Ben | C31: 29 | D31: 36 | E31: 112141112111122322 | F31: 321522312212221221 | G31: 18 | H31: 18 | I31: E | J31: B | K31: 1 | L31: 1 | M31: 2 | N31: 1 | O31: 4 | P31: 1 | Q31: 1 | R31: 1 | S31: 2 | T31: 1 | U31: 1 | V31: 1 | W31: 1 | X31: 2 | Y31: 2 | Z31: 3 | AA31: 2 | AB31: 2 | AC31: 29 | AD31: 3 | AE31: 2 | AF31: 1 | AG31: 5 | AH31: 2 | AI31: 2 | AJ31: 3 | AK31: 1 | AL31: 2 | AM31: 2 | AN31: 1 | AO31: 2 | AP31: 2 | AQ31: 2 | AR31: 1 | AS31: 2 | AT31: 2 | AU31: 1 | AV31: 36
A32: 2022-05-12 | B32: Paffrath, Siegfried | C32: 35 | D32: 36 | E32: 121221212213332511 | F32: 221322422112122322 | G32: 18 | H32: 18 | I32: E | J32: B | K32: 1 | L32: 2 | M32: 1 | N32: 2 | O32: 2 | P32: 1 | Q32: 2 | R32: 1 | S32: 2 | T32: 2 | U32: 1 | V32: 3 | W32: 3 | X32: 3 | Y32: 2 | Z32: 5 | AA32: 1 | AB32: 1 | AC32: 35 | AD32: 2 | AE32: 2 | AF32: 1 | AG32: 3 | AH32: 2 | AI32: 2 | AJ32: 4 | AK32: 2 | AL32: 2 | AM32: 1 | AN32: 1 | AO32: 2 | AP32: 1 | AQ32: 2 | AR32: 2 | AS32: 3 | AT32: 2 | AU32: 2 | AV32: 36
A33: 2022-05-12 | B33: Greiffendorf, Hellmut | C33: 28 | D33: 41 | E33: 161111112111312121 | F33: 224312223211216511 | G33: 18 | H33: 18 | I33: E | J33: B | K33: 1 | L33: 6 | M33: 1 | N33: 1 | O33: 1 | P33: 1 | Q33: 1 | R33: 1 | S33: 2 | T33: 1 | U33: 1 | V33: 1 | W33: 3 | X33: 1 | Y33: 2 | Z33: 1 | AA33: 2 | AB33: 1 | AC33: 28 | AD33: 2 | AE33: 2 | AF33: 4 | AG33: 3 | AH33: 1 | AI33: 2 | AJ33: 2 | AK33: 2 | AL33: 3 | AM33: 2 | AN33: 1 | AO33: 1 | AP33: 2 | AQ33: 1 | AR33: 6 | AS33: 5 | AT33: 1 | AU33: 1 | AV33: 41
A34: 2022-05-12 | B34: Schmidtbauer, Günter | C34: 54 | D34: 44 | E34: 2121343122335553723 | F34: 232622112222226322 | G34: 19 | H34: 18 | I34: E | J34: B | K34: =IF($I34=MID(K$1,1,1),IF(ISBLANK($E34),"",VALUE(MID($E34,VALUE(MID(K$1,2,LEN(K$1)-1)),1))),IF($J34=MID(K$1,1,1),IF(ISBLANK($F34),"",VALUE(MID($F34,VALUE(MID(K$1,2,LEN(K$1)-1)),1))))) -> 2 | L34: 1 | M34: 2 | N34: 1 | O34: 3 | P34: 4 | Q34: 3 | R34: 1 | S34: 2 | T34: 2 | U34: 3 | V34: 3 | W34: 5 | X34: 5 | Y34: 5 | Z34: 3 | AA34: 7 | AB34: 2 | AC34: 54 | AD34: 2 | AE34: 3 | AF34: 2 | AG34: 6 | AH34: 2 | AI34: 2 | AJ34: 1 | AK34: 1 | AL34: 2 | AM34: 2 | AN34: 2 | AO34: 2 | AP34: 2 | AQ34: 2 | AR34: 6 | AS34: 3 | AT34: 2 | AU34: 2 | AV34: 44
A35: 2022-05-12 | B35: Kersch, Uwe | C35: 28 | D35: 36 | E35: 132212122211112121 | F35: 221213113214224212 | G35: 18 | H35: 18 | I35: E | J35: B | K35: 1 | L35: 3 | M35: 2 | N35: 2 | O35: 1 | P35: 2 | Q35: 1 | R35: 2 | S35: 2 | T35: 2 | U35: 1 | V35: 1 | W35: 1 | X35: 1 | Y35: 2 | Z35: 1 | AA35: 2 | AB35: 1 | AC35: 28 | AD35: 2 | AE35: 2 | AF35: 1 | AG35: 2 | AH35: 1 | AI35: 3 | AJ35: 1 | AK35: 1 | AL35: 3 | AM35: 2 | AN35: 1 | AO35: 4 | AP35: 2 | AQ35: 2 | AR35: 4 | AS35: 2 | AT35: 1 | AU35: 2 | AV35: 36
A36: 2022-05-12 | B36: Buchholz, Ansgar | C36: 25 | D36: 30 | E36: 112211121211112221 | F36: 212223122112222111 | G36: 18 | H36: 18 | I36: E | J36: B | K36: 1 | L36: 1 | M36: 2 | N36: 2 | O36: 1 | P36: 1 | Q36: 1 | R36: 2 | S36: 1 | T36: 2 | U36: 1 | V36: 1 | W36: 1 | X36: 1 | Y36: 2 | Z36: 2 | AA36: 2 | AB36: 1 | AC36: 25 | AD36: 2 | AE36: 1 | AF36: 2 | AG36: 2 | AH36: 2 | AI36: 3 | AJ36: 1 | AK36: 2 | AL36: 2 | AM36: 1 | AN36: 1 | AO36: 2 | AP36: 2 | AQ36: 2 | AR36: 2 | AS36: 1 | AT36: 1 | AU36: 1 | AV36: 30
A37: 2022-05-12 | B37: Gattner, Karsten | C37: 36 | D37: 39 | E37: 322212212321213223 | F37: 222522222112342221 | G37: 18 | H37: 18 | I37: E | J37: B | K37: 3 | L37: 2 | M37: 2 | N37: 2 | O37: 1 | P37: 2 | Q37: 2 | R37: 1 | S37: 2 | T37: 3 | U37: 2 | V37: 1 | W37: 2 | X37: 1 | Y37: 3 | Z37: 2 | AA37: =IF($I37=MID(AA$1,1,1),IF(ISBLANK($E37),"",VALUE(MID($E37,VALUE(MID(AA$1,2,LEN(AA$1)-1)),1))),IF($J37=MID(AA$1,1,1),IF(ISBLANK($F37),"",VALUE(MID($F37,VALUE(MID(AA$1,2,LEN(AA$1)-1)),1))))) -> 2 | AB37: 3 | AC37: 36 | AD37: 2 | AE37: 2 | AF37: 2 | AG37: 5 | AH37: 2 | AI37: 2 | AJ37: 2 | AK37: 2 | AL37: 2 | AM37: 1 | AN37: 1 | AO37: 2 | AP37: 3 | AQ37: 4 | AR37: 2 | AS37: 2 | AT37: 2 | AU37: 1 | AV37: 39
A38: 2022-05-19 | B38: Kunz, Martin | C38: 26 | D38: 34 | E38: 131111122111142111 | F38: 222322222212212221 | G38: 18 | H38: 18 | I38: E | J38: B | K38: 1 | L38: 3 | M38: 1 | N38: 1 | O38: 1 | P38: 1 | Q38: 1 | R38: 2 | S38: 2 | T38: 1 | U38: 1 | V38: 1 | W38: 1 | X38: 4 | Y38: 2 | Z38: 1 | AA38: 1 | AB38: 1 | AC38: 26 | AD38: 2 | AE38: 2 | AF38: 2 | AG38: 3 | AH38: 2 | AI38: 2 | AJ38: 2 | AK38: 2 | AL38: 2 | AM38: 2 | AN38: 1 | AO38: 2 | AP38: 2 | AQ38: 1 | AR38: 2 | AS38: 2 | AT38: 2 | AU38: 1 | AV38: 34
A39: 2022-05-19 | B39: Rade, Marcus | C39: 23 | D39: 33 | E39: 211211112111112211 | F39: 112232122212222222 | G39: 18 | H39: 18 | I39: E | J39: B | K39: 2 | L39: 1 | M39: 1 | N39: 2 | O39: 1 | P39: 1 | Q39: 1 | R39: 1 | S39: 2 | T39: 1 | U39: 1 | V39: 1 | W39: 1 | X39: 1 | Y39: 2 | Z39: 2 | AA39: 1 | AB39: 1 | AC39: 23 | AD39: 1 | AE39: 1 | AF39: 2 | AG39: 2 | AH39: 3 | AI39: 2 | AJ39: 1 | AK39: 2 | AL39: 2 | AM39: 2 | AN39: 1 | AO39: 2 | AP39: 2 | AQ39: 2 | AR39: 2 | AS39: 2 | AT39: 2 | AU39: 2 | AV39: 33
A40: 2022-05-19 | B40: Urban, Volker | C40: 27 | D40: 35 | E40: 121211132112212121 | F40: 221422132212222221 | G40: 18 | H40: 18 | I40: E | J40: B | K40: 1 | L40: 2 | M40: 1 | N40: 2 | O40: 1 | P40: 1 | Q40: 1 | R40: 3 | S40: 2 | T40: 1 | U40: 1 | V40: 2 | W40: 2 | X40: 1 | Y40: 2 | Z40: 1 | AA40: 2 | AB40: 1 | AC40: 27 | AD40: 2 | AE40: 2 | AF40: 1 | AG40: 4 | AH40: 2 | AI40: 2 | AJ40: 1 | AK40: 3 | AL40: 2 | AM40: 2 | AN40: 1 | AO40: 2 | AP40: 2 | AQ40: 2 | AR40: 2 | AS40: 2 | AT40: 2 | AU40: 1 | AV40: 35
A41: 2022-05-19 | B41: Urban, Dominic | C41: 26 | D41: 34 | E41: 111121111211214212 | F41: 223222122213222211 | G41: 18 | H41: 18 | I41: E | J41: B | K41: 1 | L41: 1 | M41: 1 | N41: 1 | O41: 2 | P41: 1 | Q41: 1 | R41: 1 | S41: 1 | T41: 2 | U41: 1 | V41: 1 | W41: 2 | X41: 1 | Y41: 4 | Z41: 2 | AA41: 1 | AB41: 2 | AC41: 26 | AD41: 2 | AE41: 2 | AF41: 3 | AG41: 2 | AH41: 2 | AI41: 2 | AJ41: 1 | AK41: 2 | AL41: 2 | AM41: 2 | AN41: 1 | AO41: 3 | AP41: 2 | AQ41: 2 | AR41: 2 | AS41: 2 | AT41: 1 | AU41: 1 | AV41: 34
A42: 2022-05-19 | B42: Puschner, Michael | C42: 37 | D42: 33 | E42: 322211111212213237 | F42: 221222123211222231 | G42: 18 | H42: 18 | I42: E | J42: B | K42: =IF($I42=MID(K$1,1,1),IF(ISBLANK($E42),"",VALUE(MID($E42,VALUE(MID(K$1,2,LEN(K$1)-1)),1))),IF($J42=MID(K$1,1,1),IF(ISBLANK($F42),"",VALUE(MID($F42,VALUE(MID(K$1,2,LEN(K$1)-1)),1))))) -> 3 | L42: 2 | M42: 2 | N42: 2 | O42: 1 | P42: 1 | Q42: 1 | R42: 1 | S42: 1 | T42: 2 | U42: 1 | V42: 2 | W42: 2 | X42: 1 | Y42: 3 | Z42: 2 | AA42: 3 | AB42: 7 | AC42: 37 | AD42: 2 | AE42: 2 | AF42: 1 | AG42: 2 | AH42: 2 | AI42: 2 | AJ42: 1 | AK42: 2 | AL42: 3 | AM42: 2 | AN42: 1 | AO42: 1 | AP42: 2 | AQ42: 2 | AR42: 2 | AS42: 2 | AT42: 3 | AU42: 1 | AV42: 33
A43: 2022-05-19 | B43: Puschner, Silke | C43: 44 | D43: 43 | E43: 252211152125333213 | F43: 231232522111252351 | G43: 18 | H43: 18 | I43: E | J43: B | K43: =IF($I43=MID(K$1,1,1),IF(ISBLANK($E43),"",VALUE(MID($E43,VALUE(MID(K$1,2,LEN(K$1)-1)),1))),IF($J43=MID(K$1,1,1),IF(ISBLANK($F43),"",VALUE(MID($F43,VALUE(MID(K$1,2,LEN(K$1)-1)),1))))) -> 2 | L43: 5 | M43: 2 | N43: 2 | O43: 1 | P43: 1 | Q43: 1 | R43: 5 | S43: 2 | T43: 1 | U43: 2 | V43: 5 | W43: 3 | X43: 3 | Y43: 3 | Z43: 2 | AA43: 1 | AB43: 3 | AC43: 44 | AD43: 2 | AE43: 3 | AF43: 1 | AG43: 2 | AH43: 3 | AI43: 2 | AJ43: 5 | AK43: 2 | AL43: =IF($I43=MID(AL$1,1,1),IF(ISBLANK($E43),"",VALUE(MID($E43,VALUE(MID(AL$1,2,LEN(AL$1)-1)),1))),IF($J43=MID(AL$1,1,1),IF(ISBLANK($F43),"",VALUE(MID($F43,VALUE(MID(AL$1,2,LEN(AL$1)-1)),1))))) -> 2 | AM43: 1 | AN43: 1 | AO43: 1 | AP43: 2 | AQ43: 5 | AR43: 2 | AS43: 3 | AT43: 5 | AU43: 1 | AV43: 43
A44: 2022-05-19 | B44: Paffrath, Ben | C44: 35 | D44: 37 | E44: 172122121111232123 | F44: 321342222211222231 | G44: 18 | H44: 18 | I44: E | J44: B | K44: 1 | L44: 7 | M44: 2 | N44: 1 | O44: 2 | P44: 2 | Q44: 1 | R44: 2 | S44: 1 | T44: 1 | U44: 1 | V44: 1 | W44: 2 | X44: 3 | Y44: 2 | Z44: 1 | AA44: 2 | AB44: 3 | AC44: 35 | AD44: =IF($I44=MID(AD$1,1,1),IF(ISBLANK($E44),"",VALUE(MID($E44,VALUE(MID(AD$1,2,LEN(AD$1)-1)),1))),IF($J44=MID(AD$1,1,1),IF(ISBLANK($F44),"",VALUE(MID($F44,VALUE(MID(AD$1,2,LEN(AD$1)-1)),1))))) -> 3 | AE44: 2 | AF44: 1 | AG44: 3 | AH44: 4 | AI44: 2 | AJ44: 2 | AK44: 2 | AL44: 2 | AM44: 2 | AN44: 1 | AO44: 1 | AP44: 2 | AQ44: 2 | AR44: 2 | AS44: 2 | AT44: 3 | AU44: 1 | AV44: 37
A45: 2022-05-19 | B45: Paffrath, Siegfried | C45: 24 | D45: 40 | E45: 111221111221122111 | F45: 222332125222222222 | G45: 18 | H45: 18 | I45: E | J45: B | K45: 1 | L45: 1 | M45: 1 | N45: 2 | O45: 2 | P45: 1 | Q45: 1 | R45: 1 | S45: 1 | T45: 2 | U45: 2 | V45: 1 | W45: 1 | X45: 2 | Y45: 2 | Z45: 1 | AA45: 1 | AB45: 1 | AC45: 24 | AD45: 2 | AE45: 2 | AF45: 2 | AG45: 3 | AH45: 3 | AI45: 2 | AJ45: 1 | AK45: 2 | AL45: 5 | AM45: 2 | AN45: 2 | AO45: 2 | AP45: 2 | AQ45: 2 | AR45: 2 | AS45: 2 | AT45: 2 | AU45: 2 | AV45: 40
A46: 2022-05-19 | B46: Rabe, Jonas | C46: 26 | D46: 34 | E46: 111221112212212112 | F46: 222221221222222222 | G46: 18 | H46: 18 | I46: E | J46: B | K46: 1 | L46: 1 | M46: 1 | N46: 2 | O46: 2 | P46: 1 | Q46: 1 | R46: 1 | S46: 2 | T46: 2 | U46: 1 | V46: 2 | W46: 2 | X46: 1 | Y46: 2 | Z46: 1 | AA46: 1 | AB46: 2 | AC46: 26 | AD46: 2 | AE46: 2 | AF46: 2 | AG46: 2 | AH46: 2 | AI46: 1 | AJ46: 2 | AK46: 2 | AL46: 1 | AM46: 2 | AN46: 2 | AO46: 2 | AP46: 2 | AQ46: 2 | AR46: 2 | AS46: 2 | AT46: 2 | AU46: 2 | AV46: 34
A47: 2022-05-19 | B47: Schmidtbauer, Günter | C47: 34 | D47: 44 | E47: 213212122221112243 | F47: 224312243423223221 | G47: 18 | H47: 18 | I47: E | J47: B | K47: 2 | L47: 1 | M47: 3 | N47: 2 | O47: 1 | P47: 2 | Q47: 1 | R47: 2 | S47: 2 | T47: 2 | U47: 2 | V47: 1 | W47: 1 | X47: 1 | Y47: 2 | Z47: 2 | AA47: 4 | AB47: 3 | AC47: 34 | AD47: 2 | AE47: 2 | AF47: 4 | AG47: 3 | AH47: 1 | AI47: 2 | AJ47: 2 | AK47: 4 | AL47: 3 | AM47: 4 | AN47: 2 | AO47: 3 | AP47: 2 | AQ47: 2 | AR47: 3 | AS47: 2 | AT47: 2 | AU47: 1 | AV47: 44
A48: 2022-05-19 | B48: Kortmann, Sabine | C48: 33 | D48: 39 | E48: 141211111114242231 | F48: 222352133211223221 | G48: 18 | H48: 18 | I48: E | J48: B | K48: 1 | L48: 4 | M48: 1 | N48: 2 | O48: 1 | P48: 1 | Q48: 1 | R48: 1 | S48: 1 | T48: 1 | U48: 1 | V48: 4 | W48: 2 | X48: 4 | Y48: 2 | Z48: 2 | AA48: 3 | AB48: 1 | AC48: 33 | AD48: 2 | AE48: 2 | AF48: 2 | AG48: 3 | AH48: 5 | AI48: 2 | AJ48: 1 | AK48: 3 | AL48: 3 | AM48: 2 | AN48: 1 | AO48: 1 | AP48: 2 | AQ48: 2 | AR48: 3 | AS48: 2 | AT48: 2 | AU48: 1 | AV48: 39
A49: 2022-05-19 | B49: Buchholz, Ansgar | C49: 30 | D49: 30 | E49: 212311112112232221 | F49: 121422112211212221 | G49: 18 | H49: 18 | I49: E | J49: B | K49: 2 | L49: 1 | M49: 2 | N49: 3 | O49: 1 | P49: 1 | Q49: 1 | R49: 1 | S49: 2 | T49: 1 | U49: 1 | V49: 2 | W49: 2 | X49: 3 | Y49: 2 | Z49: 2 | AA49: 2 | AB49: 1 | AC49: 30 | AD49: 1 | AE49: 2 | AF49: 1 | AG49: 4 | AH49: 2 | AI49: 2 | AJ49: 1 | AK49: 1 | AL49: 2 | AM49: 2 | AN49: 1 | AO49: 1 | AP49: 2 | AQ49: 1 | AR49: 2 | AS49: 2 | AT49: 2 | AU49: 1 | AV49: 30
A50: 2022-05-19 | B50: Urban, Angela | C50: 37 | D50: 37 | E50: 262231112111212135 | F50: 222313222111223422 | G50: 18 | H50: 18 | I50: E | J50: B | K50: 2 | L50: 6 | M50: 2 | N50: 2 | O50: 3 | P50: 1 | Q50: 1 | R50: 1 | S50: 2 | T50: 1 | U50: 1 | V50: 1 | W50: 2 | X50: 1 | Y50: 2 | Z50: 1 | AA50: 3 | AB50: 5 | AC50: 37 | AD50: 2 | AE50: 2 | AF50: 2 | AG50: 3 | AH50: 1 | AI50: 3 | AJ50: 2 | AK50: 2 | AL50: 2 | AM50: 1 | AN50: 1 | AO50: 1 | AP50: 2 | AQ50: 2 | AR50: 3 | AS50: 4 | AT50: 2 | AU50: 2 | AV50: 37
A51: 2022-05-25 | B51: Buchholz, Ansgar | C51: =IF(ISBLANK(E51),"",MID(E51,1,1)+MID(E51,2,1)+MID(E51,3,1)+MID(E51,4,1)+MID(E51,5,1)+MID(E51,6,1)+MID(E51,7,1)+MID(E51,8,1)+MID(E51,9,1)+MID(E51,10,1)+MID(E51,11,1)+MID(E51,12,1)+MID(E51,13,1)+MID(E51,14,1)+MID(E51,15,1)+MID(E51,16,1)+MID(E51,17,1)+MID(E51,18,1)) -> 22 | D51: =IF(ISBLANK(F51),"",MID(F51,1,1)+MID(F51,2,1)+MID(F51,3,1)+MID(F51,4,1)+MID(F51,5,1)+MID(F51,6,1)+MID(F51,7,1)+MID(F51,8,1)+MID(F51,9,1)+MID(F51,10,1)+MID(F51,11,1)+MID(F51,12,1)+MID(F51,13,1)+MID(F51,14,1)+MID(F51,15,1)+MID(F51,16,1)+MID(F51,17,1)+MID(F51,18,1)) -> 29 | E51: 121211111211112111 | F51: 211122122212212221 | G51: =LEN(E51) -> 18 | H51: =LEN(F51) -> 18 | I51: E | J51: B | K51: 1 | L51: 2 | M51: 1 | N51: 2 | O51: 1 | P51: 1 | Q51: 1 | R51: 1 | S51: 1 | T51: 2 | U51: 1 | V51: 1 | W51: 1 | X51: 1 | Y51: 2 | Z51: 1 | AA51: 1 | AB51: 1 | AC51: 22 | AD51: 2 | AE51: 1 | AF51: 1 | AG51: 1 | AH51: 2 | AI51: 2 | AJ51: 1 | AK51: 2 | AL51: 2 | AM51: 2 | AN51: 1 | AO51: 2 | AP51: 2 | AQ51: 1 | AR51: 2 | AS51: 2 | AT51: 2 | AU51: 1 | AV51: 29
A52: 2022-05-25 | B52: Kortmann, Sabine | C52: 28 | D52: 35 | E52: 141111132111212113 | F52: 222312123211232321 | G52: 18 | H52: 18 | I52: E | J52: B | K52: 1 | L52: 4 | M52: 1 | N52: 1 | O52: 1 | P52: 1 | Q52: 1 | R52: 3 | S52: 2 | T52: 1 | U52: 1 | V52: 1 | W52: 2 | X52: 1 | Y52: 2 | Z52: 1 | AA52: 1 | AB52: 3 | AC52: 28 | AD52: 2 | AE52: 2 | AF52: 2 | AG52: 3 | AH52: 1 | AI52: 2 | AJ52: 1 | AK52: 2 | AL52: 3 | AM52: 2 | AN52: 1 | AO52: 1 | AP52: 2 | AQ52: 3 | AR52: 2 | AS52: 3 | AT52: 2 | AU52: 1 | AV52: 35
A53: 2022-05-25 | B53: Arens, Ingo | C53: 28 | D53: 35 | E53: 111222112211132122 | F53: 232223122212222221 | G53: 18 | H53: 18 | I53: E | J53: B | K53: 1 | L53: 1 | M53: 1 | N53: 2 | O53: 2 | P53: 2 | Q53: 1 | R53: 1 | S53: 2 | T53: 2 | U53: 1 | V53: 1 | W53: 1 | X53: 3 | Y53: 2 | Z53: 1 | AA53: 2 | AB53: 2 | AC53: 28 | AD53: 2 | AE53: 3 | AF53: 2 | AG53: 2 | AH53: 2 | AI53: 3 | AJ53: 1 | AK53: 2 | AL53: 2 | AM53: 2 | AN53: 1 | AO53: 2 | AP53: 2 | AQ53: 2 | AR53: 2 | AS53: 2 | AT53: 2 | AU53: 1 | AV53: 35
A54: 2022-05-25 | B54: Börgmann, Brigitte | C54: 40 | D54: 39 | E54: 172222212122313142 | F54: 223213322212222242 | G54: 18 | H54: 18 | I54: E | J54: B | K54: 1 | L54: 7 | M54: 2 | N54: 2 | O54: 2 | P54: 2 | Q54: 2 | R54: 1 | S54: 2 | T54: 1 | U54: 2 | V54: 2 | W54: 3 | X54: 1 | Y54: 3 | Z54: 1 | AA54: 4 | AB54: 2 | AC54: 40 | AD54: 2 | AE54: 2 | AF54: 3 | AG54: 2 | AH54: 1 | AI54: 3 | AJ54: 3 | AK54: 2 | AL54: 2 | AM54: 2 | AN54: 1 | AO54: 2 | AP54: 2 | AQ54: 2 | AR54: 2 | AS54: 2 | AT54: 4 | AU54: 2 | AV54: 39
A55: 2022-05-25 | B55: Lenk, Rolf | C55: 24 | D55: 36 | E55: 112211111111122212 | F55: 113212332312214221 | G55: 18 | H55: 18 | I55: E | J55: B | K55: 1 | L55: 1 | M55: 2 | N55: 2 | O55: 1 | P55: 1 | Q55: 1 | R55: 1 | S55: 1 | T55: 1 | U55: 1 | V55: 1 | W55: 1 | X55: 2 | Y55: 2 | Z55: 2 | AA55: 1 | AB55: 2 | AC55: 24 | AD55: 1 | AE55: 1 | AF55: 3 | AG55: 2 | AH55: 1 | AI55: 2 | AJ55: 3 | AK55: 3 | AL55: 2 | AM55: 3 | AN55: 1 | AO55: 2 | AP55: 2 | AQ55: 1 | AR55: 4 | AS55: 2 | AT55: 2 | AU55: 1 | AV55: 36
A56: 2022-05-25 | B56: Brunnenkant, Frank | C56: 28 | D56: 34 | E56: 122211212111132122 | F56: 211512222221222221 | G56: 18 | H56: 18 | I56: E | J56: B | K56: 1 | L56: 2 | M56: 2 | N56: 2 | O56: 1 | P56: 1 | Q56: 2 | R56: 1 | S56: 2 | T56: 1 | U56: 1 | V56: 1 | W56: 1 | X56: 3 | Y56: 2 | Z56: 1 | AA56: 2 | AB56: 2 | AC56: 28 | AD56: 2 | AE56: 1 | AF56: 1 | AG56: 5 | AH56: 1 | AI56: 2 | AJ56: 2 | AK56: 2 | AL56: 2 | AM56: 2 | AN56: 2 | AO56: 1 | AP56: 2 | AQ56: 2 | AR56: 2 | AS56: 2 | AT56: 2 | AU56: 1 | AV56: 34
A57: 2022-05-25 | B57: Greiffendorf, Hellmut | C57: 29 | D57: 35 | E57: 112212111211612211 | F57: 122522122212212321 | G57: 18 | H57: 18 | I57: E | J57: B | K57: 1 | L57: 1 | M57: 2 | N57: 2 | O57: 1 | P57: 2 | Q57: 1 | R57: 1 | S57: 1 | T57: 2 | U57: 1 | V57: 1 | W57: 6 | X57: 1 | Y57: 2 | Z57: 2 | AA57: =IF($I57=MID(AA$1,1,1),IF(ISBLANK($E57),"",VALUE(MID($E57,VALUE(MID(AA$1,2,LEN(AA$1)-1)),1))),IF($J57=MID(AA$1,1,1),IF(ISBLANK($F57),"",VALUE(MID($F57,VALUE(MID(AA$1,2,LEN(AA$1)-1)),1))))) -> 1 | AB57: 1 | AC57: 29 | AD57: 1 | AE57: 2 | AF57: 2 | AG57: 5 | AH57: 2 | AI57: 2 | AJ57: 1 | AK57: 2 | AL57: =IF($I57=MID(AL$1,1,1),IF(ISBLANK($E57),"",VALUE(MID($E57,VALUE(MID(AL$1,2,LEN(AL$1)-1)),1))),IF($J57=MID(AL$1,1,1),IF(ISBLANK($F57),"",VALUE(MID($F57,VALUE(MID(AL$1,2,LEN(AL$1)-1)),1))))) -> 2 | AM57: 2 | AN57: 1 | AO57: 2 | AP57: 2 | AQ57: 1 | AR57: 2 | AS57: 3 | AT57: 2 | AU57: 1 | AV57: 35
A58: 2022-05-25 | B58: Puschner, Michael | C58: 25 | D58: 35 | E58: 111221112111112222 | F58: 222212121113223422 | G58: 18 | H58: 18 | I58: E | J58: B | K58: 1 | L58: 1 | M58: 1 | N58: 2 | O58: 2 | P58: 1 | Q58: 1 | R58: 1 | S58: 2 | T58: 1 | U58: 1 | V58: 1 | W58: 1 | X58: 1 | Y58: 2 | Z58: 2 | AA58: 2 | AB58: 2 | AC58: 25 | AD58: =IF($I58=MID(AD$1,1,1),IF(ISBLANK($E58),"",VALUE(MID($E58,VALUE(MID(AD$1,2,LEN(AD$1)-1)),1))),IF($J58=MID(AD$1,1,1),IF(ISBLANK($F58),"",VALUE(MID($F58,VALUE(MID(AD$1,2,LEN(AD$1)-1)),1))))) -> 2 | AE58: 2 | AF58: 2 | AG58: 2 | AH58: 1 | AI58: 2 | AJ58: 1 | AK58: 2 | AL58: 1 | AM58: 1 | AN58: 1 | AO58: 3 | AP58: 2 | AQ58: 2 | AR58: 3 | AS58: 4 | AT58: 2 | AU58: 2 | AV58: 35
A59: 2022-05-25 | B59: Puschner, Silke | C59: 34 | D59: 57 | E59: 152211112111242133 | F59: 243442732222222734 | G59: 18 | H59: 18 | I59: E | J59: B | K59: =IF($I59=MID(K$1,1,1),IF(ISBLANK($E59),"",VALUE(MID($E59,VALUE(MID(K$1,2,LEN(K$1)-1)),1))),IF($J59=MID(K$1,1,1),IF(ISBLANK($F59),"",VALUE(MID($F59,VALUE(MID(K$1,2,LEN(K$1)-1)),1))))) -> 1 | L59: 5 | M59: 2 | N59: 2 | O59: 1 | P59: 1 | Q59: 1 | R59: 1 | S59: 2 | T59: 1 | U59: 1 | V59: 1 | W59: 2 | X59: 4 | Y59: 2 | Z59: 1 | AA59: 3 | AB59: 3 | AC59: 34 | AD59: 2 | AE59: 4 | AF59: 3 | AG59: 4 | AH59: 4 | AI59: 2 | AJ59: 7 | AK59: 3 | AL59: 2 | AM59: 2 | AN59: 2 | AO59: 2 | AP59: 2 | AQ59: 2 | AR59: 2 | AS59: 7 | AT59: 3 | AU59: 4 | AV59: 57
A60: 2022-05-25 | B60: Kersch, Uwe | C60: 34 | D60: 46 | E60: 242121122212112224 | F60: 322522237212232231 | G60: 18 | H60: 18 | I60: E | J60: B | K60: 2 | L60: 4 | M60: 2 | N60: 1 | O60: 2 | P60: 1 | Q60: 1 | R60: 2 | S60: 2 | T60: 2 | U60: 1 | V60: 2 | W60: 1 | X60: 1 | Y60: 2 | Z60: 2 | AA60: 2 | AB60: 4 | AC60: 34 | AD60: 3 | AE60: 2 | AF60: 2 | AG60: 5 | AH60: 2 | AI60: 2 | AJ60: 2 | AK60: 3 | AL60: 7 | AM60: 2 | AN60: 1 | AO60: 2 | AP60: 2 | AQ60: 3 | AR60: 2 | AS60: 2 | AT60: 3 | AU60: 1 | AV60: 46
A61: 2022-05-25 | B61: Kunz, Martin | C61: 32 | D61: 36 | E61: 242112231221112221 | F61: 231412132112222322 | G61: 18 | H61: 18 | I61: E | J61: B | K61: 2 | L61: 4 | M61: 2 | N61: 1 | O61: 1 | P61: 2 | Q61: 2 | R61: 3 | S61: 1 | T61: 2 | U61: 2 | V61: 1 | W61: 1 | X61: 1 | Y61: 2 | Z61: 2 | AA61: 2 | AB61: 1 | AC61: 32 | AD61: 2 | AE61: 3 | AF61: 1 | AG61: 4 | AH61: 1 | AI61: 2 | AJ61: 1 | AK61: 3 | AL61: 2 | AM61: 1 | AN61: 1 | AO61: 2 | AP61: 2 | AQ61: 2 | AR61: 2 | AS61: 3 | AT61: 2 | AU61: 2 | AV61: 36
A62: 2022-05-25 | B62: Börgmann, Ulrich | C62: 29 | D62: 47 | E62: 121221211112212124 | F62: 224622242212212227 | G62: 18 | H62: 18 | I62: E | J62: B | K62: 1 | L62: 2 | M62: 1 | N62: 2 | O62: 2 | P62: 1 | Q62: 2 | R62: 1 | S62: 1 | T62: 1 | U62: 1 | V62: 2 | W62: 2 | X62: 1 | Y62: 2 | Z62: 1 | AA62: 2 | AB62: 4 | AC62: 29 | AD62: 2 | AE62: 2 | AF62: 4 | AG62: 6 | AH62: 2 | AI62: 2 | AJ62: 2 | AK62: 4 | AL62: 2 | AM62: 2 | AN62: 1 | AO62: 2 | AP62: 2 | AQ62: 1 | AR62: 2 | AS62: 2 | AT62: 2 | AU62: 7 | AV62: 47
A63: 2022-05-25 | B63: Urban, Angela | C63: =IF(ISBLANK(E63),"",MID(E63,1,1)+MID(E63,2,1)+MID(E63,3,1)+MID(E63,4,1)+MID(E63,5,1)+MID(E63,6,1)+MID(E63,7,1)+MID(E63,8,1)+MID(E63,9,1)+MID(E63,10,1)+MID(E63,11,1)+MID(E63,12,1)+MID(E63,13,1)+MID(E63,14,1)+MID(E63,15,1)+MID(E63,16,1)+MID(E63,17,1)+MID(E63,18,1)) -> 36 | D63: =IF(ISBLANK(F63),"",MID(F63,1,1)+MID(F63,2,1)+MID(F63,3,1)+MID(F63,4,1)+MID(F63,5,1)+MID(F63,6,1)+MID(F63,7,1)+MID(F63,8,1)+MID(F63,9,1)+MID(F63,10,1)+MID(F63,11,1)+MID(F63,12,1)+MID(F63,13,1)+MID(F63,14,1)+MID(F63,15,1)+MID(F63,16,1)+MID(F63,17,1)+MID(F63,18,1)) -> 39 | E63: 262212221211112224 | F63: 231226112211123324 | G63: =LEN(E63) -> 18 | H63: =LEN(F63) -> 18 | I63: E | J63: B | K63: 2 | L63: 6 | M63: 2 | N63: 2 | O63: 1 | P63: 2 | Q63: 2 | R63: 2 | S63: 1 | T63: 2 | U63: 1 | V63: 1 | W63: 1 | X63: 1 | Y63: 2 | Z63: 2 | AA63: 2 | AB63: 4 | AC63: 36 | AD63: 2 | AE63: 3 | AF63: 1 | AG63: 2 | AH63: 2 | AI63: 6 | AJ63: 1 | AK63: 1 | AL63: 2 | AM63: 2 | AN63: 1 | AO63: 1 | AP63: 1 | AQ63: 2 | AR63: 3 | AS63: 3 | AT63: 2 | AU63: 4 | AV63: 39
A64: 2022-05-25 | B64: Rade, Marcus | C64: =IF(ISBLANK(E64),"",MID(E64,1,1)+MID(E64,2,1)+MID(E64,3,1)+MID(E64,4,1)+MID(E64,5,1)+MID(E64,6,1)+MID(E64,7,1)+MID(E64,8,1)+MID(E64,9,1)+MID(E64,10,1)+MID(E64,11,1)+MID(E64,12,1)+MID(E64,13,1)+MID(E64,14,1)+MID(E64,15,1)+MID(E64,16,1)+MID(E64,17,1)+MID(E64,18,1)) -> 25 | D64: =IF(ISBLANK(F64),"",MID(F64,1,1)+MID(F64,2,1)+MID(F64,3,1)+MID(F64,4,1)+MID(F64,5,1)+MID(F64,6,1)+MID(F64,7,1)+MID(F64,8,1)+MID(F64,9,1)+MID(F64,10,1)+MID(F64,11,1)+MID(F64,12,1)+MID(F64,13,1)+MID(F64,14,1)+MID(F64,15,1)+MID(F64,16,1)+MID(F64,17,1)+MID(F64,18,1)) -> 30 | E64: 121221112111222111 | F64: 221113221212122212 | G64: =LEN(E64) -> 18 | H64: =LEN(F64) -> 18 | I64: E | J64: B | K64: 1 | L64: 2 | M64: 1 | N64: 2 | O64: 2 | P64: 1 | Q64: 1 | R64: 1 | S64: 2 | T64: 1 | U64: 1 | V64: 1 | W64: 2 | X64: 2 | Y64: 2 | Z64: 1 | AA64: 1 | AB64: 1 | AC64: 25 | AD64: 2 | AE64: 2 | AF64: 1 | AG64: 1 | AH64: 1 | AI64: 3 | AJ64: 2 | AK64: 2 | AL64: 1 | AM64: 2 | AN64: 1 | AO64: 2 | AP64: 1 | AQ64: 2 | AR64: 2 | AS64: 2 | AT64: 1 | AU64: 2 | AV64: 30
A65: 2022-05-25 | B65: Urban, Volker | C65: 27 | D65: 33 | E65: 111211112213112222 | F65: 122212222312222221 | G65: 18 | H65: 18 | I65: E | J65: B | K65: 1 | L65: 1 | M65: 1 | N65: 2 | O65: 1 | P65: 1 | Q65: 1 | R65: 1 | S65: 2 | T65: 2 | U65: 1 | V65: 3 | W65: 1 | X65: 1 | Y65: 2 | Z65: 2 | AA65: 2 | AB65: 2 | AC65: 27 | AD65: 1 | AE65: 2 | AF65: 2 | AG65: 2 | AH65: 1 | AI65: 2 | AJ65: 2 | AK65: 2 | AL65: 2 | AM65: 3 | AN65: 1 | AO65: 2 | AP65: 2 | AQ65: 2 | AR65: 2 | AS65: 2 | AT65: 2 | AU65: 1 | AV65: 33
A66: 2022-05-25 | B66: Urban, Dominic | C66: 28 | D66: 35 | E66: 121221112211231122 | F66: 222211124213222222 | G66: 18 | H66: 18 | I66: E | J66: B | K66: 1 | L66: 2 | M66: 1 | N66: 2 | O66: 2 | P66: 1 | Q66: 1 | R66: 1 | S66: 2 | T66: 2 | U66: 1 | V66: 1 | W66: 2 | X66: 3 | Y66: 1 | Z66: 1 | AA66: 2 | AB66: 2 | AC66: 28 | AD66: 2 | AE66: 2 | AF66: 2 | AG66: 2 | AH66: 1 | AI66: 1 | AJ66: 1 | AK66: 2 | AL66: 4 | AM66: 2 | AN66: 1 | AO66: 3 | AP66: 2 | AQ66: 2 | AR66: 2 | AS66: 2 | AT66: 2 | AU66: 2 | AV66: 35
A67: 2022-05-25 | B67: Schmidtbauer, Günter | C67: 36 | D67: 42 | E67: 131213112211312722 | F67: 232522322211224331 | G67: 18 | H67: 18 | I67: E | J67: B | K67: 1 | L67: 3 | M67: 1 | N67: 2 | O67: 1 | P67: 3 | Q67: 1 | R67: 1 | S67: 2 | T67: 2 | U67: 1 | V67: 1 | W67: 3 | X67: 1 | Y67: 2 | Z67: 7 | AA67: 2 | AB67: 2 | AC67: =IF(SUM(K67:AB67)>0,SUM(K67:AB67),0) -> 36 | AD67: 2 | AE67: 3 | AF67: 2 | AG67: 5 | AH67: 2 | AI67: 2 | AJ67: 3 | AK67: 2 | AL67: 2 | AM67: 2 | AN67: 1 | AO67: 1 | AP67: 2 | AQ67: 2 | AR67: 4 | AS67: 3 | AT67: 3 | AU67: 1 | AV67: =IF(SUM(AD67:AU67)>0,SUM(AD67:AU67),0) -> 42
A68: 2022-05-25 | B68: Gattner, Karsten | C68: 41 | D68: 44 | E68: 241211212213313624 | F68: 222225122311232624 | G68: 18 | H68: 18 | I68: E | J68: B | K68: 2 | L68: 4 | M68: 1 | N68: 2 | O68: 1 | P68: 1 | Q68: 2 | R68: 1 | S68: 2 | T68: 2 | U68: 1 | V68: 3 | W68: 3 | X68: 1 | Y68: 3 | Z68: 6 | AA68: 2 | AB68: 4 | AC68: 41 | AD68: 2 | AE68: 2 | AF68: 2 | AG68: 2 | AH68: 2 | AI68: 5 | AJ68: 1 | AK68: 2 | AL68: 2 | AM68: 3 | AN68: 1 | AO68: 1 | AP68: 2 | AQ68: 3 | AR68: 2 | AS68: 6 | AT68: 2 | AU68: 4 | AV68: 44
A69: 2022-06-02 | B69: Börgmann, Brigitte | C69: 38 | D69: 34 | E69: 151221252211222223 | F69: 121322224112222122 | G69: 18 | H69: 18 | I69: E | J69: B | K69: 1 | L69: 5 | M69: 1 | N69: 2 | O69: 2 | P69: 1 | Q69: 2 | R69: 5 | S69: 2 | T69: 2 | U69: 1 | V69: 1 | W69: 2 | X69: 2 | Y69: 2 | Z69: 2 | AA69: 2 | AB69: 3 | AC69: 38 | AD69: 1 | AE69: 2 | AF69: 1 | AG69: 3 | AH69: 2 | AI69: 2 | AJ69: 2 | AK69: 2 | AL69: 4 | AM69: 1 | AN69: 1 | AO69: 2 | AP69: 2 | AQ69: 2 | AR69: 2 | AS69: 1 | AT69: 2 | AU69: 2 | AV69: 34
A70: 2022-06-02 | B70: Börgmann, Ulrich | C70: 35 | D70: 38 | E70: 112211111124412244 | F70: 222422224211123321 | G70: 18 | H70: 18 | I70: E | J70: B | K70: 1 | L70: 1 | M70: 2 | N70: 2 | O70: 1 | P70: 1 | Q70: 1 | R70: 1 | S70: 1 | T70: 1 | U70: 2 | V70: 4 | W70: 4 | X70: 1 | Y70: 2 | Z70: 2 | AA70: 4 | AB70: 4 | AC70: 35 | AD70: 2 | AE70: 2 | AF70: 2 | AG70: 4 | AH70: 2 | AI70: 2 | AJ70: 2 | AK70: 2 | AL70: 4 | AM70: 2 | AN70: 1 | AO70: 1 | AP70: 1 | AQ70: 2 | AR70: 3 | AS70: 3 | AT70: 2 | AU70: 1 | AV70: 38
A71: 2022-06-02 | B71: Brunnenkant, Frank | C71: 29 | D71: 38 | E71: 121221111111142223 | F71: 232222224212122421 | G71: 18 | H71: 18 | I71: E | J71: B | K71: 1 | L71: 2 | M71: 1 | N71: 2 | O71: 2 | P71: 1 | Q71: 1 | R71: 1 | S71: 1 | T71: 1 | U71: 1 | V71: 1 | W71: 1 | X71: 4 | Y71: 2 | Z71: 2 | AA71: 2 | AB71: 3 | AC71: 29 | AD71: 2 | AE71: 3 | AF71: 2 | AG71: 2 | AH71: 2 | AI71: 2 | AJ71: 2 | AK71: 2 | AL71: =IF($I71=MID(AL$1,1,1),IF(ISBLANK($E71),"",VALUE(MID($E71,VALUE(MID(AL$1,2,LEN(AL$1)-1)),1))),IF($J71=MID(AL$1,1,1),IF(ISBLANK($F71),"",VALUE(MID($F71,VALUE(MID(AL$1,2,LEN(AL$1)-1)),1))))) -> 4 | AM71: 2 | AN71: 1 | AO71: 2 | AP71: 1 | AQ71: 2 | AR71: 2 | AS71: 4 | AT71: 2 | AU71: 1 | AV71: 38
A72: 2022-06-02 | B72: Kortmann, Sabine | C72: 26 | D72: 39 | E72: 111222111112212122 | F72: 222412322211223242 | G72: 18 | H72: 18 | I72: E | J72: B | K72: 1 | L72: 1 | M72: 1 | N72: 2 | O72: 2 | P72: 2 | Q72: 1 | R72: 1 | S72: 1 | T72: 1 | U72: 1 | V72: 2 | W72: 2 | X72: 1 | Y72: 2 | Z72: 1 | AA72: 2 | AB72: 2 | AC72: 26 | AD72: =IF($I72=MID(AD$1,1,1),IF(ISBLANK($E72),"",VALUE(MID($E72,VALUE(MID(AD$1,2,LEN(AD$1)-1)),1))),IF($J72=MID(AD$1,1,1),IF(ISBLANK($F72),"",VALUE(MID($F72,VALUE(MID(AD$1,2,LEN(AD$1)-1)),1))))) -> 2 | AE72: 2 | AF72: 2 | AG72: 4 | AH72: 1 | AI72: 2 | AJ72: 3 | AK72: 2 | AL72: 2 | AM72: 2 | AN72: 1 | AO72: 1 | AP72: 2 | AQ72: 2 | AR72: 3 | AS72: 2 | AT72: 4 | AU72: 2 | AV72: 39
A73: 2022-06-02 | B73: Kunz, Martin | C73: 28 | D73: 36 | E73: 241211111111132212 | F73: 223322222211222231 | G73: 18 | H73: 18 | I73: E | J73: B | K73: 2 | L73: 4 | M73: 1 | N73: 2 | O73: 1 | P73: 1 | Q73: 1 | R73: 1 | S73: 1 | T73: 1 | U73: 1 | V73: 1 | W73: 1 | X73: 3 | Y73: 2 | Z73: 2 | AA73: 1 | AB73: 2 | AC73: 28 | AD73: 2 | AE73: 2 | AF73: 3 | AG73: 3 | AH73: 2 | AI73: 2 | AJ73: 2 | AK73: 2 | AL73: 2 | AM73: 2 | AN73: 1 | AO73: 1 | AP73: 2 | AQ73: 2 | AR73: 2 | AS73: 2 | AT73: 3 | AU73: 1 | AV73: 36
A74: 2022-06-02 | B74: Lenk, Rolf | C74: 30 | D74: 38 | E74: 121222211112312123 | F74: 223322322212222222 | G74: 18 | H74: 18 | I74: E | J74: B | K74: 1 | L74: 2 | M74: 1 | N74: 2 | O74: 2 | P74: 2 | Q74: 2 | R74: 1 | S74: 1 | T74: 1 | U74: 1 | V74: 2 | W74: 3 | X74: 1 | Y74: 2 | Z74: =IF($I74=MID(Z$1,1,1),IF(ISBLANK($E74),"",VALUE(MID($E74,VALUE(MID(Z$1,2,LEN(Z$1)-1)),1))),IF($J74=MID(Z$1,1,1),IF(ISBLANK($F74),"",VALUE(MID($F74,VALUE(MID(Z$1,2,LEN(Z$1)-1)),1))))) -> 1 | AA74: 2 | AB74: 3 | AC74: 30 | AD74: 2 | AE74: 2 | AF74: 3 | AG74: 3 | AH74: 2 | AI74: 2 | AJ74: 3 | AK74: 2 | AL74: 2 | AM74: 2 | AN74: 1 | AO74: 2 | AP74: 2 | AQ74: 2 | AR74: 2 | AS74: 2 | AT74: 2 | AU74: 2 | AV74: 38
A75: 2022-06-02 | B75: Paffrath, Ben | C75: 30 | D75: 34 | E75: 121111122213212322 | F75: 222222224211212221 | G75: 18 | H75: 18 | I75: E | J75: B | K75: =IF($I75=MID(K$1,1,1),IF(ISBLANK($E75),"",VALUE(MID($E75,VALUE(MID(K$1,2,LEN(K$1)-1)),1))),IF($J75=MID(K$1,1,1),IF(ISBLANK($F75),"",VALUE(MID($F75,VALUE(MID(K$1,2,LEN(K$1)-1)),1))))) -> 1 | L75: 2 | M75: 1 | N75: 1 | O75: 1 | P75: 1 | Q75: 1 | R75: 2 | S75: 2 | T75: 2 | U75: 1 | V75: 3 | W75: 2 | X75: 1 | Y75: 2 | Z75: 3 | AA75: 2 | AB75: 2 | AC75: 30 | AD75: 2 | AE75: 2 | AF75: 2 | AG75: 2 | AH75: 2 | AI75: 2 | AJ75: 2 | AK75: 2 | AL75: 4 | AM75: 2 | AN75: 1 | AO75: 1 | AP75: 2 | AQ75: 1 | AR75: 2 | AS75: 2 | AT75: 2 | AU75: 1 | AV75: 34
A76: 2022-06-02 | B76: Paffrath, Siegfried | C76: 28 | D76: 35 | E76: 121121321111412211 | F76: 221412122212223321 | G76: 18 | H76: 18 | I76: E | J76: B | K76: 1 | L76: 2 | M76: 1 | N76: 1 | O76: 2 | P76: 1 | Q76: 3 | R76: 2 | S76: 1 | T76: 1 | U76: 1 | V76: 1 | W76: 4 | X76: 1 | Y76: 2 | Z76: 2 | AA76: 1 | AB76: 1 | AC76: 28 | AD76: 2 | AE76: 2 | AF76: 1 | AG76: 4 | AH76: 1 | AI76: 2 | AJ76: 1 | AK76: 2 | AL76: 2 | AM76: 2 | AN76: 1 | AO76: 2 | AP76: 2 | AQ76: 2 | AR76: 3 | AS76: 3 | AT76: 2 | AU76: 1 | AV76: 35
A77: 2022-06-02 | B77: Puschner, Michael | C77: 35 | D77: 32 | E77: 121211312111352512 | F77: 222212122212222221 | G77: 18 | H77: 18 | I77: E | J77: B | K77: 1 | L77: 2 | M77: 1 | N77: 2 | O77: 1 | P77: 1 | Q77: 3 | R77: 1 | S77: 2 | T77: 1 | U77: 1 | V77: 1 | W77: 3 | X77: 5 | Y77: 2 | Z77: 5 | AA77: 1 | AB77: 2 | AC77: 35 | AD77: 2 | AE77: 2 | AF77: 2 | AG77: 2 | AH77: 1 | AI77: 2 | AJ77: 1 | AK77: 2 | AL77: 2 | AM77: 2 | AN77: 1 | AO77: 2 | AP77: 2 | AQ77: 2 | AR77: 2 | AS77: 2 | AT77: 2 | AU77: 1 | AV77: 32
A78: 2022-06-02 | B78: Rabe, Jonas | C78: 23 | D78: 33 | E78: 112111111211122211 | F78: 231322121212232211 | G78: 18 | H78: 18 | I78: E | J78: B | K78: 1 | L78: 1 | M78: 2 | N78: 1 | O78: 1 | P78: 1 | Q78: 1 | R78: 1 | S78: 1 | T78: 2 | U78: 1 | V78: 1 | W78: 1 | X78: 2 | Y78: 2 | Z78: 2 | AA78: 1 | AB78: 1 | AC78: 23 | AD78: 2 | AE78: 3 | AF78: 1 | AG78: 3 | AH78: 2 | AI78: 2 | AJ78: 1 | AK78: 2 | AL78: 1 | AM78: 2 | AN78: 1 | AO78: 2 | AP78: 2 | AQ78: 3 | AR78: 2 | AS78: 2 | AT78: 1 | AU78: 1 | AV78: 33
A79: 2022-06-02 | B79: Rade, Marcus | C79: 31 | D79: 32 | E79: 222223221211112122 | F79: 222312122211222221 | G79: 18 | H79: 18 | I79: E | J79: B | K79: 2 | L79: 2 | M79: 2 | N79: 2 | O79: 2 | P79: 3 | Q79: 2 | R79: 2 | S79: 1 | T79: 2 | U79: 1 | V79: 1 | W79: 1 | X79: 1 | Y79: 2 | Z79: 1 | AA79: 2 | AB79: 2 | AC79: 31 | AD79: 2 | AE79: 2 | AF79: 2 | AG79: 3 | AH79: 1 | AI79: 2 | AJ79: 1 | AK79: 2 | AL79: 2 | AM79: 2 | AN79: 1 | AO79: 1 | AP79: 2 | AQ79: 2 | AR79: 2 | AS79: 2 | AT79: 2 | AU79: 1 | AV79: 32
A80: 2022-06-02 | B80: Schmidtbauer, Günter | C80: 43 | D80: 47 | E80: 122153422112112733 | F80: 323733432222222221 | G80: 18 | H80: 18 | I80: E | J80: B | K80: 1 | L80: 2 | M80: 2 | N80: 1 | O80: 5 | P80: 3 | Q80: 4 | R80: 2 | S80: 2 | T80: 1 | U80: 1 | V80: 2 | W80: 1 | X80: 1 | Y80: 2 | Z80: 7 | AA80: 3 | AB80: 3 | AC80: 43 | AD80: 3 | AE80: 2 | AF80: 3 | AG80: 7 | AH80: 3 | AI80: 3 | AJ80: 4 | AK80: 3 | AL80: 2 | AM80: 2 | AN80: 2 | AO80: 2 | AP80: 2 | AQ80: 2 | AR80: 2 | AS80: 2 | AT80: 2 | AU80: 1 | AV80: 47
A81: 2022-06-02 | B81: Urban, Dominic | C81: 21 | D81: 35 | E81: 111111111111211221 | F81: 211322322212212223 | G81: 18 | H81: 18 | I81: E | J81: B | K81: 1 | L81: 1 | M81: 1 | N81: 1 | O81: 1 | P81: 1 | Q81: 1 | R81: 1 | S81: 1 | T81: 1 | U81: 1 | V81: 1 | W81: 2 | X81: 1 | Y81: 1 | Z81: 2 | AA81: 2 | AB81: 1 | AC81: 21 | AD81: 2 | AE81: 1 | AF81: 1 | AG81: 3 | AH81: 2 | AI81: 2 | AJ81: 3 | AK81: 2 | AL81: 2 | AM81: 2 | AN81: 1 | AO81: 2 | AP81: 2 | AQ81: 1 | AR81: 2 | AS81: 2 | AT81: 2 | AU81: 3 | AV81: 35
A82: 2022-06-02 | B82: Urban, Volker | C82: 30 | D82: 31 | E82: 131212112211212322 | F82: 221222211211222222 | G82: 18 | H82: 18 | I82: E | J82: B | K82: 1 | L82: 3 | M82: 1 | N82: 2 | O82: 1 | P82: 2 | Q82: 1 | R82: 1 | S82: 2 | T82: 2 | U82: 1 | V82: 1 | W82: 2 | X82: 1 | Y82: 2 | Z82: 3 | AA82: 2 | AB82: 2 | AC82: 30 | AD82: 2 | AE82: 2 | AF82: 1 | AG82: 2 | AH82: 2 | AI82: 2 | AJ82: 2 | AK82: 1 | AL82: 1 | AM82: 2 | AN82: 1 | AO82: 1 | AP82: 2 | AQ82: 2 | AR82: 2 | AS82: 2 | AT82: 2 | AU82: 2 | AV82: 31
A83: 2022-06-02 | B83: Kersch, Uwe | C83: 39 | D83: 37 | E83: 171231312211223142 | F83: 222223123213123222 | G83: 18 | H83: 18 | I83: E | J83: B | K83: 1 | L83: 7 | M83: 1 | N83: 2 | O83: 3 | P83: 1 | Q83: 3 | R83: 1 | S83: 2 | T83: 2 | U83: 1 | V83: 1 | W83: 2 | X83: 2 | Y83: 3 | Z83: 1 | AA83: 4 | AB83: 2 | AC83: 39 | AD83: 2 | AE83: 2 | AF83: 2 | AG83: 2 | AH83: 2 | AI83: 3 | AJ83: 1 | AK83: 2 | AL83: 3 | AM83: 2 | AN83: 1 | AO83: 3 | AP83: 1 | AQ83: 2 | AR83: 3 | AS83: 2 | AT83: 2 | AU83: 2 | AV83: 37
A84: 2022-06-02 | B84: Dreischer, Burkhard | C84: 37 | D84: 44 | E84: 131222422111412233 | F84: 211632422213222531 | G84: 18 | H84: 18 | I84: E | J84: B | K84: 1 | L84: 3 | M84: 1 | N84: 2 | O84: 2 | P84: 2 | Q84: 4 | R84: 2 | S84: 2 | T84: 1 | U84: 1 | V84: 1 | W84: 4 | X84: 1 | Y84: 2 | Z84: 2 | AA84: 3 | AB84: 3 | AC84: 37 | AD84: 2 | AE84: 1 | AF84: 1 | AG84: 6 | AH84: 3 | AI84: 2 | AJ84: 4 | AK84: 2 | AL84: 2 | AM84: 2 | AN84: 1 | AO84: 3 | AP84: 2 | AQ84: 2 | AR84: 2 | AS84: 5 | AT84: 3 | AU84: 1 | AV84: 44
A85: 2022-06-02 | B85: Buchholz, Ansgar | C85: 31 | D85: 33 | E85: 121211112213222322 | F85: 232212321211212222 | G85: 18 | H85: 18 | I85: E | J85: B | K85: 1 | L85: 2 | M85: 1 | N85: 2 | O85: 1 | P85: 1 | Q85: 1 | R85: 1 | S85: 2 | T85: 2 | U85: 1 | V85: 3 | W85: 2 | X85: 2 | Y85: 2 | Z85: 3 | AA85: 2 | AB85: 2 | AC85: 31 | AD85: 2 | AE85: 3 | AF85: 2 | AG85: 2 | AH85: 1 | AI85: 2 | AJ85: 3 | AK85: 2 | AL85: =IF($I85=MID(AL$1,1,1),IF(ISBLANK($E85),"",VALUE(MID($E85,VALUE(MID(AL$1,2,LEN(AL$1)-1)),1))),IF($J85=MID(AL$1,1,1),IF(ISBLANK($F85),"",VALUE(MID($F85,VALUE(MID(AL$1,2,LEN(AL$1)-1)),1))))) -> 1 | AM85: 2 | AN85: 1 | AO85: 1 | AP85: 2 | AQ85: 1 | AR85: 2 | AS85: 2 | AT85: 2 | AU85: 2 | AV85: 33
A86: 2022-06-02 | B86: Gattner, Karsten | C86: 32 | D86: 42 | E86: 122212121221352111 | F86: 132223324323222312 | G86: 18 | H86: 18 | I86: E | J86: B | K86: 1 | L86: 2 | M86: 2 | N86: 2 | O86: 1 | P86: 2 | Q86: 1 | R86: 2 | S86: 1 | T86: 2 | U86: 2 | V86: 1 | W86: 3 | X86: 5 | Y86: 2 | Z86: 1 | AA86: 1 | AB86: 1 | AC86: 32 | AD86: =IF($I86=MID(AD$1,1,1),IF(ISBLANK($E86),"",VALUE(MID($E86,VALUE(MID(AD$1,2,LEN(AD$1)-1)),1))),IF($J86=MID(AD$1,1,1),IF(ISBLANK($F86),"",VALUE(MID($F86,VALUE(MID(AD$1,2,LEN(AD$1)-1)),1))))) -> 1 | AE86: 3 | AF86: 2 | AG86: 2 | AH86: 2 | AI86: 3 | AJ86: 3 | AK86: 2 | AL86: 4 | AM86: 3 | AN86: 2 | AO86: 3 | AP86: 2 | AQ86: 2 | AR86: 2 | AS86: 3 | AT86: 1 | AU86: 2 | AV86: 42
A87: 2022-06-09 | B87: Lenk, Rolf | C87: 27 | D87: 33 | E87: 121111211111112522 | F87: 222113122211224221 | G87: 18 | H87: 18 | I87: E | J87: B | K87: 1 | L87: 2 | M87: 1 | N87: 1 | O87: 1 | P87: 1 | Q87: 2 | R87: 1 | S87: 1 | T87: 1 | U87: 1 | V87: 1 | W87: 1 | X87: 1 | Y87: 2 | Z87: 5 | AA87: 2 | AB87: 2 | AC87: 27 | AD87: 2 | AE87: 2 | AF87: 2 | AG87: 1 | AH87: 1 | AI87: 3 | AJ87: 1 | AK87: 2 | AL87: 2 | AM87: 2 | AN87: 1 | AO87: 1 | AP87: 2 | AQ87: 2 | AR87: 4 | AS87: 2 | AT87: 2 | AU87: 1 | AV87: 33
A88: 2022-06-09 | B88: Schmidtbauer, Günter | C88: 45 | D88: 48 | E88: 142211212211276721 | F88: 242712223232233341 | G88: 18 | H88: 18 | I88: E | J88: B | K88: 1 | L88: 4 | M88: 2 | N88: 2 | O88: 1 | P88: 1 | Q88: 2 | R88: 1 | S88: 2 | T88: 2 | U88: 1 | V88: 1 | W88: 2 | X88: 7 | Y88: 6 | Z88: 7 | AA88: 2 | AB88: 1 | AC88: 45 | AD88: 2 | AE88: 4 | AF88: 2 | AG88: 7 | AH88: 1 | AI88: 2 | AJ88: 2 | AK88: 2 | AL88: 3 | AM88: 2 | AN88: 3 | AO88: 2 | AP88: 2 | AQ88: 3 | AR88: 3 | AS88: 3 | AT88: 4 | AU88: 1 | AV88: 48
A89: 2022-06-09 | B89: Puschner, Michael | C89: 32 | D89: 34 | E89: 221111112111212723 | F89: 212312122111226131 | G89: 18 | H89: 18 | I89: E | J89: B | K89: 2 | L89: 2 | M89: 1 | N89: 1 | O89: 1 | P89: 1 | Q89: 1 | R89: 1 | S89: 2 | T89: 1 | U89: 1 | V89: 1 | W89: 2 | X89: 1 | Y89: 2 | Z89: 7 | AA89: 2 | AB89: 3 | AC89: 32 | AD89: 2 | AE89: 1 | AF89: 2 | AG89: 3 | AH89: 1 | AI89: 2 | AJ89: 1 | AK89: 2 | AL89: 2 | AM89: 1 | AN89: 1 | AO89: 1 | AP89: 2 | AQ89: 2 | AR89: 6 | AS89: 1 | AT89: 3 | AU89: 1 | AV89: 34
A90: 2022-06-09 | B90: Brunnenkant, Frank | C90: 24 | D90: 33 | E90: 122111112112112121 | F90: 212312124211222221 | G90: 18 | H90: 18 | I90: E | J90: B | K90: 1 | L90: 2 | M90: 2 | N90: 1 | O90: 1 | P90: 1 | Q90: 1 | R90: 1 | S90: 2 | T90: 1 | U90: 1 | V90: 2 | W90: 1 | X90: 1 | Y90: 2 | Z90: 1 | AA90: 2 | AB90: 1 | AC90: 24 | AD90: 2 | AE90: 1 | AF90: 2 | AG90: 3 | AH90: 1 | AI90: 2 | AJ90: 1 | AK90: 2 | AL90: 4 | AM90: 2 | AN90: 1 | AO90: 1 | AP90: 2 | AQ90: 2 | AR90: 2 | AS90: 2 | AT90: 2 | AU90: 1 | AV90: 33
A91: 2022-06-09 | B91: Rabe, Jonas | C91: 32 | D91: 34 | E91: 112111112113412225 | F91: 212521123311222211 | G91: 18 | H91: 18 | I91: E | J91: B | K91: =IF($I91=MID(K$1,1,1),IF(ISBLANK($E91),"",VALUE(MID($E91,VALUE(MID(K$1,2,LEN(K$1)-1)),1))),IF($J91=MID(K$1,1,1),IF(ISBLANK($F91),"",VALUE(MID($F91,VALUE(MID(K$1,2,LEN(K$1)-1)),1))))) -> 1 | L91: 1 | M91: 2 | N91: 1 | O91: 1 | P91: 1 | Q91: 1 | R91: 1 | S91: 2 | T91: 1 | U91: 1 | V91: 3 | W91: 4 | X91: 1 | Y91: 2 | Z91: 2 | AA91: 2 | AB91: 5 | AC91: 32 | AD91: 2 | AE91: 1 | AF91: 2 | AG91: 5 | AH91: 2 | AI91: 1 | AJ91: 1 | AK91: 2 | AL91: 3 | AM91: 3 | AN91: 1 | AO91: 1 | AP91: 2 | AQ91: 2 | AR91: 2 | AS91: 2 | AT91: 1 | AU91: 1 | AV91: 34
A92: 2022-06-09 | B92: Rade, Marcus | C92: 27 | D92: 33 | E92: 122211511111112112 | F92: 222212312212212231 | G92: 18 | H92: 18 | I92: E | J92: B | K92: 1 | L92: 2 | M92: 2 | N92: 2 | O92: 1 | P92: 1 | Q92: 5 | R92: 1 | S92: 1 | T92: 1 | U92: 1 | V92: 1 | W92: 1 | X92: 1 | Y92: 2 | Z92: 1 | AA92: 1 | AB92: 2 | AC92: 27 | AD92: 2 | AE92: 2 | AF92: 2 | AG92: 2 | AH92: 1 | AI92: 2 | AJ92: 3 | AK92: 1 | AL92: 2 | AM92: 2 | AN92: 1 | AO92: 2 | AP92: 2 | AQ92: 1 | AR92: 2 | AS92: 2 | AT92: 3 | AU92: 1 | AV92: 33
A93: 2022-06-09 | B93: Paffrath, Siegfried | C93: 31 | D93: 41 | E93: 152223112121112121 | F93: 122322213212226224 | G93: 18 | H93: 18 | I93: E | J93: B | K93: 1 | L93: 5 | M93: 2 | N93: 2 | O93: 2 | P93: 3 | Q93: 1 | R93: 1 | S93: 2 | T93: 1 | U93: 2 | V93: 1 | W93: 1 | X93: 1 | Y93: 2 | Z93: 1 | AA93: 2 | AB93: 1 | AC93: 31 | AD93: 1 | AE93: 2 | AF93: 2 | AG93: 3 | AH93: 2 | AI93: 2 | AJ93: 2 | AK93: 1 | AL93: 3 | AM93: 2 | AN93: 1 | AO93: 2 | AP93: 2 | AQ93: 2 | AR93: 6 | AS93: 2 | AT93: 2 | AU93: 4 | AV93: 41
A94: 2022-06-09 | B94: Paffrath, Ben | C94: 35 | D94: 36 | E94: 142221112215122132 | F94: 222312224212222221 | G94: 18 | H94: 18 | I94: E | J94: B | K94: 1 | L94: 4 | M94: 2 | N94: 2 | O94: 2 | P94: 1 | Q94: 1 | R94: 1 | S94: 2 | T94: 2 | U94: 1 | V94: 5 | W94: 1 | X94: 2 | Y94: 2 | Z94: 1 | AA94: =IF($I94=MID(AA$1,1,1),IF(ISBLANK($E94),"",VALUE(MID($E94,VALUE(MID(AA$1,2,LEN(AA$1)-1)),1))),IF($J94=MID(AA$1,1,1),IF(ISBLANK($F94),"",VALUE(MID($F94,VALUE(MID(AA$1,2,LEN(AA$1)-1)),1))))) -> 3 | AB94: 2 | AC94: 35 | AD94: 2 | AE94: 2 | AF94: 2 | AG94: 3 | AH94: 1 | AI94: 2 | AJ94: 2 | AK94: 2 | AL94: 4 | AM94: 2 | AN94: 1 | AO94: 2 | AP94: 2 | AQ94: 2 | AR94: 2 | AS94: 2 | AT94: 2 | AU94: 1 | AV94: 36
A95: 2022-06-09 | B95: Kunz, Martin | C95: 28 | D95: 31 | E95: 112211212212213112 | F95: 212212122111124222 | G95: 18 | H95: 18 | I95: E | J95: B | K95: 1 | L95: 1 | M95: 2 | N95: 2 | O95: 1 | P95: 1 | Q95: 2 | R95: 1 | S95: 2 | T95: 2 | U95: 1 | V95: 2 | W95: 2 | X95: 1 | Y95: 3 | Z95: 1 | AA95: 1 | AB95: 2 | AC95: 28 | AD95: 2 | AE95: 1 | AF95: 2 | AG95: 2 | AH95: 1 | AI95: 2 | AJ95: 1 | AK95: 2 | AL95: 2 | AM95: 1 | AN95: 1 | AO95: 1 | AP95: 1 | AQ95: 2 | AR95: 4 | AS95: 2 | AT95: 2 | AU95: 2 | AV95: 31
A96: 2022-06-09 | B96: Buchholz, Ansgar | C96: 33 | D96: 30 | E96: 121111112225312412 | F96: 122112123211222221 | G96: 18 | H96: 18 | I96: E | J96: B | K96: 1 | L96: 2 | M96: 1 | N96: 1 | O96: 1 | P96: 1 | Q96: 1 | R96: 1 | S96: 2 | T96: 2 | U96: 2 | V96: 5 | W96: 3 | X96: 1 | Y96: 2 | Z96: 4 | AA96: 1 | AB96: 2 | AC96: 33 | AD96: 1 | AE96: 2 | AF96: 2 | AG96: 1 | AH96: 1 | AI96: 2 | AJ96: 1 | AK96: 2 | AL96: 3 | AM96: 2 | AN96: 1 | AO96: 1 | AP96: 2 | AQ96: 2 | AR96: 2 | AS96: 2 | AT96: 2 | AU96: 1 | AV96: 30
A97: 2022-06-09 | B97: Gattner, Karsten | C97: 36 | D97: 37 | E97: 232212121121312721 | F97: 233222122212322321 | G97: 18 | H97: 18 | I97: E | J97: B | K97: 2 | L97: 3 | M97: 2 | N97: 2 | O97: 1 | P97: 2 | Q97: 1 | R97: 2 | S97: 1 | T97: 1 | U97: 2 | V97: 1 | W97: 3 | X97: 1 | Y97: 2 | Z97: 7 | AA97: 2 | AB97: 1 | AC97: 36 | AD97: 2 | AE97: 3 | AF97: 3 | AG97: 2 | AH97: 2 | AI97: 2 | AJ97: 1 | AK97: 2 | AL97: 2 | AM97: 2 | AN97: 1 | AO97: 2 | AP97: 3 | AQ97: 2 | AR97: 2 | AS97: 3 | AT97: 2 | AU97: 1 | AV97: 37
A98: 2022-06-15 | B98: Lenk, Rolf | C98: 26 | D98: 32 | E98: 211211112212212112 | F98: 132212122211222222 | G98: 18 | H98: 18 | I98: E | J98: B | K98: 2 | L98: 1 | M98: 1 | N98: 2 | O98: 1 | P98: 1 | Q98: 1 | R98: 1 | S98: 2 | T98: 2 | U98: 1 | V98: 2 | W98: 2 | X98: 1 | Y98: 2 | Z98: 1 | AA98: 1 | AB98: 2 | AC98: 26 | AD98: 1 | AE98: 3 | AF98: 2 | AG98: 2 | AH98: 1 | AI98: 2 | AJ98: 1 | AK98: 2 | AL98: 2 | AM98: 2 | AN98: 1 | AO98: 1 | AP98: 2 | AQ98: 2 | AR98: 2 | AS98: 2 | AT98: 2 | AU98: 2 | AV98: 32
A99: 2022-06-15 | B99: Dreischer, Burkhard | C99: 46 | D99: 42 | E99: 371214122212372411 | F99: 222323341222224222 | G99: 18 | H99: 18 | I99: E | J99: B | K99: 3 | L99: 7 | M99: 1 | N99: 2 | O99: 1 | P99: 4 | Q99: 1 | R99: 2 | S99: 2 | T99: 2 | U99: 1 | V99: 2 | W99: 3 | X99: 7 | Y99: 2 | Z99: 4 | AA99: 1 | AB99: 1 | AC99: 46 | AD99: 2 | AE99: 2 | AF99: 2 | AG99: 3 | AH99: 2 | AI99: 3 | AJ99: 3 | AK99: 4 | AL99: =IF($I99=MID(AL$1,1,1),IF(ISBLANK($E99),"",VALUE(MID($E99,VALUE(MID(AL$1,2,LEN(AL$1)-1)),1))),IF($J99=MID(AL$1,1,1),IF(ISBLANK($F99),"",VALUE(MID($F99,VALUE(MID(AL$1,2,LEN(AL$1)-1)),1))))) -> 1 | AM99: 2 | AN99: 2 | AO99: 2 | AP99: 2 | AQ99: 2 | AR99: 4 | AS99: 2 | AT99: 2 | AU99: 2 | AV99: 42
A100: 2022-06-15 | B100: Urban, Volker | C100: 28 | D100: 33 | E100: 121211112213212122 | F100: 222422111121222222 | G100: 18 | H100: 18 | I100: E | J100: B | K100: 1 | L100: 2 | M100: 1 | N100: 2 | O100: 1 | P100: 1 | Q100: 1 | R100: 1 | S100: 2 | T100: 2 | U100: 1 | V100: 3 | W100: 2 | X100: 1 | Y100: 2 | Z100: 1 | AA100: 2 | AB100: 2 | AC100: 28 | AD100: =IF($I100=MID(AD$1,1,1),IF(ISBLANK($E100),"",VALUE(MID($E100,VALUE(MID(AD$1,2,LEN(AD$1)-1)),1))),IF($J100=MID(AD$1,1,1),IF(ISBLANK($F100),"",VALUE(MID($F100,VALUE(MID(AD$1,2,LEN(AD$1)-1)),1))))) -> 2 | AE100: 2 | AF100: 2 | AG100: 4 | AH100: 2 | AI100: 2 | AJ100: 1 | AK100: 1 | AL100: 1 | AM100: 1 | AN100: 2 | AO100: 1 | AP100: 2 | AQ100: 2 | AR100: 2 | AS100: 2 | AT100: 2 | AU100: 2 | AV100: 33
A101: 2022-06-15 | B101: Rabe, Jonas | C101: 23 | D101: 31 | E101: 111121111212212111 | F101: 122312212211212411 | G101: 18 | H101: 18 | I101: E | J101: B | K101: 1 | L101: 1 | M101: 1 | N101: 1 | O101: 2 | P101: 1 | Q101: 1 | R101: 1 | S101: 1 | T101: 2 | U101: 1 | V101: 2 | W101: 2 | X101: 1 | Y101: 2 | Z101: 1 | AA101: 1 | AB101: 1 | AC101: 23 | AD101: 1 | AE101: 2 | AF101: 2 | AG101: 3 | AH101: 1 | AI101: 2 | AJ101: 2 | AK101: 1 | AL101: 2 | AM101: 2 | AN101: 1 | AO101: 1 | AP101: 2 | AQ101: 1 | AR101: 2 | AS101: 4 | AT101: 1 | AU101: 1 | AV101: 31
A102: 2022-06-15 | B102: Schmidtbauer, Günter | C102: 39 | D102: 48 | E102: 122211232223422413 | F102: 213326122132273341 | G102: 18 | H102: 18 | I102: E | J102: B | K102: 1 | L102: 2 | M102: 2 | N102: 2 | O102: 1 | P102: 1 | Q102: 2 | R102: 3 | S102: 2 | T102: 2 | U102: 2 | V102: 3 | W102: 4 | X102: 2 | Y102: 2 | Z102: 4 | AA102: 1 | AB102: 3 | AC102: 39 | AD102: 2 | AE102: 1 | AF102: 3 | AG102: 3 | AH102: 2 | AI102: 6 | AJ102: 1 | AK102: 2 | AL102: 2 | AM102: 1 | AN102: 3 | AO102: 2 | AP102: 2 | AQ102: 7 | AR102: 3 | AS102: 3 | AT102: 4 | AU102: 1 | AV102: 48
A103: 2022-06-15 | B103: Kunz, Martin | C103: 29 | D103: 39 | E103: 131221211212412111 | F103: 323222223213222231 | G103: 18 | H103: 18 | I103: E | J103: B | K103: 1 | L103: 3 | M103: 1 | N103: 2 | O103: 2 | P103: 1 | Q103: 2 | R103: 1 | S103: 1 | T103: 2 | U103: 1 | V103: 2 | W103: 4 | X103: 1 | Y103: 2 | Z103: 1 | AA103: 1 | AB103: 1 | AC103: 29 | AD103: 3 | AE103: 2 | AF103: 3 | AG103: 2 | AH103: 2 | AI103: 2 | AJ103: 2 | AK103: 2 | AL103: 3 | AM103: 2 | AN103: 1 | AO103: 3 | AP103: 2 | AQ103: 2 | AR103: 2 | AS103: 2 | AT103: 3 | AU103: 1 | AV103: 39
A104: 2022-06-15 | B104: Buchholz, Ansgar | C104: 27 | D104: 32 | E104: 132112121211211212 | F104: 222212222211222221 | G104: 18 | H104: 18 | I104: E | J104: B | K104: 1 | L104: 3 | M104: 2 | N104: 1 | O104: 1 | P104: 2 | Q104: 1 | R104: 2 | S104: 1 | T104: 2 | U104: 1 | V104: 1 | W104: 2 | X104: 1 | Y104: 1 | Z104: 2 | AA104: 1 | AB104: 2 | AC104: 27 | AD104: 2 | AE104: 2 | AF104: 2 | AG104: 2 | AH104: 1 | AI104: 2 | AJ104: 2 | AK104: 2 | AL104: 2 | AM104: 2 | AN104: 1 | AO104: 1 | AP104: 2 | AQ104: 2 | AR104: 2 | AS104: 2 | AT104: 2 | AU104: 1 | AV104: 32
A105: 2022-06-15 | B105: Rade, Marcus | C105: 25 | D105: 37 | E105: 111211111211312212 | F105: 232212223211224222 | G105: 18 | H105: 18 | I105: E | J105: B | K105: 1 | L105: 1 | M105: 1 | N105: 2 | O105: 1 | P105: 1 | Q105: 1 | R105: 1 | S105: 1 | T105: 2 | U105: 1 | V105: 1 | W105: 3 | X105: 1 | Y105: 2 | Z105: 2 | AA105: 1 | AB105: 2 | AC105: 25 | AD105: 2 | AE105: 3 | AF105: 2 | AG105: 2 | AH105: 1 | AI105: 2 | AJ105: 2 | AK105: 2 | AL105: 3 | AM105: 2 | AN105: 1 | AO105: 1 | AP105: 2 | AQ105: 2 | AR105: 4 | AS105: 2 | AT105: 2 | AU105: 2 | AV105: 37
A106: 2022-06-15 | B106: Gattner, Karsten | C106: 35 | D106: 35 | E106: 142212412212132221 | F106: 223122133211222213 | G106: 18 | H106: 18 | I106: E | J106: B | K106: 1 | L106: 4 | M106: 2 | N106: 2 | O106: 1 | P106: 2 | Q106: 4 | R106: 1 | S106: 2 | T106: 2 | U106: 1 | V106: 2 | W106: 1 | X106: 3 | Y106: 2 | Z106: 2 | AA106: 2 | AB106: 1 | AC106: 35 | AD106: 2 | AE106: 2 | AF106: 3 | AG106: 1 | AH106: 2 | AI106: 2 | AJ106: 1 | AK106: 3 | AL106: 3 | AM106: 2 | AN106: 1 | AO106: 1 | AP106: 2 | AQ106: 2 | AR106: 2 | AS106: 2 | AT106: 1 | AU106: 3 | AV106: 35
A107: 2022-06-15 | B107: Brunnenkant, Frank | C107: 27 | D107: 33 | E107: 112211211212212212 | F107: 123124113211223211 | G107: 18 | H107: 18 | I107: E | J107: B | K107: =IF($I107=MID(K$1,1,1),IF(ISBLANK($E107),"",VALUE(MID($E107,VALUE(MID(K$1,2,LEN(K$1)-1)),1))),IF($J107=MID(K$1,1,1),IF(ISBLANK($F107),"",VALUE(MID($F107,VALUE(MID(K$1,2,LEN(K$1)-1)),1))))) -> 1 | L107: 1 | M107: 2 | N107: 2 | O107: 1 | P107: 1 | Q107: 2 | R107: 1 | S107: 1 | T107: 2 | U107: 1 | V107: 2 | W107: 2 | X107: 1 | Y107: 2 | Z107: 2 | AA107: 1 | AB107: 2 | AC107: 27 | AD107: 1 | AE107: 2 | AF107: 3 | AG107: 1 | AH107: 2 | AI107: 4 | AJ107: 1 | AK107: 1 | AL107: 3 | AM107: 2 | AN107: 1 | AO107: 1 | AP107: 2 | AQ107: 2 | AR107: 3 | AS107: 2 | AT107: 1 | AU107: 1 | AV107: 33
A108: 2022-06-15 | B108: Puschner, Michael | C108: 31 | D108: 31 | E108: 311111111211132523 | F108: 222221123211122221 | G108: 18 | H108: 18 | I108: E | J108: B | K108: 3 | L108: 1 | M108: 1 | N108: 1 | O108: 1 | P108: 1 | Q108: 1 | R108: 1 | S108: 1 | T108: 2 | U108: 1 | V108: 1 | W108: 1 | X108: 3 | Y108: 2 | Z108: 5 | AA108: 2 | AB108: 3 | AC108: 31 | AD108: 2 | AE108: 2 | AF108: 2 | AG108: 2 | AH108: 2 | AI108: 1 | AJ108: 1 | AK108: 2 | AL108: 3 | AM108: 2 | AN108: 1 | AO108: 1 | AP108: 1 | AQ108: 2 | AR108: 2 | AS108: 2 | AT108: 2 | AU108: 1 | AV108: 31
A109: 2022-06-15 | B109: Kortmann, Sabine | C109: 34 | D109: 33 | E109: 211144212211312213 | F109: 232112321212122222 | G109: 18 | H109: 18 | I109: E | J109: B | K109: 2 | L109: 1 | M109: 1 | N109: 1 | O109: 4 | P109: 4 | Q109: 2 | R109: 1 | S109: 2 | T109: 2 | U109: 1 | V109: 1 | W109: 3 | X109: 1 | Y109: 2 | Z109: 2 | AA109: 1 | AB109: 3 | AC109: 34 | AD109: 2 | AE109: 3 | AF109: 2 | AG109: 1 | AH109: 1 | AI109: 2 | AJ109: 3 | AK109: 2 | AL109: 1 | AM109: 2 | AN109: 1 | AO109: 2 | AP109: 1 | AQ109: 2 | AR109: 2 | AS109: 2 | AT109: 2 | AU109: 2 | AV109: 33
A110: 2022-06-15 | B110: Urban, Dominic | C110: 24 | D110: 35 | E110: 111111112212112212 | F110: 222212132223122123 | G110: 18 | H110: 18 | I110: E | J110: B | K110: 1 | L110: 1 | M110: 1 | N110: 1 | O110: 1 | P110: 1 | Q110: 1 | R110: 1 | S110: 2 | T110: 2 | U110: 1 | V110: 2 | W110: 1 | X110: 1 | Y110: 2 | Z110: 2 | AA110: 1 | AB110: 2 | AC110: 24 | AD110: 2 | AE110: 2 | AF110: 2 | AG110: 2 | AH110: 1 | AI110: 2 | AJ110: 1 | AK110: 3 | AL110: 2 | AM110: 2 | AN110: 2 | AO110: 3 | AP110: 1 | AQ110: 2 | AR110: 2 | AS110: 1 | AT110: 2 | AU110: 3 | AV110: 35
A111: 2022-06-23 | B111: Puschner, Michael | C111: 34 | D111: 35 | E111: 311261132111222221 | F111: 222221112312232331 | G111: 18 | H111: 18 | I111: E | J111: B | K111: 3 | L111: 1 | M111: 1 | N111: 2 | O111: 6 | P111: 1 | Q111: 1 | R111: 3 | S111: 2 | T111: 1 | U111: 1 | V111: 1 | W111: 2 | X111: 2 | Y111: 2 | Z111: 2 | AA111: 2 | AB111: 1 | AC111: 34 | AD111: 2 | AE111: 2 | AF111: 2 | AG111: 2 | AH111: 2 | AI111: 1 | AJ111: 1 | AK111: 1 | AL111: 2 | AM111: 3 | AN111: 1 | AO111: 2 | AP111: 2 | AQ111: 3 | AR111: 2 | AS111: 3 | AT111: 3 | AU111: 1 | AV111: 35
A112: 2022-06-23 | B112: Lenk, Rolf | C112: 30 | D112: 39 | E112: 311221112211222213 | F112: 212232312211223226 | G112: 18 | H112: 18 | I112: E | J112: B | K112: 3 | L112: 1 | M112: 1 | N112: 2 | O112: 2 | P112: 1 | Q112: 1 | R112: 1 | S112: 2 | T112: 2 | U112: 1 | V112: 1 | W112: 2 | X112: 2 | Y112: 2 | Z112: 2 | AA112: 1 | AB112: 3 | AC112: 30 | AD112: 2 | AE112: 1 | AF112: 2 | AG112: 2 | AH112: 3 | AI112: 2 | AJ112: 3 | AK112: 1 | AL112: 2 | AM112: 2 | AN112: 1 | AO112: 1 | AP112: 2 | AQ112: 2 | AR112: 3 | AS112: 2 | AT112: 2 | AU112: 6 | AV112: 39
A113: 2022-06-23 | B113: Kortmann, Sabine | C113: 28 | D113: 37 | E113: 212221112123112112 | F113: 222212223212225221 | G113: 18 | H113: 18 | I113: E | J113: B | K113: 2 | L113: 1 | M113: 2 | N113: 2 | O113: 2 | P113: 1 | Q113: 1 | R113: 1 | S113: 2 | T113: 1 | U113: 2 | V113: 3 | W113: 1 | X113: 1 | Y113: 2 | Z113: 1 | AA113: 1 | AB113: 2 | AC113: 28 | AD113: 2 | AE113: 2 | AF113: 2 | AG113: 2 | AH113: 1 | AI113: 2 | AJ113: 2 | AK113: 2 | AL113: =IF($I113=MID(AL$1,1,1),IF(ISBLANK($E113),"",VALUE(MID($E113,VALUE(MID(AL$1,2,LEN(AL$1)-1)),1))),IF($J113=MID(AL$1,1,1),IF(ISBLANK($F113),"",VALUE(MID($F113,VALUE(MID(AL$1,2,LEN(AL$1)-1)),1))))) -> 3 | AM113: 2 | AN113: 1 | AO113: 2 | AP113: 2 | AQ113: 2 | AR113: 5 | AS113: 2 | AT113: 2 | AU113: 1 | AV113: 37
A114: 2022-06-23 | B114: Rade, Marcus | C114: 24 | D114: 31 | E114: 121212111111112122 | F114: 122222122212112222 | G114: 18 | H114: 18 | I114: E | J114: B | K114: 1 | L114: 2 | M114: 1 | N114: 2 | O114: 1 | P114: 2 | Q114: 1 | R114: 1 | S114: 1 | T114: 1 | U114: 1 | V114: 1 | W114: 1 | X114: 1 | Y114: 2 | Z114: 1 | AA114: =IF($I114=MID(AA$1,1,1),IF(ISBLANK($E114),"",VALUE(MID($E114,VALUE(MID(AA$1,2,LEN(AA$1)-1)),1))),IF($J114=MID(AA$1,1,1),IF(ISBLANK($F114),"",VALUE(MID($F114,VALUE(MID(AA$1,2,LEN(AA$1)-1)),1))))) -> 2 | AB114: 2 | AC114: 24 | AD114: =IF($I114=MID(AD$1,1,1),IF(ISBLANK($E114),"",VALUE(MID($E114,VALUE(MID(AD$1,2,LEN(AD$1)-1)),1))),IF($J114=MID(AD$1,1,1),IF(ISBLANK($F114),"",VALUE(MID($F114,VALUE(MID(AD$1,2,LEN(AD$1)-1)),1))))) -> 1 | AE114: 2 | AF114: 2 | AG114: 2 | AH114: 2 | AI114: 2 | AJ114: 1 | AK114: 2 | AL114: 2 | AM114: 2 | AN114: 1 | AO114: 2 | AP114: 1 | AQ114: 1 | AR114: 2 | AS114: 2 | AT114: 2 | AU114: 2 | AV114: 31
A115: 2022-06-23 | B115: Paffrath, Ben | C115: 33 | D115: 38 | E115: 262221111112212132 | F115: 322322423111222222 | G115: 18 | H115: 18 | I115: E | J115: B | K115: 2 | L115: 6 | M115: 2 | N115: 2 | O115: 2 | P115: 1 | Q115: 1 | R115: 1 | S115: 1 | T115: 1 | U115: 1 | V115: 2 | W115: 2 | X115: 1 | Y115: 2 | Z115: 1 | AA115: 3 | AB115: 2 | AC115: 33 | AD115: 3 | AE115: 2 | AF115: 2 | AG115: 3 | AH115: 2 | AI115: 2 | AJ115: 4 | AK115: 2 | AL115: 3 | AM115: 1 | AN115: 1 | AO115: 1 | AP115: 2 | AQ115: 2 | AR115: 2 | AS115: 2 | AT115: 2 | AU115: 2 | AV115: 38
A116: 2022-06-23 | B116: Urban, Volker | C116: 24 | D116: 35 | E116: 112211112111212211 | F116: 232212213212222312 | G116: 18 | H116: 18 | I116: E | J116: B | K116: 1 | L116: 1 | M116: 2 | N116: 2 | O116: 1 | P116: 1 | Q116: 1 | R116: 1 | S116: 2 | T116: 1 | U116: 1 | V116: 1 | W116: 2 | X116: 1 | Y116: 2 | Z116: 2 | AA116: 1 | AB116: 1 | AC116: 24 | AD116: 2 | AE116: 3 | AF116: 2 | AG116: 2 | AH116: 1 | AI116: 2 | AJ116: 2 | AK116: 1 | AL116: 3 | AM116: 2 | AN116: 1 | AO116: 2 | AP116: 2 | AQ116: 2 | AR116: 2 | AS116: 3 | AT116: 1 | AU116: 2 | AV116: 35
A117: 2022-06-23 | B117: Buchholz, Ansgar | C117: 24 | D117: 28 | E117: 111212112111122211 | F117: 212112112112222221 | G117: 18 | H117: 18 | I117: E | J117: B | K117: 1 | L117: 1 | M117: 1 | N117: 2 | O117: 1 | P117: 2 | Q117: 1 | R117: 1 | S117: 2 | T117: 1 | U117: 1 | V117: 1 | W117: 1 | X117: 2 | Y117: 2 | Z117: 2 | AA117: 1 | AB117: 1 | AC117: 24 | AD117: 2 | AE117: 1 | AF117: 2 | AG117: 1 | AH117: 1 | AI117: 2 | AJ117: 1 | AK117: 1 | AL117: 2 | AM117: 1 | AN117: 1 | AO117: 2 | AP117: 2 | AQ117: 2 | AR117: 2 | AS117: 2 | AT117: 2 | AU117: 1 | AV117: 28
A118: 2022-06-23 | B118: Kunz, Martin | C118: 33 | D118: 43 | E118: 111121112222362122 | F118: 332223123213213334 | G118: 18 | H118: 18 | I118: E | J118: B | K118: 1 | L118: 1 | M118: 1 | N118: 1 | O118: 2 | P118: 1 | Q118: 1 | R118: 1 | S118: 2 | T118: 2 | U118: 2 | V118: 2 | W118: 3 | X118: 6 | Y118: 2 | Z118: 1 | AA118: 2 | AB118: 2 | AC118: 33 | AD118: 3 | AE118: 3 | AF118: 2 | AG118: 2 | AH118: 2 | AI118: 3 | AJ118: 1 | AK118: 2 | AL118: 3 | AM118: 2 | AN118: 1 | AO118: 3 | AP118: 2 | AQ118: 1 | AR118: 3 | AS118: 3 | AT118: 3 | AU118: 4 | AV118: 43
A119: 2022-06-23 | B119: Gattner, Karsten | C119: 33 | D119: 42 | E119: 112161121111312341 | F119: 123712122212134233 | G119: 18 | H119: 18 | I119: E | J119: B | K119: 1 | L119: 1 | M119: 2 | N119: 1 | O119: 6 | P119: 1 | Q119: 1 | R119: 2 | S119: 1 | T119: 1 | U119: 1 | V119: 1 | W119: 3 | X119: 1 | Y119: 2 | Z119: 3 | AA119: 4 | AB119: 1 | AC119: 33 | AD119: 1 | AE119: 2 | AF119: 3 | AG119: 7 | AH119: 1 | AI119: 2 | AJ119: 1 | AK119: 2 | AL119: 2 | AM119: 2 | AN119: 1 | AO119: 2 | AP119: 1 | AQ119: 3 | AR119: 4 | AS119: 2 | AT119: 3 | AU119: 3 | AV119: 42
A120: 2022-06-23 | B120: Rabe, Jonas | C120: 29 | D120: 34 | E120: 112212322212112211 | F120: 112223222211222223 | G120: 18 | H120: 18 | I120: E | J120: B | K120: 1 | L120: 1 | M120: 2 | N120: 2 | O120: 1 | P120: 2 | Q120: 3 | R120: 2 | S120: 2 | T120: 2 | U120: 1 | V120: 2 | W120: 1 | X120: 1 | Y120: 2 | Z120: 2 | AA120: 1 | AB120: 1 | AC120: 29 | AD120: 1 | AE120: 1 | AF120: 2 | AG120: 2 | AH120: 2 | AI120: 3 | AJ120: 2 | AK120: 2 | AL120: 2 | AM120: 2 | AN120: 1 | AO120: 1 | AP120: 2 | AQ120: 2 | AR120: 2 | AS120: 2 | AT120: 2 | AU120: 3 | AV120: 34
A121: 2022-06-23 | B121: Urban, Angela | C121: 37 | D121: 39 | E121: 311212111316112622 | F121: 232713222211123221 | G121: 18 | H121: 18 | I121: E | J121: B | K121: 3 | L121: 1 | M121: 1 | N121: 2 | O121: 1 | P121: 2 | Q121: 1 | R121: 1 | S121: 1 | T121: 3 | U121: 1 | V121: 6 | W121: 1 | X121: 1 | Y121: 2 | Z121: 6 | AA121: 2 | AB121: 2 | AC121: 37 | AD121: 2 | AE121: 3 | AF121: 2 | AG121: 7 | AH121: 1 | AI121: 3 | AJ121: 2 | AK121: 2 | AL121: 2 | AM121: 2 | AN121: 1 | AO121: 1 | AP121: 1 | AQ121: 2 | AR121: 3 | AS121: 2 | AT121: 2 | AU121: 1 | AV121: 39
A122: 2022-06-23 | B122: Schmidtbauer, Günter | C122: 33 | D122: 38 | E122: 122211212233312221 | F122: 122224123211323232 | G122: 18 | H122: 18 | I122: E | J122: B | K122: 1 | L122: 2 | M122: 2 | N122: 2 | O122: 1 | P122: 1 | Q122: 2 | R122: 1 | S122: 2 | T122: 2 | U122: 3 | V122: 3 | W122: 3 | X122: 1 | Y122: 2 | Z122: =IF($I122=MID(Z$1,1,1),IF(ISBLANK($E122),"",VALUE(MID($E122,VALUE(MID(Z$1,2,LEN(Z$1)-1)),1))),IF($J122=MID(Z$1,1,1),IF(ISBLANK($F122),"",VALUE(MID($F122,VALUE(MID(Z$1,2,LEN(Z$1)-1)),1))))) -> 2 | AA122: 2 | AB122: 1 | AC122: 33 | AD122: 1 | AE122: 2 | AF122: 2 | AG122: 2 | AH122: 2 | AI122: 4 | AJ122: 1 | AK122: 2 | AL122: 3 | AM122: 2 | AN122: 1 | AO122: 1 | AP122: 3 | AQ122: 2 | AR122: 3 | AS122: 2 | AT122: 3 | AU122: 2 | AV122: 38
A123: 2022-06-23 | B123: Brunnenkant, Frank | C123: 29 | D123: 35 | E123: 211211311121213132 | F123: 212223323211222221 | G123: 18 | H123: 18 | I123: E | J123: B | K123: =IF($I123=MID(K$1,1,1),IF(ISBLANK($E123),"",VALUE(MID($E123,VALUE(MID(K$1,2,LEN(K$1)-1)),1))),IF($J123=MID(K$1,1,1),IF(ISBLANK($F123),"",VALUE(MID($F123,VALUE(MID(K$1,2,LEN(K$1)-1)),1))))) -> 2 | L123: 1 | M123: 1 | N123: 2 | O123: 1 | P123: 1 | Q123: 3 | R123: 1 | S123: 1 | T123: 1 | U123: 2 | V123: 1 | W123: 2 | X123: 1 | Y123: 3 | Z123: 1 | AA123: 3 | AB123: 2 | AC123: 29 | AD123: 2 | AE123: 1 | AF123: 2 | AG123: 2 | AH123: 2 | AI123: 3 | AJ123: 3 | AK123: 2 | AL123: 3 | AM123: 2 | AN123: 1 | AO123: 1 | AP123: 2 | AQ123: 2 | AR123: 2 | AS123: 2 | AT123: 2 | AU123: 1 | AV123: 35
A124: 2022-06-30 | B124: Schmidtbauer, Günter | C124: 37 | E124: 222111372212212222 | G124: 18 | H124: 0 | I124: E | J124: B | K124: 2 | L124: 2 | M124: 2 | N124: 1 | O124: 1 | P124: 1 | Q124: 3 | R124: 7 | S124: 2 | T124: 2 | U124: 1 | V124: 2 | W124: 2 | X124: 1 | Y124: 2 | Z124: 2 | AA124: 2 | AB124: 2 | AC124: 37 | AV124: 0
A125: 2022-06-30 | B125: Rabe, Jonas | C125: 21 | E125: 111111112211112111 | G125: 18 | H125: 0 | I125: E | J125: B | K125: 1 | L125: 1 | M125: 1 | N125: 1 | O125: 1 | P125: 1 | Q125: 1 | R125: 1 | S125: 2 | T125: 2 | U125: 1 | V125: 1 | W125: 1 | X125: 1 | Y125: 2 | Z125: 1 | AA125: 1 | AB125: 1 | AC125: 21 | AV125: 0
A126: 2022-06-30 | B126: Lenk, Rolf | C126: 37 | E126: 121123212221422117 | G126: 18 | H126: 0 | I126: E | J126: B | K126: 1 | L126: 2 | M126: 1 | N126: 1 | O126: 2 | P126: 3 | Q126: 2 | R126: 1 | S126: 2 | T126: 2 | U126: 2 | V126: 1 | W126: 4 | X126: 2 | Y126: 2 | Z126: 1 | AA126: 1 | AB126: 7 | AC126: 37 | AV126: 0
A127: 2022-06-30 | B127: Puschner, Michael | C127: 29 | E127: 121111132211212223 | G127: 18 | H127: 0 | I127: E | J127: B | K127: 1 | L127: 2 | M127: 1 | N127: 1 | O127: 1 | P127: 1 | Q127: 1 | R127: 3 | S127: 2 | T127: 2 | U127: 1 | V127: 1 | W127: 2 | X127: 1 | Y127: 2 | Z127: 2 | AA127: 2 | AB127: 3 | AC127: 29 | AL127: =IF($I127=MID(AL$1,1,1),IF(ISBLANK($E127),"",VALUE(MID($E127,VALUE(MID(AL$1,2,LEN(AL$1)-1)),1))),IF($J127=MID(AL$1,1,1),IF(ISBLANK($F127),"",VALUE(MID($F127,VALUE(MID(AL$1,2,LEN(AL$1)-1)),1))))) ->  | AV127: 0
A128: 2022-06-30 | B128: Börgmann, Brigitte | C128: =IF(ISBLANK(E128),"",MID(E128,1,1)+MID(E128,2,1)+MID(E128,3,1)+MID(E128,4,1)+MID(E128,5,1)+MID(E128,6,1)+MID(E128,7,1)+MID(E128,8,1)+MID(E128,9,1)+MID(E128,10,1)+MID(E128,11,1)+MID(E128,12,1)+MID(E128,13,1)+MID(E128,14,1)+MID(E128,15,1)+MID(E128,16,1)+MID(E128,17,1)+MID(E128,18,1)) -> 41 | D128: =IF(ISBLANK(F128),"",MID(F128,1,1)+MID(F128,2,1)+MID(F128,3,1)+MID(F128,4,1)+MID(F128,5,1)+MID(F128,6,1)+MID(F128,7,1)+MID(F128,8,1)+MID(F128,9,1)+MID(F128,10,1)+MID(F128,11,1)+MID(F128,12,1)+MID(F128,13,1)+MID(F128,14,1)+MID(F128,15,1)+MID(F128,16,1)+MID(F128,17,1)+MID(F128,18,1)) ->  | E128: 232121133332313422 | G128: =LEN(E128) -> 18 | H128: =LEN(F128) -> 0 | I128: E | J128: B | K128: 2 | L128: 3 | M128: 2 | N128: 1 | O128: 2 | P128: 1 | Q128: 1 | R128: 3 | S128: 3 | T128: 3 | U128: 3 | V128: 2 | W128: 3 | X128: 1 | Y128: 3 | Z128: 4 | AA128: 2 | AB128: 2 | AC128: 41 | AD128: =IF($I128=MID(AD$1,1,1),IF(ISBLANK($E128),"",VALUE(MID($E128,VALUE(MID(AD$1,2,LEN(AD$1)-1)),1))),IF($J128=MID(AD$1,1,1),IF(ISBLANK($F128),"",VALUE(MID($F128,VALUE(MID(AD$1,2,LEN(AD$1)-1)),1))))) ->  | AV128: 0
A129: 2022-06-30 | B129: Rade, Marcus | C129: 25 | E129: 121211112111111412 | G129: 18 | H129: 0 | I129: E | J129: B | K129: 1 | L129: 2 | M129: 1 | N129: 2 | O129: 1 | P129: 1 | Q129: 1 | R129: 1 | S129: 2 | T129: 1 | U129: 1 | V129: 1 | W129: 1 | X129: 1 | Y129: 1 | Z129: 4 | AA129: 1 | AB129: 2 | AC129: 25 | AV129: 0
A130: 2022-06-30 | B130: Börgmann, Ulrich | C130: 28 | E130: 122211111221122222 | G130: 18 | H130: 0 | I130: E | J130: B | K130: 1 | L130: 2 | M130: 2 | N130: 2 | O130: 1 | P130: 1 | Q130: 1 | R130: 1 | S130: 1 | T130: 2 | U130: 2 | V130: 1 | W130: 1 | X130: 2 | Y130: 2 | Z130: 2 | AA130: 2 | AB130: 2 | AC130: 28 | AV130: 0
A131: 2022-06-30 | B131: Kortmann, Sabine | C131: 26 | E131: 111121112212112222 | G131: 18 | H131: 0 | I131: E | J131: B | K131: 1 | L131: 1 | M131: 1 | N131: 1 | O131: 2 | P131: 1 | Q131: 1 | R131: 1 | S131: 2 | T131: 2 | U131: 1 | V131: 2 | W131: 1 | X131: 1 | Y131: 2 | Z131: 2 | AA131: 2 | AB131: 2 | AC131: =IF(SUM(K131:AB131)>0,SUM(K131:AB131),0) -> 26 | AV131: =IF(SUM(AD131:AU131)>0,SUM(AD131:AU131),0) -> 0
A132: 2022-06-30 | B132: Paffrath, Ben | C132: 31 | E132: 212211122222232112 | G132: 18 | H132: 0 | I132: E | J132: B | K132: 2 | L132: 1 | M132: 2 | N132: 2 | O132: 1 | P132: 1 | Q132: 1 | R132: 2 | S132: 2 | T132: 2 | U132: 2 | V132: 2 | W132: 2 | X132: 3 | Y132: 2 | Z132: 1 | AA132: 1 | AB132: 2 | AC132: 31 | AV132: 0
A133: 2022-06-30 | B133: Brunnenkant, Frank | C133: 31 | E133: 221111221211222323 | G133: 18 | H133: 0 | I133: E | J133: B | K133: 2 | L133: 2 | M133: 1 | N133: 1 | O133: 1 | P133: 1 | Q133: 2 | R133: 2 | S133: 1 | T133: 2 | U133: 1 | V133: 1 | W133: 2 | X133: 2 | Y133: 2 | Z133: 3 | AA133: 2 | AB133: 3 | AC133: 31 | AV133: 0
A134: 2022-06-30 | B134: Gattner, Karsten | C134: 36 | E134: 141221121313312242 | G134: 18 | H134: 0 | I134: E | J134: B | K134: 1 | L134: 4 | M134: 1 | N134: 2 | O134: 2 | P134: 1 | Q134: 1 | R134: 2 | S134: 1 | T134: 3 | U134: 1 | V134: 3 | W134: 3 | X134: 1 | Y134: 2 | Z134: 2 | AA134: 4 | AB134: 2 | AC134: 36 | AV134: 0
A135: 2022-07-07 | B135: Gattner, Karsten | C135: 38 | D135: 41 | E135: 151111112334242222 | F135: 222312423223321232 | G135: 18 | H135: 18 | I135: E | J135: B | K135: 1 | L135: 5 | M135: 1 | N135: 1 | O135: 1 | P135: 1 | Q135: 1 | R135: 1 | S135: 2 | T135: 3 | U135: 3 | V135: 4 | W135: 2 | X135: 4 | Y135: 2 | Z135: 2 | AA135: 2 | AB135: 2 | AC135: 38 | AD135: 2 | AE135: 2 | AF135: 2 | AG135: 3 | AH135: 1 | AI135: 2 | AJ135: 4 | AK135: 2 | AL135: 3 | AM135: 2 | AN135: 2 | AO135: 3 | AP135: 3 | AQ135: 2 | AR135: 1 | AS135: 2 | AT135: 3 | AU135: 2 | AV135: 41
A136: 2022-07-07 | B136: Buchholz, Ansgar | C136: 22 | D136: 31 | E136: 121211112111112111 | F136: 222112322211112222 | G136: 18 | H136: 18 | I136: E | J136: B | K136: 1 | L136: 2 | M136: 1 | N136: 2 | O136: 1 | P136: 1 | Q136: 1 | R136: 1 | S136: 2 | T136: 1 | U136: 1 | V136: 1 | W136: 1 | X136: 1 | Y136: 2 | Z136: 1 | AA136: 1 | AB136: 1 | AC136: 22 | AD136: 2 | AE136: 2 | AF136: 2 | AG136: 1 | AH136: 1 | AI136: 2 | AJ136: 3 | AK136: 2 | AL136: 2 | AM136: 2 | AN136: 1 | AO136: 1 | AP136: 1 | AQ136: 1 | AR136: 2 | AS136: 2 | AT136: 2 | AU136: 2 | AV136: 31
A137: 2022-07-07 | B137: Börgmann, Brigitte | C137: 35 | D137: 42 | E137: 132211122112272122 | F137: 212622222212226231 | G137: 18 | H137: 18 | I137: E | J137: B | K137: 1 | L137: 3 | M137: 2 | N137: 2 | O137: 1 | P137: 1 | Q137: 1 | R137: 2 | S137: 2 | T137: 1 | U137: 1 | V137: 2 | W137: 2 | X137: 7 | Y137: 2 | Z137: 1 | AA137: 2 | AB137: 2 | AC137: 35 | AD137: 2 | AE137: 1 | AF137: 2 | AG137: 6 | AH137: 2 | AI137: 2 | AJ137: 2 | AK137: 2 | AL137: 2 | AM137: 2 | AN137: 1 | AO137: 2 | AP137: 2 | AQ137: 2 | AR137: 6 | AS137: 2 | AT137: 3 | AU137: 1 | AV137: 42
A138: 2022-07-07 | B138: Börgmann, Ulrich | C138: 32 | D138: 31 | E138: 222121112113233221 | F138: 233112112211222221 | G138: 18 | H138: 18 | I138: E | J138: B | K138: 2 | L138: 2 | M138: 2 | N138: 1 | O138: 2 | P138: 1 | Q138: 1 | R138: 1 | S138: 2 | T138: 1 | U138: 1 | V138: 3 | W138: 2 | X138: 3 | Y138: 3 | Z138: 2 | AA138: 2 | AB138: 1 | AC138: 32 | AD138: 2 | AE138: 3 | AF138: 3 | AG138: 1 | AH138: 1 | AI138: 2 | AJ138: 1 | AK138: 1 | AL138: 2 | AM138: 2 | AN138: 1 | AO138: 1 | AP138: 2 | AQ138: 2 | AR138: 2 | AS138: 2 | AT138: 2 | AU138: 1 | AV138: 31
A139: 2022-07-07 | B139: Kortmann, Sabine | C139: 31 | D139: 34 | E139: 112115211113112223 | F139: 122222123212124221 | G139: 18 | H139: 18 | I139: E | J139: B | K139: =IF($I139=MID(K$1,1,1),IF(ISBLANK($E139),"",VALUE(MID($E139,VALUE(MID(K$1,2,LEN(K$1)-1)),1))),IF($J139=MID(K$1,1,1),IF(ISBLANK($F139),"",VALUE(MID($F139,VALUE(MID(K$1,2,LEN(K$1)-1)),1))))) -> 1 | L139: 1 | M139: 2 | N139: 1 | O139: 1 | P139: 5 | Q139: 2 | R139: 1 | S139: 1 | T139: 1 | U139: 1 | V139: 3 | W139: 1 | X139: 1 | Y139: 2 | Z139: 2 | AA139: 2 | AB139: 3 | AC139: 31 | AD139: 1 | AE139: 2 | AF139: 2 | AG139: 2 | AH139: 2 | AI139: 2 | AJ139: 1 | AK139: 2 | AL139: 3 | AM139: 2 | AN139: 1 | AO139: 2 | AP139: 1 | AQ139: 2 | AR139: 4 | AS139: 2 | AT139: 2 | AU139: 1 | AV139: 34
A140: 2022-07-07 | B140: Kunz, Martin | C140: 28 | D140: 35 | E140: 211211112212112322 | F140: 222212125212223211 | G140: 18 | H140: 18 | I140: E | J140: B | K140: 2 | L140: 1 | M140: 1 | N140: 2 | O140: 1 | P140: 1 | Q140: 1 | R140: 1 | S140: 2 | T140: 2 | U140: 1 | V140: 2 | W140: 1 | X140: 1 | Y140: 2 | Z140: 3 | AA140: 2 | AB140: 2 | AC140: 28 | AD140: 2 | AE140: 2 | AF140: 2 | AG140: 2 | AH140: 1 | AI140: 2 | AJ140: 1 | AK140: 2 | AL140: 5 | AM140: 2 | AN140: 1 | AO140: 2 | AP140: 2 | AQ140: 2 | AR140: 3 | AS140: 2 | AT140: 1 | AU140: 1 | AV140: 35
A141: 2022-07-07 | B141: Lenk, Rolf | C141: 30 | D141: 31 | E141: 211111211212512222 | F141: 121312222212122221 | G141: 18 | H141: 18 | I141: E | J141: B | K141: 2 | L141: 1 | M141: 1 | N141: 1 | O141: 1 | P141: 1 | Q141: 2 | R141: 1 | S141: 1 | T141: 2 | U141: 1 | V141: 2 | W141: 5 | X141: 1 | Y141: 2 | Z141: 2 | AA141: 2 | AB141: 2 | AC141: 30 | AD141: 1 | AE141: 2 | AF141: 1 | AG141: 3 | AH141: 1 | AI141: 2 | AJ141: 2 | AK141: 2 | AL141: =IF($I141=MID(AL$1,1,1),IF(ISBLANK($E141),"",VALUE(MID($E141,VALUE(MID(AL$1,2,LEN(AL$1)-1)),1))),IF($J141=MID(AL$1,1,1),IF(ISBLANK($F141),"",VALUE(MID($F141,VALUE(MID(AL$1,2,LEN(AL$1)-1)),1))))) -> 2 | AM141: 2 | AN141: 1 | AO141: 2 | AP141: 1 | AQ141: 2 | AR141: 2 | AS141: 2 | AT141: 2 | AU141: 1 | AV141: 31
A142: 2022-07-07 | B142: Paffrath, Ben | C142: 33 | D142: 34 | E142: 311112421212132222 | F142: 232112122212222241 | G142: 18 | H142: 18 | I142: E | J142: B | K142: 3 | L142: 1 | M142: 1 | N142: 1 | O142: 1 | P142: 2 | Q142: 4 | R142: 2 | S142: 1 | T142: 2 | U142: 1 | V142: 2 | W142: 1 | X142: 3 | Y142: 2 | Z142: 2 | AA142: =IF($I142=MID(AA$1,1,1),IF(ISBLANK($E142),"",VALUE(MID($E142,VALUE(MID(AA$1,2,LEN(AA$1)-1)),1))),IF($J142=MID(AA$1,1,1),IF(ISBLANK($F142),"",VALUE(MID($F142,VALUE(MID(AA$1,2,LEN(AA$1)-1)),1))))) -> 2 | AB142: 2 | AC142: 33 | AD142: =IF($I142=MID(AD$1,1,1),IF(ISBLANK($E142),"",VALUE(MID($E142,VALUE(MID(AD$1,2,LEN(AD$1)-1)),1))),IF($J142=MID(AD$1,1,1),IF(ISBLANK($F142),"",VALUE(MID($F142,VALUE(MID(AD$1,2,LEN(AD$1)-1)),1))))) -> 2 | AE142: 3 | AF142: 2 | AG142: 1 | AH142: 1 | AI142: 2 | AJ142: 1 | AK142: 2 | AL142: 2 | AM142: 2 | AN142: 1 | AO142: 2 | AP142: 2 | AQ142: 2 | AR142: 2 | AS142: 2 | AT142: 4 | AU142: 1 | AV142: 34
A143: 2022-07-07 | B143: Puschner, Michael | C143: 28 | D143: 34 | E143: 111221311111222123 | F143: 222232222211222221 | G143: 18 | H143: 18 | I143: E | J143: B | K143: 1 | L143: 1 | M143: 1 | N143: 2 | O143: 2 | P143: 1 | Q143: 3 | R143: 1 | S143: 1 | T143: 1 | U143: 1 | V143: 1 | W143: 2 | X143: 2 | Y143: 2 | Z143: 1 | AA143: 2 | AB143: 3 | AC143: 28 | AD143: 2 | AE143: 2 | AF143: 2 | AG143: 2 | AH143: 3 | AI143: 2 | AJ143: 2 | AK143: 2 | AL143: 2 | AM143: 2 | AN143: 1 | AO143: 1 | AP143: 2 | AQ143: 2 | AR143: 2 | AS143: 2 | AT143: 2 | AU143: 1 | AV143: 34
A144: 2022-07-07 | B144: Rade, Marcus | C144: 25 | D144: 33 | E144: 211111112211212221 | F144: 222321222212212221 | G144: 18 | H144: 18 | I144: E | J144: B | K144: 2 | L144: 1 | M144: 1 | N144: 1 | O144: 1 | P144: 1 | Q144: 1 | R144: 1 | S144: 2 | T144: 2 | U144: 1 | V144: 1 | W144: 2 | X144: 1 | Y144: 2 | Z144: 2 | AA144: 2 | AB144: 1 | AC144: 25 | AD144: 2 | AE144: 2 | AF144: 2 | AG144: 3 | AH144: 2 | AI144: 1 | AJ144: 2 | AK144: 2 | AL144: 2 | AM144: 2 | AN144: 1 | AO144: 2 | AP144: 2 | AQ144: 1 | AR144: 2 | AS144: 2 | AT144: 2 | AU144: 1 | AV144: 33
A145: 2022-07-07 | B145: Schmidtbauer, Günter | C145: 35 | D145: 39 | E145: 241112252212112222 | F145: 232422222211225221 | G145: 18 | H145: 18 | I145: E | J145: B | K145: 2 | L145: 4 | M145: 1 | N145: 1 | O145: 1 | P145: 2 | Q145: 2 | R145: 5 | S145: 2 | T145: 2 | U145: 1 | V145: 2 | W145: 1 | X145: 1 | Y145: 2 | Z145: 2 | AA145: 2 | AB145: 2 | AC145: 35 | AD145: 2 | AE145: 3 | AF145: 2 | AG145: 4 | AH145: 2 | AI145: 2 | AJ145: 2 | AK145: 2 | AL145: 2 | AM145: 2 | AN145: 1 | AO145: 1 | AP145: 2 | AQ145: 2 | AR145: 5 | AS145: 2 | AT145: 2 | AU145: 1 | AV145: 39
A146: 2022-07-14 | B146: Lenk, Rolf | C146: 24 | D146: 30 | E146: 111112111212212112 | F146: 221212321212112221 | G146: 18 | H146: 18 | I146: E | J146: B | K146: 1 | L146: 1 | M146: 1 | N146: 1 | O146: 1 | P146: 2 | Q146: 1 | R146: 1 | S146: 1 | T146: 2 | U146: 1 | V146: 2 | W146: 2 | X146: 1 | Y146: 2 | Z146: 1 | AA146: 1 | AB146: 2 | AC146: 24 | AD146: 2 | AE146: 2 | AF146: 1 | AG146: 2 | AH146: 1 | AI146: 2 | AJ146: 3 | AK146: 2 | AL146: 1 | AM146: 2 | AN146: 1 | AO146: 2 | AP146: 1 | AQ146: 1 | AR146: 2 | AS146: 2 | AT146: 2 | AU146: 1 | AV146: 30
A147: 2022-07-14 | B147: Urban, Volker | C147: 25 | D147: 35 | E147: 121211112111113221 | F147: 121212122313223223 | G147: 18 | H147: 18 | I147: E | J147: B | K147: 1 | L147: 2 | M147: 1 | N147: 2 | O147: 1 | P147: 1 | Q147: 1 | R147: 1 | S147: 2 | T147: 1 | U147: 1 | V147: 1 | W147: 1 | X147: 1 | Y147: 3 | Z147: 2 | AA147: 2 | AB147: 1 | AC147: 25 | AD147: 1 | AE147: 2 | AF147: 1 | AG147: 2 | AH147: 1 | AI147: 2 | AJ147: 1 | AK147: 2 | AL147: 2 | AM147: 3 | AN147: 1 | AO147: 3 | AP147: 2 | AQ147: 2 | AR147: 3 | AS147: 2 | AT147: 2 | AU147: 3 | AV147: 35
A148: 2022-07-14 | B148: Schmidtbauer, Günter | C148: 43 | D148: 37 | E148: 112211752212132523 | F148: 122322132211132324 | G148: 18 | H148: 18 | I148: E | J148: B | K148: 1 | L148: 1 | M148: 2 | N148: 2 | O148: 1 | P148: 1 | Q148: 7 | R148: 5 | S148: 2 | T148: 2 | U148: 1 | V148: 2 | W148: 1 | X148: 3 | Y148: 2 | Z148: 5 | AA148: 2 | AB148: 3 | AC148: 43 | AD148: 1 | AE148: 2 | AF148: 2 | AG148: 3 | AH148: 2 | AI148: 2 | AJ148: 1 | AK148: 3 | AL148: 2 | AM148: 2 | AN148: 1 | AO148: 1 | AP148: 1 | AQ148: 3 | AR148: 2 | AS148: 3 | AT148: 2 | AU148: 4 | AV148: 37
A149: 2022-07-14 | B149: Börgmann, Ulrich | C149: 27 | D149: 39 | E149: 132111112212212112 | F149: 213222122212127223 | G149: 18 | H149: 18 | I149: E | J149: B | K149: 1 | L149: 3 | M149: 2 | N149: 1 | O149: 1 | P149: 1 | Q149: 1 | R149: 1 | S149: 2 | T149: 2 | U149: 1 | V149: 2 | W149: 2 | X149: 1 | Y149: 2 | Z149: 1 | AA149: 1 | AB149: 2 | AC149: 27 | AD149: 2 | AE149: 1 | AF149: 3 | AG149: 2 | AH149: 2 | AI149: 2 | AJ149: 1 | AK149: 2 | AL149: 2 | AM149: 2 | AN149: 1 | AO149: 2 | AP149: 1 | AQ149: 2 | AR149: 7 | AS149: 2 | AT149: 2 | AU149: 3 | AV149: 39
A150: 2022-07-14 | B150: Urban, Angela | C150: 32 | D150: 41 | E150: 111211731121212122 | F150: 231223234211222234 | G150: 18 | H150: 18 | I150: E | J150: B | K150: 1 | L150: 1 | M150: 1 | N150: 2 | O150: 1 | P150: 1 | Q150: 7 | R150: 3 | S150: 1 | T150: 1 | U150: 2 | V150: 1 | W150: 2 | X150: 1 | Y150: 2 | Z150: 1 | AA150: 2 | AB150: 2 | AC150: 32 | AD150: 2 | AE150: 3 | AF150: 1 | AG150: 2 | AH150: 2 | AI150: 3 | AJ150: 2 | AK150: 3 | AL150: 4 | AM150: 2 | AN150: 1 | AO150: 1 | AP150: 2 | AQ150: 2 | AR150: 2 | AS150: 2 | AT150: 3 | AU150: 4 | AV150: 41
A151: 2022-07-14 | B151: Kortmann, Sabine | C151: 30 | D151: 30 | E151: 211114112211212313 | F151: 222321122112222111 | G151: 18 | H151: 18 | I151: E | J151: B | K151: 2 | L151: 1 | M151: 1 | N151: 1 | O151: 1 | P151: 4 | Q151: 1 | R151: 1 | S151: 2 | T151: 2 | U151: 1 | V151: 1 | W151: 2 | X151: 1 | Y151: 2 | Z151: 3 | AA151: 1 | AB151: 3 | AC151: 30 | AD151: 2 | AE151: 2 | AF151: 2 | AG151: 3 | AH151: 2 | AI151: 1 | AJ151: 1 | AK151: 2 | AL151: 2 | AM151: 1 | AN151: 1 | AO151: 2 | AP151: 2 | AQ151: 2 | AR151: 2 | AS151: 1 | AT151: 1 | AU151: 1 | AV151: 30
A152: 2022-07-14 | B152: Börgmann, Brigitte | C152: 46 | D152: 40 | E152: 122224272216232222 | F152: 121612216212222232 | G152: 18 | H152: 18 | I152: E | J152: B | K152: 1 | L152: 2 | M152: 2 | N152: 2 | O152: 2 | P152: 4 | Q152: 2 | R152: 7 | S152: 2 | T152: 2 | U152: 1 | V152: 6 | W152: 2 | X152: 3 | Y152: 2 | Z152: 2 | AA152: 2 | AB152: 2 | AC152: 46 | AD152: 1 | AE152: 2 | AF152: 1 | AG152: 6 | AH152: 1 | AI152: 2 | AJ152: 2 | AK152: 1 | AL152: 6 | AM152: 2 | AN152: 1 | AO152: 2 | AP152: 2 | AQ152: 2 | AR152: 2 | AS152: 2 | AT152: 3 | AU152: 2 | AV152: 40
A153: 2022-07-14 | B153: Kunz, Martin | C153: 28 | D153: 32 | E153: 221111212221312211 | F153: 221322311221112222 | G153: 18 | H153: 18 | I153: E | J153: B | K153: 2 | L153: 2 | M153: 1 | N153: 1 | O153: 1 | P153: 1 | Q153: 2 | R153: 1 | S153: 2 | T153: 2 | U153: 2 | V153: 1 | W153: 3 | X153: 1 | Y153: 2 | Z153: 2 | AA153: 1 | AB153: 1 | AC153: 28 | AD153: 2 | AE153: 2 | AF153: 1 | AG153: 3 | AH153: 2 | AI153: 2 | AJ153: 3 | AK153: 1 | AL153: 1 | AM153: 2 | AN153: 2 | AO153: 1 | AP153: 1 | AQ153: 1 | AR153: 2 | AS153: 2 | AT153: 2 | AU153: 2 | AV153: 32
A154: 2022-07-14 | B154: Buchholz, Ansgar | C154: 24 | D154: 27 | E154: 112111112211112212 | F154: 122211122212211211 | G154: 18 | H154: 18 | I154: E | J154: B | K154: 1 | L154: 1 | M154: 2 | N154: 1 | O154: 1 | P154: 1 | Q154: 1 | R154: 1 | S154: 2 | T154: 2 | U154: 1 | V154: 1 | W154: 1 | X154: 1 | Y154: 2 | Z154: 2 | AA154: 1 | AB154: 2 | AC154: 24 | AD154: 1 | AE154: 2 | AF154: 2 | AG154: 2 | AH154: 1 | AI154: 1 | AJ154: 1 | AK154: 2 | AL154: 2 | AM154: 2 | AN154: 1 | AO154: 2 | AP154: 2 | AQ154: 1 | AR154: 1 | AS154: 2 | AT154: 1 | AU154: 1 | AV154: 27
A155: 2022-07-14 | B155: Puschner, Michael | C155: 30 | D155: 32 | E155: 112111122212212332 | F155: 122221222213122221 | G155: 18 | H155: 18 | I155: E | J155: B | K155: =IF($I155=MID(K$1,1,1),IF(ISBLANK($E155),"",VALUE(MID($E155,VALUE(MID(K$1,2,LEN(K$1)-1)),1))),IF($J155=MID(K$1,1,1),IF(ISBLANK($F155),"",VALUE(MID($F155,VALUE(MID(K$1,2,LEN(K$1)-1)),1))))) -> 1 | L155: 1 | M155: 2 | N155: 1 | O155: 1 | P155: 1 | Q155: 1 | R155: 2 | S155: 2 | T155: 2 | U155: 1 | V155: 2 | W155: 2 | X155: 1 | Y155: 2 | Z155: 3 | AA155: 3 | AB155: 2 | AC155: 30 | AD155: 1 | AE155: 2 | AF155: 2 | AG155: 2 | AH155: 2 | AI155: 1 | AJ155: 2 | AK155: 2 | AL155: =IF($I155=MID(AL$1,1,1),IF(ISBLANK($E155),"",VALUE(MID($E155,VALUE(MID(AL$1,2,LEN(AL$1)-1)),1))),IF($J155=MID(AL$1,1,1),IF(ISBLANK($F155),"",VALUE(MID($F155,VALUE(MID(AL$1,2,LEN(AL$1)-1)),1))))) -> 2 | AM155: 2 | AN155: 1 | AO155: 3 | AP155: 1 | AQ155: 2 | AR155: 2 | AS155: 2 | AT155: 2 | AU155: 1 | AV155: 32
A156: 2022-07-14 | B156: Rade, Marcus | C156: 26 | D156: 30 | E156: 241111112211112112 | F156: 211222122212222211 | G156: 18 | H156: 18 | I156: E | J156: B | K156: 2 | L156: 4 | M156: 1 | N156: 1 | O156: 1 | P156: 1 | Q156: 1 | R156: 1 | S156: 2 | T156: 2 | U156: 1 | V156: 1 | W156: 1 | X156: 1 | Y156: 2 | Z156: 1 | AA156: 1 | AB156: 2 | AC156: 26 | AD156: =IF($I156=MID(AD$1,1,1),IF(ISBLANK($E156),"",VALUE(MID($E156,VALUE(MID(AD$1,2,LEN(AD$1)-1)),1))),IF($J156=MID(AD$1,1,1),IF(ISBLANK($F156),"",VALUE(MID($F156,VALUE(MID(AD$1,2,LEN(AD$1)-1)),1))))) -> 2 | AE156: 1 | AF156: 1 | AG156: 2 | AH156: 2 | AI156: 2 | AJ156: 1 | AK156: 2 | AL156: 2 | AM156: 2 | AN156: 1 | AO156: 2 | AP156: 2 | AQ156: 2 | AR156: 2 | AS156: 2 | AT156: 1 | AU156: 1 | AV156: 30
A157: 2022-07-14 | B157: Kersch, Uwe | C157: 35 | D157: 50 | E157: 232213242211113212 | F157: 152252434312222343 | G157: 18 | H157: 18 | I157: E | J157: B | K157: 2 | L157: 3 | M157: 2 | N157: 2 | O157: 1 | P157: 3 | Q157: 2 | R157: 4 | S157: 2 | T157: 2 | U157: 1 | V157: 1 | W157: 1 | X157: 1 | Y157: 3 | Z157: 2 | AA157: 1 | AB157: 2 | AC157: 35 | AD157: 1 | AE157: 5 | AF157: 2 | AG157: 2 | AH157: 5 | AI157: 2 | AJ157: 4 | AK157: 3 | AL157: 4 | AM157: 3 | AN157: 1 | AO157: 2 | AP157: 2 | AQ157: 2 | AR157: 2 | AS157: 3 | AT157: 4 | AU157: 3 | AV157: 50
A158: 2022-07-14 | B158: Dreischer, Burkhard | C158: 35 | D158: 37 | E158: 142221122111412323 | F158: 122422222211323222 | G158: 18 | H158: 18 | I158: E | J158: B | K158: 1 | L158: 4 | M158: 2 | N158: 2 | O158: 2 | P158: 1 | Q158: 1 | R158: 2 | S158: 2 | T158: 1 | U158: 1 | V158: 1 | W158: 4 | X158: 1 | Y158: 2 | Z158: 3 | AA158: 2 | AB158: 3 | AC158: 35 | AD158: 1 | AE158: 2 | AF158: 2 | AG158: 4 | AH158: 2 | AI158: 2 | AJ158: 2 | AK158: 2 | AL158: 2 | AM158: 2 | AN158: 1 | AO158: 1 | AP158: 3 | AQ158: 2 | AR158: 3 | AS158: 2 | AT158: 2 | AU158: 2 | AV158: 37
A159: 2022-07-14 | B159: Tabor, Peter | C159: 42 | D159: 40 | E159: 212231623112524311 | F159: 312622122213223231 | G159: 18 | H159: 18 | I159: E | J159: B | K159: 2 | L159: 1 | M159: 2 | N159: 2 | O159: 3 | P159: 1 | Q159: 6 | R159: 2 | S159: 3 | T159: 1 | U159: 1 | V159: 2 | W159: 5 | X159: 2 | Y159: 4 | Z159: 3 | AA159: 1 | AB159: 1 | AC159: 42 | AD159: 3 | AE159: 1 | AF159: 2 | AG159: 6 | AH159: 2 | AI159: 2 | AJ159: 1 | AK159: 2 | AL159: 2 | AM159: 2 | AN159: 1 | AO159: 3 | AP159: 2 | AQ159: 2 | AR159: 3 | AS159: 2 | AT159: 3 | AU159: 1 | AV159: 40
A160: 2022-07-21 | B160: Kersch, Uwe | C160: 43 | E160: 131213242242223225 | G160: 18 | H160: 0 | I160: E | J160: B | K160: 1 | L160: 3 | M160: 1 | N160: 2 | O160: 1 | P160: 3 | Q160: 2 | R160: 4 | S160: 2 | T160: 2 | U160: 4 | V160: 2 | W160: 2 | X160: 2 | Y160: 3 | Z160: 2 | AA160: 2 | AB160: 5 | AC160: 43 | AV160: 0
A161: 2022-07-21 | B161: Puschner, Michael | C161: 34 | E161: 242111122212422113 | G161: 18 | H161: 0 | I161: E | J161: B | K161: 2 | L161: 4 | M161: 2 | N161: 1 | O161: 1 | P161: 1 | Q161: 1 | R161: 2 | S161: 2 | T161: 2 | U161: 1 | V161: 2 | W161: 4 | X161: 2 | Y161: 2 | Z161: 1 | AA161: 1 | AB161: 3 | AC161: 34 | AV161: 0
A162: 2022-07-21 | B162: Lenk, Rolf | C162: 32 | E162: 311221121211322124 | G162: 18 | H162: 0 | I162: E | J162: B | K162: 3 | L162: 1 | M162: 1 | N162: 2 | O162: 2 | P162: 1 | Q162: 1 | R162: 2 | S162: 1 | T162: 2 | U162: 1 | V162: 1 | W162: 3 | X162: 2 | Y162: 2 | Z162: 1 | AA162: =IF($I162=MID(AA$1,1,1),IF(ISBLANK($E162),"",VALUE(MID($E162,VALUE(MID(AA$1,2,LEN(AA$1)-1)),1))),IF($J162=MID(AA$1,1,1),IF(ISBLANK($F162),"",VALUE(MID($F162,VALUE(MID(AA$1,2,LEN(AA$1)-1)),1))))) -> 2 | AB162: 4 | AC162: 32 | AV162: 0
A163: 2022-07-21 | B163: Rabe, Jonas | C163: 27 | E163: 212211122212212111 | G163: 18 | H163: 0 | I163: E | J163: B | K163: 2 | L163: 1 | M163: 2 | N163: 2 | O163: 1 | P163: 1 | Q163: 1 | R163: 2 | S163: 2 | T163: 2 | U163: 1 | V163: 2 | W163: 2 | X163: 1 | Y163: 2 | Z163: 1 | AA163: 1 | AB163: 1 | AC163: 27 | AV163: 0
A164: 2022-07-21 | B164: Kortmann, Sabine | C164: 32 | E164: 111221222212222223 | G164: 18 | H164: 0 | I164: E | J164: B | K164: 1 | L164: 1 | M164: 1 | N164: 2 | O164: 2 | P164: 1 | Q164: 2 | R164: 2 | S164: 2 | T164: 2 | U164: 1 | V164: 2 | W164: 2 | X164: 2 | Y164: 2 | Z164: 2 | AA164: 2 | AB164: 3 | AC164: 32 | AV164: 0
A165: 2022-07-21 | B165: Schmidtbauer, Günter | C165: 43 | E165: 322111762211332231 | G165: 18 | H165: 0 | I165: E | J165: B | K165: 3 | L165: 2 | M165: 2 | N165: 1 | O165: 1 | P165: 1 | Q165: 7 | R165: 6 | S165: 2 | T165: 2 | U165: 1 | V165: 1 | W165: 3 | X165: 3 | Y165: 2 | Z165: 2 | AA165: 3 | AB165: 1 | AC165: 43 | AV165: 0
A166: 2022-07-21 | B166: Dreischer, Burkhard | C166: 38 | E166: 162211111214242421 | G166: 18 | H166: 0 | I166: E | J166: B | K166: 1 | L166: 6 | M166: 2 | N166: 2 | O166: 1 | P166: 1 | Q166: 1 | R166: 1 | S166: 1 | T166: 2 | U166: 1 | V166: 4 | W166: 2 | X166: 4 | Y166: 2 | Z166: 4 | AA166: 2 | AB166: 1 | AC166: 38 | AV166: 0
A167: 2022-07-28 | B167: Brunnenkant, Frank | C167: 34 | D167: 31 | E167: 222111112212513322 | F167: 222112123221212221 | G167: 18 | H167: 18 | I167: E | J167: B | K167: 2 | L167: 2 | M167: 2 | N167: 1 | O167: 1 | P167: 1 | Q167: 1 | R167: 1 | S167: 2 | T167: 2 | U167: 1 | V167: 2 | W167: 5 | X167: 1 | Y167: 3 | Z167: 3 | AA167: 2 | AB167: 2 | AC167: 34 | AD167: 2 | AE167: 2 | AF167: 2 | AG167: 1 | AH167: 1 | AI167: 2 | AJ167: 1 | AK167: 2 | AL167: 3 | AM167: 2 | AN167: 2 | AO167: 1 | AP167: 2 | AQ167: 1 | AR167: 2 | AS167: 2 | AT167: 2 | AU167: 1 | AV167: 31
